Workbook

Sheet MENU
L4: =+TABLAS!A81 -> 4-5-3-2-1-T------
L5: =+TABLAS!A117 -> 4-5-3-2-1-T------
L6: =+TABLAS!A152 -> 4-5-3-1-2-T------
L7: =+TABLAS!A190 -> 4-5-3-2-1-T------
H27: CONTROL DE MESES
H29: =+TABLAS!A190 -> 4-5-3-2-1-T------

Sheet TABLAS (hidden)
C8: Valores | I8: Tabla | J8: =IF(I9="(Todas)","CUSCO ","") -> 
C9: RED | D9: 99 - (All) | I9: =IF(MID(D9,1,2)="99","(All)",MID(D9,1,2)) -> (All) | J9: =IF(I9="(All)"," ",I9) ->  | M9: =LEN(MID(D9,5,90)) -> 6 | O9: =IF(MID(D9,6,5)="(All)","",D9) -> 
C10: Micro RED | D10: 9999 - (All) | I10: =IF(MID(D10,3,2)="99","(All)",MID(D10,1,4)) -> (All) | M10: =LEN(MID(D10,7,90)) -> 6 | O10: =IF(MID(D10,8,5)="(All)","",D10) -> 
C11: Establecimiento | D11: 999999999 - (All) | I11: =IF(OR(MID(D11,1,9)="999999999",MID(D11,1,9)="000000000"),"(All)",MID(D11,1,9)) -> (All) | M11: =LEN(MID(D11,12,90)) -> 6 | O11: =IF(MID(D11,13,5)="(All)","",D11) ->  | Q11: =MID(O11,1,9) -> 
C12: Provincia | D12: 00 - (All) | I12: =IF(MID(D12,1,2)="00","(All)",MID(D12,1,2)) -> (All) | M12: =LEN(MID(D12,6,90)) -> 5 | O12: =IF(MID(D12,6,5)="(All)","",D12) -> 
C13: Distrito | D13: 0000 - (All) | I13: =IF(OR(MID(D13,1,4)="0000",MID(D13,3,2)="00"),"(All)",MID(D13,1,4)) -> (All) | M13: =LEN(MID(D13,8,90)) -> 5 | O13: =IF(MID(D13,8,5)="(All)","",D13) -> 
C14: Ejecutira | D14: 99 - (ALL) | I14: =IF(MID(D14,1,2)="99","(All)",MID(D14,1,2)) -> (All) | M14: =LEN(MID(D14,5,90)) -> 6 | O14: =IF(MID(D14,6,5)="(All)","",D14) -> 
C16: Año | D16: 2025 | I16: =+D16 -> 2025 | J16: =IF(I16="(Todas)"," ",I16) -> 2025
B20: 1 | C20: 1 | D20: 1 | E20: 1 | F20: 1 | G20: 0 | H20: 0 | I20: 0 | J20: 0 | K20: 0 | L20: 0 | M20: 0 | N20: =SUM(B20:M20) -> 5
B21: =IF(B20=1,"ENERO","") -> ENERO | C21: =IF(C20=1,"FEBRERO","") -> FEBRERO | D21: =IF(D20=1,"MARZO","") -> MARZO | E21: =IF(E20=1,"ABRIL","") -> ABRIL | F21: =IF(F20=1,"MAYO","") -> MAYO | G21: =IF(G20=1,"JUNIO","") ->  | H21: =IF(H20=1,"JULIO","") ->  | I21: =IF(I20=1,"AGOSTO","") ->  | J21: =IF(J20=1,"SETIEMBRE","") ->  | K21: =IF(K20=1,"OCTUBRE","") ->  | L21: =IF(L20=1,"NOVIEMBRE","") ->  | M21: =IF(M20=1,"DICIEMBRE","") ->  | N21: =IF(B20=1,B21,IF(C20=1,C21,IF(D20=1,D21,IF(E20=1,E21,IF(F20=1,F21,IF(G20=1,G21,IF(H20=1,H21,IF(I20=1,I21,IF(J20=1,J21,IF(K20=1,K21,IF(L20=1,L21,IF(M20=1,M21,"")))))))))))) -> ENERO
N22: =IF(N20=1,N21,"") -> 
B23: 2 | C23: 4 | D23: 6 | E23: 8 | F23: 10 | N23: =MIN(B23:M23) -> 2 | O23: =MAX(B23:M23) -> 10 | P23: =MAX(C23:N23) -> 10
B24: =IF(B23=2,"ENE","") -> ENE | C24: =IF(C23=4,"FEB","") -> FEB | D24: =IF(D23=6,"MAR","") -> MAR | E24: =IF(E23=8,"ABR","") -> ABR | F24: =IF(F23=10,"MAY","") -> MAY | G24: =IF(G23=12,"JUN","") ->  | H24: =IF(H23=14,"JUL","") ->  | I24: =IF(I23=16,"AGO","") ->  | J24: =IF(J23=18,"SET","") ->  | K24: =IF(K23=20,"OCT","") ->  | L24: =IF(L23=22,"NOV","") ->  | M24: =IF(M23=24,"DIC","") ->  | N24: =IF(N23=B23,B24,IF(N23=C23,C24,IF(N23=D23,D24,IF(N23=E23,E24,IF(N23=F23,F24,IF(N23=G23,G24,IF(N23=H23,#REF!,IF(N23=I23,I24,IF(N23=J23,J24,IF(N23=K23,K24,IF(N23=L23,L24,IF(N23=M23,M24,"")))))))))))) -> ENE | O24: =IF(O23=C23,C24,IF(O23=D23,D24,IF(O23=E23,E24,IF(O23=F23,F24,IF(O23=G23,G24,IF(O23=H23,H24,IF(O23=I23,I24,IF(O23=J23,J24,IF(O23=K23,K24,IF(O23=L23,L24,IF(O23=M23,M24,""))))))))))) -> MAY | P24: =IF(P23=D23,D24,IF(P23=E23,E24,IF(P23=F23,F24,IF(P23=G23,G24,IF(P23=H23,H24,IF(P23=I23,I24,IF(P23=J23,J24,IF(P23=K23,K24,IF(P23=L23,L24,IF(P23=M23,M24,IF(P23=N23,N24,""))))))))))) -> MAY
N25: =CONCATENATE(N24," - ",O24) -> ENE - MAY
N26: =IF(N23=O23,N22,N25) -> ENE - MAY
A50: ESANS_01
A51: anno | B51: 2025
A52: cod_red | B52: (Todas)
A53: codmic | B53: (Todas)
A54: cod_prov | B54: (Todas)
A55: coddist | B55: (Todas)
A56: cod_estab | B56: (Todas)
A57: cod_eje | B57: (Todas)
B59: Valores
A60: Etiquetas de fila | B60: BAS001 | C60: BAS002 | D60: BAS003 | E60: BAS004 | F60: BAS005 | G60: BAS006 | H60: BAS007 | I60: BAS008 | J60: BAS009 | K60: BAS010 | L60: BAS011 | M60: BAS012 | N60: BAS013 | O60: BAS014 | P60: BAS015 | Q60: BAS016 | R60: BAS017 | S60: BAS018 | T60: BAS019 | U60: BAS020 | V60: BAS021 | W60: BAS022 | X60: BAS023 | Y60: BAS024 | Z60: BAS025 | AA60: BAS026 | AB60: BAS027 | AC60: BAS028 | AD60: BAS029 | AE60: BAS030 | AF60: BAS031 | AG60: BAS032 | AH60: BAS033 | AI60: BAS034 | AJ60: BAS035 | AK60: BAS036 | AL60: BAS037 | AM60: BAS038 | AN60: BAS039 | AO60: BAS040 | AP60: BAS041 | AQ60: BAS042 | AR60: BAS043 | AS60: BAS044 | AT60: BAS045 | AU60: BAS046 | AV60: BAS047 | AW60: BAS048 | AX60: BAS049 | AY60: BAS050 | AZ60: BAS051 | BA60: BAS052 | BB60: BAS053 | BC60: BAS054 | BD60: BAS055 | BE60: BAS056 | BF60: BAS057 | BG60: BAS058 | BH60: BAS059 | BI60: BAS060 | BJ60: BAS061 | BK60: BAS062 | BL60: BAS063 | BM60: BAS064 | BN60: BAS065 | BO60: BAS066 | BP60: BAS067 | BQ60: BAS068 | BR60: BAS069 | BS60: BAS070 | BT60: BAS071 | BU60: BAS072 | BV60: BAS073 | BW60: BAS074 | BX60: BAS075 | BY60: BAS076 | BZ60: BAS077 | CA60: BAS078 | CB60: BAS079 | CC60: BAS080 | CD60: BAS081 | CE60: BAS082 | CF60: BAS083 | CG60: BAS084 | CH60: BAS085 | CI60: BAS086 | CJ60: BAS087 | CK60: BAS088 | CL60: BAS089 | CM60: BAS090 | CN60: BAS091 | CO60: BAS092 | CP60: BAS093 | CQ60: BAS094 | CR60: BAS095 | CS60: BAS096 | CT60: BAS097 | CU60: BAS098 | CV60: BAS099 | CW60: BAS100 | CX60: BAS101 | CY60: BAS102 | CZ60: BAS103 | DA60: BAS104 | DB60: BAS105 | DC60: BAS106 | DD60: BAS107 | DE60: BAS108 | DF60: BAS109 | DG60: BAS110 | DH60: BAS111 | DI60: BAS112 | DJ60: BAS113 | DK60: BAS114 | DL60: BAS115 | DM60: BAS116 | DN60: BAS117 | DO60: BAS118 | DP60: BAS119 | DQ60: BAS120 | DR60: BAS121 | DS60: BAS122 | DT60: BAS123 | DU60: BAS124 | DV60: BAS125 | DW60: BAS126 | DX60: BAS127 | DY60: BAS128 | DZ60: BAS129 | EA60: BAS130 | EB60: BAS131 | EC60: BAS132 | ED60: BAS133 | EE60: BAS134 | EF60: BAS135 | EG60: BAS136 | EH60: BAS137 | EI60: BAS138 | EJ60: BAS139 | EK60: BAS140 | EL60: BAS141 | EM60: BAS142 | EN60: BAS143 | EO60: BAS144 | EP60: BAS145 | EQ60: BAS146 | ER60: BAS147 | ES60: BAS148 | ET60: BAS149 | EU60: BAS150 | EV60: BAS151 | EW60: BAS152 | EX60: BAS153 | EY60: BAS154 | EZ60: BAS155 | FA60: BAS156 | FB60: BAS157 | FC60: BAS158 | FD60: BAS159 | FE60: BAS160 | FF60: BAS161 | FG60: BAS162 | FH60: BAS163 | FI60: BAS164 | FJ60: BAS165 | FK60: BAS166 | FL60: BAS167 | FM60: BAS168 | FN60: BAS169 | FO60: BAS170 | FP60: BAS171 | FQ60: BAS172 | FR60: BAS173 | FS60: BAS174 | FT60: BAS175 | FU60: BAS176 | FV60: BAS177 | FW60: BAS178 | FX60: BAS179 | FY60: BAS180 | FZ60: BAS181 | GA60: BAS182 | GB60: BAS183 | GC60: BAS184 | GD60: BAS185 | GE60: BAS186 | GF60: BAS187 | GG60: BAS188 | GH60: BAS189 | GI60: BAS190 | GJ60: BAS191 | GK60: BAS192 | GL60: BAS193 | GM60: BAS194 | GN60: BAS195 | GO60: BAS196 | GP60: BAS197 | GQ60: BAS198 | GR60: BAS199 | GS60: BAS200 | GT60: BAS201 | GU60: BAS202 | GV60: BAS203 | GW60: BAS204 | GX60: BAS205 | GY60: BAS206 | GZ60: BAS207 | HA60: BAS208 | HB60: BAS209 | HC60: BAS210 | HD60: BAS211 | HE60: BAS212 | HF60: BAS213 | HG60: BAS214 | HH60: BAS215 | HI60: BAS216 | HJ60: BAS217 | HK60: BAS218 | HL60: BAS219 | HM60: BAS220 | HN60: BAS221 | HO60: BAS222 | HP60: BAS223 | HQ60: BAS224 | HR60: BAS225 | HS60: BAS226 | HT60: BAS227 | HU60: BAS228 | HV60: BAS229 | HW60: BAS230
A61: 4 | B61: 2 | C61: 4 | D61: 2 | E61: 11 | F61: 0 | G61: 122 | H61: 0 | I61: 0 | J61: 2 | K61: 0 | L61: 0 | M61: 0 | N61: 0 | O61: 1 | P61: 1 | Q61: 1 | R61: 1 | S61: 0 | T61: 0 | U61: 0 | V61: 9 | W61: 5 | X61: 1 | Y61: 4 | Z61: 2 | AA61: 2 | AB61: 1 | AC61: 6 | AD61: 5 | AE61: 2 | AF61: 0 | AG61: 0 | AH61: 0 | AI61: 1 | AJ61: 2 | AK61: 4 | AL61: 2 | AM61: 0 | AN61: 0 | AO61: 0 | AP61: 1 | AQ61: 144 | AR61: 114 | AS61: 127 | AT61: 19 | AU61: 12 | AV61: 19 | AW61: 126 | AX61: 147 | AY61: 137 | AZ61: 157 | BA61: 130 | BB61: 100 | BC61: 88 | BD61: 168 | BE61: 138 | BF61: 122 | BG61: 115 | BH61: 103 | BI61: 80 | BJ61: 46 | BK61: 66 | BL61: 151 | BM61: 101 | BN61: 88 | BO61: 10 | BP61: 12 | BQ61: 7 | BR61: 104 | BS61: 154 | BT61: 108 | BU61: 66 | BV61: 13 | BW61: 7 | BX61: 5 | BY61: 64 | BZ61: 193 | CA61: 58 | CB61: 21 | CC61: 7 | CD61: 2 | CE61: 0 | CF61: 8 | CG61: 20 | CH61: 2 | CI61: 0 | CJ61: 0 | CK61: 0 | CL61: 1 | CM61: 0 | CN61: 20 | CO61: 12 | CP61: 0 | CQ61: 0 | CR61: 0 | CS61: 1 | CT61: 0 | CU61: 79 | CV61: 57 | CW61: 1 | CX61: 0 | CY61: 0 | CZ61: 0 | DA61: 0 | DB61: 3 | DC61: 0 | DD61: 0 | DE61: 0 | DF61: 0 | DG61: 0 | DH61: 78 | DI61: 42 | DJ61: 64 | DK61: 40 | DL61: 47 | DM61: 42 | DN61: 54 | DO61: 39 | DP61: 69 | DQ61: 25 | DR61: 0 | DS61: 0 | DT61: 0 | DU61: 0 | DV61: 0 | DW61: 0 | DX61: 0 | DY61: 0 | DZ61: 60 | EA61: 51 | EB61: 35 | EC61: 134 | ED61: 115 | EE61: 138 | EF61: 120 | EG61: 106 | EH61: 101 | EI61: 138 | EJ61: 92 | EK61: 80 | EL61: 138 | EM61: 97 | EN61: 60 | EO61: 178 | EP61: 40 | EQ61: 21 | ER61: 9 | ES61: 1 | ET61: 0 | EU61: 42 | EV61: 3 | EW61: 1 | EX61: 0 | EY61: 0 | EZ61: 0 | FA61: 0 | FB61: 0 | FC61: 0 | FD61: 0 | FE61: 0 | FF61: 0 | FG61: 0 | FH61: 0 | FI61: 0 | FJ61: 0 | FK61: 0 | FL61: 0 | FM61: 0 | FN61: 0 | FO61: 0 | FP61: 0 | FQ61: 0 | FR61: 0 | FS61: 0 | FT61: 0 | FU61: 0 | FV61: 0 | FW61: 0 | FX61: 0 | FY61: 0 | FZ61: 0 | GA61: 0 | GB61: 0 | GC61: 0 | GD61: 0 | GE61: 0 | GF61: 0 | GG61: 0 | GH61: 0 | GI61: 0 | GJ61: 0 | GK61: 0 | GL61: 0 | GM61: 0 | GN61: 0 | GO61: 0 | GP61: 0 | GQ61: 0 | GR61: 0 | GS61: 0 | GT61: 0 | GU61: 0 | GV61: 0 | GW61: 0 | GX61: 0 | GY61: 0 | GZ61: 0 | HA61: 0 | HB61: 0 | HC61: 0 | HD61: 0 | HE61: 0 | HF61: 0 | HG61: 0 | HH61: 0 | HI61: 0 | HJ61: 0 | HK61: 0 | HL61: 0 | HM61: 0 | HN61: 0 | HO61: 0 | HP61: 0 | HQ61: 0 | HR61: 0 | HS61: 0 | HT61: 0 | HU61: 0 | HV61: 0 | HW61: 0
A62: 5 | B62: 3 | C62: 3 | D62: 1 | E62: 5 | F62: 0 | G62: 126 | H62: 2 | I62: 1 | J62: 0 | K62: 0 | L62: 0 | M62: 0 | N62: 0 | O62: 0 | P62: 0 | Q62: 1 | R62: 0 | S62: 1 | T62: 0 | U62: 0 | V62: 4 | W62: 7 | X62: 6 | Y62: 1 | Z62: 6 | AA62: 1 | AB62: 1 | AC62: 5 | AD62: 5 | AE62: 1 | AF62: 1 | AG62: 0 | AH62: 0 | AI62: 0 | AJ62: 2 | AK62: 1 | AL62: 0 | AM62: 0 | AN62: 0 | AO62: 0 | AP62: 2 | AQ62: 132 | AR62: 131 | AS62: 106 | AT62: 28 | AU62: 13 | AV62: 7 | AW62: 126 | AX62: 118 | AY62: 118 | AZ62: 136 | BA62: 135 | BB62: 120 | BC62: 82 | BD62: 166 | BE62: 112 | BF62: 96 | BG62: 84 | BH62: 113 | BI62: 76 | BJ62: 63 | BK62: 59 | BL62: 109 | BM62: 115 | BN62: 91 | BO62: 19 | BP62: 7 | BQ62: 9 | BR62: 74 | BS62: 114 | BT62: 102 | BU62: 86 | BV62: 8 | BW62: 10 | BX62: 7 | BY62: 59 | BZ62: 157 | CA62: 64 | CB62: 42 | CC62: 2 | CD62: 6 | CE62: 3 | CF62: 12 | CG62: 4 | CH62: 1 | CI62: 0 | CJ62: 0 | CK62: 1 | CL62: 0 | CM62: 0 | CN62: 1 | CO62: 3 | CP62: 0 | CQ62: 0 | CR62: 0 | CS62: 0 | CT62: 0 | CU62: 115 | CV62: 39 | CW62: 2 | CX62: 0 | CY62: 0 | CZ62: 0 | DA62: 0 | DB62: 5 | DC62: 0 | DD62: 0 | DE62: 0 | DF62: 0 | DG62: 0 | DH62: 82 | DI62: 46 | DJ62: 45 | DK62: 45 | DL62: 34 | DM62: 29 | DN62: 44 | DO62: 24 | DP62: 43 | DQ62: 34 | DR62: 6 | DS62: 0 | DT62: 0 | DU62: 0 | DV62: 0 | DW62: 0 | DX62: 0 | DY62: 0 | DZ62: 51 | EA62: 61 | EB62: 40 | EC62: 102 | ED62: 105 | EE62: 120 | EF62: 100 | EG62: 84 | EH62: 78 | EI62: 98 | EJ62: 99 | EK62: 81 | EL62: 106 | EM62: 95 | EN62: 81 | EO62: 143 | EP62: 52 | EQ62: 34 | ER62: 0 | ES62: 1 | ET62: 0 | EU62: 7 | EV62: 0 | EW62: 2 | EX62: 0 | EY62: 0 | EZ62: 0 | FA62: 0 | FB62: 0 | FC62: 0 | FD62: 0 | FE62: 0 | FF62: 0 | FG62: 0 | FH62: 0 | FI62: 0 | FJ62: 0 | FK62: 0 | FL62: 0 | FM62: 0 | FN62: 0 | FO62: 0 | FP62: 0 | FQ62: 0 | FR62: 0 | FS62: 0 | FT62: 0 | FU62: 0 | FV62: 0 | FW62: 0 | FX62: 0 | FY62: 0 | FZ62: 0 | GA62: 0 | GB62: 0 | GC62: 0 | GD62: 0 | GE62: 0 | GF62: 0 | GG62: 0 | GH62: 0 | GI62: 0 | GJ62: 0 | GK62: 0 | GL62: 0 | GM62: 0 | GN62: 0 | GO62: 0 | GP62: 0 | GQ62: 0 | GR62: 0 | GS62: 0 | GT62: 0 | GU62: 0 | GV62: 0 | GW62: 0 | GX62: 0 | GY62: 0 | GZ62: 0 | HA62: 0 | HB62: 0 | HC62: 0 | HD62: 0 | HE62: 0 | HF62: 0 | HG62: 0 | HH62: 0 | HI62: 0 | HJ62: 0 | HK62: 0 | HL62: 0 | HM62: 0 | HN62: 0 | HO62: 0 | HP62: 0 | HQ62: 0 | HR62: 0 | HS62: 0 | HT62: 0 | HU62: 0 | HV62: 0 | HW62: 0
A63: 3 | B63: 9 | C63: 1 | D63: 1 | E63: 7 | F63: 0 | G63: 129 | H63: 0 | I63: 2 | J63: 0 | K63: 1 | L63: 0 | M63: 0 | N63: 0 | O63: 2 | P63: 1 | Q63: 0 | R63: 0 | S63: 0 | T63: 0 | U63: 1 | V63: 13 | W63: 4 | X63: 8 | Y63: 3 | Z63: 5 | AA63: 3 | AB63: 0 | AC63: 3 | AD63: 6 | AE63: 2 | AF63: 1 | AG63: 0 | AH63: 0 | AI63: 1 | AJ63: 7 | AK63: 1 | AL63: 0 | AM63: 0 | AN63: 0 | AO63: 0 | AP63: 0 | AQ63: 149 | AR63: 130 | AS63: 119 | AT63: 24 | AU63: 27 | AV63: 15 | AW63: 131 | AX63: 148 | AY63: 167 | AZ63: 145 | BA63: 114 | BB63: 96 | BC63: 54 | BD63: 149 | BE63: 139 | BF63: 119 | BG63: 125 | BH63: 89 | BI63: 50 | BJ63: 42 | BK63: 77 | BL63: 135 | BM63: 114 | BN63: 95 | BO63: 17 | BP63: 15 | BQ63: 7 | BR63: 75 | BS63: 146 | BT63: 91 | BU63: 61 | BV63: 13 | BW63: 7 | BX63: 9 | BY63: 39 | BZ63: 261 | CA63: 46 | CB63: 25 | CC63: 2 | CD63: 1 | CE63: 2 | CF63: 1 | CG63: 16 | CH63: 0 | CI63: 0 | CJ63: 0 | CK63: 0 | CL63: 0 | CM63: 0 | CN63: 7 | CO63: 1 | CP63: 0 | CQ63: 0 | CR63: 0 | CS63: 0 | CT63: 7 | CU63: 124 | CV63: 31 | CW63: 2 | CX63: 0 | CY63: 0 | CZ63: 0 | DA63: 0 | DB63: 1 | DC63: 0 | DD63: 0 | DE63: 0 | DF63: 0 | DG63: 0 | DH63: 89 | DI63: 28 | DJ63: 44 | DK63: 54 | DL63: 55 | DM63: 56 | DN63: 41 | DO63: 28 | DP63: 56 | DQ63: 37 | DR63: 0 | DS63: 1 | DT63: 0 | DU63: 0 | DV63: 0 | DW63: 0 | DX63: 0 | DY63: 0 | DZ63: 61 | EA63: 42 | EB63: 39 | EC63: 106 | ED63: 137 | EE63: 123 | EF63: 116 | EG63: 87 | EH63: 96 | EI63: 114 | EJ63: 84 | EK63: 83 | EL63: 126 | EM63: 71 | EN63: 48 | EO63: 240 | EP63: 38 | EQ63: 14 | ER63: 11 | ES63: 0 | ET63: 0 | EU63: 32 | EV63: 1 | EW63: 1 | EX63: 0 | EY63: 0 | EZ63: 0 | FA63: 0 | FB63: 0 | FC63: 0 | FD63: 0 | FE63: 0 | FF63: 0 | FG63: 0 | FH63: 0 | FI63: 0 | FJ63: 0 | FK63: 0 | FL63: 0 | FM63: 0 | FN63: 0 | FO63: 0 | FP63: 0 | FQ63: 0 | FR63: 0 | FS63: 0 | FT63: 0 | FU63: 0 | FV63: 0 | FW63: 0 | FX63: 0 | FY63: 0 | FZ63: 0 | GA63: 0 | GB63: 0 | GC63: 0 | GD63: 0 | GE63: 0 | GF63: 0 | GG63: 0 | GH63: 0 | GI63: 0 | GJ63: 0 | GK63: 0 | GL63: 0 | GM63: 0 | GN63: 0 | GO63: 0 | GP63: 0 | GQ63: 0 | GR63: 0 | GS63: 0 | GT63: 0 | GU63: 0 | GV63: 0 | GW63: 0 | GX63: 0 | GY63: 0 | GZ63: 0 | HA63: 0 | HB63: 0 | HC63: 0 | HD63: 0 | HE63: 0 | HF63: 0 | HG63: 0 | HH63: 0 | HI63: 0 | HJ63: 0 | HK63: 0 | HL63: 0 | HM63: 0 | HN63: 0 | HO63: 0 | HP63: 0 | HQ63: 0 | HR63: 0 | HS63: 0 | HT63: 0 | HU63: 0 | HV63: 0 | HW63: 0
A64: 2 | B64: 2 | C64: 6 | D64: 0 | E64: 13 | F64: 0 | G64: 93 | H64: 2 | I64: 0 | J64: 2 | K64: 1 | L64: 0 | M64: 0 | N64: 0 | O64: 5 | P64: 0 | Q64: 2 | R64: 1 | S64: 0 | T64: 1 | U64: 0 | V64: 4 | W64: 3 | X64: 1 | Y64: 2 | Z64: 1 | AA64: 0 | AB64: 0 | AC64: 8 | AD64: 1 | AE64: 0 | AF64: 0 | AG64: 0 | AH64: 0 | AI64: 0 | AJ64: 3 | AK64: 1 | AL64: 0 | AM64: 0 | AN64: 0 | AO64: 0 | AP64: 2 | AQ64: 118 | AR64: 120 | AS64: 115 | AT64: 30 | AU64: 19 | AV64: 14 | AW64: 97 | AX64: 185 | AY64: 162 | AZ64: 108 | BA64: 94 | BB64: 38 | BC64: 41 | BD64: 137 | BE64: 131 | BF64: 128 | BG64: 80 | BH64: 60 | BI64: 48 | BJ64: 53 | BK64: 70 | BL64: 129 | BM64: 127 | BN64: 74 | BO64: 15 | BP64: 7 | BQ64: 9 | BR64: 67 | BS64: 111 | BT64: 86 | BU64: 56 | BV64: 7 | BW64: 8 | BX64: 7 | BY64: 26 | BZ64: 121 | CA64: 42 | CB64: 7 | CC64: 2 | CD64: 3 | CE64: 0 | CF64: 4 | CG64: 1 | CH64: 1 | CI64: 0 | CJ64: 0 | CK64: 0 | CL64: 0 | CM64: 1 | CN64: 27 | CO64: 1 | CP64: 0 | CQ64: 0 | CR64: 0 | CS64: 0 | CT64: 13 | CU64: 77 | CV64: 58 | CW64: 0 | CX64: 0 | CY64: 0 | CZ64: 0 | DA64: 0 | DB64: 1 | DC64: 0 | DD64: 0 | DE64: 0 | DF64: 0 | DG64: 0 | DH64: 67 | DI64: 36 | DJ64: 54 | DK64: 39 | DL64: 58 | DM64: 36 | DN64: 59 | DO64: 31 | DP64: 44 | DQ64: 23 | DR64: 3 | DS64: 0 | DT64: 0 | DU64: 0 | DV64: 0 | DW64: 0 | DX64: 0 | DY64: 0 | DZ64: 64 | EA64: 35 | EB64: 35 | EC64: 138 | ED64: 130 | EE64: 81 | EF64: 102 | EG64: 98 | EH64: 64 | EI64: 99 | EJ64: 99 | EK64: 61 | EL64: 90 | EM64: 70 | EN64: 38 | EO64: 94 | EP64: 20 | EQ64: 4 | ER64: 0 | ES64: 1 | ET64: 0 | EU64: 5 | EV64: 1 | EW64: 1 | EX64: 0 | EY64: 0 | EZ64: 0 | FA64: 0 | FB64: 0 | FC64: 0 | FD64: 0 | FE64: 0 | FF64: 0 | FG64: 0 | FH64: 0 | FI64: 0 | FJ64: 0 | FK64: 0 | FL64: 0 | FM64: 0 | FN64: 0 | FO64: 0 | FP64: 0 | FQ64: 0 | FR64: 0 | FS64: 0 | FT64: 0 | FU64: 0 | FV64: 0 | FW64: 0 | FX64: 0 | FY64: 0 | FZ64: 0 | GA64: 0 | GB64: 0 | GC64: 0 | GD64: 0 | GE64: 0 | GF64: 0 | GG64: 0 | GH64: 0 | GI64: 0 | GJ64: 0 | GK64: 0 | GL64: 0 | GM64: 0 | GN64: 0 | GO64: 0 | GP64: 0 | GQ64: 0 | GR64: 0 | GS64: 0 | GT64: 0 | GU64: 0 | GV64: 0 | GW64: 0 | GX64: 0 | GY64: 0 | GZ64: 0 | HA64: 0 | HB64: 0 | HC64: 0 | HD64: 0 | HE64: 0 | HF64: 0 | HG64: 0 | HH64: 0 | HI64: 0 | HJ64: 0 | HK64: 0 | HL64: 0 | HM64: 0 | HN64: 0 | HO64: 0 | HP64: 0 | HQ64: 0 | HR64: 0 | HS64: 0 | HT64: 0 | HU64: 0 | HV64: 0 | HW64: 0
A65: 1 | B65: 3 | C65: 3 | D65: 1 | E65: 8 | F65: 0 | G65: 107 | H65: 0 | I65: 1 | J65: 0 | K65: 0 | L65: 0 | M65: 0 | N65: 0 | O65: 0 | P65: 1 | Q65: 0 | R65: 0 | S65: 0 | T65: 0 | U65: 0 | V65: 0 | W65: 1 | X65: 0 | Y65: 0 | Z65: 1 | AA65: 0 | AB65: 0 | AC65: 0 | AD65: 1 | AE65: 0 | AF65: 0 | AG65: 0 | AH65: 0 | AI65: 0 | AJ65: 0 | AK65: 0 | AL65: 0 | AM65: 0 | AN65: 0 | AO65: 0 | AP65: 3 | AQ65: 117 | AR65: 128 | AS65: 110 | AT65: 30 | AU65: 19 | AV65: 12 | AW65: 108 | AX65: 178 | AY65: 114 | AZ65: 90 | BA65: 65 | BB65: 45 | BC65: 42 | BD65: 143 | BE65: 151 | BF65: 92 | BG65: 71 | BH65: 69 | BI65: 49 | BJ65: 55 | BK65: 69 | BL65: 126 | BM65: 98 | BN65: 58 | BO65: 17 | BP65: 7 | BQ65: 8 | BR65: 64 | BS65: 143 | BT65: 73 | BU65: 23 | BV65: 5 | BW65: 8 | BX65: 6 | BY65: 29 | BZ65: 111 | CA65: 9 | CB65: 4 | CC65: 0 | CD65: 1 | CE65: 1 | CF65: 1 | CG65: 2 | CH65: 0 | CI65: 0 | CJ65: 0 | CK65: 0 | CL65: 0 | CM65: 0 | CN65: 12 | CO65: 0 | CP65: 0 | CQ65: 0 | CR65: 0 | CS65: 0 | CT65: 7 | CU65: 115 | CV65: 25 | CW65: 0 | CX65: 0 | CY65: 0 | CZ65: 0 | DA65: 0 | DB65: 2 | DC65: 0 | DD65: 0 | DE65: 0 | DF65: 0 | DG65: 0 | DH65: 82 | DI65: 37 | DJ65: 64 | DK65: 49 | DL65: 57 | DM65: 49 | DN65: 64 | DO65: 40 | DP65: 72 | DQ65: 33 | DR65: 4 | DS65: 1 | DT65: 0 | DU65: 0 | DV65: 0 | DW65: 0 | DX65: 0 | DY65: 0 | DZ65: 77 | EA65: 45 | EB65: 48 | EC65: 99 | ED65: 78 | EE65: 49 | EF65: 96 | EG65: 65 | EH65: 44 | EI65: 64 | EJ65: 49 | EK65: 33 | EL65: 93 | EM65: 37 | EN65: 9 | EO65: 81 | EP65: 4 | EQ65: 1 | ER65: 0 | ES65: 0 | ET65: 0 | EU65: 3 | EV65: 0 | EW65: 0 | EX65: 0 | EY65: 0 | EZ65: 0 | FA65: 0 | FB65: 0 | FC65: 0 | FD65: 0 | FE65: 0 | FF65: 0 | FG65: 0 | FH65: 0 | FI65: 0 | FJ65: 0 | FK65: 0 | FL65: 0 | FM65: 0 | FN65: 0 | FO65: 0 | FP65: 0 | FQ65: 0 | FR65: 0 | FS65: 0 | FT65: 0 | FU65: 0 | FV65: 0 | FW65: 0 | FX65: 0 | FY65: 0 | FZ65: 0 | GA65: 0 | GB65: 0 | GC65: 0 | GD65: 0 | GE65: 0 | GF65: 0 | GG65: 0 | GH65: 0 | GI65: 0 | GJ65: 0 | GK65: 0 | GL65: 0 | GM65: 0 | GN65: 0 | GO65: 0 | GP65: 0 | GQ65: 0 | GR65: 0 | GS65: 0 | GT65: 0 | GU65: 0 | GV65: 0 | GW65: 0 | GX65: 0 | GY65: 0 | GZ65: 0 | HA65: 0 | HB65: 0 | HC65: 0 | HD65: 0 | HE65: 0 | HF65: 0 | HG65: 0 | HH65: 0 | HI65: 0 | HJ65: 0 | HK65: 0 | HL65: 0 | HM65: 0 | HN65: 0 | HO65: 0 | HP65: 0 | HQ65: 0 | HR65: 0 | HS65: 0 | HT65: 0 | HU65: 0 | HV65: 0 | HW65: 0
A66: T | B66: 19 | C66: 17 | D66: 5 | E66: 44 | F66: 0 | G66: 577 | H66: 4 | I66: 4 | J66: 4 | K66: 2 | L66: 0 | M66: 0 | N66: 0 | O66: 8 | P66: 3 | Q66: 4 | R66: 2 | S66: 1 | T66: 1 | U66: 1 | V66: 30 | W66: 20 | X66: 16 | Y66: 10 | Z66: 15 | AA66: 6 | AB66: 2 | AC66: 22 | AD66: 18 | AE66: 5 | AF66: 2 | AG66: 0 | AH66: 0 | AI66: 2 | AJ66: 14 | AK66: 7 | AL66: 2 | AM66: 0 | AN66: 0 | AO66: 0 | AP66: 8 | AQ66: 660 | AR66: 623 | AS66: 577 | AT66: 131 | AU66: 90 | AV66: 67 | AW66: 588 | AX66: 776 | AY66: 698 | AZ66: 636 | BA66: 538 | BB66: 399 | BC66: 307 | BD66: 763 | BE66: 671 | BF66: 557 | BG66: 475 | BH66: 434 | BI66: 303 | BJ66: 259 | BK66: 341 | BL66: 650 | BM66: 555 | BN66: 406 | BO66: 78 | BP66: 48 | BQ66: 40 | BR66: 384 | BS66: 668 | BT66: 460 | BU66: 292 | BV66: 46 | BW66: 40 | BX66: 34 | BY66: 217 | BZ66: 843 | CA66: 219 | CB66: 99 | CC66: 13 | CD66: 13 | CE66: 6 | CF66: 26 | CG66: 43 | CH66: 4 | CI66: 0 | CJ66: 0 | CK66: 1 | CL66: 1 | CM66: 1 | CN66: 67 | CO66: 17 | CP66: 0 | CQ66: 0 | CR66: 0 | CS66: 1 | CT66: 27 | CU66: 510 | CV66: 210 | CW66: 5 | CX66: 0 | CY66: 0 | CZ66: 0 | DA66: 0 | DB66: 12 | DC66: 0 | DD66: 0 | DE66: 0 | DF66: 0 | DG66: 0 | DH66: 398 | DI66: 189 | DJ66: 271 | DK66: 227 | DL66: 251 | DM66: 212 | DN66: 262 | DO66: 162 | DP66: 284 | DQ66: 152 | DR66: 13 | DS66: 2 | DT66: 0 | DU66: 0 | DV66: 0 | DW66: 0 | DX66: 0 | DY66: 0 | DZ66: 313 | EA66: 234 | EB66: 197 | EC66: 579 | ED66: 565 | EE66: 511 | EF66: 534 | EG66: 440 | EH66: 383 | EI66: 513 | EJ66: 423 | EK66: 338 | EL66: 553 | EM66: 370 | EN66: 236 | EO66: 736 | EP66: 154 | EQ66: 74 | ER66: 20 | ES66: 3 | ET66: 0 | EU66: 89 | EV66: 5 | EW66: 5 | EX66: 0 | EY66: 0 | EZ66: 0 | FA66: 0 | FB66: 0 | FC66: 0 | FD66: 0 | FE66: 0 | FF66: 0 | FG66: 0 | FH66: 0 | FI66: 0 | FJ66: 0 | FK66: 0 | FL66: 0 | FM66: 0 | FN66: 0 | FO66: 0 | FP66: 0 | FQ66: 0 | FR66: 0 | FS66: 0 | FT66: 0 | FU66: 0 | FV66: 0 | FW66: 0 | FX66: 0 | FY66: 0 | FZ66: 0 | GA66: 0 | GB66: 0 | GC66: 0 | GD66: 0 | GE66: 0 | GF66: 0 | GG66: 0 | GH66: 0 | GI66: 0 | GJ66: 0 | GK66: 0 | GL66: 0 | GM66: 0 | GN66: 0 | GO66: 0 | GP66: 0 | GQ66: 0 | GR66: 0 | GS66: 0 | GT66: 0 | GU66: 0 | GV66: 0 | GW66: 0 | GX66: 0 | GY66: 0 | GZ66: 0 | HA66: 0 | HB66: 0 | HC66: 0 | HD66: 0 | HE66: 0 | HF66: 0 | HG66: 0 | HH66: 0 | HI66: 0 | HJ66: 0 | HK66: 0 | HL66: 0 | HM66: 0 | HN66: 0 | HO66: 0 | HP66: 0 | HQ66: 0 | HR66: 0 | HS66: 0 | HT66: 0 | HU66: 0 | HV66: 0 | HW66: 0
A79: TOTAL
A80: =COUNT(A61:A77) -> 5 | B80: =SUM(B61:B77) -> 38 | C80: =SUM(C61:C77) -> 34 | D80: 10 | E80: 88 | F80: 0 | G80: 1154 | H80: 8 | I80: 8 | J80: 8 | K80: 4 | L80: 0 | M80: 0 | N80: 0 | O80: 16 | P80: 6 | Q80: 8 | R80: 4 | S80: 2 | T80: 2 | U80: 2 | V80: 60 | W80: 40 | X80: 32 | Y80: 20 | Z80: 30 | AA80: 12 | AB80: 4 | AC80: 44 | AD80: 36 | AE80: 10 | AF80: 4 | AG80: 0 | AH80: 0 | AI80: 4 | AJ80: 28 | AK80: 14 | AL80: 4 | AM80: 0 | AN80: 0 | AO80: 0 | AP80: 16 | AQ80: 1320 | AR80: 1246 | AS80: 1154 | AT80: 262 | AU80: 180 | AV80: 134 | AW80: 1176 | AX80: 1552 | AY80: 1396 | AZ80: 1272 | BA80: 1076 | BB80: 798 | BC80: 614 | BD80: 1526 | BE80: 1342 | BF80: 1114 | BG80: 950 | BH80: 868 | BI80: 606 | BJ80: 518 | BK80: 682 | BL80: 1300 | BM80: 1110 | BN80: 812 | BO80: =SUM(BO61:BO77) -> 156 | BP80: 96 | BQ80: 80 | BR80: 768 | BS80: 1336 | BT80: 920 | BU80: 584 | BV80: 92 | BW80: 80 | BX80: 68 | BY80: 434 | BZ80: 1686 | CA80: 438 | CB80: 198 | CC80: 26 | CD80: 26 | CE80: 12 | CF80: 52 | CG80: 86 | CH80: 8 | CI80: 0 | CJ80: 0 | CK80: 2 | CL80: 2 | CM80: 2 | CN80: 134 | CO80: 34 | CP80: 0 | CQ80: 0 | CR80: 0 | CS80: 2 | CT80: 54 | CU80: 1020 | CV80: 420 | CW80: 10 | CX80: 0 | CY80: 0 | CZ80: 0 | DA80: 0 | DB80: 24 | DC80: 0 | DD80: 0 | DE80: 0 | DF80: 0 | DG80: 0 | DH80: 796 | DI80: 378 | DJ80: 542 | DK80: 454 | DL80: 502 | DM80: 424 | DN80: 524 | DO80: 324 | DP80: 568 | DQ80: 304 | DR80: 26 | DS80: 4 | DT80: 0 | DU80: 0 | DV80: 0 | DW80: 0 | DX80: 0 | DY80: 0 | DZ80: 626 | EA80: =SUM(EA61:EA77) -> 468 | EB80: 394 | EC80: 1158 | ED80: 1130 | EE80: 1022 | EF80: 1068 | EG80: 880 | EH80: 766 | EI80: 1026 | EJ80: 846 | EK80: 676 | EL80: 1106 | EM80: 740 | EN80: 472 | EO80: 1472 | EP80: 308 | EQ80: 148 | ER80: 40 | ES80: 6 | ET80: 0 | EU80: 178 | EV80: 10 | EW80: 10 | EX80: 0 | EY80: 0 | EZ80: 0 | FA80: 0 | FB80: 0 | FC80: 0 | FD80: 0 | FE80: 0 | FF80: 0 | FG80: 0 | FH80: 0 | FI80: 0 | FJ80: 0 | FK80: 0 | FL80: 0 | FM80: 0 | FN80: 0 | FO80: 0 | FP80: 0 | FQ80: 0 | FR80: 0 | FS80: 0 | FT80: 0 | FU80: 0 | FV80: 0 | FW80: 0 | FX80: 0 | FY80: 0 | FZ80: 0 | GA80: 0 | GB80: 0 | GC80: 0 | GD80: 0 | GE80: 0 | GF80: 0 | GG80: 0 | GH80: 0 | GI80: 0 | GJ80: 0 | GK80: 0 | GL80: 0 | GM80: =SUM(GM61:GM77) -> 0 | GN80: 0 | GO80: 0 | GP80: 0 | GQ80: 0 | GR80: 0 | GS80: 0 | GT80: 0 | GU80: 0 | GV80: 0 | GW80: 0 | GX80: 0 | GY80: 0 | GZ80: 0 | HA80: 0 | HB80: 0 | HC80: 0 | HD80: 0 | HE80: 0 | HF80: 0 | HG80: 0 | HH80: 0 | HI80: 0 | HJ80: 0 | HK80: 0 | HL80: 0 | HM80: 0 | HN80: 0 | HO80: 0 | HP80: 0 | HQ80: 0 | HR80: 0 | HS80: 0 | HT80: 0 | HU80: 0 | HV80: 0 | HW80: 0 | HX80: 0
A81: =CONCATENATE(A61,"-",A62,"-",A63,"-",A64,"-",A65,"-",A66,"-",A67,"-",A68,"-",A69,"-",A70,"-",A71,"-",A72) -> 4-5-3-2-1-T------
B82: BAS001 | C82: BAS002 | D82: BAS003 | E82: BAS004 | F82: BAS005 | G82: BAS006 | H82: BAS007 | I82: BAS008 | J82: BAS009 | K82: BAS010 | L82: BAS011 | M82: BAS012 | N82: BAS013 | O82: BAS014 | P82: BAS015 | Q82: BAS016 | R82: BAS017 | S82: BAS018 | T82: BAS019 | U82: BAS020 | V82: BAS021 | W82: BAS022 | X82: BAS023 | Y82: BAS024 | Z82: BAS025 | AA82: BAS026 | AB82: BAS027 | AC82: BAS028 | AD82: BAS029 | AE82: BAS030 | AF82: BAS031 | AG82: BAS032 | AH82: BAS033 | AI82: BAS034 | AJ82: BAS035 | AK82: BAS036 | AL82: BAS037 | AM82: BAS038 | AN82: BAS039 | AO82: BAS040 | AP82: BAS041 | AQ82: BAS042 | AR82: BAS043 | AS82: BAS044 | AT82: BAS045 | AU82: BAS046 | AV82: BAS047 | AW82: BAS048 | AX82: BAS049 | AY82: BAS050 | AZ82: BAS051 | BA82: BAS052 | BB82: BAS053 | BC82: BAS054 | BD82: BAS055 | BE82: BAS056 | BF82: BAS057 | BG82: BAS058 | BH82: BAS059 | BI82: BAS060 | BJ82: BAS061 | BK82: BAS062 | BL82: BAS063 | BM82: BAS064 | BN82: BAS065 | BO82: BAS066 | BP82: BAS067 | BQ82: BAS068 | BR82: BAS069 | BS82: BAS070 | BT82: BAS071 | BU82: BAS072 | BV82: BAS073 | BW82: BAS074 | BX82: BAS075 | BY82: BAS076 | BZ82: BAS077 | CA82: BAS078 | CB82: BAS079 | CC82: BAS080 | CD82: BAS081 | CE82: BAS082 | CF82: BAS083 | CG82: BAS084 | CH82: BAS085 | CI82: BAS086 | CJ82: BAS087 | CK82: BAS088 | CL82: BAS089 | CM82: BAS090 | CN82: BAS091 | CO82: BAS092 | CP82: BAS093 | CQ82: BAS094 | CR82: BAS095 | CS82: BAS096 | CT82: BAS097 | CU82: BAS098 | CV82: BAS099 | CW82: BAS100 | CX82: BAS101 | CY82: BAS102 | CZ82: BAS103 | DA82: BAS104 | DB82: BAS105 | DC82: BAS106 | DD82: BAS107 | DE82: BAS108 | DF82: BAS109 | DG82: BAS110 | DH82: BAS111 | DI82: BAS112 | DJ82: BAS113 | DK82: BAS114 | DL82: BAS115 | DM82: BAS116 | DN82: BAS117 | DO82: BAS118 | DP82: BAS119 | DQ82: BAS120 | DR82: BAS121 | DS82: BAS122 | DT82: BAS123 | DU82: BAS124 | DV82: BAS125 | DW82: BAS126 | DX82: BAS127 | DY82: BAS128 | DZ82: BAS129 | EA82: BAS130 | EB82: BAS131 | EC82: BAS132 | ED82: BAS133 | EE82: BAS134 | EF82: BAS135 | EG82: BAS136 | EH82: BAS137 | EI82: BAS138 | EJ82: BAS139 | EK82: BAS140 | EL82: BAS141 | EM82: BAS142 | EN82: BAS143 | EO82: BAS144 | EP82: BAS145 | EQ82: BAS146 | ER82: BAS147 | ES82: BAS148 | ET82: BAS149 | EU82: BAS150 | EV82: BAS151 | EW82: BAS152 | EX82: BAS153 | EY82: BAS154 | EZ82: BAS155 | FA82: BAS156 | FB82: BAS157 | FC82: BAS158 | FD82: BAS159 | FE82: BAS160 | FF82: BAS161 | FG82: BAS162 | FH82: BAS163 | FI82: BAS164 | FJ82: BAS165 | FK82: BAS166 | FL82: BAS167 | FM82: BAS168 | FN82: BAS169 | FO82: BAS170 | FP82: BAS171 | FQ82: BAS172 | FR82: BAS173 | FS82: BAS174 | FT82: BAS175 | FU82: BAS176 | FV82: BAS177 | FW82: BAS178 | FX82: BAS179 | FY82: BAS180 | FZ82: BAS181 | GA82: BAS182 | GB82: BAS183 | GC82: BAS184 | GD82: BAS185 | GE82: BAS186 | GF82: BAS187 | GG82: BAS188 | GH82: BAS189 | GI82: BAS190 | GJ82: BAS191 | GK82: BAS192 | GL82: BAS193 | GM82: BAS194 | GN82: BAS195 | GO82: BAS196 | GP82: BAS197 | GQ82: BAS198 | GR82: BAS199 | GS82: BAS200 | GT82: BAS201 | GU82: BAS202 | GV82: BAS203 | GW82: BAS204 | GX82: BAS205 | GY82: BAS206 | GZ82: BAS207 | HA82: BAS208 | HB82: BAS209 | HC82: BAS210 | HD82: BAS211 | HE82: BAS212 | HF82: BAS213 | HG82: BAS214 | HH82: BAS215 | HI82: BAS216 | HJ82: BAS217 | HK82: BAS218 | HL82: BAS219 | HM82: BAS220 | HN82: BAS221 | HO82: BAS222 | HP82: BAS223 | HQ82: BAS224 | HR82: BAS225 | HS82: BAS226 | HT82: BAS227 | HU82: BAS228 | HV82: BAS229 | HW82: BAS230
B83: =IF(B82=B60,"SI","NO") -> SI | C83: =IF(C82=C60,"SI","NO") -> SI | D83: SI | E83: SI | F83: SI | G83: SI | H83: SI | I83: SI | J83: SI | K83: SI | L83: SI | M83: SI | N83: SI | O83: SI | P83: SI | Q83: SI | R83: SI | S83: SI | T83: SI | U83: SI | V83: SI | W83: SI | X83: SI | Y83: SI | Z83: SI | AA83: SI | AB83: SI | AC83: SI | AD83: SI | AE83: SI | AF83: SI | AG83: SI | AH83: SI | AI83: SI | AJ83: SI | AK83: SI | AL83: SI | AM83: SI | AN83: SI | AO83: SI | AP83: SI | AQ83: SI | AR83: SI | AS83: SI | AT83: SI | AU83: SI | AV83: SI | AW83: SI | AX83: SI | AY83: SI | AZ83: SI | BA83: SI | BB83: SI | BC83: SI | BD83: SI | BE83: SI | BF83: SI | BG83: SI | BH83: SI | BI83: SI | BJ83: SI | BK83: SI | BL83: SI | BM83: SI | BN83: SI | BO83: =IF(BO82=BO60,"SI","NO") -> SI | BP83: SI | BQ83: SI | BR83: SI | BS83: SI | BT83: SI | BU83: SI | BV83: SI | BW83: SI | BX83: SI | BY83: SI | BZ83: SI | CA83: SI | CB83: SI | CC83: SI | CD83: SI | CE83: SI | CF83: SI | CG83: SI | CH83: SI | CI83: SI | CJ83: SI | CK83: SI | CL83: SI | CM83: SI | CN83: SI | CO83: SI | CP83: SI | CQ83: SI | CR83: SI | CS83: SI | CT83: SI | CU83: SI | CV83: SI | CW83: SI | CX83: SI | CY83: SI | CZ83: SI | DA83: SI | DB83: SI | DC83: SI | DD83: SI | DE83: SI | DF83: SI | DG83: SI | DH83: SI | DI83: SI | DJ83: SI | DK83: SI | DL83: SI | DM83: SI | DN83: SI | DO83: SI | DP83: SI | DQ83: SI | DR83: SI | DS83: SI | DT83: SI | DU83: SI | DV83: SI | DW83: SI | DX83: SI | DY83: SI | DZ83: SI | EA83: =IF(EA82=EA60,"SI","NO") -> SI | EB83: SI | EC83: SI | ED83: SI | EE83: SI | EF83: SI | EG83: SI | EH83: SI | EI83: SI | EJ83: SI | EK83: SI | EL83: SI | EM83: SI | EN83: SI | EO83: SI | EP83: SI | EQ83: SI | ER83: SI | ES83: SI | ET83: SI | EU83: SI | EV83: SI | EW83: SI | EX83: SI | EY83: SI | EZ83: SI | FA83: SI | FB83: SI | FC83: SI | FD83: SI | FE83: SI | FF83: SI | FG83: SI | FH83: SI | FI83: SI | FJ83: SI | FK83: SI | FL83: SI | FM83: SI | FN83: SI | FO83: SI | FP83: SI | FQ83: SI | FR83: SI | FS83: SI | FT83: SI | FU83: SI | FV83: SI | FW83: SI | FX83: SI | FY83: SI | FZ83: SI | GA83: SI | GB83: SI | GC83: SI | GD83: SI | GE83: SI | GF83: SI | GG83: SI | GH83: SI | GI83: SI | GJ83: SI | GK83: SI | GL83: SI | GM83: =IF(GM82=GM60,"SI","NO") -> SI | GN83: SI | GO83: SI | GP83: SI | GQ83: SI | GR83: SI | GS83: SI | GT83: SI | GU83: SI | GV83: SI | GW83: SI | GX83: SI | GY83: SI | GZ83: SI | HA83: SI | HB83: SI | HC83: SI | HD83: SI | HE83: SI | HF83: SI | HG83: SI | HH83: SI | HI83: SI | HJ83: SI | HK83: SI | HL83: SI | HM83: SI | HN83: SI | HO83: SI | HP83: SI | HQ83: SI | HR83: SI | HS83: SI | HT83: SI | HU83: SI | HV83: SI | HW83: SI | HX83: =IF(HW82=HX60,"SI","NO") -> NO
A86: ESANS_02
A87: anno | B87: 2025
A88: cod_red | B88: (Todas)
A89: codmic | B89: (Todas)
A90: cod_prov | B90: (Todas)
A91: coddist | B91: (Todas)
A92: cod_estab | B92: (Todas)
A93: cod_eje | B93: (Todas)
B95: Valores
A96: Etiquetas de fila | B96: BAS001 | C96: BAS002 | D96: BAS003 | E96: BAS004 | F96: BAS005 | G96: BAS006 | H96: BAS007 | I96: BAS008 | J96: BAS009 | K96: BAS010 | L96: BAS011 | M96: BAS012 | N96: BAS013 | O96: BAS014 | P96: BAS015 | Q96: BAS016 | R96: BAS017 | S96: BAS018 | T96: BAS019 | U96: BAS020 | V96: BAS021 | W96: BAS022 | X96: BAS023 | Y96: BAS024 | Z96: BAS025 | AA96: BAS026 | AB96: BAS027 | AC96: BAS028 | AD96: BAS029 | AE96: BAS030 | AF96: BAS031 | AG96: BAS032 | AH96: BAS033 | AI96: BAS034 | AJ96: BAS035 | AK96: BAS036 | AL96: BAS037 | AM96: BAS038 | AN96: BAS039 | AO96: BAS040 | AP96: BAS041 | AQ96: BAS042 | AR96: BAS043 | AS96: BAS044 | AT96: BAS045 | AU96: BAS046 | AV96: BAS047 | AW96: BAS048 | AX96: BAS049 | AY96: BAS050 | AZ96: BAS051 | BA96: BAS052 | BB96: BAS053 | BC96: BAS054 | BD96: BAS055 | BE96: BAS056 | BF96: BAS057 | BG96: BAS058 | BH96: BAS059 | BI96: BAS060 | BJ96: BAS061 | BK96: BAS062 | BL96: BAS063 | BM96: BAS064 | BN96: BAS065 | BO96: BAS066 | BP96: BAS067 | BQ96: BAS068 | BR96: BAS069 | BS96: BAS070 | BT96: BAS071 | BU96: BAS072 | BV96: BAS073 | BW96: BAS074 | BX96: BAS075 | BY96: BAS076 | BZ96: BAS077 | CA96: BAS078 | CB96: BAS079 | CC96: BAS080 | CD96: BAS081 | CE96: BAS082 | CF96: BAS083 | CG96: BAS084 | CH96: BAS085 | CI96: BAS086 | CJ96: BAS087 | CK96: BAS088 | CL96: BAS089 | CM96: BAS090 | CN96: BAS091 | CO96: BAS092 | CP96: BAS093 | CQ96: BAS094 | CR96: BAS095 | CS96: BAS096 | CT96: BAS097 | CU96: BAS098 | CV96: BAS099 | CW96: BAS100 | CX96: BAS101 | CY96: BAS102 | CZ96: BAS103 | DA96: BAS104 | DB96: BAS105 | DC96: BAS106 | DD96: BAS107 | DE96: BAS108 | DF96: BAS109 | DG96: BAS110 | DH96: BAS111 | DI96: BAS112 | DJ96: BAS113 | DK96: BAS114 | DL96: BAS115 | DM96: BAS116 | DN96: BAS117 | DO96: BAS118 | DP96: BAS119 | DQ96: BAS120 | DR96: BAS121 | DS96: BAS122 | DT96: BAS123 | DU96: BAS124 | DV96: BAS125 | DW96: BAS126 | DX96: BAS127 | DY96: BAS128 | DZ96: BAS129 | EA96: BAS130 | EB96: BAS131 | EC96: BAS132 | ED96: BAS133 | EE96: BAS134 | EF96: BAS135 | EG96: BAS136 | EH96: BAS137 | EI96: BAS138 | EJ96: BAS139 | EK96: BAS140 | EL96: BAS141 | EM96: BAS142 | EN96: BAS143 | EO96: BAS144 | EP96: BAS145 | EQ96: BAS146 | ER96: BAS147 | ES96: BAS148 | ET96: BAS149 | EU96: BAS150 | EV96: BAS151 | EW96: BAS152 | EX96: BAS153 | EY96: BAS154 | EZ96: BAS155 | FA96: BAS156 | FB96: BAS157 | FC96: BAS158 | FD96: BAS159 | FE96: BAS160 | FF96: BAS161 | FG96: BAS162 | FH96: BAS163 | FI96: BAS164 | FJ96: BAS165 | FK96: BAS166 | FL96: BAS167 | FM96: BAS168 | FN96: BAS169 | FO96: BAS170 | FP96: BAS171 | FQ96: BAS172 | FR96: BAS173 | FS96: BAS174 | FT96: BAS175 | FU96: BAS176 | FV96: BAS177 | FW96: BAS178 | FX96: BAS179 | FY96: BAS180 | FZ96: BAS181 | GA96: BAS182 | GB96: BAS183 | GC96: BAS184 | GD96: BAS185 | GE96: BAS186 | GF96: BAS187 | GG96: BAS188 | GH96: BAS189 | GI96: BAS190 | GJ96: BAS191 | GK96: BAS192 | GL96: BAS193 | GM96: BAS194 | GN96: BAS195 | GO96: BAS196 | GP96: BAS197 | GQ96: BAS198 | GR96: BAS199 | GS96: BAS200 | GT96: BAS201 | GU96: BAS202 | GV96: BAS203 | GW96: BAS204 | GX96: BAS205 | GY96: BAS206 | GZ96: BAS207 | HA96: BAS208 | HB96: BAS209 | HC96: BAS210 | HD96: BAS211 | HE96: BAS212 | HF96: BAS213 | HG96: BAS214 | HH96: BAS215 | HI96: BAS216 | HJ96: BAS217 | HK96: BAS218 | HL96: BAS219 | HM96: BAS220 | HN96: BAS221 | HO96: BAS222 | HP96: BAS223 | HQ96: BAS224 | HR96: BAS225 | HS96: BAS226 | HT96: BAS227 | HU96: BAS228 | HV96: BAS229 | HW96: BAS230
A97: 4 | B97: 4 | C97: 3 | D97: 0 | E97: 156 | F97: 102 | G97: 113 | H97: 145 | I97: 148 | J97: 79 | K97: 167 | L97: 104 | M97: 0 | N97: 134 | O97: 71 | P97: 0 | Q97: 410 | R97: 0 | S97: 0 | T97: 829 | U97: 0 | V97: 0 | W97: 48 | X97: 0 | Y97: 0 | Z97: 111 | AA97: 116 | AB97: 68 | AC97: 99 | AD97: 0 | AE97: 0 | AF97: 3 | AG97: 0 | AH97: 0 | AI97: 2 | AJ97: 0 | AK97: 0 | AL97: 8 | AM97: 0 | AN97: 0 | AO97: 12 | AP97: 0 | AQ97: 0 | AR97: 12 | AS97: 0 | AT97: 0 | AU97: 6 | AV97: 0 | AW97: 0 | AX97: 10 | AY97: 0 | AZ97: 0 | BA97: 7 | BB97: 0 | BC97: 0 | BD97: 5 | BE97: 0 | BF97: 0 | BG97: 7 | BH97: 0 | BI97: 0 | BJ97: 0 | BK97: 0 | BL97: 0 | BM97: 0 | BN97: 1 | BO97: 49 | BP97: 31 | BQ97: 50 | BR97: 27 | BS97: 9 | BT97: 28 | BU97: 41 | BV97: 14 | BW97: 11 | BX97: 0 | BY97: 0 | BZ97: 0 | CA97: 0 | CB97: 0 | CC97: 0 | CD97: 0 | CE97: 0 | CF97: 0 | CG97: 0 | CH97: 0 | CI97: 0 | CJ97: 0 | CK97: 0 | CL97: 0 | CM97: 0 | CN97: 0 | CO97: 0 | CP97: 0 | CQ97: 0 | CR97: 0 | CS97: 0 | CT97: 0 | CU97: 0 | CV97: 0 | CW97: 0 | CX97: 0 | CY97: 0 | CZ97: 0 | DA97: 0 | DB97: 0 | DC97: 0 | DD97: 0 | DE97: 0 | DF97: 0 | DG97: 0 | DH97: 0 | DI97: 0 | DJ97: 0 | DK97: 0 | DL97: 0 | DM97: 0 | DN97: 0 | DO97: 0 | DP97: 0 | DQ97: 0 | DR97: 0 | DS97: 0 | DT97: 0 | DU97: 0 | DV97: 0 | DW97: 0 | DX97: 0 | DY97: 0 | DZ97: 0 | EA97: 0 | EB97: 0 | EC97: 0 | ED97: 0 | EE97: 0 | EF97: 0 | EG97: 0 | EH97: 0 | EI97: 0 | EJ97: 0 | EK97: 0 | EL97: 0 | EM97: 0 | EN97: 0 | EO97: 0 | EP97: 0 | EQ97: 0 | ER97: 0 | ES97: 0 | ET97: 0 | EU97: 0 | EV97: 0 | EW97: 0 | EX97: 0 | EY97: 0 | EZ97: 0 | FA97: 0 | FB97: 0 | FC97: 0 | FD97: 0 | FE97: 0 | FF97: 0 | FG97: 0 | FH97: 0 | FI97: 0 | FJ97: 0 | FK97: 0 | FL97: 0 | FM97: 0 | FN97: 0 | FO97: 0 | FP97: 0 | FQ97: 0 | FR97: 0 | FS97: 0 | FT97: 0 | FU97: 0 | FV97: 0 | FW97: 0 | FX97: 0 | FY97: 0 | FZ97: 0 | GA97: 0 | GB97: 0 | GC97: 0 | GD97: 0 | GE97: 0 | GF97: 0 | GG97: 0 | GH97: 0 | GI97: 0 | GJ97: 0 | GK97: 0 | GL97: 0 | GM97: 0 | GN97: 0 | GO97: 0 | GP97: 0 | GQ97: 0 | GR97: 0 | GS97: 0 | GT97: 0 | GU97: 0 | GV97: 0 | GW97: 0 | GX97: 0 | GY97: 0 | GZ97: 0 | HA97: 0 | HB97: 0 | HC97: 0 | HD97: 0 | HE97: 0 | HF97: 0 | HG97: 0 | HH97: 0 | HI97: 0 | HJ97: 0 | HK97: 0 | HL97: 0 | HM97: 0 | HN97: 0 | HO97: 0 | HP97: 0 | HQ97: 0 | HR97: 0 | HS97: 0 | HT97: 0 | HU97: 0 | HV97: 0 | HW97: 0
A98: 5 | B98: 6 | C98: 2 | D98: 0 | E98: 148 | F98: 104 | G98: 118 | H98: 114 | I98: 147 | J98: 83 | K98: 157 | L98: 88 | M98: 0 | N98: 93 | O98: 64 | P98: 0 | Q98: 232 | R98: 0 | S98: 0 | T98: 547 | U98: 6 | V98: 0 | W98: 9 | X98: 0 | Y98: 0 | Z98: 163 | AA98: 103 | AB98: 86 | AC98: 100 | AD98: 0 | AE98: 0 | AF98: 6 | AG98: 0 | AH98: 0 | AI98: 2 | AJ98: 0 | AK98: 0 | AL98: 8 | AM98: 0 | AN98: 0 | AO98: 18 | AP98: 0 | AQ98: 0 | AR98: 11 | AS98: 0 | AT98: 0 | AU98: 9 | AV98: 0 | AW98: 0 | AX98: 4 | AY98: 0 | AZ98: 0 | BA98: 7 | BB98: 0 | BC98: 0 | BD98: 5 | BE98: 0 | BF98: 0 | BG98: 10 | BH98: 0 | BI98: 0 | BJ98: 0 | BK98: 0 | BL98: 0 | BM98: 0 | BN98: 2 | BO98: 64 | BP98: 39 | BQ98: 34 | BR98: 33 | BS98: 6 | BT98: 13 | BU98: 29 | BV98: 12 | BW98: 9 | BX98: 0 | BY98: 0 | BZ98: 0 | CA98: 0 | CB98: 0 | CC98: 0 | CD98: 0 | CE98: 0 | CF98: 0 | CG98: 0 | CH98: 0 | CI98: 0 | CJ98: 0 | CK98: 0 | CL98: 0 | CM98: 0 | CN98: 0 | CO98: 0 | CP98: 0 | CQ98: 0 | CR98: 0 | CS98: 0 | CT98: 0 | CU98: 0 | CV98: 0 | CW98: 0 | CX98: 0 | CY98: 0 | CZ98: 0 | DA98: 0 | DB98: 0 | DC98: 0 | DD98: 0 | DE98: 0 | DF98: 0 | DG98: 0 | DH98: 0 | DI98: 0 | DJ98: 0 | DK98: 0 | DL98: 0 | DM98: 0 | DN98: 0 | DO98: 0 | DP98: 0 | DQ98: 0 | DR98: 0 | DS98: 0 | DT98: 0 | DU98: 0 | DV98: 0 | DW98: 0 | DX98: 0 | DY98: 0 | DZ98: 0 | EA98: 0 | EB98: 0 | EC98: 0 | ED98: 0 | EE98: 0 | EF98: 0 | EG98: 0 | EH98: 0 | EI98: 0 | EJ98: 0 | EK98: 0 | EL98: 0 | EM98: 0 | EN98: 0 | EO98: 0 | EP98: 0 | EQ98: 0 | ER98: 0 | ES98: 0 | ET98: 0 | EU98: 0 | EV98: 0 | EW98: 0 | EX98: 0 | EY98: 0 | EZ98: 0 | FA98: 0 | FB98: 0 | FC98: 0 | FD98: 0 | FE98: 0 | FF98: 0 | FG98: 0 | FH98: 0 | FI98: 0 | FJ98: 0 | FK98: 0 | FL98: 0 | FM98: 0 | FN98: 0 | FO98: 0 | FP98: 0 | FQ98: 0 | FR98: 0 | FS98: 0 | FT98: 0 | FU98: 0 | FV98: 0 | FW98: 0 | FX98: 0 | FY98: 0 | FZ98: 0 | GA98: 0 | GB98: 0 | GC98: 0 | GD98: 0 | GE98: 0 | GF98: 0 | GG98: 0 | GH98: 0 | GI98: 0 | GJ98: 0 | GK98: 0 | GL98: 0 | GM98: 0 | GN98: 0 | GO98: 0 | GP98: 0 | GQ98: 0 | GR98: 0 | GS98: 0 | GT98: 0 | GU98: 0 | GV98: 0 | GW98: 0 | GX98: 0 | GY98: 0 | GZ98: 0 | HA98: 0 | HB98: 0 | HC98: 0 | HD98: 0 | HE98: 0 | HF98: 0 | HG98: 0 | HH98: 0 | HI98: 0 | HJ98: 0 | HK98: 0 | HL98: 0 | HM98: 0 | HN98: 0 | HO98: 0 | HP98: 0 | HQ98: 0 | HR98: 0 | HS98: 0 | HT98: 0 | HU98: 0 | HV98: 0 | HW98: 0
A99: 3 | B99: 13 | C99: 4 | D99: 0 | E99: 120 | F99: 119 | G99: 90 | H99: 110 | I99: 136 | J99: 72 | K99: 166 | L99: 108 | M99: 0 | N99: 93 | O99: 61 | P99: 0 | Q99: 302 | R99: 0 | S99: 0 | T99: 202 | U99: 1 | V99: 0 | W99: 23 | X99: 0 | Y99: 0 | Z99: 159 | AA99: 96 | AB99: 59 | AC99: 103 | AD99: 0 | AE99: 0 | AF99: 8 | AG99: 0 | AH99: 0 | AI99: 4 | AJ99: 0 | AK99: 0 | AL99: 5 | AM99: 0 | AN99: 0 | AO99: 10 | AP99: 0 | AQ99: 0 | AR99: 12 | AS99: 0 | AT99: 0 | AU99: 12 | AV99: 0 | AW99: 0 | AX99: 6 | AY99: 0 | AZ99: 0 | BA99: 1 | BB99: 0 | BC99: 0 | BD99: 2 | BE99: 0 | BF99: 0 | BG99: 2 | BH99: 0 | BI99: 0 | BJ99: 0 | BK99: 0 | BL99: 0 | BM99: 1 | BN99: 1 | BO99: 76 | BP99: 42 | BQ99: 43 | BR99: 30 | BS99: 11 | BT99: 22 | BU99: 16 | BV99: 12 | BW99: 11 | BX99: 0 | BY99: 0 | BZ99: 0 | CA99: 0 | CB99: 0 | CC99: 0 | CD99: 0 | CE99: 0 | CF99: 0 | CG99: 0 | CH99: 0 | CI99: 0 | CJ99: 0 | CK99: 0 | CL99: 0 | CM99: 0 | CN99: 0 | CO99: 0 | CP99: 0 | CQ99: 0 | CR99: 0 | CS99: 0 | CT99: 0 | CU99: 0 | CV99: 0 | CW99: 0 | CX99: 0 | CY99: 0 | CZ99: 0 | DA99: 0 | DB99: 0 | DC99: 0 | DD99: 0 | DE99: 0 | DF99: 0 | DG99: 0 | DH99: 0 | DI99: 0 | DJ99: 0 | DK99: 0 | DL99: 0 | DM99: 0 | DN99: 0 | DO99: 0 | DP99: 0 | DQ99: 0 | DR99: 0 | DS99: 0 | DT99: 0 | DU99: 0 | DV99: 0 | DW99: 0 | DX99: 0 | DY99: 0 | DZ99: 0 | EA99: 0 | EB99: 0 | EC99: 0 | ED99: 0 | EE99: 0 | EF99: 0 | EG99: 0 | EH99: 0 | EI99: 0 | EJ99: 0 | EK99: 0 | EL99: 0 | EM99: 0 | EN99: 0 | EO99: 0 | EP99: 0 | EQ99: 0 | ER99: 0 | ES99: 0 | ET99: 0 | EU99: 0 | EV99: 0 | EW99: 0 | EX99: 0 | EY99: 0 | EZ99: 0 | FA99: 0 | FB99: 0 | FC99: 0 | FD99: 0 | FE99: 0 | FF99: 0 | FG99: 0 | FH99: 0 | FI99: 0 | FJ99: 0 | FK99: 0 | FL99: 0 | FM99: 0 | FN99: 0 | FO99: 0 | FP99: 0 | FQ99: 0 | FR99: 0 | FS99: 0 | FT99: 0 | FU99: 0 | FV99: 0 | FW99: 0 | FX99: 0 | FY99: 0 | FZ99: 0 | GA99: 0 | GB99: 0 | GC99: 0 | GD99: 0 | GE99: 0 | GF99: 0 | GG99: 0 | GH99: 0 | GI99: 0 | GJ99: 0 | GK99: 0 | GL99: 0 | GM99: 0 | GN99: 0 | GO99: 0 | GP99: 0 | GQ99: 0 | GR99: 0 | GS99: 0 | GT99: 0 | GU99: 0 | GV99: 0 | GW99: 0 | GX99: 0 | GY99: 0 | GZ99: 0 | HA99: 0 | HB99: 0 | HC99: 0 | HD99: 0 | HE99: 0 | HF99: 0 | HG99: 0 | HH99: 0 | HI99: 0 | HJ99: 0 | HK99: 0 | HL99: 0 | HM99: 0 | HN99: 0 | HO99: 0 | HP99: 0 | HQ99: 0 | HR99: 0 | HS99: 0 | HT99: 0 | HU99: 0 | HV99: 0 | HW99: 0
A100: 2 | B100: 2 | C100: 9 | D100: 0 | E100: 86 | F100: 90 | G100: 71 | H100: 104 | I100: 121 | J100: 39 | K100: 129 | L100: 80 | M100: 0 | N100: 82 | O100: 45 | P100: 0 | Q100: 145 | R100: 0 | S100: 0 | T100: 137 | U100: 0 | V100: 0 | W100: 38 | X100: 0 | Y100: 0 | Z100: 117 | AA100: 80 | AB100: 57 | AC100: 72 | AD100: 0 | AE100: 0 | AF100: 4 | AG100: 0 | AH100: 0 | AI100: 3 | AJ100: 0 | AK100: 0 | AL100: 3 | AM100: 0 | AN100: 0 | AO100: 12 | AP100: 0 | AQ100: 0 | AR100: 14 | AS100: 0 | AT100: 0 | AU100: 10 | AV100: 0 | AW100: 0 | AX100: 12 | AY100: 0 | AZ100: 0 | BA100: 3 | BB100: 0 | BC100: 0 | BD100: 8 | BE100: 0 | BF100: 0 | BG100: 9 | BH100: 0 | BI100: 0 | BJ100: 0 | BK100: 0 | BL100: 0 | BM100: 0 | BN100: 1 | BO100: 59 | BP100: 41 | BQ100: 36 | BR100: 31 | BS100: 8 | BT100: 23 | BU100: 22 | BV100: 10 | BW100: 16 | BX100: 0 | BY100: 0 | BZ100: 0 | CA100: 0 | CB100: 0 | CC100: 0 | CD100: 0 | CE100: 0 | CF100: 0 | CG100: 0 | CH100: 0 | CI100: 0 | CJ100: 0 | CK100: 0 | CL100: 0 | CM100: 0 | CN100: 0 | CO100: 0 | CP100: 0 | CQ100: 0 | CR100: 0 | CS100: 0 | CT100: 0 | CU100: 0 | CV100: 0 | CW100: 0 | CX100: 0 | CY100: 0 | CZ100: 0 | DA100: 0 | DB100: 0 | DC100: 0 | DD100: 0 | DE100: 0 | DF100: 0 | DG100: 0 | DH100: 0 | DI100: 0 | DJ100: 0 | DK100: 0 | DL100: 0 | DM100: 0 | DN100: 0 | DO100: 0 | DP100: 0 | DQ100: 0 | DR100: 0 | DS100: 0 | DT100: 0 | DU100: 0 | DV100: 0 | DW100: 0 | DX100: 0 | DY100: 0 | DZ100: 0 | EA100: 0 | EB100: 0 | EC100: 0 | ED100: 0 | EE100: 0 | EF100: 0 | EG100: 0 | EH100: 0 | EI100: 0 | EJ100: 0 | EK100: 0 | EL100: 0 | EM100: 0 | EN100: 0 | EO100: 0 | EP100: 0 | EQ100: 0 | ER100: 0 | ES100: 0 | ET100: 0 | EU100: 0 | EV100: 0 | EW100: 0 | EX100: 0 | EY100: 0 | EZ100: 0 | FA100: 0 | FB100: 0 | FC100: 0 | FD100: 0 | FE100: 0 | FF100: 0 | FG100: 0 | FH100: 0 | FI100: 0 | FJ100: 0 | FK100: 0 | FL100: 0 | FM100: 0 | FN100: 0 | FO100: 0 | FP100: 0 | FQ100: 0 | FR100: 0 | FS100: 0 | FT100: 0 | FU100: 0 | FV100: 0 | FW100: 0 | FX100: 0 | FY100: 0 | FZ100: 0 | GA100: 0 | GB100: 0 | GC100: 0 | GD100: 0 | GE100: 0 | GF100: 0 | GG100: 0 | GH100: 0 | GI100: 0 | GJ100: 0 | GK100: 0 | GL100: 0 | GM100: 0 | GN100: 0 | GO100: 0 | GP100: 0 | GQ100: 0 | GR100: 0 | GS100: 0 | GT100: 0 | GU100: 0 | GV100: 0 | GW100: 0 | GX100: 0 | GY100: 0 | GZ100: 0 | HA100: 0 | HB100: 0 | HC100: 0 | HD100: 0 | HE100: 0 | HF100: 0 | HG100: 0 | HH100: 0 | HI100: 0 | HJ100: 0 | HK100: 0 | HL100: 0 | HM100: 0 | HN100: 0 | HO100: 0 | HP100: 0 | HQ100: 0 | HR100: 0 | HS100: 0 | HT100: 0 | HU100: 0 | HV100: 0 | HW100: 0
A101: 1 | B101: 5 | C101: 3 | D101: 0 | E101: 79 | F101: 78 | G101: 76 | H101: 85 | I101: 96 | J101: 22 | K101: 135 | L101: 64 | M101: 0 | N101: 86 | O101: 36 | P101: 0 | Q101: 130 | R101: 0 | S101: 0 | T101: 109 | U101: 0 | V101: 0 | W101: 16 | X101: 0 | Y101: 0 | Z101: 143 | AA101: 74 | AB101: 74 | AC101: 92 | AD101: 0 | AE101: 0 | AF101: 6 | AG101: 0 | AH101: 0 | AI101: 1 | AJ101: 0 | AK101: 0 | AL101: 14 | AM101: 0 | AN101: 0 | AO101: 15 | AP101: 0 | AQ101: 0 | AR101: 10 | AS101: 0 | AT101: 0 | AU101: 6 | AV101: 0 | AW101: 0 | AX101: 4 | AY101: 0 | AZ101: 0 | BA101: 2 | BB101: 0 | BC101: 0 | BD101: 0 | BE101: 0 | BF101: 0 | BG101: 5 | BH101: 0 | BI101: 0 | BJ101: 0 | BK101: 0 | BL101: 0 | BM101: 3 | BN101: 2 | BO101: 80 | BP101: 37 | BQ101: 42 | BR101: 27 | BS101: 6 | BT101: 27 | BU101: 26 | BV101: 13 | BW101: 8 | BX101: 0 | BY101: 0 | BZ101: 0 | CA101: 0 | CB101: 0 | CC101: 0 | CD101: 0 | CE101: 0 | CF101: 0 | CG101: 0 | CH101: 0 | CI101: 0 | CJ101: 0 | CK101: 0 | CL101: 0 | CM101: 0 | CN101: 0 | CO101: 0 | CP101: 0 | CQ101: 0 | CR101: 0 | CS101: 0 | CT101: 0 | CU101: 0 | CV101: 0 | CW101: 0 | CX101: 0 | CY101: 0 | CZ101: 0 | DA101: 0 | DB101: 0 | DC101: 0 | DD101: 0 | DE101: 0 | DF101: 0 | DG101: 0 | DH101: 0 | DI101: 0 | DJ101: 0 | DK101: 0 | DL101: 0 | DM101: 0 | DN101: 0 | DO101: 0 | DP101: 0 | DQ101: 0 | DR101: 0 | DS101: 0 | DT101: 0 | DU101: 0 | DV101: 0 | DW101: 0 | DX101: 0 | DY101: 0 | DZ101: 0 | EA101: 0 | EB101: 0 | EC101: 0 | ED101: 0 | EE101: 0 | EF101: 0 | EG101: 0 | EH101: 0 | EI101: 0 | EJ101: 0 | EK101: 0 | EL101: 0 | EM101: 0 | EN101: 0 | EO101: 0 | EP101: 0 | EQ101: 0 | ER101: 0 | ES101: 0 | ET101: 0 | EU101: 0 | EV101: 0 | EW101: 0 | EX101: 0 | EY101: 0 | EZ101: 0 | FA101: 0 | FB101: 0 | FC101: 0 | FD101: 0 | FE101: 0 | FF101: 0 | FG101: 0 | FH101: 0 | FI101: 0 | FJ101: 0 | FK101: 0 | FL101: 0 | FM101: 0 | FN101: 0 | FO101: 0 | FP101: 0 | FQ101: 0 | FR101: 0 | FS101: 0 | FT101: 0 | FU101: 0 | FV101: 0 | FW101: 0 | FX101: 0 | FY101: 0 | FZ101: 0 | GA101: 0 | GB101: 0 | GC101: 0 | GD101: 0 | GE101: 0 | GF101: 0 | GG101: 0 | GH101: 0 | GI101: 0 | GJ101: 0 | GK101: 0 | GL101: 0 | GM101: 0 | GN101: 0 | GO101: 0 | GP101: 0 | GQ101: 0 | GR101: 0 | GS101: 0 | GT101: 0 | GU101: 0 | GV101: 0 | GW101: 0 | GX101: 0 | GY101: 0 | GZ101: 0 | HA101: 0 | HB101: 0 | HC101: 0 | HD101: 0 | HE101: 0 | HF101: 0 | HG101: 0 | HH101: 0 | HI101: 0 | HJ101: 0 | HK101: 0 | HL101: 0 | HM101: 0 | HN101: 0 | HO101: 0 | HP101: 0 | HQ101: 0 | HR101: 0 | HS101: 0 | HT101: 0 | HU101: 0 | HV101: 0 | HW101: 0
A102: T | B102: 30 | C102: 21 | D102: 0 | E102: 589 | F102: 493 | G102: 468 | H102: 558 | I102: 648 | J102: 295 | K102: 754 | L102: 444 | M102: 0 | N102: 488 | O102: 277 | P102: 0 | Q102: 1219 | R102: 0 | S102: 0 | T102: 1824 | U102: 7 | V102: 0 | W102: 134 | X102: 0 | Y102: 0 | Z102: 693 | AA102: 469 | AB102: 344 | AC102: 466 | AD102: 0 | AE102: 0 | AF102: 27 | AG102: 0 | AH102: 0 | AI102: 12 | AJ102: 0 | AK102: 0 | AL102: 38 | AM102: 0 | AN102: 0 | AO102: 67 | AP102: 0 | AQ102: 0 | AR102: 59 | AS102: 0 | AT102: 0 | AU102: 43 | AV102: 0 | AW102: 0 | AX102: 36 | AY102: 0 | AZ102: 0 | BA102: 20 | BB102: 0 | BC102: 0 | BD102: 20 | BE102: 0 | BF102: 0 | BG102: 33 | BH102: 0 | BI102: 0 | BJ102: 0 | BK102: 0 | BL102: 0 | BM102: 4 | BN102: 7 | BO102: 328 | BP102: 190 | BQ102: 205 | BR102: 148 | BS102: 40 | BT102: 113 | BU102: 134 | BV102: 61 | BW102: 55 | BX102: 0 | BY102: 0 | BZ102: 0 | CA102: 0 | CB102: 0 | CC102: 0 | CD102: 0 | CE102: 0 | CF102: 0 | CG102: 0 | CH102: 0 | CI102: 0 | CJ102: 0 | CK102: 0 | CL102: 0 | CM102: 0 | CN102: 0 | CO102: 0 | CP102: 0 | CQ102: 0 | CR102: 0 | CS102: 0 | CT102: 0 | CU102: 0 | CV102: 0 | CW102: 0 | CX102: 0 | CY102: 0 | CZ102: 0 | DA102: 0 | DB102: 0 | DC102: 0 | DD102: 0 | DE102: 0 | DF102: 0 | DG102: 0 | DH102: 0 | DI102: 0 | DJ102: 0 | DK102: 0 | DL102: 0 | DM102: 0 | DN102: 0 | DO102: 0 | DP102: 0 | DQ102: 0 | DR102: 0 | DS102: 0 | DT102: 0 | DU102: 0 | DV102: 0 | DW102: 0 | DX102: 0 | DY102: 0 | DZ102: 0 | EA102: 0 | EB102: 0 | EC102: 0 | ED102: 0 | EE102: 0 | EF102: 0 | EG102: 0 | EH102: 0 | EI102: 0 | EJ102: 0 | EK102: 0 | EL102: 0 | EM102: 0 | EN102: 0 | EO102: 0 | EP102: 0 | EQ102: 0 | ER102: 0 | ES102: 0 | ET102: 0 | EU102: 0 | EV102: 0 | EW102: 0 | EX102: 0 | EY102: 0 | EZ102: 0 | FA102: 0 | FB102: 0 | FC102: 0 | FD102: 0 | FE102: 0 | FF102: 0 | FG102: 0 | FH102: 0 | FI102: 0 | FJ102: 0 | FK102: 0 | FL102: 0 | FM102: 0 | FN102: 0 | FO102: 0 | FP102: 0 | FQ102: 0 | FR102: 0 | FS102: 0 | FT102: 0 | FU102: 0 | FV102: 0 | FW102: 0 | FX102: 0 | FY102: 0 | FZ102: 0 | GA102: 0 | GB102: 0 | GC102: 0 | GD102: 0 | GE102: 0 | GF102: 0 | GG102: 0 | GH102: 0 | GI102: 0 | GJ102: 0 | GK102: 0 | GL102: 0 | GM102: 0 | GN102: 0 | GO102: 0 | GP102: 0 | GQ102: 0 | GR102: 0 | GS102: 0 | GT102: 0 | GU102: 0 | GV102: 0 | GW102: 0 | GX102: 0 | GY102: 0 | GZ102: 0 | HA102: 0 | HB102: 0 | HC102: 0 | HD102: 0 | HE102: 0 | HF102: 0 | HG102: 0 | HH102: 0 | HI102: 0 | HJ102: 0 | HK102: 0 | HL102: 0 | HM102: 0 | HN102: 0 | HO102: 0 | HP102: 0 | HQ102: 0 | HR102: 0 | HS102: 0 | HT102: 0 | HU102: 0 | HV102: 0 | HW102: 0
A115: TOTAL
A116: =COUNT(A97:A113) -> 5 | B116: =SUM(B97:B113) -> 60 | C116: =SUM(C97:C113) -> 42 | D116: 0 | E116: 1178 | F116: 986 | G116: 936 | H116: 1116 | I116: 1296 | J116: 590 | K116: 1508 | L116: 888 | M116: 0 | N116: 976 | O116: 554 | P116: 0 | Q116: 2438 | R116: 0 | S116: 0 | T116: 3648 | U116: 14 | V116: 0 | W116: 268 | X116: 0 | Y116: 0 | Z116: 1386 | AA116: 938 | AB116: 688 | AC116: 932 | AD116: 0 | AE116: 0 | AF116: 54 | AG116: 0 | AH116: 0 | AI116: 24 | AJ116: 0 | AK116: 0 | AL116: 76 | AM116: 0 | AN116: 0 | AO116: 134 | AP116: 0 | AQ116: 0 | AR116: 118 | AS116: 0 | AT116: 0 | AU116: 86 | AV116: 0 | AW116: 0 | AX116: 72 | AY116: 0 | AZ116: 0 | BA116: 40 | BB116: 0 | BC116: 0 | BD116: 40 | BE116: 0 | BF116: 0 | BG116: 66 | BH116: 0 | BI116: 0 | BJ116: 0 | BK116: 0 | BL116: 0 | BM116: 8 | BN116: 14 | BO116: =SUM(BO97:BO113) -> 656 | BP116: 380 | BQ116: 410 | BR116: 296 | BS116: 80 | BT116: 226 | BU116: 268 | BV116: 122 | BW116: 110 | BX116: 0 | BY116: 0 | BZ116: 0 | CA116: 0 | CB116: 0 | CC116: 0 | CD116: 0 | CE116: 0 | CF116: 0 | CG116: 0 | CH116: 0 | CI116: 0 | CJ116: 0 | CK116: 0 | CL116: 0 | CM116: 0 | CN116: 0 | CO116: 0 | CP116: 0 | CQ116: 0 | CR116: 0 | CS116: 0 | CT116: 0 | CU116: 0 | CV116: 0 | CW116: 0 | CX116: 0 | CY116: 0 | CZ116: 0 | DA116: 0 | DB116: 0 | DC116: 0 | DD116: 0 | DE116: 0 | DF116: 0 | DG116: 0 | DH116: 0 | DI116: 0 | DJ116: 0 | DK116: 0 | DL116: 0 | DM116: 0 | DN116: 0 | DO116: 0 | DP116: 0 | DQ116: 0 | DR116: 0 | DS116: 0 | DT116: 0 | DU116: 0 | DV116: 0 | DW116: 0 | DX116: 0 | DY116: 0 | DZ116: 0 | EA116: =SUM(EA97:EA113) -> 0 | EB116: 0 | EC116: 0 | ED116: 0 | EE116: 0 | EF116: 0 | EG116: 0 | EH116: 0 | EI116: 0 | EJ116: 0 | EK116: 0 | EL116: 0 | EM116: 0 | EN116: 0 | EO116: 0 | EP116: 0 | EQ116: 0 | ER116: 0 | ES116: 0 | ET116: 0 | EU116: 0 | EV116: 0 | EW116: 0 | EX116: 0 | EY116: 0 | EZ116: 0 | FA116: 0 | FB116: 0 | FC116: 0 | FD116: 0 | FE116: 0 | FF116: 0 | FG116: 0 | FH116: 0 | FI116: 0 | FJ116: 0 | FK116: 0 | FL116: 0 | FM116: 0 | FN116: 0 | FO116: 0 | FP116: 0 | FQ116: 0 | FR116: 0 | FS116: 0 | FT116: 0 | FU116: 0 | FV116: 0 | FW116: 0 | FX116: 0 | FY116: 0 | FZ116: 0 | GA116: 0 | GB116: 0 | GC116: 0 | GD116: 0 | GE116: 0 | GF116: 0 | GG116: 0 | GH116: 0 | GI116: 0 | GJ116: 0 | GK116: 0 | GL116: 0 | GM116: =SUM(GM97:GM113) -> 0 | GN116: 0 | GO116: 0 | GP116: 0 | GQ116: 0 | GR116: 0 | GS116: 0 | GT116: 0 | GU116: 0 | GV116: 0 | GW116: 0 | GX116: 0 | GY116: 0 | GZ116: 0 | HA116: 0 | HB116: 0 | HC116: 0 | HD116: 0 | HE116: 0 | HF116: 0 | HG116: 0 | HH116: 0 | HI116: 0 | HJ116: 0 | HK116: 0 | HL116: 0 | HM116: 0 | HN116: 0 | HO116: 0 | HP116: 0 | HQ116: 0 | HR116: 0 | HS116: 0 | HT116: 0 | HU116: 0 | HV116: 0 | HW116: 0
A117: =CONCATENATE(A97,"-",A98,"-",A99,"-",A100,"-",A101,"-",A102,"-",A103,"-",A104,"-",A105,"-",A106,"-",A107,"-",A108) -> 4-5-3-2-1-T------
B118: BAS001 | C118: BAS002 | D118: BAS003 | E118: BAS004 | F118: BAS005 | G118: BAS006 | H118: BAS007 | I118: BAS008 | J118: BAS009 | K118: BAS010 | L118: BAS011 | M118: BAS012 | N118: BAS013 | O118: BAS014 | P118: BAS015 | Q118: BAS016 | R118: BAS017 | S118: BAS018 | T118: BAS019 | U118: BAS020 | V118: BAS021 | W118: BAS022 | X118: BAS023 | Y118: BAS024 | Z118: BAS025 | AA118: BAS026 | AB118: BAS027 | AC118: BAS028 | AD118: BAS029 | AE118: BAS030 | AF118: BAS031 | AG118: BAS032 | AH118: BAS033 | AI118: BAS034 | AJ118: BAS035 | AK118: BAS036 | AL118: BAS037 | AM118: BAS038 | AN118: BAS039 | AO118: BAS040 | AP118: BAS041 | AQ118: BAS042 | AR118: BAS043 | AS118: BAS044 | AT118: BAS045 | AU118: BAS046 | AV118: BAS047 | AW118: BAS048 | AX118: BAS049 | AY118: BAS050 | AZ118: BAS051 | BA118: BAS052 | BB118: BAS053 | BC118: BAS054 | BD118: BAS055 | BE118: BAS056 | BF118: BAS057 | BG118: BAS058 | BH118: BAS059 | BI118: BAS060 | BJ118: BAS061 | BK118: BAS062 | BL118: BAS063 | BM118: BAS064 | BN118: BAS065 | BO118: BAS066 | BP118: BAS067 | BQ118: BAS068 | BR118: BAS069 | BS118: BAS070 | BT118: BAS071 | BU118: BAS072 | BV118: BAS073 | BW118: BAS074 | BX118: BAS075 | BY118: BAS076 | BZ118: BAS077 | CA118: BAS078 | CB118: BAS079 | CC118: BAS080 | CD118: BAS081 | CE118: BAS082 | CF118: BAS083 | CG118: BAS084 | CH118: BAS085 | CI118: BAS086 | CJ118: BAS087 | CK118: BAS088 | CL118: BAS089 | CM118: BAS090 | CN118: BAS091 | CO118: BAS092 | CP118: BAS093 | CQ118: BAS094 | CR118: BAS095 | CS118: BAS096 | CT118: BAS097 | CU118: BAS098 | CV118: BAS099 | CW118: BAS100 | CX118: BAS101 | CY118: BAS102 | CZ118: BAS103 | DA118: BAS104 | DB118: BAS105 | DC118: BAS106 | DD118: BAS107 | DE118: BAS108 | DF118: BAS109 | DG118: BAS110 | DH118: BAS111 | DI118: BAS112 | DJ118: BAS113 | DK118: BAS114 | DL118: BAS115 | DM118: BAS116 | DN118: BAS117 | DO118: BAS118 | DP118: BAS119 | DQ118: BAS120 | DR118: BAS121 | DS118: BAS122 | DT118: BAS123 | DU118: BAS124 | DV118: BAS125 | DW118: BAS126 | DX118: BAS127 | DY118: BAS128 | DZ118: BAS129 | EA118: BAS130 | EB118: BAS131 | EC118: BAS132 | ED118: BAS133 | EE118: BAS134 | EF118: BAS135 | EG118: BAS136 | EH118: BAS137 | EI118: BAS138 | EJ118: BAS139 | EK118: BAS140 | EL118: BAS141 | EM118: BAS142 | EN118: BAS143 | EO118: BAS144 | EP118: BAS145 | EQ118: BAS146 | ER118: BAS147 | ES118: BAS148 | ET118: BAS149 | EU118: BAS150 | EV118: BAS151 | EW118: BAS152 | EX118: BAS153 | EY118: BAS154 | EZ118: BAS155 | FA118: BAS156 | FB118: BAS157 | FC118: BAS158 | FD118: BAS159 | FE118: BAS160 | FF118: BAS161 | FG118: BAS162 | FH118: BAS163 | FI118: BAS164 | FJ118: BAS165 | FK118: BAS166 | FL118: BAS167 | FM118: BAS168 | FN118: BAS169 | FO118: BAS170 | FP118: BAS171 | FQ118: BAS172 | FR118: BAS173 | FS118: BAS174 | FT118: BAS175 | FU118: BAS176 | FV118: BAS177 | FW118: BAS178 | FX118: BAS179 | FY118: BAS180 | FZ118: BAS181 | GA118: BAS182 | GB118: BAS183 | GC118: BAS184 | GD118: BAS185 | GE118: BAS186 | GF118: BAS187 | GG118: BAS188 | GH118: BAS189 | GI118: BAS190 | GJ118: BAS191 | GK118: BAS192 | GL118: BAS193 | GM118: BAS194 | GN118: BAS195 | GO118: BAS196 | GP118: BAS197 | GQ118: BAS198 | GR118: BAS199 | GS118: BAS200 | GT118: BAS201 | GU118: BAS202 | GV118: BAS203 | GW118: BAS204 | GX118: BAS205 | GY118: BAS206 | GZ118: BAS207 | HA118: BAS208 | HB118: BAS209 | HC118: BAS210 | HD118: BAS211 | HE118: BAS212 | HF118: BAS213 | HG118: BAS214 | HH118: BAS215 | HI118: BAS216 | HJ118: BAS217 | HK118: BAS218 | HL118: BAS219 | HM118: BAS220 | HN118: BAS221 | HO118: BAS222 | HP118: BAS223 | HQ118: BAS224 | HR118: BAS225 | HS118: BAS226 | HT118: BAS227 | HU118: BAS228 | HV118: BAS229 | HW118: BAS230
B119: =IF(B118=B96,"SI","NO") -> SI | C119: =IF(C118=C96,"SI","NO") -> SI | D119: SI | E119: SI | F119: SI | G119: SI | H119: SI | I119: SI | J119: SI | K119: SI | L119: SI | M119: SI | N119: SI | O119: SI | P119: SI | Q119: SI | R119: SI | S119: SI | T119: SI | U119: SI | V119: SI | W119: SI | X119: SI | Y119: SI | Z119: SI | AA119: SI | AB119: SI | AC119: SI | AD119: SI | AE119: SI | AF119: SI | AG119: SI | AH119: SI | AI119: SI | AJ119: SI | AK119: SI | AL119: SI | AM119: SI | AN119: SI | AO119: SI | AP119: SI | AQ119: SI | AR119: SI | AS119: SI | AT119: SI | AU119: SI | AV119: SI | AW119: SI | AX119: SI | AY119: SI | AZ119: SI | BA119: SI | BB119: SI | BC119: SI | BD119: SI | BE119: SI | BF119: SI | BG119: SI | BH119: SI | BI119: SI | BJ119: SI | BK119: SI | BL119: SI | BM119: SI | BN119: SI | BO119: =IF(BO118=BO96,"SI","NO") -> SI | BP119: SI | BQ119: SI | BR119: SI | BS119: SI | BT119: SI | BU119: SI | BV119: SI | BW119: SI | BX119: SI | BY119: SI | BZ119: SI | CA119: SI | CB119: SI | CC119: SI | CD119: SI | CE119: SI | CF119: SI | CG119: SI | CH119: SI | CI119: SI | CJ119: SI | CK119: SI | CL119: SI | CM119: SI | CN119: SI | CO119: SI | CP119: SI | CQ119: SI | CR119: SI | CS119: SI | CT119: SI | CU119: SI | CV119: SI | CW119: SI | CX119: SI | CY119: SI | CZ119: SI | DA119: SI | DB119: SI | DC119: SI | DD119: SI | DE119: SI | DF119: SI | DG119: SI | DH119: SI | DI119: SI | DJ119: SI | DK119: SI | DL119: SI | DM119: SI | DN119: SI | DO119: SI | DP119: SI | DQ119: SI | DR119: SI | DS119: SI | DT119: SI | DU119: SI | DV119: SI | DW119: SI | DX119: SI | DY119: SI | DZ119: SI | EA119: =IF(EA118=EA96,"SI","NO") -> SI | EB119: SI | EC119: SI | ED119: SI | EE119: SI | EF119: SI | EG119: SI | EH119: SI | EI119: SI | EJ119: SI | EK119: SI | EL119: SI | EM119: SI | EN119: SI | EO119: SI | EP119: SI | EQ119: SI | ER119: SI | ES119: SI | ET119: SI | EU119: SI | EV119: SI | EW119: SI | EX119: SI | EY119: SI | EZ119: SI | FA119: SI | FB119: SI | FC119: SI | FD119: SI | FE119: SI | FF119: SI | FG119: SI | FH119: SI | FI119: SI | FJ119: SI | FK119: SI | FL119: SI | FM119: SI | FN119: SI | FO119: SI | FP119: SI | FQ119: SI | FR119: SI | FS119: SI | FT119: SI | FU119: SI | FV119: SI | FW119: SI | FX119: SI | FY119: SI | FZ119: SI | GA119: SI | GB119: SI | GC119: SI | GD119: SI | GE119: SI | GF119: SI | GG119: SI | GH119: SI | GI119: SI | GJ119: SI | GK119: SI | GL119: SI | GM119: =IF(GM118=GM96,"SI","NO") -> SI | GN119: SI | GO119: SI | GP119: SI | GQ119: SI | GR119: SI | GS119: SI | GT119: SI | GU119: SI | GV119: SI | GW119: SI | GX119: SI | GY119: SI | GZ119: SI | HA119: SI | HB119: SI | HC119: SI | HD119: SI | HE119: SI | HF119: SI | HG119: SI | HH119: SI | HI119: SI | HJ119: SI | HK119: SI | HL119: SI | HM119: SI | HN119: SI | HO119: SI | HP119: SI | HQ119: SI | HR119: SI | HS119: SI | HT119: SI | HU119: SI | HV119: SI | HW119: SI
A121: ESANS_03
A122: anno | B122: 2025
A123: cod_red | B123: (Todas)
A124: codmic | B124: (Todas)
A125: cod_prov | B125: (Todas)
A126: coddist | B126: (Todas)
A127: cod_estab | B127: (Todas)
A128: cod_eje | B128: (Todas)
B130: Valores
A131: Etiquetas de fila | B131: BAS001 | C131: BAS002 | D131: BAS003 | E131: BAS004 | F131: BAS005 | G131: BAS006 | H131: BAS007 | I131: BAS008 | J131: BAS009 | K131: BAS010 | L131: BAS011 | M131: BAS012 | N131: BAS013 | O131: BAS014 | P131: BAS015 | Q131: BAS016 | R131: BAS017 | S131: BAS018 | T131: BAS019 | U131: BAS020 | V131: BAS021 | W131: BAS022 | X131: BAS023 | Y131: BAS024 | Z131: BAS025 | AA131: BAS026 | AB131: BAS027 | AC131: BAS028 | AD131: BAS029 | AE131: BAS030 | AF131: BAS031 | AG131: BAS032 | AH131: BAS033 | AI131: BAS034 | AJ131: BAS035 | AK131: BAS036 | AL131: BAS037 | AM131: BAS038 | AN131: BAS039 | AO131: BAS040 | AP131: BAS041 | AQ131: BAS042 | AR131: BAS043 | AS131: BAS044 | AT131: BAS045 | AU131: BAS046 | AV131: BAS047 | AW131: BAS048 | AX131: BAS049 | AY131: BAS050 | AZ131: BAS051 | BA131: BAS052 | BB131: BAS053 | BC131: BAS054 | BD131: BAS055 | BE131: BAS056 | BF131: BAS057 | BG131: BAS058 | BH131: BAS059 | BI131: BAS060 | BJ131: BAS061 | BK131: BAS062 | BL131: BAS063 | BM131: BAS064 | BN131: BAS065 | BO131: BAS066 | BP131: BAS067 | BQ131: BAS068 | BR131: BAS069 | BS131: BAS070 | BT131: BAS071 | BU131: BAS072 | BV131: BAS073 | BW131: BAS074 | BX131: BAS075 | BY131: BAS076 | BZ131: BAS077 | CA131: BAS078 | CB131: BAS079 | CC131: BAS080 | CD131: BAS081 | CE131: BAS082 | CF131: BAS083 | CG131: BAS084 | CH131: BAS085 | CI131: BAS086 | CJ131: BAS087 | CK131: BAS088 | CL131: BAS089 | CM131: BAS090 | CN131: BAS091 | CO131: BAS092 | CP131: BAS093 | CQ131: BAS094 | CR131: BAS095 | CS131: BAS096 | CT131: BAS097 | CU131: BAS098 | CV131: BAS099 | CW131: BAS100 | CX131: BAS101 | CY131: BAS102 | CZ131: BAS103 | DA131: BAS104 | DB131: BAS105 | DC131: BAS106 | DD131: BAS107 | DE131: BAS108 | DF131: BAS109 | DG131: BAS110 | DH131: BAS111 | DI131: BAS112 | DJ131: BAS113 | DK131: BAS114 | DL131: BAS115 | DM131: BAS116 | DN131: BAS117 | DO131: BAS118 | DP131: BAS119 | DQ131: BAS120 | DR131: BAS121 | DS131: BAS122 | DT131: BAS123 | DU131: BAS124 | DV131: BAS125 | DW131: BAS126 | DX131: BAS127 | DY131: BAS128 | DZ131: BAS129 | EA131: BAS130 | EB131: BAS131 | EC131: BAS132 | ED131: BAS133 | EE131: BAS134 | EF131: BAS135 | EG131: BAS136 | EH131: BAS137 | EI131: BAS138 | EJ131: BAS139 | EK131: BAS140 | EL131: BAS141 | EM131: BAS142 | EN131: BAS143 | EO131: BAS144 | EP131: BAS145 | EQ131: BAS146 | ER131: BAS147 | ES131: BAS148 | ET131: BAS149 | EU131: BAS150 | EV131: BAS151 | EW131: BAS152 | EX131: BAS153 | EY131: BAS154 | EZ131: BAS155 | FA131: BAS156 | FB131: BAS157 | FC131: BAS158 | FD131: BAS159 | FE131: BAS160 | FF131: BAS161 | FG131: BAS162 | FH131: BAS163 | FI131: BAS164 | FJ131: BAS165 | FK131: BAS166 | FL131: BAS167 | FM131: BAS168 | FN131: BAS169 | FO131: BAS170 | FP131: BAS171 | FQ131: BAS172 | FR131: BAS173 | FS131: BAS174 | FT131: BAS175 | FU131: BAS176 | FV131: BAS177 | FW131: BAS178 | FX131: BAS179 | FY131: BAS180 | FZ131: BAS181 | GA131: BAS182 | GB131: BAS183 | GC131: BAS184 | GD131: BAS185 | GE131: BAS186 | GF131: BAS187 | GG131: BAS188 | GH131: BAS189 | GI131: BAS190 | GJ131: BAS191 | GK131: BAS192 | GL131: BAS193 | GM131: BAS194 | GN131: BAS195 | GO131: BAS196 | GP131: BAS197 | GQ131: BAS198 | GR131: BAS199 | GS131: BAS200 | GT131: BAS201 | GU131: BAS202 | GV131: BAS203 | GW131: BAS204 | GX131: BAS205 | GY131: BAS206 | GZ131: BAS207 | HA131: BAS208 | HB131: BAS209 | HC131: BAS210 | HD131: BAS211 | HE131: BAS212 | HF131: BAS213 | HG131: BAS214 | HH131: BAS215 | HI131: BAS216 | HJ131: BAS217 | HK131: BAS218 | HL131: BAS219 | HM131: BAS220 | HN131: BAS221 | HO131: BAS222 | HP131: BAS223 | HQ131: BAS224 | HR131: BAS225 | HS131: BAS226 | HT131: BAS227 | HU131: BAS228 | HV131: BAS229 | HW131: BAS230
A132: 4 | B132: 0 | C132: 0 | D132: 0 | E132: 0 | F132: 0 | G132: 0 | H132: 0 | I132: 0 | J132: 31 | K132: 26 | L132: 24 | M132: 16 | N132: 9 | O132: 17 | P132: 0 | Q132: 0 | R132: 28 | S132: 33 | T132: 36 | U132: 37 | V132: 40 | W132: 27 | X132: 27 | Y132: 0 | Z132: 25 | AA132: 19 | AB132: 24 | AC132: 20 | AD132: 18 | AE132: 13 | AF132: 10 | AG132: 0 | AH132: 13 | AI132: 9 | AJ132: 18 | AK132: 7 | AL132: 9 | AM132: 5 | AN132: 7 | AO132: 0 | AP132: 20 | AQ132: 10 | AR132: 6 | AS132: 8 | AT132: 6 | AU132: 5 | AV132: 8 | AW132: 0 | AX132: 3 | AY132: 0 | AZ132: 0 | BA132: 0 | BB132: 0 | BC132: 0 | BD132: 0 | BE132: 0 | BF132: 57 | BG132: 3 | BH132: 0 | BI132: 0 | BJ132: 0 | BK132: 0 | BL132: 0 | BM132: 0 | BN132: 59 | BO132: 3 | BP132: 0 | BQ132: 1 | BR132: 0 | BS132: 0 | BT132: 0 | BU132: 0 | BV132: 32 | BW132: 1 | BX132: 0 | BY132: 0 | BZ132: 1 | CA132: 1 | CB132: 0 | CC132: 0 | CD132: 0 | CE132: 0 | CF132: 0 | CG132: 0 | CH132: 0 | CI132: 0 | CJ132: 0 | CK132: 4 | CL132: 1 | CM132: 0 | CN132: 0 | CO132: 0 | CP132: 5 | CQ132: 5 | CR132: 1 | CS132: 1 | CT132: 0 | CU132: 0 | CV132: 0 | CW132: 0 | CX132: 0 | CY132: 0 | CZ132: 0 | DA132: 0 | DB132: 1 | DC132: 0 | DD132: 0 | DE132: 0 | DF132: 0 | DG132: 0 | DH132: 1 | DI132: 1 | DJ132: 0 | DK132: 0 | DL132: 0 | DM132: 0 | DN132: 0 | DO132: 0 | DP132: 0 | DQ132: 0 | DR132: 0 | DS132: 0 | DT132: 1 | DU132: 0 | DV132: 0 | DW132: 0 | DX132: 0 | DY132: 0 | DZ132: 1 | EA132: 0 | EB132: 0 | EC132: 0 | ED132: 0 | EE132: 0 | EF132: 0 | EG132: 0 | EH132: 0 | EI132: 0 | EJ132: 0 | EK132: 0 | EL132: 0 | EM132: 0 | EN132: 0 | EO132: 0 | EP132: 0 | EQ132: 0 | ER132: 0 | ES132: 0 | ET132: 0 | EU132: 0 | EV132: 0 | EW132: 0 | EX132: 0 | EY132: 0 | EZ132: 0 | FA132: 0 | FB132: 0 | FC132: 0 | FD132: 0 | FE132: 0 | FF132: 0 | FG132: 0 | FH132: 0 | FI132: 0 | FJ132: 0 | FK132: 0 | FL132: 0 | FM132: 0 | FN132: 0 | FO132: 0 | FP132: 0 | FQ132: 0 | FR132: 0 | FS132: 0 | FT132: 0 | FU132: 0 | FV132: 0 | FW132: 0 | FX132: 0 | FY132: 0 | FZ132: 0 | GA132: 0 | GB132: 0 | GC132: 0 | GD132: 0 | GE132: 0 | GF132: 0 | GG132: 0 | GH132: 0 | GI132: 0 | GJ132: 0 | GK132: 0 | GL132: 0 | GM132: 0 | GN132: 0 | GO132: 0 | GP132: 0 | GQ132: 0 | GR132: 0 | GS132: 0 | GT132: 0 | GU132: 0 | GV132: 0 | GW132: 0 | GX132: 0 | GY132: 0 | GZ132: 0 | HA132: 0 | HB132: 0 | HC132: 0 | HD132: 0 | HE132: 0 | HF132: 0 | HG132: 0 | HH132: 0 | HI132: 0 | HJ132: 0 | HK132: 0 | HL132: 0 | HM132: 0 | HN132: 0 | HO132: 0 | HP132: 0 | HQ132: 0 | HR132: 0 | HS132: 0 | HT132: 0 | HU132: 0 | HV132: 0 | HW132: 0
A133: 5 | B133: 0 | C133: 0 | D133: 0 | E133: 0 | F133: 0 | G133: 0 | H133: 0 | I133: 0 | J133: 23 | K133: 18 | L133: 25 | M133: 14 | N133: 10 | O133: 5 | P133: 0 | Q133: 0 | R133: 31 | S133: 21 | T133: 40 | U133: 22 | V133: 35 | W133: 18 | X133: 16 | Y133: 0 | Z133: 17 | AA133: 15 | AB133: 14 | AC133: 20 | AD133: 14 | AE133: 9 | AF133: 8 | AG133: 0 | AH133: 13 | AI133: 11 | AJ133: 12 | AK133: 13 | AL133: 6 | AM133: 3 | AN133: 5 | AO133: 0 | AP133: 8 | AQ133: 12 | AR133: 12 | AS133: 5 | AT133: 9 | AU133: 6 | AV133: 5 | AW133: 0 | AX133: 1 | AY133: 0 | AZ133: 0 | BA133: 0 | BB133: 0 | BC133: 0 | BD133: 0 | BE133: 0 | BF133: 19 | BG133: 24 | BH133: 1 | BI133: 0 | BJ133: 0 | BK133: 0 | BL133: 0 | BM133: 0 | BN133: 20 | BO133: 24 | BP133: 2 | BQ133: 1 | BR133: 0 | BS133: 0 | BT133: 0 | BU133: 0 | BV133: 39 | BW133: 0 | BX133: 0 | BY133: 0 | BZ133: 0 | CA133: 0 | CB133: 0 | CC133: 0 | CD133: 0 | CE133: 0 | CF133: 0 | CG133: 0 | CH133: 0 | CI133: 0 | CJ133: 0 | CK133: 1 | CL133: 1 | CM133: 0 | CN133: 0 | CO133: 0 | CP133: 0 | CQ133: 1 | CR133: 0 | CS133: 0 | CT133: 0 | CU133: 0 | CV133: 0 | CW133: 0 | CX133: 0 | CY133: 0 | CZ133: 0 | DA133: 0 | DB133: 0 | DC133: 0 | DD133: 0 | DE133: 0 | DF133: 0 | DG133: 0 | DH133: 0 | DI133: 0 | DJ133: 0 | DK133: 0 | DL133: 0 | DM133: 0 | DN133: 0 | DO133: 0 | DP133: 0 | DQ133: 0 | DR133: 0 | DS133: 0 | DT133: 0 | DU133: 0 | DV133: 0 | DW133: 0 | DX133: 0 | DY133: 0 | DZ133: 0 | EA133: 0 | EB133: 0 | EC133: 0 | ED133: 0 | EE133: 0 | EF133: 0 | EG133: 0 | EH133: 0 | EI133: 0 | EJ133: 0 | EK133: 0 | EL133: 0 | EM133: 0 | EN133: 0 | EO133: 0 | EP133: 0 | EQ133: 0 | ER133: 0 | ES133: 0 | ET133: 0 | EU133: 0 | EV133: 0 | EW133: 0 | EX133: 0 | EY133: 0 | EZ133: 0 | FA133: 0 | FB133: 0 | FC133: 0 | FD133: 0 | FE133: 0 | FF133: 0 | FG133: 0 | FH133: 0 | FI133: 0 | FJ133: 0 | FK133: 0 | FL133: 0 | FM133: 0 | FN133: 0 | FO133: 0 | FP133: 0 | FQ133: 0 | FR133: 0 | FS133: 0 | FT133: 0 | FU133: 0 | FV133: 0 | FW133: 0 | FX133: 0 | FY133: 0 | FZ133: 0 | GA133: 0 | GB133: 0 | GC133: 0 | GD133: 0 | GE133: 0 | GF133: 0 | GG133: 0 | GH133: 0 | GI133: 0 | GJ133: 0 | GK133: 0 | GL133: 0 | GM133: 0 | GN133: 0 | GO133: 0 | GP133: 0 | GQ133: 0 | GR133: 0 | GS133: 0 | GT133: 0 | GU133: 0 | GV133: 0 | GW133: 0 | GX133: 0 | GY133: 0 | GZ133: 0 | HA133: 0 | HB133: 0 | HC133: 0 | HD133: 0 | HE133: 0 | HF133: 0 | HG133: 0 | HH133: 0 | HI133: 0 | HJ133: 0 | HK133: 0 | HL133: 0 | HM133: 0 | HN133: 0 | HO133: 0 | HP133: 0 | HQ133: 0 | HR133: 0 | HS133: 0 | HT133: 0 | HU133: 0 | HV133: 0 | HW133: 0
A134: 3 | B134: 0 | C134: 0 | D134: 0 | E134: 0 | F134: 0 | G134: 0 | H134: 0 | I134: 0 | J134: 38 | K134: 22 | L134: 20 | M134: 13 | N134: 24 | O134: 12 | P134: 0 | Q134: 0 | R134: 43 | S134: 29 | T134: 37 | U134: 32 | V134: 34 | W134: 28 | X134: 20 | Y134: 0 | Z134: 18 | AA134: 24 | AB134: 22 | AC134: 13 | AD134: 10 | AE134: 10 | AF134: 20 | AG134: 0 | AH134: 13 | AI134: 19 | AJ134: 6 | AK134: 8 | AL134: 12 | AM134: 5 | AN134: 6 | AO134: 0 | AP134: 17 | AQ134: 6 | AR134: 10 | AS134: 10 | AT134: 6 | AU134: 6 | AV134: 4 | AW134: 0 | AX134: 0 | AY134: 0 | AZ134: 0 | BA134: 0 | BB134: 0 | BC134: 0 | BD134: 0 | BE134: 0 | BF134: 7 | BG134: 1 | BH134: 0 | BI134: 0 | BJ134: 0 | BK134: 0 | BL134: 0 | BM134: 0 | BN134: 8 | BO134: 1 | BP134: 0 | BQ134: 0 | BR134: 0 | BS134: 0 | BT134: 0 | BU134: 0 | BV134: 28 | BW134: 0 | BX134: 0 | BY134: 0 | BZ134: 0 | CA134: 0 | CB134: 0 | CC134: 0 | CD134: 0 | CE134: 0 | CF134: 0 | CG134: 0 | CH134: 0 | CI134: 0 | CJ134: 0 | CK134: 2 | CL134: 0 | CM134: 0 | CN134: 0 | CO134: 0 | CP134: 5 | CQ134: 1 | CR134: 1 | CS134: 0 | CT134: 0 | CU134: 0 | CV134: 0 | CW134: 1 | CX134: 0 | CY134: 0 | CZ134: 0 | DA134: 0 | DB134: 0 | DC134: 0 | DD134: 0 | DE134: 0 | DF134: 0 | DG134: 0 | DH134: 0 | DI134: 0 | DJ134: 0 | DK134: 0 | DL134: 0 | DM134: 0 | DN134: 0 | DO134: 0 | DP134: 0 | DQ134: 0 | DR134: 0 | DS134: 0 | DT134: 2 | DU134: 0 | DV134: 0 | DW134: 0 | DX134: 0 | DY134: 0 | DZ134: 3 | EA134: 0 | EB134: 0 | EC134: 0 | ED134: 0 | EE134: 0 | EF134: 0 | EG134: 0 | EH134: 0 | EI134: 0 | EJ134: 0 | EK134: 0 | EL134: 0 | EM134: 0 | EN134: 0 | EO134: 0 | EP134: 0 | EQ134: 0 | ER134: 0 | ES134: 0 | ET134: 0 | EU134: 0 | EV134: 0 | EW134: 0 | EX134: 0 | EY134: 0 | EZ134: 0 | FA134: 0 | FB134: 0 | FC134: 0 | FD134: 0 | FE134: 0 | FF134: 0 | FG134: 0 | FH134: 0 | FI134: 0 | FJ134: 0 | FK134: 0 | FL134: 0 | FM134: 0 | FN134: 0 | FO134: 0 | FP134: 0 | FQ134: 0 | FR134: 0 | FS134: 0 | FT134: 0 | FU134: 0 | FV134: 0 | FW134: 0 | FX134: 0 | FY134: 0 | FZ134: 0 | GA134: 0 | GB134: 0 | GC134: 0 | GD134: 0 | GE134: 0 | GF134: 0 | GG134: 0 | GH134: 0 | GI134: 0 | GJ134: 0 | GK134: 0 | GL134: 0 | GM134: 0 | GN134: 0 | GO134: 0 | GP134: 0 | GQ134: 0 | GR134: 0 | GS134: 0 | GT134: 0 | GU134: 0 | GV134: 0 | GW134: 0 | GX134: 0 | GY134: 0 | GZ134: 0 | HA134: 0 | HB134: 0 | HC134: 0 | HD134: 0 | HE134: 0 | HF134: 0 | HG134: 0 | HH134: 0 | HI134: 0 | HJ134: 0 | HK134: 0 | HL134: 0 | HM134: 0 | HN134: 0 | HO134: 0 | HP134: 0 | HQ134: 0 | HR134: 0 | HS134: 0 | HT134: 0 | HU134: 0 | HV134: 0 | HW134: 0
A135: 1 | B135: 0 | C135: 0 | D135: 0 | E135: 0 | F135: 0 | G135: 0 | H135: 0 | I135: 0 | J135: 19 | K135: 18 | L135: 24 | M135: 21 | N135: 11 | O135: 9 | P135: 0 | Q135: 0 | R135: 30 | S135: 21 | T135: 22 | U135: 33 | V135: 29 | W135: 28 | X135: 20 | Y135: 0 | Z135: 17 | AA135: 14 | AB135: 14 | AC135: 7 | AD135: 12 | AE135: 20 | AF135: 13 | AG135: 0 | AH135: 7 | AI135: 7 | AJ135: 11 | AK135: 13 | AL135: 7 | AM135: 8 | AN135: 9 | AO135: 0 | AP135: 12 | AQ135: 10 | AR135: 6 | AS135: 4 | AT135: 6 | AU135: 6 | AV135: 6 | AW135: 0 | AX135: 1 | AY135: 0 | AZ135: 0 | BA135: 0 | BB135: 0 | BC135: 0 | BD135: 0 | BE135: 0 | BF135: 2 | BG135: 0 | BH135: 0 | BI135: 0 | BJ135: 0 | BK135: 0 | BL135: 0 | BM135: 0 | BN135: 2 | BO135: 0 | BP135: 0 | BQ135: 0 | BR135: 0 | BS135: 0 | BT135: 0 | BU135: 0 | BV135: 26 | BW135: 0 | BX135: 0 | BY135: 0 | BZ135: 1 | CA135: 0 | CB135: 0 | CC135: 0 | CD135: 0 | CE135: 0 | CF135: 0 | CG135: 0 | CH135: 0 | CI135: 0 | CJ135: 10 | CK135: 0 | CL135: 0 | CM135: 0 | CN135: 0 | CO135: 0 | CP135: 7 | CQ135: 0 | CR135: 0 | CS135: 0 | CT135: 0 | CU135: 0 | CV135: 5 | CW135: 0 | CX135: 0 | CY135: 0 | CZ135: 0 | DA135: 0 | DB135: 3 | DC135: 0 | DD135: 0 | DE135: 0 | DF135: 0 | DG135: 0 | DH135: 1 | DI135: 0 | DJ135: 0 | DK135: 0 | DL135: 0 | DM135: 0 | DN135: 0 | DO135: 0 | DP135: 0 | DQ135: 0 | DR135: 0 | DS135: 0 | DT135: 0 | DU135: 0 | DV135: 0 | DW135: 0 | DX135: 0 | DY135: 0 | DZ135: 0 | EA135: 0 | EB135: 0 | EC135: 0 | ED135: 0 | EE135: 0 | EF135: 0 | EG135: 0 | EH135: 0 | EI135: 0 | EJ135: 0 | EK135: 0 | EL135: 0 | EM135: 0 | EN135: 0 | EO135: 0 | EP135: 0 | EQ135: 0 | ER135: 0 | ES135: 0 | ET135: 0 | EU135: 0 | EV135: 0 | EW135: 0 | EX135: 0 | EY135: 0 | EZ135: 0 | FA135: 0 | FB135: 0 | FC135: 0 | FD135: 0 | FE135: 0 | FF135: 0 | FG135: 0 | FH135: 0 | FI135: 0 | FJ135: 0 | FK135: 0 | FL135: 0 | FM135: 0 | FN135: 0 | FO135: 0 | FP135: 0 | FQ135: 0 | FR135: 0 | FS135: 0 | FT135: 0 | FU135: 0 | FV135: 0 | FW135: 0 | FX135: 0 | FY135: 0 | FZ135: 0 | GA135: 0 | GB135: 0 | GC135: 0 | GD135: 0 | GE135: 0 | GF135: 0 | GG135: 0 | GH135: 0 | GI135: 0 | GJ135: 0 | GK135: 0 | GL135: 0 | GM135: 0 | GN135: 0 | GO135: 0 | GP135: 0 | GQ135: 0 | GR135: 0 | GS135: 0 | GT135: 0 | GU135: 0 | GV135: 0 | GW135: 0 | GX135: 0 | GY135: 0 | GZ135: 0 | HA135: 0 | HB135: 0 | HC135: 0 | HD135: 0 | HE135: 0 | HF135: 0 | HG135: 0 | HH135: 0 | HI135: 0 | HJ135: 0 | HK135: 0 | HL135: 0 | HM135: 0 | HN135: 0 | HO135: 0 | HP135: 0 | HQ135: 0 | HR135: 0 | HS135: 0 | HT135: 0 | HU135: 0 | HV135: 0 | HW135: 0
A136: 2 | B136: 0 | C136: 0 | D136: 0 | E136: 0 | F136: 0 | G136: 0 | H136: 0 | I136: 0 | J136: 28 | K136: 18 | L136: 16 | M136: 26 | N136: 15 | O136: 5 | P136: 0 | Q136: 0 | R136: 36 | S136: 36 | T136: 21 | U136: 36 | V136: 15 | W136: 24 | X136: 31 | Y136: 0 | Z136: 20 | AA136: 17 | AB136: 12 | AC136: 9 | AD136: 8 | AE136: 19 | AF136: 10 | AG136: 0 | AH136: 13 | AI136: 10 | AJ136: 6 | AK136: 8 | AL136: 5 | AM136: 4 | AN136: 5 | AO136: 0 | AP136: 6 | AQ136: 8 | AR136: 9 | AS136: 4 | AT136: 5 | AU136: 6 | AV136: 5 | AW136: 0 | AX136: 0 | AY136: 0 | AZ136: 0 | BA136: 0 | BB136: 0 | BC136: 0 | BD136: 0 | BE136: 0 | BF136: 4 | BG136: 2 | BH136: 0 | BI136: 0 | BJ136: 0 | BK136: 0 | BL136: 0 | BM136: 0 | BN136: 4 | BO136: 2 | BP136: 0 | BQ136: 0 | BR136: 0 | BS136: 0 | BT136: 0 | BU136: 0 | BV136: 30 | BW136: 1 | BX136: 0 | BY136: 0 | BZ136: 0 | CA136: 0 | CB136: 0 | CC136: 0 | CD136: 0 | CE136: 0 | CF136: 0 | CG136: 0 | CH136: 0 | CI136: 0 | CJ136: 3 | CK136: 1 | CL136: 0 | CM136: 0 | CN136: 0 | CO136: 0 | CP136: 8 | CQ136: 1 | CR136: 1 | CS136: 0 | CT136: 0 | CU136: 0 | CV136: 1 | CW136: 2 | CX136: 0 | CY136: 0 | CZ136: 0 | DA136: 0 | DB136: 2 | DC136: 0 | DD136: 0 | DE136: 0 | DF136: 0 | DG136: 0 | DH136: 0 | DI136: 0 | DJ136: 0 | DK136: 0 | DL136: 0 | DM136: 0 | DN136: 0 | DO136: 0 | DP136: 0 | DQ136: 0 | DR136: 0 | DS136: 0 | DT136: 0 | DU136: 0 | DV136: 0 | DW136: 0 | DX136: 0 | DY136: 0 | DZ136: 1 | EA136: 1 | EB136: 0 | EC136: 0 | ED136: 0 | EE136: 0 | EF136: 0 | EG136: 1 | EH136: 0 | EI136: 0 | EJ136: 0 | EK136: 0 | EL136: 0 | EM136: 0 | EN136: 0 | EO136: 0 | EP136: 0 | EQ136: 0 | ER136: 0 | ES136: 0 | ET136: 0 | EU136: 0 | EV136: 0 | EW136: 0 | EX136: 0 | EY136: 0 | EZ136: 0 | FA136: 0 | FB136: 0 | FC136: 0 | FD136: 0 | FE136: 0 | FF136: 0 | FG136: 0 | FH136: 0 | FI136: 0 | FJ136: 0 | FK136: 0 | FL136: 0 | FM136: 0 | FN136: 0 | FO136: 0 | FP136: 0 | FQ136: 0 | FR136: 0 | FS136: 0 | FT136: 0 | FU136: 0 | FV136: 0 | FW136: 0 | FX136: 0 | FY136: 0 | FZ136: 0 | GA136: 0 | GB136: 0 | GC136: 0 | GD136: 0 | GE136: 0 | GF136: 0 | GG136: 0 | GH136: 0 | GI136: 0 | GJ136: 0 | GK136: 0 | GL136: 0 | GM136: 0 | GN136: 0 | GO136: 0 | GP136: 0 | GQ136: 0 | GR136: 0 | GS136: 0 | GT136: 0 | GU136: 0 | GV136: 0 | GW136: 0 | GX136: 0 | GY136: 0 | GZ136: 0 | HA136: 0 | HB136: 0 | HC136: 0 | HD136: 0 | HE136: 0 | HF136: 0 | HG136: 0 | HH136: 0 | HI136: 0 | HJ136: 0 | HK136: 0 | HL136: 0 | HM136: 0 | HN136: 0 | HO136: 0 | HP136: 0 | HQ136: 0 | HR136: 0 | HS136: 0 | HT136: 0 | HU136: 0 | HV136: 0 | HW136: 0
A137: T | B137: 0 | C137: 0 | D137: 0 | E137: 0 | F137: 0 | G137: 0 | H137: 0 | I137: 0 | J137: 139 | K137: 102 | L137: 109 | M137: 90 | N137: 69 | O137: 48 | P137: 0 | Q137: 0 | R137: 168 | S137: 140 | T137: 156 | U137: 160 | V137: 153 | W137: 125 | X137: 114 | Y137: 0 | Z137: 97 | AA137: 89 | AB137: 86 | AC137: 69 | AD137: 62 | AE137: 71 | AF137: 61 | AG137: 0 | AH137: 59 | AI137: 56 | AJ137: 53 | AK137: 49 | AL137: 39 | AM137: 25 | AN137: 32 | AO137: 0 | AP137: 63 | AQ137: 46 | AR137: 43 | AS137: 31 | AT137: 32 | AU137: 29 | AV137: 28 | AW137: 0 | AX137: 5 | AY137: 0 | AZ137: 0 | BA137: 0 | BB137: 0 | BC137: 0 | BD137: 0 | BE137: 0 | BF137: 89 | BG137: 30 | BH137: 1 | BI137: 0 | BJ137: 0 | BK137: 0 | BL137: 0 | BM137: 0 | BN137: 93 | BO137: 30 | BP137: 2 | BQ137: 2 | BR137: 0 | BS137: 0 | BT137: 0 | BU137: 0 | BV137: 155 | BW137: 2 | BX137: 0 | BY137: 0 | BZ137: 2 | CA137: 1 | CB137: 0 | CC137: 0 | CD137: 0 | CE137: 0 | CF137: 0 | CG137: 0 | CH137: 0 | CI137: 0 | CJ137: 13 | CK137: 8 | CL137: 2 | CM137: 0 | CN137: 0 | CO137: 0 | CP137: 25 | CQ137: 8 | CR137: 3 | CS137: 1 | CT137: 0 | CU137: 0 | CV137: 6 | CW137: 3 | CX137: 0 | CY137: 0 | CZ137: 0 | DA137: 0 | DB137: 6 | DC137: 0 | DD137: 0 | DE137: 0 | DF137: 0 | DG137: 0 | DH137: 2 | DI137: 1 | DJ137: 0 | DK137: 0 | DL137: 0 | DM137: 0 | DN137: 0 | DO137: 0 | DP137: 0 | DQ137: 0 | DR137: 0 | DS137: 0 | DT137: 3 | DU137: 0 | DV137: 0 | DW137: 0 | DX137: 0 | DY137: 0 | DZ137: 5 | EA137: 1 | EB137: 0 | EC137: 0 | ED137: 0 | EE137: 0 | EF137: 0 | EG137: 1 | EH137: 0 | EI137: 0 | EJ137: 0 | EK137: 0 | EL137: 0 | EM137: 0 | EN137: 0 | EO137: 0 | EP137: 0 | EQ137: 0 | ER137: 0 | ES137: 0 | ET137: 0 | EU137: 0 | EV137: 0 | EW137: 0 | EX137: 0 | EY137: 0 | EZ137: 0 | FA137: 0 | FB137: 0 | FC137: 0 | FD137: 0 | FE137: 0 | FF137: 0 | FG137: 0 | FH137: 0 | FI137: 0 | FJ137: 0 | FK137: 0 | FL137: 0 | FM137: 0 | FN137: 0 | FO137: 0 | FP137: 0 | FQ137: 0 | FR137: 0 | FS137: 0 | FT137: 0 | FU137: 0 | FV137: 0 | FW137: 0 | FX137: 0 | FY137: 0 | FZ137: 0 | GA137: 0 | GB137: 0 | GC137: 0 | GD137: 0 | GE137: 0 | GF137: 0 | GG137: 0 | GH137: 0 | GI137: 0 | GJ137: 0 | GK137: 0 | GL137: 0 | GM137: 0 | GN137: 0 | GO137: 0 | GP137: 0 | GQ137: 0 | GR137: 0 | GS137: 0 | GT137: 0 | GU137: 0 | GV137: 0 | GW137: 0 | GX137: 0 | GY137: 0 | GZ137: 0 | HA137: 0 | HB137: 0 | HC137: 0 | HD137: 0 | HE137: 0 | HF137: 0 | HG137: 0 | HH137: 0 | HI137: 0 | HJ137: 0 | HK137: 0 | HL137: 0 | HM137: 0 | HN137: 0 | HO137: 0 | HP137: 0 | HQ137: 0 | HR137: 0 | HS137: 0 | HT137: 0 | HU137: 0 | HV137: 0 | HW137: 0
A150: TOTAL
A151: =COUNT(A132:A148) -> 5 | B151: =SUM(B132:B148) -> 0 | C151: =SUM(C132:C148) -> 0 | D151: 0 | E151: 0 | F151: 0 | G151: 0 | H151: 0 | I151: 0 | J151: 278 | K151: 204 | L151: 218 | M151: 180 | N151: 138 | O151: 96 | P151: 0 | Q151: 0 | R151: 336 | S151: 280 | T151: 312 | U151: 320 | V151: 306 | W151: 250 | X151: 228 | Y151: 0 | Z151: 194 | AA151: 178 | AB151: 172 | AC151: 138 | AD151: 124 | AE151: 142 | AF151: 122 | AG151: 0 | AH151: 118 | AI151: 112 | AJ151: 106 | AK151: 98 | AL151: 78 | AM151: 50 | AN151: 64 | AO151: 0 | AP151: 126 | AQ151: 92 | AR151: 86 | AS151: 62 | AT151: 64 | AU151: 58 | AV151: 56 | AW151: 0 | AX151: 10 | AY151: 0 | AZ151: 0 | BA151: 0 | BB151: 0 | BC151: 0 | BD151: 0 | BE151: 0 | BF151: 178 | BG151: 60 | BH151: 2 | BI151: 0 | BJ151: 0 | BK151: 0 | BL151: 0 | BM151: 0 | BN151: 186 | BO151: =SUM(BO132:BO148) -> 60 | BP151: 4 | BQ151: 4 | BR151: 0 | BS151: 0 | BT151: 0 | BU151: 0 | BV151: 310 | BW151: 4 | BX151: 0 | BY151: 0 | BZ151: 4 | CA151: 2 | CB151: 0 | CC151: 0 | CD151: 0 | CE151: 0 | CF151: 0 | CG151: 0 | CH151: 0 | CI151: 0 | CJ151: 26 | CK151: 16 | CL151: 4 | CM151: 0 | CN151: 0 | CO151: 0 | CP151: 50 | CQ151: 16 | CR151: 6 | CS151: 2 | CT151: 0 | CU151: 0 | CV151: 12 | CW151: 6 | CX151: 0 | CY151: 0 | CZ151: 0 | DA151: 0 | DB151: 12 | DC151: 0 | DD151: 0 | DE151: 0 | DF151: 0 | DG151: 0 | DH151: 4 | DI151: 2 | DJ151: 0 | DK151: 0 | DL151: 0 | DM151: 0 | DN151: 0 | DO151: 0 | DP151: 0 | DQ151: 0 | DR151: 0 | DS151: 0 | DT151: 6 | DU151: 0 | DV151: 0 | DW151: 0 | DX151: 0 | DY151: 0 | DZ151: 10 | EA151: =SUM(EA132:EA148) -> 2 | EB151: 0 | EC151: 0 | ED151: 0 | EE151: 0 | EF151: 0 | EG151: 2 | EH151: 0 | EI151: 0 | EJ151: 0 | EK151: 0 | EL151: 0 | EM151: 0 | EN151: 0 | EO151: 0 | EP151: 0 | EQ151: 0 | ER151: 0 | ES151: 0 | ET151: 0 | EU151: 0 | EV151: 0 | EW151: 0 | EX151: 0 | EY151: 0 | EZ151: 0 | FA151: 0 | FB151: 0 | FC151: 0 | FD151: 0 | FE151: 0 | FF151: 0 | FG151: 0 | FH151: 0 | FI151: 0 | FJ151: 0 | FK151: 0 | FL151: 0 | FM151: 0 | FN151: 0 | FO151: 0 | FP151: 0 | FQ151: 0 | FR151: 0 | FS151: 0 | FT151: 0 | FU151: 0 | FV151: 0 | FW151: 0 | FX151: 0 | FY151: 0 | FZ151: 0 | GA151: 0 | GB151: 0 | GC151: 0 | GD151: 0 | GE151: 0 | GF151: 0 | GG151: 0 | GH151: 0 | GI151: 0 | GJ151: 0 | GK151: 0 | GL151: 0 | GM151: =SUM(GM132:GM148) -> 0 | GN151: 0 | GO151: 0 | GP151: 0 | GQ151: 0 | GR151: 0 | GS151: 0 | GT151: 0 | GU151: 0 | GV151: 0 | GW151: 0 | GX151: 0 | GY151: 0 | GZ151: 0 | HA151: 0 | HB151: 0 | HC151: 0 | HD151: 0 | HE151: 0 | HF151: 0 | HG151: 0 | HH151: 0 | HI151: 0 | HJ151: 0 | HK151: 0 | HL151: 0 | HM151: 0 | HN151: 0 | HO151: 0 | HP151: 0 | HQ151: 0 | HR151: 0 | HS151: 0 | HT151: 0 | HU151: 0 | HV151: 0 | HW151: 0
A152: =CONCATENATE(A132,"-",A133,"-",A134,"-",A135,"-",A136,"-",A137,"-",A138,"-",A139,"-",A140,"-",A141,"-",A142,"-",A143) -> 4-5-3-1-2-T------
B153: BAS001 | C153: BAS002 | D153: BAS003 | E153: BAS004 | F153: BAS005 | G153: BAS006 | H153: BAS007 | I153: BAS008 | J153: BAS009 | K153: BAS010 | L153: BAS011 | M153: BAS012 | N153: BAS013 | O153: BAS014 | P153: BAS015 | Q153: BAS016 | R153: BAS017 | S153: BAS018 | T153: BAS019 | U153: BAS020 | V153: BAS021 | W153: BAS022 | X153: BAS023 | Y153: BAS024 | Z153: BAS025 | AA153: BAS026 | AB153: BAS027 | AC153: BAS028 | AD153: BAS029 | AE153: BAS030 | AF153: BAS031 | AG153: BAS032 | AH153: BAS033 | AI153: BAS034 | AJ153: BAS035 | AK153: BAS036 | AL153: BAS037 | AM153: BAS038 | AN153: BAS039 | AO153: BAS040 | AP153: BAS041 | AQ153: BAS042 | AR153: BAS043 | AS153: BAS044 | AT153: BAS045 | AU153: BAS046 | AV153: BAS047 | AW153: BAS048 | AX153: BAS049 | AY153: BAS050 | AZ153: BAS051 | BA153: BAS052 | BB153: BAS053 | BC153: BAS054 | BD153: BAS055 | BE153: BAS056 | BF153: BAS057 | BG153: BAS058 | BH153: BAS059 | BI153: BAS060 | BJ153: BAS061 | BK153: BAS062 | BL153: BAS063 | BM153: BAS064 | BN153: BAS065 | BO153: BAS066 | BP153: BAS067 | BQ153: BAS068 | BR153: BAS069 | BS153: BAS070 | BT153: BAS071 | BU153: BAS072 | BV153: BAS073 | BW153: BAS074 | BX153: BAS075 | BY153: BAS076 | BZ153: BAS077 | CA153: BAS078 | CB153: BAS079 | CC153: BAS080 | CD153: BAS081 | CE153: BAS082 | CF153: BAS083 | CG153: BAS084 | CH153: BAS085 | CI153: BAS086 | CJ153: BAS087 | CK153: BAS088 | CL153: BAS089 | CM153: BAS090 | CN153: BAS091 | CO153: BAS092 | CP153: BAS093 | CQ153: BAS094 | CR153: BAS095 | CS153: BAS096 | CT153: BAS097 | CU153: BAS098 | CV153: BAS099 | CW153: BAS100 | CX153: BAS101 | CY153: BAS102 | CZ153: BAS103 | DA153: BAS104 | DB153: BAS105 | DC153: BAS106 | DD153: BAS107 | DE153: BAS108 | DF153: BAS109 | DG153: BAS110 | DH153: BAS111 | DI153: BAS112 | DJ153: BAS113 | DK153: BAS114 | DL153: BAS115 | DM153: BAS116 | DN153: BAS117 | DO153: BAS118 | DP153: BAS119 | DQ153: BAS120 | DR153: BAS121 | DS153: BAS122 | DT153: BAS123 | DU153: BAS124 | DV153: BAS125 | DW153: BAS126 | DX153: BAS127 | DY153: BAS128 | DZ153: BAS129 | EA153: BAS130 | EB153: BAS131 | EC153: BAS132 | ED153: BAS133 | EE153: BAS134 | EF153: BAS135 | EG153: BAS136 | EH153: BAS137 | EI153: BAS138 | EJ153: BAS139 | EK153: BAS140 | EL153: BAS141 | EM153: BAS142 | EN153: BAS143 | EO153: BAS144 | EP153: BAS145 | EQ153: BAS146 | ER153: BAS147 | ES153: BAS148 | ET153: BAS149 | EU153: BAS150 | EV153: BAS151 | EW153: BAS152 | EX153: BAS153 | EY153: BAS154 | EZ153: BAS155 | FA153: BAS156 | FB153: BAS157 | FC153: BAS158 | FD153: BAS159 | FE153: BAS160 | FF153: BAS161 | FG153: BAS162 | FH153: BAS163 | FI153: BAS164 | FJ153: BAS165 | FK153: BAS166 | FL153: BAS167 | FM153: BAS168 | FN153: BAS169 | FO153: BAS170 | FP153: BAS171 | FQ153: BAS172 | FR153: BAS173 | FS153: BAS174 | FT153: BAS175 | FU153: BAS176 | FV153: BAS177 | FW153: BAS178 | FX153: BAS179 | FY153: BAS180 | FZ153: BAS181 | GA153: BAS182 | GB153: BAS183 | GC153: BAS184 | GD153: BAS185 | GE153: BAS186 | GF153: BAS187 | GG153: BAS188 | GH153: BAS189 | GI153: BAS190 | GJ153: BAS191 | GK153: BAS192 | GL153: BAS193 | GM153: BAS194 | GN153: BAS195 | GO153: BAS196 | GP153: BAS197 | GQ153: BAS198 | GR153: BAS199 | GS153: BAS200 | GT153: BAS201 | GU153: BAS202 | GV153: BAS203 | GW153: BAS204 | GX153: BAS205 | GY153: BAS206 | GZ153: BAS207 | HA153: BAS208 | HB153: BAS209 | HC153: BAS210 | HD153: BAS211 | HE153: BAS212 | HF153: BAS213 | HG153: BAS214 | HH153: BAS215 | HI153: BAS216 | HJ153: BAS217 | HK153: BAS218 | HL153: BAS219 | HM153: BAS220 | HN153: BAS221 | HO153: BAS222 | HP153: BAS223 | HQ153: BAS224 | HR153: BAS225 | HS153: BAS226 | HT153: BAS227 | HU153: BAS228 | HV153: BAS229 | HW153: BAS230
B154: =IF(B153=B131,"SI","NO") -> SI | C154: =IF(C153=C131,"SI","NO") -> SI | D154: SI | E154: SI | F154: SI | G154: SI | H154: SI | I154: SI | J154: SI | K154: SI | L154: SI | M154: SI | N154: SI | O154: SI | P154: SI | Q154: SI | R154: SI | S154: SI | T154: SI | U154: SI | V154: SI | W154: SI | X154: SI | Y154: SI | Z154: SI | AA154: SI | AB154: SI | AC154: SI | AD154: SI | AE154: SI | AF154: SI | AG154: SI | AH154: SI | AI154: SI | AJ154: SI | AK154: SI | AL154: SI | AM154: SI | AN154: SI | AO154: SI | AP154: SI | AQ154: SI | AR154: SI | AS154: SI | AT154: SI | AU154: SI | AV154: SI | AW154: SI | AX154: SI | AY154: SI | AZ154: SI | BA154: SI | BB154: SI | BC154: SI | BD154: SI | BE154: SI | BF154: SI | BG154: SI | BH154: SI | BI154: SI | BJ154: SI | BK154: SI | BL154: SI | BM154: SI | BN154: SI | BO154: =IF(BO153=BO131,"SI","NO") -> SI | BP154: SI | BQ154: SI | BR154: SI | BS154: SI | BT154: SI | BU154: SI | BV154: SI | BW154: SI | BX154: SI | BY154: SI | BZ154: SI | CA154: SI | CB154: SI | CC154: SI | CD154: SI | CE154: SI | CF154: SI | CG154: SI | CH154: SI | CI154: SI | CJ154: SI | CK154: SI | CL154: SI | CM154: SI | CN154: SI | CO154: SI | CP154: SI | CQ154: SI | CR154: SI | CS154: SI | CT154: SI | CU154: SI | CV154: SI | CW154: SI | CX154: SI | CY154: SI | CZ154: SI | DA154: SI | DB154: SI | DC154: SI | DD154: SI | DE154: SI | DF154: SI | DG154: SI | DH154: SI | DI154: SI | DJ154: SI | DK154: SI | DL154: SI | DM154: SI | DN154: SI | DO154: SI | DP154: SI | DQ154: SI | DR154: SI | DS154: SI | DT154: SI | DU154: SI | DV154: SI | DW154: SI | DX154: SI | DY154: SI | DZ154: SI | EA154: =IF(EA153=EA131,"SI","NO") -> SI | EB154: SI | EC154: SI | ED154: SI | EE154: SI | EF154: SI | EG154: SI | EH154: SI | EI154: SI | EJ154: SI | EK154: SI | EL154: SI | EM154: SI | EN154: SI | EO154: SI | EP154: SI | EQ154: SI | ER154: SI | ES154: SI | ET154: SI | EU154: SI | EV154: SI | EW154: SI | EX154: SI | EY154: SI | EZ154: SI | FA154: SI | FB154: SI | FC154: SI | FD154: SI | FE154: SI | FF154: SI | FG154: SI | FH154: SI | FI154: SI | FJ154: SI | FK154: SI | FL154: SI | FM154: SI | FN154: SI | FO154: SI | FP154: SI | FQ154: SI | FR154: SI | FS154: SI | FT154: SI | FU154: SI | FV154: SI | FW154: SI | FX154: SI | FY154: SI | FZ154: SI | GA154: SI | GB154: SI | GC154: SI | GD154: SI | GE154: SI | GF154: SI | GG154: SI | GH154: SI | GI154: SI | GJ154: SI | GK154: SI | GL154: SI | GM154: =IF(GM153=GM131,"SI","NO") -> SI | GN154: SI | GO154: SI | GP154: SI | GQ154: SI | GR154: SI | GS154: SI | GT154: SI | GU154: SI | GV154: SI | GW154: SI | GX154: SI | GY154: SI | GZ154: SI | HA154: SI | HB154: SI | HC154: SI | HD154: SI | HE154: SI | HF154: SI | HG154: SI | HH154: SI | HI154: SI | HJ154: SI | HK154: SI | HL154: SI | HM154: SI | HN154: SI | HO154: SI | HP154: SI | HQ154: SI | HR154: SI | HS154: SI | HT154: SI | HU154: SI | HV154: SI | HW154: SI
A159: ESANS_04
A160: anno | B160: 2025
A161: cod_red | B161: (Todas)
A162: codmic | B162: (Todas)
A163: cod_prov | B163: (Todas)
A164: coddist | B164: (Todas)
A165: cod_estab | B165: (Todas)
A166: cod_eje | B166: (Todas)
B168: Valores
A169: Etiquetas de fila | B169: BAS001 | C169: BAS002 | D169: BAS003 | E169: BAS004 | F169: BAS005 | G169: BAS006 | H169: BAS007 | I169: BAS008 | J169: BAS009 | K169: BAS010 | L169: BAS011 | M169: BAS012 | N169: BAS013 | O169: BAS014 | P169: BAS015 | Q169: BAS016 | R169: BAS017 | S169: BAS018 | T169: BAS019 | U169: BAS020 | V169: BAS021 | W169: BAS022 | X169: BAS023 | Y169: BAS024 | Z169: BAS025 | AA169: BAS026 | AB169: BAS027 | AC169: BAS028 | AD169: BAS029 | AE169: BAS030 | AF169: BAS031 | AG169: BAS032 | AH169: BAS033 | AI169: BAS034 | AJ169: BAS035 | AK169: BAS036 | AL169: BAS037 | AM169: BAS038 | AN169: BAS039 | AO169: BAS040 | AP169: BAS041 | AQ169: BAS042 | AR169: BAS043 | AS169: BAS044 | AT169: BAS045 | AU169: BAS046 | AV169: BAS047 | AW169: BAS048 | AX169: BAS049 | AY169: BAS050 | AZ169: BAS051 | BA169: BAS052 | BB169: BAS053 | BC169: BAS054 | BD169: BAS055 | BE169: BAS056 | BF169: BAS057 | BG169: BAS058 | BH169: BAS059 | BI169: BAS060 | BJ169: BAS061 | BK169: BAS062 | BL169: BAS063 | BM169: BAS064 | BN169: BAS065 | BO169: BAS066 | BP169: BAS067 | BQ169: BAS068 | BR169: BAS069 | BS169: BAS070 | BT169: BAS071 | BU169: BAS072 | BV169: BAS073 | BW169: BAS074 | BX169: BAS075 | BY169: BAS076 | BZ169: BAS077 | CA169: BAS078 | CB169: BAS079 | CC169: BAS080 | CD169: BAS081 | CE169: BAS082 | CF169: BAS083 | CG169: BAS084 | CH169: BAS085 | CI169: BAS086 | CJ169: BAS087 | CK169: BAS088 | CL169: BAS089 | CM169: BAS090 | CN169: BAS091 | CO169: BAS092 | CP169: BAS093 | CQ169: BAS094 | CR169: BAS095 | CS169: BAS096 | CT169: BAS097 | CU169: BAS098 | CV169: BAS099 | CW169: BAS100 | CX169: BAS101 | CY169: BAS102 | CZ169: BAS103 | DA169: BAS104 | DB169: BAS105 | DC169: BAS106 | DD169: BAS107 | DE169: BAS108 | DF169: BAS109 | DG169: BAS110 | DH169: BAS111 | DI169: BAS112 | DJ169: BAS113 | DK169: BAS114 | DL169: BAS115 | DM169: BAS116 | DN169: BAS117 | DO169: BAS118 | DP169: BAS119 | DQ169: BAS120 | DR169: BAS121 | DS169: BAS122 | DT169: BAS123 | DU169: BAS124 | DV169: BAS125 | DW169: BAS126 | DX169: BAS127 | DY169: BAS128 | DZ169: BAS129 | EA169: BAS130 | EB169: BAS131 | EC169: BAS132 | ED169: BAS133 | EE169: BAS134 | EF169: BAS135 | EG169: BAS136 | EH169: BAS137 | EI169: BAS138 | EJ169: BAS139 | EK169: BAS140 | EL169: BAS141 | EM169: BAS142 | EN169: BAS143 | EO169: BAS144 | EP169: BAS145 | EQ169: BAS146 | ER169: BAS147 | ES169: BAS148 | ET169: BAS149 | EU169: BAS150 | EV169: BAS151 | EW169: BAS152 | EX169: BAS153 | EY169: BAS154 | EZ169: BAS155 | FA169: BAS156 | FB169: BAS157 | FC169: BAS158 | FD169: BAS159 | FE169: BAS160 | FF169: BAS161 | FG169: BAS162 | FH169: BAS163 | FI169: BAS164 | FJ169: BAS165 | FK169: BAS166 | FL169: BAS167 | FM169: BAS168 | FN169: BAS169 | FO169: BAS170 | FP169: BAS171 | FQ169: BAS172 | FR169: BAS173 | FS169: BAS174 | FT169: BAS175 | FU169: BAS176 | FV169: BAS177 | FW169: BAS178 | FX169: BAS179 | FY169: BAS180 | FZ169: BAS181 | GA169: BAS182 | GB169: BAS183 | GC169: BAS184 | GD169: BAS185 | GE169: BAS186 | GF169: BAS187 | GG169: BAS188 | GH169: BAS189 | GI169: BAS190 | GJ169: BAS191 | GK169: BAS192 | GL169: BAS193 | GM169: BAS194 | GN169: BAS195 | GO169: BAS196 | GP169: BAS197 | GQ169: BAS198 | GR169: BAS199 | GS169: BAS200 | GT169: BAS201 | GU169: BAS202 | GV169: BAS203 | GW169: BAS204 | GX169: BAS205 | GY169: BAS206 | GZ169: BAS207 | HA169: BAS208 | HB169: BAS209 | HC169: BAS210 | HD169: BAS211 | HE169: BAS212 | HF169: BAS213 | HG169: BAS214 | HH169: BAS215 | HI169: BAS216 | HJ169: BAS217 | HK169: BAS218 | HL169: BAS219 | HM169: BAS220 | HN169: BAS221 | HO169: BAS222 | HP169: BAS223 | HQ169: BAS224 | HR169: BAS225 | HS169: BAS226 | HT169: BAS227 | HU169: BAS228 | HV169: BAS229 | HW169: BAS230
A170: 4 | B170: 24 | C170: 15 | D170: 12 | E170: 1 | F170: 0 | G170: 0 | H170: 22 | I170: 22 | J170: 30 | K170: 6 | L170: 21 | M170: 0 | N170: 15 | O170: 19 | P170: 13 | Q170: 2 | R170: 9 | S170: 0 | T170: 16 | U170: 7 | V170: 13 | W170: 11 | X170: 0 | Y170: 0 | Z170: 1 | AA170: 1 | AB170: 3 | AC170: 2 | AD170: 0 | AE170: 0 | AF170: 2 | AG170: 0 | AH170: 0 | AI170: 0 | AJ170: 0 | AK170: 0 | AL170: 2 | AM170: 0 | AN170: 1 | AO170: 0 | AP170: 0 | AQ170: 0 | AR170: 0 | AS170: 0 | AT170: 0 | AU170: 0 | AV170: 0 | AW170: 0 | AX170: 0 | AY170: 0 | AZ170: 1 | BA170: 0 | BB170: 0 | BC170: 0 | BD170: 0 | BE170: 0 | BF170: 0 | BG170: 0 | BH170: 0 | BI170: 0 | BJ170: 0 | BK170: 0 | BL170: 0 | BM170: 0 | BN170: 0 | BO170: 0 | BP170: 0 | BQ170: 0 | BR170: 0 | BS170: 0 | BT170: 0 | BU170: 0 | BV170: 0 | BW170: 0 | BX170: 0 | BY170: 0 | BZ170: 0 | CA170: 0 | CB170: 0 | CC170: 0 | CD170: 0 | CE170: 0 | CF170: 0 | CG170: 0 | CH170: 0 | CI170: 0 | CJ170: 0 | CK170: 0 | CL170: 0 | CM170: 0 | CN170: 0 | CO170: 0 | CP170: 0 | CQ170: 0 | CR170: 0 | CS170: 0 | CT170: 0 | CU170: 0 | CV170: 0 | CW170: 0 | CX170: 0 | CY170: 0 | CZ170: 0 | DA170: 0 | DB170: 0 | DC170: 0 | DD170: 0 | DE170: 0 | DF170: 0 | DG170: 0 | DH170: 0 | DI170: 0 | DJ170: 0 | DK170: 0 | DL170: 0 | DM170: 0 | DN170: 0 | DO170: 0 | DP170: 0 | DQ170: 0 | DR170: 0 | DS170: 0 | DT170: 0 | DU170: 0 | DV170: 0 | DW170: 0 | DX170: 0 | DY170: 0 | DZ170: 0 | EA170: 0 | EB170: 0 | EC170: 0 | ED170: 0 | EE170: 0 | EF170: 0 | EG170: 0 | EH170: 0 | EI170: 0 | EJ170: 0 | EK170: 0 | EL170: 0 | EM170: 0 | EN170: 0 | EO170: 0 | EP170: 0 | EQ170: 0 | ER170: 0 | ES170: 0 | ET170: 0 | EU170: 0 | EV170: 0 | EW170: 0 | EX170: 0 | EY170: 0 | EZ170: 0 | FA170: 0 | FB170: 0 | FC170: 0 | FD170: 0 | FE170: 0 | FF170: 0 | FG170: 0 | FH170: 0 | FI170: 0 | FJ170: 0 | FK170: 0 | FL170: 0 | FM170: 0 | FN170: 0 | FO170: 0 | FP170: 0 | FQ170: 0 | FR170: 0 | FS170: 0 | FT170: 0 | FU170: 0 | FV170: 0 | FW170: 0 | FX170: 0 | FY170: 0 | FZ170: 0 | GA170: 0 | GB170: 0 | GC170: 0 | GD170: 0 | GE170: 0 | GF170: 0 | GG170: 0 | GH170: 0 | GI170: 0 | GJ170: 0 | GK170: 0 | GL170: 0 | GM170: 0 | GN170: 0 | GO170: 0 | GP170: 0 | GQ170: 0 | GR170: 0 | GS170: 0 | GT170: 0 | GU170: 0 | GV170: 0 | GW170: 0 | GX170: 0 | GY170: 0 | GZ170: 0 | HA170: 0 | HB170: 0 | HC170: 0 | HD170: 0 | HE170: 0 | HF170: 0 | HG170: 0 | HH170: 0 | HI170: 0 | HJ170: 0 | HK170: 0 | HL170: 0 | HM170: 0 | HN170: 0 | HO170: 0 | HP170: 0 | HQ170: 0 | HR170: 0 | HS170: 0 | HT170: 0 | HU170: 0 | HV170: 0 | HW170: 0
A171: 5 | B171: 15 | C171: 20 | D171: 8 | E171: 1 | F171: 0 | G171: 0 | H171: 15 | I171: 27 | J171: 12 | K171: 6 | L171: 14 | M171: 0 | N171: 10 | O171: 9 | P171: 17 | Q171: 3 | R171: 8 | S171: 0 | T171: 15 | U171: 4 | V171: 10 | W171: 10 | X171: 0 | Y171: 0 | Z171: 4 | AA171: 3 | AB171: 0 | AC171: 0 | AD171: 0 | AE171: 0 | AF171: 7 | AG171: 0 | AH171: 0 | AI171: 0 | AJ171: 0 | AK171: 0 | AL171: 7 | AM171: 1 | AN171: 1 | AO171: 0 | AP171: 0 | AQ171: 0 | AR171: 0 | AS171: 1 | AT171: 0 | AU171: 0 | AV171: 0 | AW171: 0 | AX171: 0 | AY171: 0 | AZ171: 1 | BA171: 0 | BB171: 0 | BC171: 0 | BD171: 0 | BE171: 0 | BF171: 0 | BG171: 0 | BH171: 0 | BI171: 0 | BJ171: 0 | BK171: 0 | BL171: 0 | BM171: 0 | BN171: 0 | BO171: 0 | BP171: 0 | BQ171: 0 | BR171: 0 | BS171: 0 | BT171: 0 | BU171: 0 | BV171: 0 | BW171: 0 | BX171: 0 | BY171: 0 | BZ171: 0 | CA171: 0 | CB171: 0 | CC171: 0 | CD171: 0 | CE171: 0 | CF171: 0 | CG171: 0 | CH171: 0 | CI171: 0 | CJ171: 0 | CK171: 0 | CL171: 0 | CM171: 0 | CN171: 0 | CO171: 0 | CP171: 0 | CQ171: 0 | CR171: 0 | CS171: 0 | CT171: 0 | CU171: 0 | CV171: 0 | CW171: 0 | CX171: 0 | CY171: 0 | CZ171: 0 | DA171: 0 | DB171: 0 | DC171: 0 | DD171: 0 | DE171: 0 | DF171: 0 | DG171: 0 | DH171: 0 | DI171: 0 | DJ171: 0 | DK171: 0 | DL171: 0 | DM171: 0 | DN171: 0 | DO171: 0 | DP171: 0 | DQ171: 0 | DR171: 0 | DS171: 0 | DT171: 0 | DU171: 0 | DV171: 0 | DW171: 0 | DX171: 0 | DY171: 0 | DZ171: 0 | EA171: 0 | EB171: 0 | EC171: 0 | ED171: 0 | EE171: 0 | EF171: 0 | EG171: 0 | EH171: 0 | EI171: 0 | EJ171: 0 | EK171: 0 | EL171: 0 | EM171: 0 | EN171: 0 | EO171: 0 | EP171: 0 | EQ171: 0 | ER171: 0 | ES171: 0 | ET171: 0 | EU171: 0 | EV171: 0 | EW171: 0 | EX171: 0 | EY171: 0 | EZ171: 0 | FA171: 0 | FB171: 0 | FC171: 0 | FD171: 0 | FE171: 0 | FF171: 0 | FG171: 0 | FH171: 0 | FI171: 0 | FJ171: 0 | FK171: 0 | FL171: 0 | FM171: 0 | FN171: 0 | FO171: 0 | FP171: 0 | FQ171: 0 | FR171: 0 | FS171: 0 | FT171: 0 | FU171: 0 | FV171: 0 | FW171: 0 | FX171: 0 | FY171: 0 | FZ171: 0 | GA171: 0 | GB171: 0 | GC171: 0 | GD171: 0 | GE171: 0 | GF171: 0 | GG171: 0 | GH171: 0 | GI171: 0 | GJ171: 0 | GK171: 0 | GL171: 0 | GM171: 0 | GN171: 0 | GO171: 0 | GP171: 0 | GQ171: 0 | GR171: 0 | GS171: 0 | GT171: 0 | GU171: 0 | GV171: 0 | GW171: 0 | GX171: 0 | GY171: 0 | GZ171: 0 | HA171: 0 | HB171: 0 | HC171: 0 | HD171: 0 | HE171: 0 | HF171: 0 | HG171: 0 | HH171: 0 | HI171: 0 | HJ171: 0 | HK171: 0 | HL171: 0 | HM171: 0 | HN171: 0 | HO171: 0 | HP171: 0 | HQ171: 0 | HR171: 0 | HS171: 0 | HT171: 0 | HU171: 0 | HV171: 0 | HW171: 0
A172: 3 | B172: 11 | C172: 16 | D172: 8 | E172: 1 | F172: 0 | G172: 0 | H172: 22 | I172: 24 | J172: 25 | K172: 6 | L172: 16 | M172: 0 | N172: 22 | O172: 15 | P172: 11 | Q172: 1 | R172: 19 | S172: 0 | T172: 22 | U172: 8 | V172: 15 | W172: 5 | X172: 0 | Y172: 0 | Z172: 4 | AA172: 0 | AB172: 1 | AC172: 0 | AD172: 0 | AE172: 0 | AF172: 0 | AG172: 0 | AH172: 0 | AI172: 0 | AJ172: 0 | AK172: 0 | AL172: 0 | AM172: 0 | AN172: 0 | AO172: 0 | AP172: 0 | AQ172: 0 | AR172: 0 | AS172: 0 | AT172: 0 | AU172: 0 | AV172: 0 | AW172: 0 | AX172: 0 | AY172: 0 | AZ172: 0 | BA172: 0 | BB172: 0 | BC172: 0 | BD172: 0 | BE172: 0 | BF172: 0 | BG172: 0 | BH172: 0 | BI172: 0 | BJ172: 0 | BK172: 0 | BL172: 0 | BM172: 0 | BN172: 0 | BO172: 0 | BP172: 0 | BQ172: 0 | BR172: 0 | BS172: 0 | BT172: 0 | BU172: 0 | BV172: 0 | BW172: 0 | BX172: 0 | BY172: 0 | BZ172: 0 | CA172: 0 | CB172: 0 | CC172: 0 | CD172: 0 | CE172: 0 | CF172: 0 | CG172: 0 | CH172: 0 | CI172: 0 | CJ172: 0 | CK172: 0 | CL172: 0 | CM172: 0 | CN172: 0 | CO172: 0 | CP172: 0 | CQ172: 0 | CR172: 0 | CS172: 0 | CT172: 0 | CU172: 0 | CV172: 0 | CW172: 0 | CX172: 0 | CY172: 0 | CZ172: 0 | DA172: 0 | DB172: 0 | DC172: 0 | DD172: 0 | DE172: 0 | DF172: 0 | DG172: 0 | DH172: 0 | DI172: 0 | DJ172: 0 | DK172: 0 | DL172: 0 | DM172: 0 | DN172: 0 | DO172: 0 | DP172: 0 | DQ172: 0 | DR172: 0 | DS172: 0 | DT172: 0 | DU172: 0 | DV172: 0 | DW172: 0 | DX172: 0 | DY172: 0 | DZ172: 0 | EA172: 0 | EB172: 0 | EC172: 0 | ED172: 0 | EE172: 0 | EF172: 0 | EG172: 0 | EH172: 0 | EI172: 0 | EJ172: 0 | EK172: 0 | EL172: 0 | EM172: 0 | EN172: 0 | EO172: 0 | EP172: 0 | EQ172: 0 | ER172: 0 | ES172: 0 | ET172: 0 | EU172: 0 | EV172: 0 | EW172: 0 | EX172: 0 | EY172: 0 | EZ172: 0 | FA172: 0 | FB172: 0 | FC172: 0 | FD172: 0 | FE172: 0 | FF172: 0 | FG172: 0 | FH172: 0 | FI172: 0 | FJ172: 0 | FK172: 0 | FL172: 0 | FM172: 0 | FN172: 0 | FO172: 0 | FP172: 0 | FQ172: 0 | FR172: 0 | FS172: 0 | FT172: 0 | FU172: 0 | FV172: 0 | FW172: 0 | FX172: 0 | FY172: 0 | FZ172: 0 | GA172: 0 | GB172: 0 | GC172: 0 | GD172: 0 | GE172: 0 | GF172: 0 | GG172: 0 | GH172: 0 | GI172: 0 | GJ172: 0 | GK172: 0 | GL172: 0 | GM172: 0 | GN172: 0 | GO172: 0 | GP172: 0 | GQ172: 0 | GR172: 0 | GS172: 0 | GT172: 0 | GU172: 0 | GV172: 0 | GW172: 0 | GX172: 0 | GY172: 0 | GZ172: 0 | HA172: 0 | HB172: 0 | HC172: 0 | HD172: 0 | HE172: 0 | HF172: 0 | HG172: 0 | HH172: 0 | HI172: 0 | HJ172: 0 | HK172: 0 | HL172: 0 | HM172: 0 | HN172: 0 | HO172: 0 | HP172: 0 | HQ172: 0 | HR172: 0 | HS172: 0 | HT172: 0 | HU172: 0 | HV172: 0 | HW172: 0
A173: 2 | B173: 14 | C173: 7 | D173: 22 | E173: 1 | F173: 0 | G173: 0 | H173: 25 | I173: 9 | J173: 23 | K173: 0 | L173: 17 | M173: 0 | N173: 13 | O173: 10 | P173: 7 | Q173: 1 | R173: 9 | S173: 0 | T173: 11 | U173: 5 | V173: 11 | W173: 10 | X173: 0 | Y173: 0 | Z173: 6 | AA173: 0 | AB173: 0 | AC173: 1 | AD173: 0 | AE173: 0 | AF173: 0 | AG173: 0 | AH173: 0 | AI173: 0 | AJ173: 0 | AK173: 0 | AL173: 0 | AM173: 0 | AN173: 0 | AO173: 0 | AP173: 0 | AQ173: 0 | AR173: 0 | AS173: 0 | AT173: 0 | AU173: 0 | AV173: 0 | AW173: 0 | AX173: 0 | AY173: 0 | AZ173: 0 | BA173: 0 | BB173: 0 | BC173: 0 | BD173: 0 | BE173: 0 | BF173: 0 | BG173: 0 | BH173: 0 | BI173: 0 | BJ173: 0 | BK173: 0 | BL173: 0 | BM173: 0 | BN173: 0 | BO173: 0 | BP173: 0 | BQ173: 0 | BR173: 0 | BS173: 0 | BT173: 0 | BU173: 0 | BV173: 0 | BW173: 0 | BX173: 0 | BY173: 0 | BZ173: 0 | CA173: 0 | CB173: 0 | CC173: 0 | CD173: 0 | CE173: 0 | CF173: 0 | CG173: 0 | CH173: 0 | CI173: 0 | CJ173: 0 | CK173: 0 | CL173: 0 | CM173: 0 | CN173: 0 | CO173: 0 | CP173: 0 | CQ173: 0 | CR173: 0 | CS173: 0 | CT173: 0 | CU173: 0 | CV173: 0 | CW173: 0 | CX173: 0 | CY173: 0 | CZ173: 0 | DA173: 0 | DB173: 0 | DC173: 0 | DD173: 0 | DE173: 0 | DF173: 0 | DG173: 0 | DH173: 0 | DI173: 0 | DJ173: 0 | DK173: 0 | DL173: 0 | DM173: 0 | DN173: 0 | DO173: 0 | DP173: 0 | DQ173: 0 | DR173: 0 | DS173: 0 | DT173: 0 | DU173: 0 | DV173: 0 | DW173: 0 | DX173: 0 | DY173: 0 | DZ173: 0 | EA173: 0 | EB173: 0 | EC173: 0 | ED173: 0 | EE173: 0 | EF173: 0 | EG173: 0 | EH173: 0 | EI173: 0 | EJ173: 0 | EK173: 0 | EL173: 0 | EM173: 0 | EN173: 0 | EO173: 0 | EP173: 0 | EQ173: 0 | ER173: 0 | ES173: 0 | ET173: 0 | EU173: 0 | EV173: 0 | EW173: 0 | EX173: 0 | EY173: 0 | EZ173: 0 | FA173: 0 | FB173: 0 | FC173: 0 | FD173: 0 | FE173: 0 | FF173: 0 | FG173: 0 | FH173: 0 | FI173: 0 | FJ173: 0 | FK173: 0 | FL173: 0 | FM173: 0 | FN173: 0 | FO173: 0 | FP173: 0 | FQ173: 0 | FR173: 0 | FS173: 0 | FT173: 0 | FU173: 0 | FV173: 0 | FW173: 0 | FX173: 0 | FY173: 0 | FZ173: 0 | GA173: 0 | GB173: 0 | GC173: 0 | GD173: 0 | GE173: 0 | GF173: 0 | GG173: 0 | GH173: 0 | GI173: 0 | GJ173: 0 | GK173: 0 | GL173: 0 | GM173: 0 | GN173: 0 | GO173: 0 | GP173: 0 | GQ173: 0 | GR173: 0 | GS173: 0 | GT173: 0 | GU173: 0 | GV173: 0 | GW173: 0 | GX173: 0 | GY173: 0 | GZ173: 0 | HA173: 0 | HB173: 0 | HC173: 0 | HD173: 0 | HE173: 0 | HF173: 0 | HG173: 0 | HH173: 0 | HI173: 0 | HJ173: 0 | HK173: 0 | HL173: 0 | HM173: 0 | HN173: 0 | HO173: 0 | HP173: 0 | HQ173: 0 | HR173: 0 | HS173: 0 | HT173: 0 | HU173: 0 | HV173: 0 | HW173: 0
A174: 1 | B174: 11 | C174: 10 | D174: 9 | E174: 0 | F174: 0 | G174: 0 | H174: 9 | I174: 12 | J174: 21 | K174: 5 | L174: 11 | M174: 0 | N174: 13 | O174: 6 | P174: 4 | Q174: 2 | R174: 9 | S174: 0 | T174: 11 | U174: 3 | V174: 11 | W174: 11 | X174: 0 | Y174: 0 | Z174: 3 | AA174: 1 | AB174: 0 | AC174: 0 | AD174: 0 | AE174: 0 | AF174: 0 | AG174: 0 | AH174: 0 | AI174: 0 | AJ174: 0 | AK174: 0 | AL174: 0 | AM174: 0 | AN174: 0 | AO174: 0 | AP174: 0 | AQ174: 0 | AR174: 0 | AS174: 0 | AT174: 0 | AU174: 0 | AV174: 0 | AW174: 0 | AX174: 0 | AY174: 0 | AZ174: 0 | BA174: 0 | BB174: 0 | BC174: 0 | BD174: 0 | BE174: 0 | BF174: 0 | BG174: 0 | BH174: 0 | BI174: 0 | BJ174: 0 | BK174: 0 | BL174: 0 | BM174: 0 | BN174: 0 | BO174: 0 | BP174: 0 | BQ174: 0 | BR174: 0 | BS174: 0 | BT174: 0 | BU174: 0 | BV174: 0 | BW174: 0 | BX174: 0 | BY174: 0 | BZ174: 0 | CA174: 0 | CB174: 0 | CC174: 0 | CD174: 0 | CE174: 0 | CF174: 0 | CG174: 0 | CH174: 0 | CI174: 0 | CJ174: 0 | CK174: 0 | CL174: 0 | CM174: 0 | CN174: 0 | CO174: 0 | CP174: 0 | CQ174: 0 | CR174: 0 | CS174: 0 | CT174: 0 | CU174: 0 | CV174: 0 | CW174: 0 | CX174: 0 | CY174: 0 | CZ174: 0 | DA174: 0 | DB174: 0 | DC174: 0 | DD174: 0 | DE174: 0 | DF174: 0 | DG174: 0 | DH174: 0 | DI174: 0 | DJ174: 0 | DK174: 0 | DL174: 0 | DM174: 0 | DN174: 0 | DO174: 0 | DP174: 0 | DQ174: 0 | DR174: 0 | DS174: 0 | DT174: 0 | DU174: 0 | DV174: 0 | DW174: 0 | DX174: 0 | DY174: 0 | DZ174: 0 | EA174: 0 | EB174: 0 | EC174: 0 | ED174: 0 | EE174: 0 | EF174: 0 | EG174: 0 | EH174: 0 | EI174: 0 | EJ174: 0 | EK174: 0 | EL174: 0 | EM174: 0 | EN174: 0 | EO174: 0 | EP174: 0 | EQ174: 0 | ER174: 0 | ES174: 0 | ET174: 0 | EU174: 0 | EV174: 0 | EW174: 0 | EX174: 0 | EY174: 0 | EZ174: 0 | FA174: 0 | FB174: 0 | FC174: 0 | FD174: 0 | FE174: 0 | FF174: 0 | FG174: 0 | FH174: 0 | FI174: 0 | FJ174: 0 | FK174: 0 | FL174: 0 | FM174: 0 | FN174: 0 | FO174: 0 | FP174: 0 | FQ174: 0 | FR174: 0 | FS174: 0 | FT174: 0 | FU174: 0 | FV174: 0 | FW174: 0 | FX174: 0 | FY174: 0 | FZ174: 0 | GA174: 0 | GB174: 0 | GC174: 0 | GD174: 0 | GE174: 0 | GF174: 0 | GG174: 0 | GH174: 0 | GI174: 0 | GJ174: 0 | GK174: 0 | GL174: 0 | GM174: 0 | GN174: 0 | GO174: 0 | GP174: 0 | GQ174: 0 | GR174: 0 | GS174: 0 | GT174: 0 | GU174: 0 | GV174: 0 | GW174: 0 | GX174: 0 | GY174: 0 | GZ174: 0 | HA174: 0 | HB174: 0 | HC174: 0 | HD174: 0 | HE174: 0 | HF174: 0 | HG174: 0 | HH174: 0 | HI174: 0 | HJ174: 0 | HK174: 0 | HL174: 0 | HM174: 0 | HN174: 0 | HO174: 0 | HP174: 0 | HQ174: 0 | HR174: 0 | HS174: 0 | HT174: 0 | HU174: 0 | HV174: 0 | HW174: 0
A175: T | B175: 75 | C175: 68 | D175: 59 | E175: 4 | F175: 0 | G175: 0 | H175: 93 | I175: 94 | J175: 111 | K175: 23 | L175: 79 | M175: 0 | N175: 73 | O175: 59 | P175: 52 | Q175: 9 | R175: 54 | S175: 0 | T175: 75 | U175: 27 | V175: 60 | W175: 47 | X175: 0 | Y175: 0 | Z175: 18 | AA175: 5 | AB175: 4 | AC175: 3 | AD175: 0 | AE175: 0 | AF175: 9 | AG175: 0 | AH175: 0 | AI175: 0 | AJ175: 0 | AK175: 0 | AL175: 9 | AM175: 1 | AN175: 2 | AO175: 0 | AP175: 0 | AQ175: 0 | AR175: 0 | AS175: 1 | AT175: 0 | AU175: 0 | AV175: 0 | AW175: 0 | AX175: 0 | AY175: 0 | AZ175: 2 | BA175: 0 | BB175: 0 | BC175: 0 | BD175: 0 | BE175: 0 | BF175: 0 | BG175: 0 | BH175: 0 | BI175: 0 | BJ175: 0 | BK175: 0 | BL175: 0 | BM175: 0 | BN175: 0 | BO175: 0 | BP175: 0 | BQ175: 0 | BR175: 0 | BS175: 0 | BT175: 0 | BU175: 0 | BV175: 0 | BW175: 0 | BX175: 0 | BY175: 0 | BZ175: 0 | CA175: 0 | CB175: 0 | CC175: 0 | CD175: 0 | CE175: 0 | CF175: 0 | CG175: 0 | CH175: 0 | CI175: 0 | CJ175: 0 | CK175: 0 | CL175: 0 | CM175: 0 | CN175: 0 | CO175: 0 | CP175: 0 | CQ175: 0 | CR175: 0 | CS175: 0 | CT175: 0 | CU175: 0 | CV175: 0 | CW175: 0 | CX175: 0 | CY175: 0 | CZ175: 0 | DA175: 0 | DB175: 0 | DC175: 0 | DD175: 0 | DE175: 0 | DF175: 0 | DG175: 0 | DH175: 0 | DI175: 0 | DJ175: 0 | DK175: 0 | DL175: 0 | DM175: 0 | DN175: 0 | DO175: 0 | DP175: 0 | DQ175: 0 | DR175: 0 | DS175: 0 | DT175: 0 | DU175: 0 | DV175: 0 | DW175: 0 | DX175: 0 | DY175: 0 | DZ175: 0 | EA175: 0 | EB175: 0 | EC175: 0 | ED175: 0 | EE175: 0 | EF175: 0 | EG175: 0 | EH175: 0 | EI175: 0 | EJ175: 0 | EK175: 0 | EL175: 0 | EM175: 0 | EN175: 0 | EO175: 0 | EP175: 0 | EQ175: 0 | ER175: 0 | ES175: 0 | ET175: 0 | EU175: 0 | EV175: 0 | EW175: 0 | EX175: 0 | EY175: 0 | EZ175: 0 | FA175: 0 | FB175: 0 | FC175: 0 | FD175: 0 | FE175: 0 | FF175: 0 | FG175: 0 | FH175: 0 | FI175: 0 | FJ175: 0 | FK175: 0 | FL175: 0 | FM175: 0 | FN175: 0 | FO175: 0 | FP175: 0 | FQ175: 0 | FR175: 0 | FS175: 0 | FT175: 0 | FU175: 0 | FV175: 0 | FW175: 0 | FX175: 0 | FY175: 0 | FZ175: 0 | GA175: 0 | GB175: 0 | GC175: 0 | GD175: 0 | GE175: 0 | GF175: 0 | GG175: 0 | GH175: 0 | GI175: 0 | GJ175: 0 | GK175: 0 | GL175: 0 | GM175: 0 | GN175: 0 | GO175: 0 | GP175: 0 | GQ175: 0 | GR175: 0 | GS175: 0 | GT175: 0 | GU175: 0 | GV175: 0 | GW175: 0 | GX175: 0 | GY175: 0 | GZ175: 0 | HA175: 0 | HB175: 0 | HC175: 0 | HD175: 0 | HE175: 0 | HF175: 0 | HG175: 0 | HH175: 0 | HI175: 0 | HJ175: 0 | HK175: 0 | HL175: 0 | HM175: 0 | HN175: 0 | HO175: 0 | HP175: 0 | HQ175: 0 | HR175: 0 | HS175: 0 | HT175: 0 | HU175: 0 | HV175: 0 | HW175: 0
A188: TOTAL
A189: =COUNT(A170:A186) -> 5 | B189: =SUM(B170:B186) -> 150 | C189: =SUM(C170:C186) -> 136 | D189: 118 | E189: 8 | F189: 0 | G189: 0 | H189: 186 | I189: 188 | J189: 222 | K189: 46 | L189: 158 | M189: 0 | N189: 146 | O189: 118 | P189: 104 | Q189: 18 | R189: 108 | S189: 0 | T189: 150 | U189: 54 | V189: 120 | W189: 94 | X189: 0 | Y189: 0 | Z189: 36 | AA189: 10 | AB189: 8 | AC189: 6 | AD189: 0 | AE189: 0 | AF189: 18 | AG189: 0 | AH189: 0 | AI189: 0 | AJ189: 0 | AK189: 0 | AL189: 18 | AM189: 2 | AN189: 4 | AO189: 0 | AP189: 0 | AQ189: 0 | AR189: 0 | AS189: 2 | AT189: 0 | AU189: 0 | AV189: 0 | AW189: 0 | AX189: 0 | AY189: 0 | AZ189: 4 | BA189: 0 | BB189: 0 | BC189: 0 | BD189: 0 | BE189: 0 | BF189: 0 | BG189: 0 | BH189: 0 | BI189: 0 | BJ189: 0 | BK189: 0 | BL189: 0 | BM189: 0 | BN189: 0 | BO189: =SUM(BO170:BO186) -> 0 | BP189: 0 | BQ189: 0 | BR189: 0 | BS189: 0 | BT189: 0 | BU189: 0 | BV189: 0 | BW189: 0 | BX189: 0 | BY189: 0 | BZ189: 0 | CA189: 0 | CB189: 0 | CC189: 0 | CD189: 0 | CE189: 0 | CF189: 0 | CG189: 0 | CH189: 0 | CI189: 0 | CJ189: 0 | CK189: 0 | CL189: 0 | CM189: 0 | CN189: 0 | CO189: 0 | CP189: 0 | CQ189: 0 | CR189: 0 | CS189: 0 | CT189: 0 | CU189: 0 | CV189: 0 | CW189: 0 | CX189: 0 | CY189: 0 | CZ189: 0 | DA189: 0 | DB189: 0 | DC189: 0 | DD189: 0 | DE189: 0 | DF189: 0 | DG189: 0 | DH189: 0 | DI189: 0 | DJ189: 0 | DK189: 0 | DL189: 0 | DM189: 0 | DN189: 0 | DO189: 0 | DP189: 0 | DQ189: 0 | DR189: 0 | DS189: 0 | DT189: 0 | DU189: 0 | DV189: 0 | DW189: 0 | DX189: 0 | DY189: 0 | DZ189: 0 | EA189: =SUM(EA170:EA186) -> 0 | EB189: 0 | EC189: 0 | ED189: 0 | EE189: 0 | EF189: 0 | EG189: 0 | EH189: 0 | EI189: 0 | EJ189: 0 | EK189: 0 | EL189: 0 | EM189: 0 | EN189: 0 | EO189: 0 | EP189: 0 | EQ189: 0 | ER189: 0 | ES189: 0 | ET189: 0 | EU189: 0 | EV189: 0 | EW189: 0 | EX189: 0 | EY189: 0 | EZ189: 0 | FA189: 0 | FB189: 0 | FC189: 0 | FD189: 0 | FE189: 0 | FF189: 0 | FG189: 0 | FH189: 0 | FI189: 0 | FJ189: 0 | FK189: 0 | FL189: 0 | FM189: 0 | FN189: 0 | FO189: 0 | FP189: 0 | FQ189: 0 | FR189: 0 | FS189: 0 | FT189: 0 | FU189: 0 | FV189: 0 | FW189: 0 | FX189: 0 | FY189: 0 | FZ189: 0 | GA189: 0 | GB189: 0 | GC189: 0 | GD189: 0 | GE189: 0 | GF189: 0 | GG189: 0 | GH189: 0 | GI189: 0 | GJ189: 0 | GK189: 0 | GL189: 0 | GM189: =SUM(GM170:GM186) -> 0 | GN189: 0 | GO189: 0 | GP189: 0 | GQ189: 0 | GR189: 0 | GS189: 0 | GT189: 0 | GU189: 0 | GV189: 0 | GW189: 0 | GX189: 0 | GY189: 0 | GZ189: 0 | HA189: 0 | HB189: 0 | HC189: 0 | HD189: 0 | HE189: 0 | HF189: 0 | HG189: 0 | HH189: 0 | HI189: 0 | HJ189: 0 | HK189: 0 | HL189: 0 | HM189: 0 | HN189: 0 | HO189: 0 | HP189: 0 | HQ189: 0 | HR189: 0 | HS189: 0 | HT189: 0 | HU189: 0 | HV189: 0 | HW189: 0
A190: =CONCATENATE(A170,"-",A171,"-",A172,"-",A173,"-",A174,"-",A175,"-",A176,"-",A177,"-",A178,"-",A179,"-",A180,"-",A181) -> 4-5-3-2-1-T------
B191: BAS001 | C191: BAS002 | D191: BAS003 | E191: BAS004 | F191: BAS005 | G191: BAS006 | H191: BAS007 | I191: BAS008 | J191: BAS009 | K191: BAS010 | L191: BAS011 | M191: BAS012 | N191: BAS013 | O191: BAS014 | P191: BAS015 | Q191: BAS016 | R191: BAS017 | S191: BAS018 | T191: BAS019 | U191: BAS020 | V191: BAS021 | W191: BAS022 | X191: BAS023 | Y191: BAS024 | Z191: BAS025 | AA191: BAS026 | AB191: BAS027 | AC191: BAS028 | AD191: BAS029 | AE191: BAS030 | AF191: BAS031 | AG191: BAS032 | AH191: BAS033 | AI191: BAS034 | AJ191: BAS035 | AK191: BAS036 | AL191: BAS037 | AM191: BAS038 | AN191: BAS039 | AO191: BAS040 | AP191: BAS041 | AQ191: BAS042 | AR191: BAS043 | AS191: BAS044 | AT191: BAS045 | AU191: BAS046 | AV191: BAS047 | AW191: BAS048 | AX191: BAS049 | AY191: BAS050 | AZ191: BAS051 | BA191: BAS052 | BB191: BAS053 | BC191: BAS054 | BD191: BAS055 | BE191: BAS056 | BF191: BAS057 | BG191: BAS058 | BH191: BAS059 | BI191: BAS060 | BJ191: BAS061 | BK191: BAS062 | BL191: BAS063 | BM191: BAS064 | BN191: BAS065 | BO191: BAS066 | BP191: BAS067 | BQ191: BAS068 | BR191: BAS069 | BS191: BAS070 | BT191: BAS071 | BU191: BAS072 | BV191: BAS073 | BW191: BAS074 | BX191: BAS075 | BY191: BAS076 | BZ191: BAS077 | CA191: BAS078 | CB191: BAS079 | CC191: BAS080 | CD191: BAS081 | CE191: BAS082 | CF191: BAS083 | CG191: BAS084 | CH191: BAS085 | CI191: BAS086 | CJ191: BAS087 | CK191: BAS088 | CL191: BAS089 | CM191: BAS090 | CN191: BAS091 | CO191: BAS092 | CP191: BAS093 | CQ191: BAS094 | CR191: BAS095 | CS191: BAS096 | CT191: BAS097 | CU191: BAS098 | CV191: BAS099 | CW191: BAS100 | CX191: BAS101 | CY191: BAS102 | CZ191: BAS103 | DA191: BAS104 | DB191: BAS105 | DC191: BAS106 | DD191: BAS107 | DE191: BAS108 | DF191: BAS109 | DG191: BAS110 | DH191: BAS111 | DI191: BAS112 | DJ191: BAS113 | DK191: BAS114 | DL191: BAS115 | DM191: BAS116 | DN191: BAS117 | DO191: BAS118 | DP191: BAS119 | DQ191: BAS120 | DR191: BAS121 | DS191: BAS122 | DT191: BAS123 | DU191: BAS124 | DV191: BAS125 | DW191: BAS126 | DX191: BAS127 | DY191: BAS128 | DZ191: BAS129 | EA191: BAS130 | EB191: BAS131 | EC191: BAS132 | ED191: BAS133 | EE191: BAS134 | EF191: BAS135 | EG191: BAS136 | EH191: BAS137 | EI191: BAS138 | EJ191: BAS139 | EK191: BAS140 | EL191: BAS141 | EM191: BAS142 | EN191: BAS143 | EO191: BAS144 | EP191: BAS145 | EQ191: BAS146 | ER191: BAS147 | ES191: BAS148 | ET191: BAS149 | EU191: BAS150 | EV191: BAS151 | EW191: BAS152 | EX191: BAS153 | EY191: BAS154 | EZ191: BAS155 | FA191: BAS156 | FB191: BAS157 | FC191: BAS158 | FD191: BAS159 | FE191: BAS160 | FF191: BAS161 | FG191: BAS162 | FH191: BAS163 | FI191: BAS164 | FJ191: BAS165 | FK191: BAS166 | FL191: BAS167 | FM191: BAS168 | FN191: BAS169 | FO191: BAS170 | FP191: BAS171 | FQ191: BAS172 | FR191: BAS173 | FS191: BAS174 | FT191: BAS175 | FU191: BAS176 | FV191: BAS177 | FW191: BAS178 | FX191: BAS179 | FY191: BAS180 | FZ191: BAS181 | GA191: BAS182 | GB191: BAS183 | GC191: BAS184 | GD191: BAS185 | GE191: BAS186 | GF191: BAS187 | GG191: BAS188 | GH191: BAS189 | GI191: BAS190 | GJ191: BAS191 | GK191: BAS192 | GL191: BAS193 | GM191: BAS194 | GN191: BAS195 | GO191: BAS196 | GP191: BAS197 | GQ191: BAS198 | GR191: BAS199 | GS191: BAS200 | GT191: BAS201 | GU191: BAS202 | GV191: BAS203 | GW191: BAS204 | GX191: BAS205 | GY191: BAS206 | GZ191: BAS207 | HA191: BAS208 | HB191: BAS209 | HC191: BAS210 | HD191: BAS211 | HE191: BAS212 | HF191: BAS213 | HG191: BAS214 | HH191: BAS215 | HI191: BAS216 | HJ191: BAS217 | HK191: BAS218 | HL191: BAS219 | HM191: BAS220 | HN191: BAS221 | HO191: BAS222 | HP191: BAS223 | HQ191: BAS224 | HR191: BAS225 | HS191: BAS226 | HT191: BAS227 | HU191: BAS228 | HV191: BAS229 | HW191: BAS230
B192: =IF(B191=B169,"SI","NO") -> SI | C192: =IF(C191=C169,"SI","NO") -> SI | D192: SI | E192: SI | F192: SI | G192: SI | H192: SI | I192: SI | J192: SI | K192: SI | L192: SI | M192: SI | N192: SI | O192: SI | P192: SI | Q192: SI | R192: SI | S192: SI | T192: SI | U192: SI | V192: SI | W192: SI | X192: SI | Y192: SI | Z192: SI | AA192: SI | AB192: SI | AC192: SI | AD192: SI | AE192: SI | AF192: SI | AG192: SI | AH192: SI | AI192: SI | AJ192: SI | AK192: SI | AL192: SI | AM192: SI | AN192: SI | AO192: SI | AP192: SI | AQ192: SI | AR192: SI | AS192: SI | AT192: SI | AU192: SI | AV192: SI | AW192: SI | AX192: SI | AY192: SI | AZ192: SI | BA192: SI | BB192: SI | BC192: SI | BD192: SI | BE192: SI | BF192: SI | BG192: SI | BH192: SI | BI192: SI | BJ192: SI | BK192: SI | BL192: SI | BM192: SI | BN192: SI | BO192: =IF(BO191=BO169,"SI","NO") -> SI | BP192: SI | BQ192: SI | BR192: SI | BS192: SI | BT192: SI | BU192: SI | BV192: SI | BW192: SI | BX192: SI | BY192: SI | BZ192: SI | CA192: SI | CB192: SI | CC192: SI | CD192: SI | CE192: SI | CF192: SI | CG192: SI | CH192: SI | CI192: SI | CJ192: SI | CK192: SI | CL192: SI | CM192: SI | CN192: SI | CO192: SI | CP192: SI | CQ192: SI | CR192: SI | CS192: SI | CT192: SI | CU192: SI | CV192: SI | CW192: SI | CX192: SI | CY192: SI | CZ192: SI | DA192: SI | DB192: SI | DC192: SI | DD192: SI | DE192: SI | DF192: SI | DG192: SI | DH192: SI | DI192: SI | DJ192: SI | DK192: SI | DL192: SI | DM192: SI | DN192: SI | DO192: SI | DP192: SI | DQ192: SI | DR192: SI | DS192: SI | DT192: SI | DU192: SI | DV192: SI | DW192: SI | DX192: SI | DY192: SI | DZ192: SI | EA192: =IF(EA191=EA169,"SI","NO") -> SI | EB192: SI | EC192: SI | ED192: SI | EE192: SI | EF192: SI | EG192: SI | EH192: SI | EI192: SI | EJ192: SI | EK192: SI | EL192: SI | EM192: SI | EN192: SI | EO192: SI | EP192: SI | EQ192: SI | ER192: SI | ES192: SI | ET192: SI | EU192: SI | EV192: SI | EW192: SI | EX192: SI | EY192: SI | EZ192: SI | FA192: SI | FB192: SI | FC192: SI | FD192: SI | FE192: SI | FF192: SI | FG192: SI | FH192: SI | FI192: SI | FJ192: SI | FK192: SI | FL192: SI | FM192: SI | FN192: SI | FO192: SI | FP192: SI | FQ192: SI | FR192: SI | FS192: SI | FT192: SI | FU192: SI | FV192: SI | FW192: SI | FX192: SI | FY192: SI | FZ192: SI | GA192: SI | GB192: SI | GC192: SI | GD192: SI | GE192: SI | GF192: SI | GG192: SI | GH192: SI | GI192: SI | GJ192: SI | GK192: SI | GL192: SI | GM192: =IF(GM191=GM169,"SI","NO") -> SI | GN192: SI | GO192: SI | GP192: SI | GQ192: SI | GR192: SI | GS192: SI | GT192: SI | GU192: SI | GV192: SI | GW192: SI | GX192: SI | GY192: SI | GZ192: SI | HA192: SI | HB192: SI | HC192: SI | HD192: SI | HE192: SI | HF192: SI | HG192: SI | HH192: SI | HI192: SI | HJ192: SI | HK192: SI | HL192: SI | HM192: SI | HN192: SI | HO192: SI | HP192: SI | HQ192: SI | HR192: SI | HS192: SI | HT192: SI | HU192: SI | HV192: SI | HW192: SI

Sheet Datos (hidden)
B9: ANO | D9: MESES | F9: COD_RED | G9: DESC_RED | H9: CONCATENAR | J9: COD_RED | K9: COD_MIC | L9: DESC_MICRO | M9: CONCATENAR | O9: COD_ESTAB | P9: DESC_ESTAB | Q9: COD_RED | R9: COD_MIC | S9: COD_PROV | T9: COD_DIST | U9: REDMIC | V9: CONCATENAR | X9: COD_PROV | Y9: DESC_PROV | Z9: CONCATENAR | AB9: COD_PROV | AC9: COD_DIST | AD9: DESC_DIST | AE9: PROVDIST | AF9: CONCATENAR
B10: 2025 | D10: 01-Enero | F10: 00 | G10: NO TIENE ASIGNADO NINGUNA RED | H10: =CONCATENATE(F10," - ",G10) -> 00 - NO TIENE ASIGNADO NINGUNA RED | J10: 00 | K10: 00 | L10: NO PERTENECE A NINGUNA MICRORED | M10: =CONCATENATE(J10,K10," - ",L10) -> 0000 - NO PERTENECE A NINGUNA MICRORED | O10: 000000000 | P10: (All) | Q10: 00 | R10: 00 | U10: =CONCATENATE(Q10,R10) -> 0000 | V10: =CONCATENATE(O10," - ",P10) -> 000000000 - (All) | X10: 00 | Y10: (All) | Z10: =CONCATENATE(X10," - ",Y10) -> 00 - (All) | AB10: 01 | AC10: 00 | AD10: (All) | AE10: =CONCATENATE(AB10,AC10) -> 0100 | AF10: =CONCATENATE(AB10,AC10," - ",AD10) -> 0100 - (All)
D11: 02-Febrero | F11: 01 | G11: CUSCO SUR | H11: =CONCATENATE(F11," - ",G11) -> 01 - CUSCO SUR | J11: 00 | K11: 99 | L11: (All) | M11: 0099 - (All) | N11: 1 | O11: 000002289 | P11: HOSPITAL DE APOYO DEPARTAMENTAL CUSCO | Q11: 00 | R11: 00 | S11: 01 | T11: 01 | U11: =CONCATENATE(Q11,R11) -> 0000 | V11: =CONCATENATE(O11," - ",P11) -> 000002289 - HOSPITAL DE APOYO DEPARTAMENTAL CUSCO | X11: 01 | Y11: CUSCO | Z11: =CONCATENATE(X11," - ",Y11) -> 01 - CUSCO | AB11: 01 | AC11: 01 | AD11: CUSCO | AE11: =CONCATENATE(AB11,AC11) -> 0101 | AF11: =CONCATENATE(AB11,AC11," - ",AD11) -> 0101 - CUSCO
D12: 03-Marzo | F12: 02 | G12: CUSCO NORTE | H12: 02 - CUSCO NORTE | J12: 01 | K12: 00 | L12: NO PERTENECE A NINGUNA MICRORED | M12: 0100 - NO PERTENECE A NINGUNA MICRORED | N12: =+N11+1 -> 2 | O12: 000002305 | P12: ANTONIO LORENA DEL CUSCO | Q12: 00 | R12: 00 | S12: 01 | T12: 06 | U12: 0000 | V12: 000002305 - ANTONIO LORENA DEL CUSCO | X12: 02 | Y12: ACOMAYO | Z12: =CONCATENATE(X12," - ",Y12) -> 02 - ACOMAYO | AB12: 01 | AC12: 02 | AD12: CCORCA | AE12: 0102 | AF12: 0102 - CCORCA
D13: 04-Abril | F13: 03 | G13: LA CONVENCION | H13: 03 - LA CONVENCION | J13: 01 | K13: 16 | L13: CUSCO | M13: 0116 - CUSCO | N13: =+N12+1 -> 3 | O13: 999999999 | P13: (All) | Q13: 00 | R13: 99 | U13: 0099 | V13: 999999999 - (All) | X13: 03 | Y13: ANTA | Z13: 03 - ANTA | AB13: 01 | AC13: 03 | AD13: POROY | AE13: 0103 | AF13: 0103 - POROY
D14: 05-Mayo | F14: 04 | G14: CANAS-CANCHIS-ESPINAR | H14: 04 - CANAS-CANCHIS-ESPINAR | J14: 01 | K14: 03 | L14: PARURO | M14: 0103 - PARURO | O14: 000025210 | P14: TUPAC AMARU | Q14: 01 | R14: 00 | S14: 01 | T14: 05 | U14: 0100 | V14: 000025210 - TUPAC AMARU | X14: 04 | Y14: CALCA | Z14: 04 - CALCA | AB14: 01 | AC14: 04 | AD14: SAN JERONIMO | AE14: 0104 | AF14: 0104 - SAN JERONIMO
D15: 06-Junio | F15: 05 | G15: KIMBIRI PICHARI | H15: 05 - KIMBIRI PICHARI | J15: 01 | K15: 06 | L15: PAUCARTAMBO | M15: 0106 - PAUCARTAMBO | N15: =+N13+1 -> 4 | O15: 000000000 | P15: (All) | Q15: 01 | R15: 03 | U15: 0103 | V15: 000000000 - (All) | X15: 05 | Y15: CANAS | Z15: 05 - CANAS | AB15: 01 | AC15: 05 | AD15: SAN SEBASTIAN | AE15: 0105 | AF15: 0105 - SAN SEBASTIAN
D16: 07-Julio | F16: 06 | G16: CHUMBIVILCAS | H16: 06 - CHUMBIVILCAS | J16: 01 | K16: 12 | L16: URCOS | M16: 0112 - URCOS | O16: 000002499 | P16: PARURO | Q16: 01 | R16: 03 | S16: 10 | T16: 01 | U16: 0103 | V16: 000002499 - PARURO | X16: 06 | Y16: CANCHIS | Z16: 06 - CANCHIS | AB16: 01 | AC16: 06 | AD16: SANTIAGO | AE16: 0106 | AF16: 0106 - SANTIAGO
D17: 08-Agosto | F17: 99 | G17: (All) | H17: 99 - (All) | J17: 01 | K17: 13 | L17: ACOMAYO | M17: 0113 - ACOMAYO | N17: =+N15+1 -> 5 | O17: 000002500 | P17: ACCHA | Q17: 01 | R17: 03 | S17: 10 | T17: 02 | U17: 0103 | V17: 000002500 - ACCHA | X17: 07 | Y17: CHUMBIVILCAS | Z17: 07 - CHUMBIVILCAS | AB17: 01 | AC17: 07 | AD17: SAYLLA | AE17: 0107 | AF17: 0107 - SAYLLA
D18: 09-Setiembre | J18: 01 | K18: 15 | L18: OCONGATE | M18: 0115 - OCONGATE | N18: 6 | O18: 000002501 | P18: CCAPI | Q18: 01 | R18: 03 | S18: 10 | T18: 03 | U18: 0103 | V18: 000002501 - CCAPI | X18: 08 | Y18: ESPINAR | Z18: 08 - ESPINAR | AB18: 01 | AC18: 08 | AD18: WANCHAQ | AE18: 0108 | AF18: 0108 - WANCHAQ
D19: 10-Octubre | J19: 01 | K19: 99 | L19: (All) | M19: 0199 - (All) | N19: 7 | O19: 000002502 | P19: CCOYABAMBA | Q19: 01 | R19: 03 | S19: 10 | T19: 03 | U19: 0103 | V19: 000002502 - CCOYABAMBA | X19: 09 | Y19: LA CONVENCION | Z19: 09 - LA CONVENCION | AB19: 02 | AC19: 00 | AD19: (All) | AE19: 0200 | AF19: 0200 - (All)
D20: 11-Noviembre | F20: EJECUTORAS | J20: 02 | K20: 01 | L20: BELEMPAMPA | M20: 0201 - BELEMPAMPA | N20: 8 | O20: 000002503 | P20: COLCHA | Q20: 01 | R20: 03 | S20: 10 | T20: 04 | U20: 0103 | V20: 000002503 - COLCHA | X20: 10 | Y20: PARURO | Z20: 10 - PARURO | AB20: 02 | AC20: 01 | AD20: ACOMAYO | AE20: 0201 | AF20: 0201 - ACOMAYO
D21: 12-Diciembre | F21: COD_RED | G21: DESC_RED | H21: CONCATENAR | J21: 02 | K21: 02 | L21: WANCHAQ | M21: 0202 - WANCHAQ | N21: 9 | O21: 000006978 | P21: CCOCHIRIHUAY | Q21: 01 | R21: 03 | S21: 10 | T21: 04 | U21: 0103 | V21: 000006978 - CCOCHIRIHUAY | X21: 11 | Y21: PAUCARTAMBO | Z21: 11 - PAUCARTAMBO | AB21: 02 | AC21: 02 | AD21: ACOPIA | AE21: 0202 | AF21: 0202 - ACOPIA
F22: 01 | G22: HOSPITAL REGIONAL CUSCO | H22: =CONCATENATE(F22," - ",G22) -> 01 - HOSPITAL REGIONAL CUSCO | J22: 02 | K22: 03 | L22: ANTA | M22: 0203 - ANTA | N22: 10 | O22: 000002504 | P22: HUANOQUITE | Q22: 01 | R22: 03 | S22: 10 | T22: 05 | U22: 0103 | V22: 000002504 - HUANOQUITE | X22: 12 | Y22: QUISPICANCHI | Z22: 12 - QUISPICANCHI | AB22: 02 | AC22: 03 | AD22: ACOS | AE22: 0203 | AF22: 0203 - ACOS
F23: 02 | G23: HOSPITAL ANTONIO LORENA | H23: =CONCATENATE(F23," - ",G23) -> 02 - HOSPITAL ANTONIO LORENA | J23: 02 | K23: 04 | L23: LIMATAMBO | M23: 0204 - LIMATAMBO | N23: 11 | O23: 000002505 | P23: OMACHA | Q23: 01 | R23: 03 | S23: 10 | T23: 06 | U23: 0103 | V23: 000002505 - OMACHA | X23: 13 | Y23: URUBAMBA | Z23: 13 - URUBAMBA | AB23: 02 | AC23: 04 | AD23: MOSOC LLACTA | AE23: 0204 | AF23: 0204 - MOSOC LLACTA
F24: 03 | G24: CUSCO NORTE | H24: 03 - CUSCO NORTE | J24: 02 | K24: 05 | L24: PISAC | M24: 0205 - PISAC | N24: 12 | O24: 000002506 | P24: ANTAPALLPA | Q24: 01 | R24: 03 | S24: 10 | T24: 06 | U24: 0103 | V24: 000002506 - ANTAPALLPA | AB24: 02 | AC24: 05 | AD24: POMACANCHI | AE24: 0205 | AF24: 0205 - POMACANCHI
F25: 04 | G25: CUSCO SUR | H25: 04 - CUSCO SUR | J25: 02 | K25: 06 | L25: CALCA | M25: 0206 - CALCA | N25: 13 | O25: 000007147 | P25: PUESTO DE SALUD DE HUASQUILLAY | Q25: 01 | R25: 03 | S25: 10 | T25: 06 | U25: 0103 | V25: 000007147 - PUESTO DE SALUD DE HUASQUILLAY | AB25: 02 | AC25: 06 | AD25: RONDOCAN | AE25: 0206 | AF25: 0206 - RONDOCAN
F26: 05 | G26: LA CONVENCION | H26: 05 - LA CONVENCION | J26: 02 | K26: 07 | L26: URUBAMBA | M26: 0207 - URUBAMBA | N26: 14 | O26: 000012924 | P26: SAHUA SAHUA | Q26: 01 | R26: 03 | S26: 10 | T26: 06 | U26: 0103 | V26: 000012924 - SAHUA SAHUA | AB26: 02 | AC26: 07 | AD26: SANGARARA | AE26: 0207 | AF26: 0207 - SANGARARA
F27: 06 | G27: HOSPITAL QUILLABAMBA | H27: 06 - HOSPITAL QUILLABAMBA | J27: 02 | K27: 08 | L27: YANATILE | M27: 0208 - YANATILE | N27: 15 | O27: 000002507 | P27: PACCARECTAMBO | Q27: 01 | R27: 03 | S27: 10 | T27: 07 | U27: 0103 | V27: 000002507 - PACCARECTAMBO | AB27: 03 | AC27: 00 | AD27: (All) | AE27: 0300 | AF27: 0300 - (All)
F28: 07 | G28: CANAS CANCHIS ESPINAR | H28: 07 - CANAS CANCHIS ESPINAR | J28: 02 | K28: 09 | L28: SIETE CUARTONES | M28: 0209 - SIETE CUARTONES | N28: 16 | O28: 000002509 | P28: YAURISQUE | Q28: 01 | R28: 03 | S28: 10 | T28: 09 | U28: 0103 | V28: 000002509 - YAURISQUE | AB28: 03 | AC28: 01 | AD28: ANTA | AE28: 0301 | AF28: 0301 - ANTA
F29: 08 | G29: HOSPITAL SICUANI | H29: 08 - HOSPITAL SICUANI | J29: 02 | K29: 99 | L29: (All) | M29: 0299 - (All) | N29: 17 | O29: 000000000 | P29: (All) | Q29: 01 | R29: 06 | U29: 0106 | V29: 000000000 - (All) | AB29: 03 | AC29: 02 | AD29: ANCAHUASI | AE29: 0302 | AF29: 0302 - ANCAHUASI
F30: 09 | G30: HOSPITAL ESPINAR | H30: 09 - HOSPITAL ESPINAR | J30: 03 | K30: 00 | L30: NO PERTENECE A NINGUNA MICRORED | M30: 0300 - NO PERTENECE A NINGUNA MICRORED | O30: 000002520 | P30: HUANCARANI | Q30: 01 | R30: 06 | S30: 11 | T30: 05 | U30: 0106 | V30: 000002520 - HUANCARANI | AB30: 03 | AC30: 03 | AD30: CACHIMAYO | AE30: 0303 | AF30: 0303 - CACHIMAYO
F31: 10 | G31: KIMBIRI PICHARI | H31: 10 - KIMBIRI PICHARI | J31: 03 | K31: 01 | L31: SANTA ANA | M31: 0301 - SANTA ANA | N31: =+N29+1 -> 18 | O31: 000002521 | P31: PILCOPATA | Q31: 01 | R31: 06 | S31: 11 | T31: 06 | U31: 0106 | V31: 000002521 - PILCOPATA | AB31: 03 | AC31: 04 | AD31: CHINCHAYPUJIO | AE31: 0304 | AF31: 0304 - CHINCHAYPUJIO
F32: 11 | G32: CHUMBIVILCAS | H32: 11 - CHUMBIVILCAS | J32: 03 | K32: 02 | L32: MARANURA | M32: 0302 - MARANURA | N32: 19 | O32: 000002522 | P32: PATRIA | Q32: 01 | R32: 06 | S32: 11 | T32: 06 | U32: 0106 | V32: 000002522 - PATRIA | AB32: 03 | AC32: 05 | AD32: HUAROCONDO | AE32: 0305 | AF32: 0305 - HUAROCONDO
F33: 99 | G33: (ALL) | H33: =CONCATENATE(F33," - ",G33) -> 99 - (ALL) | J33: 03 | K33: 03 | L33: QUELLOUNO | M33: 0303 - QUELLOUNO | N33: 20 | O33: 000002510 | P33: PAUCARTAMBO | Q33: 01 | R33: 06 | S33: 11 | T33: 01 | U33: 0106 | V33: 000002510 - PAUCARTAMBO | AB33: 03 | AC33: 06 | AD33: LIMATAMBO | AE33: 0306 | AF33: 0306 - LIMATAMBO
J34: 03 | K34: 04 | L34: KITENI | M34: 0304 - KITENI | N34: 21 | O34: 000002511 | P34: MOLLOMARCA | Q34: 01 | R34: 06 | S34: 11 | T34: 01 | U34: 0106 | V34: 000002511 - MOLLOMARCA | AB34: 03 | AC34: 07 | AD34: MOLLEPATA | AE34: 0307 | AF34: 0307 - MOLLEPATA
J35: 03 | K35: 05 | L35: KAMISEA | M35: 0305 - KAMISEA | N35: 22 | O35: 000010077 | P35: PAUCARTAMBO -ESSALUD | Q35: 01 | R35: 06 | S35: 11 | T35: 01 | U35: 0106 | V35: 000010077 - PAUCARTAMBO -ESSALUD | AB35: 03 | AC35: 08 | AD35: PUCYURA | AE35: 0308 | AF35: 0308 - PUCYURA
F36: SECTORES | J36: 03 | K36: 06 | L36: PUCYURA | M36: 0306 - PUCYURA | N36: 23 | O36: 000033777 | P36: MENTAL COMUNITARIO VIRGEN DEL ROSARIO | Q36: 01 | R36: 06 | S36: 11 | T36: 01 | U36: 0106 | V36: 000033777 - MENTAL COMUNITARIO VIRGEN DEL ROSARIO | AB36: 03 | AC36: 09 | AD36: ZURITE | AE36: 0309 | AF36: 0309 - ZURITE
F37: COD_SECTOR | G37: DESC_RED | H37: CONCATENAR | J37: 03 | K37: 07 | L37: PALMA REAL | M37: 0307 - PALMA REAL | N37: 24 | O37: 000002512 | P37: CAICAY | Q37: 01 | R37: 06 | S37: 11 | T37: 02 | U37: 0106 | V37: 000002512 - CAICAY | AB37: 04 | AC37: 00 | AD37: (All) | AE37: 0400 | AF37: 0400 - (All)
F38: 1 | G38: GORE | H38: =CONCATENATE(F38," - ",G38) -> 1 - GORE | J38: 03 | K38: 99 | L38: (All) | M38: 0399 - (All) | N38: 25 | O38: 000002513 | P38: HUASAC | Q38: 01 | R38: 06 | S38: 11 | T38: 02 | U38: 0106 | V38: 000002513 - HUASAC | AB38: 04 | AC38: 01 | AD38: CALCA | AE38: 0401 | AF38: 0401 - CALCA
F39: 2 | G39: ESSALUD | H39: =CONCATENATE(F39," - ",G39) -> 2 - ESSALUD | J39: 04 | K39: 00 | L39: NO PERTENECE A NINGUNA MICRORED | M39: 0400 - NO PERTENECE A NINGUNA MICRORED | N39: 26 | O39: 000002514 | P39: CHALLABAMBA | Q39: 01 | R39: 06 | S39: 11 | T39: 03 | U39: 0106 | V39: 000002514 - CHALLABAMBA | AB39: 04 | AC39: 02 | AD39: COYA | AE39: 0402 | AF39: 0402 - COYA
F40: 3 | G40: OTROS | H40: =CONCATENATE(F40," - ",G40) -> 3 - OTROS | J40: 04 | K40: 01 | L40: YANAOCA | M40: 0401 - YANAOCA | N40: 27 | O40: 000002516 | P40: COLQUEPATA | Q40: 01 | R40: 06 | S40: 11 | T40: 04 | U40: 0106 | V40: 000002516 - COLQUEPATA | AB40: 04 | AC40: 03 | AD40: LAMAY | AE40: 0403 | AF40: 0403 - LAMAY
F41: 99 | G41: (ALL) | H41: =CONCATENATE(F41," - ",G41) -> 99 - (ALL) | J41: 04 | K41: 02 | L41: EL DESCANSO | M41: 0402 - EL DESCANSO | N41: 28 | O41: 000002517 | P41: PICHIHUA COLQUEPATA | Q41: 01 | R41: 06 | S41: 11 | T41: 04 | U41: 0106 | V41: 000002517 - PICHIHUA COLQUEPATA | AB41: 04 | AC41: 04 | AD41: LARES | AE41: 0404 | AF41: 0404 - LARES
J42: 04 | K42: 03 | L42: COMBAPATA | M42: 0403 - COMBAPATA | N42: 29 | O42: 000002518 | P42: VIZCOCHONI | Q42: 01 | R42: 06 | S42: 11 | T42: 04 | U42: 0106 | V42: 000002518 - VIZCOCHONI | AB42: 04 | AC42: 05 | AD42: PISAC | AE42: 0405 | AF42: 0405 - PISAC
J43: 04 | K43: 04 | L43: TECHO OBRERO | M43: 0404 - TECHO OBRERO | N43: 30 | O43: 000002519 | P43: AYRE | Q43: 01 | R43: 06 | S43: 11 | T43: 04 | U43: 0106 | V43: 000002519 - AYRE | AB43: 04 | AC43: 06 | AD43: SAN SALVADOR | AE43: 0406 | AF43: 0406 - SAN SALVADOR
J44: 04 | K44: 05 | L44: PAMPAPHALLA | M44: 0405 - PAMPAPHALLA | N44: 31 | O44: 000006979 | P44: TOCRA | Q44: 01 | R44: 06 | S44: 11 | T44: 04 | U44: 0106 | V44: 000006979 - TOCRA | AB44: 04 | AC44: 07 | AD44: TARAY | AE44: 0407 | AF44: 0407 - TARAY
J45: 04 | K45: 06 | L45: YAURI | M45: 0406 - YAURI | N45: 32 | O45: 000000000 | P45: (All) | Q45: 01 | R45: 12 | U45: 0112 | V45: 000000000 - (All) | AB45: 04 | AC45: 08 | AD45: YANATILE | AE45: 0408 | AF45: 0408 - YANATILE
J46: 04 | K46: 99 | L46: (All) | M46: 0499 - (All) | O46: 000002523 | P46: URCOS | Q46: 01 | R46: 12 | S46: 12 | T46: 01 | U46: 0112 | V46: 000002523 - URCOS | AB46: 05 | AC46: 00 | AD46: (All) | AE46: 0500 | AF46: 0500 - (All)
J47: 05 | K47: 00 | L47: NO PERTENECE A NINGUNA MICRORED | M47: 0500 - NO PERTENECE A NINGUNA MICRORED | N47: =+N45+1 -> 33 | O47: 000026385 | P47: ESSALUD-URCOS | Q47: 01 | R47: 12 | S47: 12 | T47: 01 | U47: 0112 | V47: 000026385 - ESSALUD-URCOS | AB47: 05 | AC47: 01 | AD47: YANAOCA | AE47: 0501 | AF47: 0501 - YANAOCA
J48: 05 | K48: 01 | L48: KIMBIRI | M48: 0501 - KIMBIRI | N48: 34 | O48: 000002525 | P48: ANDAHUAYLILLAS | Q48: 01 | R48: 12 | S48: 12 | T48: 02 | U48: 0112 | V48: 000002525 - ANDAHUAYLILLAS | AB48: 05 | AC48: 02 | AD48: CHECCA | AE48: 0502 | AF48: 0502 - CHECCA
J49: 05 | K49: 02 | L49: PICHARI | M49: 0502 - PICHARI | N49: 35 | O49: 000008911 | P49: HUARA HUARA | Q49: 01 | R49: 12 | S49: 12 | T49: 05 | U49: 0112 | V49: 000008911 - HUARA HUARA | AB49: 05 | AC49: 03 | AD49: KUNTURKANKI | AE49: 0503 | AF49: 0503 - KUNTURKANKI
J50: 05 | K50: 99 | L50: (All) | M50: 0599 - (All) | N50: 36 | O50: 000002530 | P50: CUSIPATA | Q50: 01 | R50: 12 | S50: 12 | T50: 06 | U50: 0112 | V50: 000002530 - CUSIPATA | AB50: 05 | AC50: 04 | AD50: LANGUI | AE50: 0504 | AF50: 0504 - LANGUI
J51: 06 | K51: 00 | L51: NO PERTENECE A NINGUNA MICRORED | M51: 0600 - NO PERTENECE A NINGUNA MICRORED | N51: 37 | O51: 000006980 | P51: CHILLIHUANI | Q51: 01 | R51: 12 | S51: 12 | T51: 06 | U51: 0112 | V51: 000006980 - CHILLIHUANI | AB51: 05 | AC51: 05 | AD51: LAYO | AE51: 0505 | AF51: 0505 - LAYO
J52: 06 | K52: 09 | L52: SANTO TOMAS | M52: 0609 - SANTO TOMAS | N52: 38 | O52: 000002532 | P52: HUARO | Q52: 01 | R52: 12 | S52: 12 | T52: 07 | U52: 0112 | V52: 000002532 - HUARO | AB52: 05 | AC52: 06 | AD52: PAMPAMARCA | AE52: 0506 | AF52: 0506 - PAMPAMARCA
J53: 06 | K53: 01 | L53: LIVITACA | M53: 0601 - LIVITACA | N53: 39 | O53: 000002533 | P53: URPAY | Q53: 01 | R53: 12 | S53: 12 | T53: 07 | U53: 0112 | V53: 000002533 - URPAY | AB53: 05 | AC53: 07 | AD53: QUEHUE | AE53: 0507 | AF53: 0507 - QUEHUE
J54: 06 | K54: 99 | L54: (All) | M54: 0699 - (All) | N54: 40 | O54: 000011747 | P54: POSTA MEDICA POLICIAL PUCUTO | Q54: 01 | R54: 12 | S54: 12 | T54: 07 | U54: 0112 | V54: 000011747 - POSTA MEDICA POLICIAL PUCUTO | AB54: 05 | AC54: 08 | AD54: TUPAC AMARU | AE54: 0508 | AF54: 0508 - TUPAC AMARU
J55: 99 | K55: 99 | L55: (All) | M55: 9999 - (All) | N55: 41 | O55: 000030708 | P55: MENTAL COMUNITARIO HUARO | Q55: 01 | R55: 12 | S55: 12 | T55: 07 | U55: 0112 | V55: 000030708 - MENTAL COMUNITARIO HUARO | AB55: 06 | AC55: 00 | AD55: (All) | AE55: 0600 | AF55: 0600 - (All)
N56: 42 | O56: 000002534 | P56: LUCRE | Q56: 01 | R56: 12 | S56: 12 | T56: 08 | U56: 0112 | V56: 000002534 - LUCRE | AB56: 06 | AC56: 01 | AD56: SICUANI | AE56: 0601 | AF56: 0601 - SICUANI
N57: 43 | O57: 000002537 | P57: OROPESA | Q57: 01 | R57: 12 | S57: 12 | T57: 11 | U57: 0112 | V57: 000002537 - OROPESA | AB57: 06 | AC57: 02 | AD57: CHECACUPE | AE57: 0602 | AF57: 0602 - CHECACUPE
N58: 44 | O58: 000002538 | P58: QUIQUIJANA | Q58: 01 | R58: 12 | S58: 12 | T58: 12 | U58: 0112 | V58: 000002538 - QUIQUIJANA | AB58: 06 | AC58: 03 | AD58: COMBAPATA | AE58: 0603 | AF58: 0603 - COMBAPATA
N59: 45 | O59: 000002539 | P59: CCOLCA | Q59: 01 | R59: 12 | S59: 12 | T59: 12 | U59: 0112 | V59: 000002539 - CCOLCA | AB59: 06 | AC59: 04 | AD59: MARANGANI | AE59: 0604 | AF59: 0604 - MARANGANI
N60: 46 | O60: 000000000 | P60: (All) | Q60: 01 | R60: 13 | U60: 0113 | V60: 000000000 - (All) | AB60: 06 | AC60: 05 | AD60: PITUMARCA | AE60: 0605 | AF60: 0605 - PITUMARCA
O61: 000002317 | P61: ACOMAYO | Q61: 01 | R61: 13 | S61: 02 | T61: 01 | U61: 0113 | V61: 000002317 - ACOMAYO | AB61: 06 | AC61: 06 | AD61: SAN PABLO | AE61: 0606 | AF61: 0606 - SAN PABLO
N62: =+N60+1 -> 47 | O62: 000010076 | P62: ACOMAYO - ESSALUD | Q62: 01 | R62: 13 | S62: 02 | T62: 01 | U62: 0113 | V62: 000010076 - ACOMAYO - ESSALUD | AB62: 06 | AC62: 07 | AD62: SAN PEDRO | AE62: 0607 | AF62: 0607 - SAN PEDRO
N63: 48 | O63: 000002318 | P63: ACOPIA | Q63: 01 | R63: 13 | S63: 02 | T63: 02 | U63: 0113 | V63: 000002318 - ACOPIA | AB63: 06 | AC63: 08 | AD63: TINTA | AE63: 0608 | AF63: 0608 - TINTA
N64: 49 | O64: 000002319 | P64: ACOS | Q64: 01 | R64: 13 | S64: 02 | T64: 03 | U64: 0113 | V64: 000002319 - ACOS | AB64: 07 | AC64: 00 | AD64: (All) | AE64: 0700 | AF64: 0700 - (All)
N65: 50 | O65: 000002321 | P65: POMACANCHI | Q65: 01 | R65: 13 | S65: 02 | T65: 05 | U65: 0113 | V65: 000002321 - POMACANCHI | AB65: 07 | AC65: 01 | AD65: SANTO TOMAS | AE65: 0701 | AF65: 0701 - SANTO TOMAS
N66: 51 | O66: 000002322 | P66: SAN JUAN DE POMACANCHI | Q66: 01 | R66: 13 | S66: 02 | T66: 05 | U66: 0113 | V66: 000002322 - SAN JUAN DE POMACANCHI | AB66: 07 | AC66: 02 | AD66: CAPACMARCA | AE66: 0702 | AF66: 0702 - CAPACMARCA
N67: 52 | O67: 000012926 | P67: SANTA LUCIA | Q67: 01 | R67: 13 | S67: 02 | T67: 05 | U67: 0113 | V67: 000012926 - SANTA LUCIA | AB67: 07 | AC67: 03 | AD67: CHAMACA | AE67: 0703 | AF67: 0703 - CHAMACA
N68: 53 | O68: 000002324 | P68: PUESTO DE SALUD SANGARARA | Q68: 01 | R68: 13 | S68: 02 | T68: 07 | U68: 0113 | V68: 000002324 - PUESTO DE SALUD SANGARARA | AB68: 07 | AC68: 04 | AD68: COLQUEMARCA | AE68: 0704 | AF68: 0704 - COLQUEMARCA
N69: 54 | O69: 000002325 | P69: PUESTO DE SALUD MARCACONGA | Q69: 01 | R69: 13 | S69: 02 | T69: 07 | U69: 0113 | V69: 000002325 - PUESTO DE SALUD MARCACONGA | AB69: 07 | AC69: 05 | AD69: LIVITACA | AE69: 0705 | AF69: 0705 - LIVITACA
N70: 55 | O70: 000002508 | P70: PILLPINTO | Q70: 01 | R70: 13 | S70: 10 | T70: 08 | U70: 0113 | V70: 000002508 - PILLPINTO | AB70: 07 | AC70: 06 | AD70: LLUSCO | AE70: 0706 | AF70: 0706 - LLUSCO
N71: 56 | O71: 000000000 | P71: (All) | Q71: 01 | R71: 15 | U71: 0115 | V71: 000000000 - (All) | AB71: 07 | AC71: 07 | AD71: QUIÑOTA | AE71: 0707 | AF71: 0707 - QUIÑOTA
O72: 000002526 | P72: QUINCE MIL | Q72: 01 | R72: 15 | S72: 12 | T72: 03 | U72: 0115 | V72: 000002526 - QUINCE MIL | AB72: 07 | AC72: 08 | AD72: VELILLE | AE72: 0708 | AF72: 0708 - VELILLE
N73: =+N71+1 -> 57 | O73: 000002527 | P73: CCARHUAYO | Q73: 01 | R73: 15 | S73: 12 | T73: 04 | U73: 0115 | V73: 000002527 - CCARHUAYO | AB73: 08 | AC73: 00 | AD73: (All) | AE73: 0800 | AF73: 0800 - (All)
N74: 58 | O74: 000002524 | P74: PAMPACAMARA | Q74: 01 | R74: 15 | S74: 12 | T74: 05 | U74: 0115 | V74: 000002524 - PAMPACAMARA | AB74: 08 | AC74: 01 | AD74: ESPINAR | AE74: 0801 | AF74: 0801 - ESPINAR
N75: 59 | O75: 000002528 | P75: CCATCCA | Q75: 01 | R75: 15 | S75: 12 | T75: 05 | U75: 0115 | V75: 000002528 - CCATCCA | AB75: 08 | AC75: 02 | AD75: CONDOROMA | AE75: =CONCATENATE(AB75,AC75) -> 0802 | AF75: =CONCATENATE(AB75,AC75," - ",AD75) -> 0802 - CONDOROMA
N76: 60 | O76: 000002529 | P76: KCAURY | Q76: 01 | R76: 15 | S76: 12 | T76: 05 | U76: 0115 | V76: 000002529 - KCAURY | AB76: 08 | AC76: 03 | AD76: COPORAQUE | AE76: 0803 | AF76: 0803 - COPORAQUE
N77: =+N76+1 -> 61 | O77: 000012931 | P77: CHICHINA | Q77: 01 | R77: 15 | S77: 12 | T77: 05 | U77: 0115 | V77: 000012931 - CHICHINA | AB77: 08 | AC77: 04 | AD77: OCORURO | AE77: 0804 | AF77: 0804 - OCORURO
N78: 62 | O78: 000016335 | P78: CCAPANA | Q78: 01 | R78: 15 | S78: 12 | T78: 05 | U78: 0115 | V78: 000016335 - CCAPANA | AB78: 08 | AC78: 05 | AD78: PALLPATA | AE78: 0805 | AF78: 0805 - PALLPATA
N79: 63 | O79: 000002535 | P79: MARCAPATA | Q79: 01 | R79: 15 | S79: 12 | T79: 09 | U79: 0115 | V79: 000002535 - MARCAPATA | AB79: 08 | AC79: 06 | AD79: PICHIGUA | AE79: 0806 | AF79: 0806 - PICHIGUA
N80: 64 | O80: 000007110 | P80: INCACANCHA | Q80: 01 | R80: 15 | S80: 12 | T80: 09 | U80: =CONCATENATE(Q80,R80) -> 0115 | V80: =CONCATENATE(O80," - ",P80) -> 000007110 - INCACANCHA | AB80: 08 | AC80: 07 | AD80: SUYCKUTAMBO | AE80: 0807 | AF80: 0807 - SUYCKUTAMBO
N81: 65 | O81: 000002536 | P81: OCONGATE | Q81: 01 | R81: 15 | S81: 12 | T81: 10 | U81: 0115 | V81: 000002536 - OCONGATE | AB81: 08 | AC81: 08 | AD81: ALTO PICHIGUA | AE81: 0808 | AF81: 0808 - ALTO PICHIGUA
N82: 66 | O82: 000006977 | P82: TINKI | Q82: 01 | R82: 15 | S82: 12 | T82: 10 | U82: 0115 | V82: 000006977 - TINKI | AB82: 09 | AC82: 00 | AD82: (All) | AE82: 0900 | AF82: 0900 - (All)
N83: 67 | O83: 000000000 | P83: (All) | Q83: 01 | R83: 16 | U83: 0116 | V83: 000000000 - (All) | AB83: 09 | AC83: 01 | AD83: SANTA ANA | AE83: 0901 | AF83: 0901 - SANTA ANA
O84: 000002300 | P84: SAN JERONIMO | Q84: 01 | R84: 16 | S84: 01 | T84: 04 | U84: 0116 | V84: 000002300 - SAN JERONIMO | AB84: 09 | AC84: 02 | AD84: ECHARATE | AE84: 0902 | AF84: 0902 - ECHARATE
N85: =+N83+1 -> 68 | O85: 000007699 | P85: CONCHACALLE | Q85: 01 | R85: 16 | S85: 01 | T85: 04 | U85: 0116 | V85: 000007699 - CONCHACALLE | AB85: 09 | AC85: 03 | AD85: HUAYOPATA | AE85: 0903 | AF85: 0903 - HUAYOPATA
N86: 69 | O86: 000018926 | P86: ESTABLECIMIENTO PENITENCIARIO CUSCO VARONES | Q86: 01 | R86: 16 | S86: 01 | T86: 04 | U86: 0116 | V86: 000018926 - ESTABLECIMIENTO PENITENCIARIO CUSCO VARONES | AB86: 09 | AC86: 04 | AD86: MARANURA | AE86: 0904 | AF86: 0904 - MARANURA
N87: 70 | O87: 000021187 | P87: ESTABLECIMIENTO PENITENCIARIO CUSCO MUJERES | Q87: 01 | R87: 16 | S87: 01 | T87: 04 | U87: 0116 | V87: 000021187 - ESTABLECIMIENTO PENITENCIARIO CUSCO MUJERES | AB87: 09 | AC87: 05 | AD87: OCOBAMBA | AE87: 0905 | AF87: 0905 - OCOBAMBA
N88: 71 | O88: 000030727 | P88: PATRÓN SAN SEBASTIAN | Q88: 01 | R88: 16 | S88: 01 | T88: 04 | U88: 0116 | V88: 000030727 - PATRÓN SAN SEBASTIAN | AB88: 09 | AC88: 06 | AD88: QUELLOUNO | AE88: 0906 | AF88: 0906 - QUELLOUNO
N89: 72 | O89: 000002301 | P89: SAN SEBASTIAN | Q89: 01 | R89: 16 | S89: 01 | T89: 05 | U89: 0116 | V89: 000002301 - SAN SEBASTIAN | AB89: 09 | AC89: 07 | AD89: KIMBIRI | AE89: 0907 | AF89: 0907 - KIMBIRI
N90: 73 | O90: 000002303 | P90: SANTA ROSA | Q90: 01 | R90: 16 | S90: 01 | T90: 05 | U90: 0116 | V90: 000002303 - SANTA ROSA | AB90: 09 | AC90: 08 | AD90: SANTA TERESA | AE90: 0908 | AF90: 0908 - SANTA TERESA
N91: 74 | O91: 000010065 | P91: SAN SEBASTIAN ESSALUD | Q91: 01 | R91: 16 | S91: 01 | T91: 05 | U91: 0116 | V91: 000010065 - SAN SEBASTIAN ESSALUD | AB91: 09 | AC91: 09 | AD91: VILCABAMBA | AE91: 0909 | AF91: 0909 - VILCABAMBA
N92: 75 | O92: 000011743 | P92: POLICIAL "SANTA ROSA" CUSCO | Q92: 01 | R92: 16 | S92: 01 | T92: 05 | U92: 0116 | V92: 000011743 - POLICIAL "SANTA ROSA" CUSCO | AB92: 09 | AC92: 10 | AD92: PICHARI | AE92: 0910 | AF92: 0910 - PICHARI
N93: 76 | O93: 000026181 | P93: MENTAL SAN SEBASTIAN | Q93: 01 | R93: 16 | S93: 01 | T93: 05 | U93: 0116 | V93: 000026181 - MENTAL SAN SEBASTIAN | AB93: 09 | AC93: 11 | AD93: INKAWASI | AE93: 0911 | AF93: 0911 - INKAWASI
N94: 77 | O94: 000002314 | P94: SAYLLA | Q94: 01 | R94: 16 | S94: 01 | T94: 07 | U94: 0116 | V94: 000002314 - SAYLLA | AB94: 09 | AC94: 12 | AD94: VILLA VIRGEN | AE94: 0912 | AF94: 0912 - VILLA VIRGEN
N95: 78 | O95: 000002323 | P95: RONDOCAN | Q95: 01 | R95: 16 | S95: 02 | T95: 06 | U95: 0116 | V95: 000002323 - RONDOCAN | AB95: 09 | AC95: 13 | AD95: VILLA KINTIARINA | AE95: 0913 | AF95: 0913 - VILLA KINTIARINA
N96: 79 | O96: 999999999 | P96: (All) | Q96: 01 | R96: 99 | U96: 0199 | V96: 999999999 - (All) | AB96: 09 | AC96: 14 | AD96: MEGANTONI | AE96: 0914 | AF96: 0914 - MEGANTONI
O97: 000000000 | P97: (All) | Q97: 02 | R97: 01 | U97: 0201 | V97: 000000000 - (All) | AB97: 09 | AC97: 15 | AD97: KUMPIRUSHIATO | AE97: 0915 | AF97: 0915 - KUMPIRUSHIATO
O98: 000002292 | P98: INDEPENDENCIA | Q98: 02 | R98: 01 | S98: 01 | T98: 01 | U98: 0201 | V98: 000002292 - INDEPENDENCIA | AB98: 09 | AC98: 16 | AD98: CIELO PUNCO | AE98: 0916 | AF98: 0916 - CIELO PUNCO
N99: =+N96+1 -> 80 | O99: 000002297 | P99: CCORCCA | Q99: 02 | R99: 01 | S99: 01 | T99: 02 | U99: 0201 | V99: 000002297 - CCORCCA | AB99: 09 | AC99: 17 | AD99: MANITEA | AE99: 0917 | AF99: 0917 - MANITEA
N100: 81 | O100: 000002306 | P100: BELEMPAMPA | Q100: 02 | R100: 01 | S100: 01 | T100: 06 | U100: 0201 | V100: 000002306 - BELEMPAMPA | AB100: 09 | AC100: 18 | AD100: UNION ASHANINKA | AE100: 0918 | AF100: 0918 - UNION ASHANINKA
N101: 82 | O101: 000002308 | P101: ZARZUELA ALTA | Q101: 02 | R101: 01 | S101: 01 | T101: 06 | U101: 0201 | V101: 000002308 - ZARZUELA ALTA | AB101: 09 | AC101: 00 | AD101: (All) | AE101: 0900 | AF101: 0900 - (All)
N102: 83 | O102: 000002309 | P102: DIGNIDAD NACIONAL | Q102: 02 | R102: 01 | S102: 01 | T102: 06 | U102: 0201 | V102: 000002309 - DIGNIDAD NACIONAL | AB102: 10 | AC102: 01 | AD102: PARURO | AE102: 1001 | AF102: 1001 - PARURO
N103: 84 | O103: 000002313 | P103: OCCOPATA | Q103: 02 | R103: 01 | S103: 01 | T103: 06 | U103: 0201 | V103: 000002313 - OCCOPATA | AB103: 10 | AC103: 02 | AD103: ACCHA | AE103: 1002 | AF103: 1002 - ACCHA
N104: 85 | O104: 000010920 | P104: QUINTA BRIGADA DE MONTAÑA | Q104: 02 | R104: 01 | S104: 01 | T104: 06 | U104: 0201 | V104: 000010920 - QUINTA BRIGADA DE MONTAÑA | AB104: 10 | AC104: 03 | AD104: CCAPI | AE104: 1003 | AF104: 1003 - CCAPI
N105: 86 | O105: 000026182 | P105: MENTAL SANTIAGO | Q105: 02 | R105: 01 | S105: 01 | T105: 06 | U105: 0201 | V105: 000026182 - MENTAL SANTIAGO | AB105: 10 | AC105: 04 | AD105: COLCHA | AE105: 1004 | AF105: 1004 - COLCHA
N106: 87 | O106: 000034933 | P106: SANTIAGO ESSALUD | Q106: 02 | R106: 01 | S106: 01 | T106: 06 | U106: 0201 | V106: 000034933 - SANTIAGO ESSALUD | AB106: 10 | AC106: 05 | AD106: HUANOQUITE | AE106: 1005 | AF106: 1005 - HUANOQUITE
N107: 88 | O107: 000023721 | P107: EJERCITO-PERUANO 5TA BM | Q107: 02 | R107: 01 | S107: 01 | T107: 06 | U107: 0201 | V107: 000023721 - EJERCITO-PERUANO 5TA BM | AB107: 10 | AC107: 06 | AD107: OMACHA | AE107: 1006 | AF107: 1006 - OMACHA
O108: 000000000 | P108: (All) | Q108: 02 | R108: 02 | U108: 0202 | V108: 000000000 - (All) | AB108: 10 | AC108: 07 | AD108: PACCARITAMBO | AE108: 1007 | AF108: 1007 - PACCARITAMBO
N109: =+N107+1 -> 89 | O109: 000034419 | P109: MENTAL COMUNITARIO CUSCO | Q109: 02 | R109: 02 | S109: 01 | T109: 01 | U109: 0202 | V109: 000034419 - MENTAL COMUNITARIO CUSCO | AB109: 10 | AC109: 08 | AD109: PILLPINTO | AE109: 1008 | AF109: 1008 - PILLPINTO
N110: 90 | O110: 000002302 | P110: CCORAO | Q110: 02 | R110: 02 | S110: 01 | T110: 05 | U110: 0202 | V110: 000002302 - CCORAO | AB110: 10 | AC110: 09 | AD110: YAURISQUE | AE110: 1009 | AF110: 1009 - YAURISQUE
N111: 91 | O111: 000002307 | P111: MANCO CAPAC | Q111: 02 | R111: 02 | S111: 01 | T111: 06 | U111: 0202 | V111: 000002307 - MANCO CAPAC | AB111: 11 | AC111: 00 | AD111: (All) | AE111: 1100 | AF111: 1100 - (All)
N112: 92 | O112: 000002310 | P112: CHOCCO | Q112: 02 | R112: 02 | S112: 01 | T112: 06 | U112: 0202 | V112: 000002310 - CHOCCO | AB112: 11 | AC112: 01 | AD112: PAUCARTAMBO | AE112: 1101 | AF112: 1101 - PAUCARTAMBO
N113: 93 | O113: 000002315 | P113: WANCHAQ | Q113: 02 | R113: 02 | S113: 01 | T113: 08 | U113: 0202 | V113: 000002315 - WANCHAQ | AB113: 11 | AC113: 02 | AD113: CAICAY | AE113: 1102 | AF113: 1102 - CAICAY
N114: 94 | O114: 000002316 | P114: TTIO | Q114: 02 | R114: 02 | S114: 01 | T114: 08 | U114: 0202 | V114: 000002316 - TTIO | AB114: 11 | AC114: 03 | AD114: CHALLABAMBA | AE114: 1103 | AF114: 1103 - CHALLABAMBA
N115: 95 | O115: 000010041 | P115: ADOLFO GUEVARA VELASCO | Q115: 02 | R115: 02 | S115: 01 | T115: 08 | U115: 0202 | V115: 000010041 - ADOLFO GUEVARA VELASCO | AB115: 11 | AC115: 04 | AD115: COLQUEPATA | AE115: 1104 | AF115: 1104 - COLQUEPATA
N116: 96 | O116: 000026183 | P116: METROPOLITANO | Q116: 02 | R116: 02 | S116: 01 | T116: 08 | U116: 0202 | V116: 000026183 - METROPOLITANO | AB116: 11 | AC116: 05 | AD116: HUANCARANI | AE116: 1105 | AF116: 1105 - HUANCARANI
O117: 000030730 | P117: PATRON SANTIAGO | Q117: 02 | R117: 02 | S117: 01 | T117: 08 | U117: 0202 | V117: 000030730 - PATRON SANTIAGO | AB117: 11 | AC117: 06 | AD117: KOSÑIPATA | AE117: 1106 | AF117: 1106 - KOSÑIPATA
N118: =+N116+1 -> 97 | O118: 000000000 | P118: (All) | Q118: 02 | R118: 03 | U118: 0203 | V118: 000000000 - (All) | AB118: 12 | AC118: 00 | AD118: (All) | AE118: 1200 | AF118: 1200 - (All)
N119: 98 | O119: 000002326 | P119: ANTA | Q119: 02 | R119: 03 | S119: 03 | T119: 01 | U119: 0203 | V119: 000002326 - ANTA | AB119: 12 | AC119: 01 | AD119: URCOS | AE119: 1201 | AF119: 1201 - URCOS
N120: 99 | O120: 000002328 | P120: COMPONE | Q120: 02 | R120: 03 | S120: 03 | T120: 01 | U120: 0203 | V120: 000002328 - COMPONE | AB120: 12 | AC120: 02 | AD120: ANDAHUAYLILLAS | AE120: 1202 | AF120: 1202 - ANDAHUAYLILLAS
N121: 100 | O121: 000002329 | P121: CONCHACALLA | Q121: 02 | R121: 03 | S121: 03 | T121: 01 | U121: 0203 | V121: 000002329 - CONCHACALLA | AB121: 12 | AC121: 03 | AD121: CAMANTI | AE121: 1203 | AF121: 1203 - CAMANTI
N122: 101 | O122: 000027790 | P122: MENTAL COMUNITARIO ANTA | Q122: 02 | R122: 03 | S122: 03 | T122: 01 | U122: 0203 | V122: 000027790 - MENTAL COMUNITARIO ANTA | AB122: 12 | AC122: 04 | AD122: CCARHUAYO | AE122: 1204 | AF122: 1204 - CCARHUAYO
N123: 102 | O123: 000029514 | P123: ESSALUD ANTA | Q123: 02 | R123: 03 | S123: 03 | T123: 01 | U123: 0203 | V123: 000029514 - ESSALUD ANTA | AB123: 12 | AC123: 05 | AD123: CCATCA | AE123: 1205 | AF123: 1205 - CCATCA
N124: 103 | O124: 000002330 | P124: ANCAHUASI | Q124: 02 | R124: 03 | S124: 03 | T124: 02 | U124: 0203 | V124: 000002330 - ANCAHUASI | AB124: 12 | AC124: 06 | AD124: CUSIPATA | AE124: 1206 | AF124: 1206 - CUSIPATA
N125: 104 | O125: 000002331 | P125: CACHIMAYO | Q125: 02 | R125: 03 | S125: 03 | T125: 03 | U125: 0203 | V125: 000002331 - CACHIMAYO | AB125: 12 | AC125: 07 | AD125: HUARO | AE125: 1207 | AF125: 1207 - HUARO
N126: 105 | O126: 000006972 | P126: PANTIPATA | Q126: 02 | R126: 03 | S126: 03 | T126: 04 | U126: 0203 | V126: 000006972 - PANTIPATA | AB126: 12 | AC126: 08 | AD126: LUCRE | AE126: 1208 | AF126: 1208 - LUCRE
N127: 106 | O127: 000036240 | P127: CHINCHAYPUJIO | Q127: 02 | R127: 03 | S127: 03 | T127: 04 | U127: 0203 | V127: 000036240 - CHINCHAYPUJIO | AB127: 12 | AC127: 09 | AD127: MARCAPATA | AE127: 1209 | AF127: 1209 - MARCAPATA
N128: 107 | O128: 000035838 | P128: PARCCOTICA | Q128: 02 | R128: 03 | S128: 03 | T128: 04 | U128: 0203 | V128: 000035838 - PARCCOTICA | AB128: 12 | AC128: 10 | AD128: OCONGATE | AE128: 1210 | AF128: 1210 - OCONGATE
N129: 108 | O129: 000002333 | P129: HUAROCONDO | Q129: 02 | R129: 03 | S129: 03 | T129: 05 | U129: 0203 | V129: 000002333 - HUAROCONDO | AB129: 12 | AC129: 11 | AD129: OROPESA | AE129: 1211 | AF129: 1211 - OROPESA
N130: 109 | O130: 000002334 | P130: HUAYLLACOCHA | Q130: 02 | R130: 03 | S130: 03 | T130: 05 | U130: 0203 | V130: 000002334 - HUAYLLACOCHA | AB130: 12 | AC130: 12 | AD130: QUIQUIJANA | AE130: 1212 | AF130: 1212 - QUIQUIJANA
N131: 110 | O131: 000002339 | P131: PUCYURA ANTA | Q131: 02 | R131: 03 | S131: 03 | T131: 08 | U131: 0203 | V131: 000002339 - PUCYURA ANTA | AB131: 13 | AC131: 00 | AD131: (All) | AE131: 1300 | AF131: 1300 - (All)
O132: 000002340 | P132: ZURITE | Q132: 02 | R132: 03 | S132: 03 | T132: 09 | U132: 0203 | V132: 000002340 - ZURITE | AB132: 13 | AC132: 01 | AD132: URUBAMBA | AE132: 1301 | AF132: 1301 - URUBAMBA
N133: =+N131+1 -> 111 | O133: 000002327 | P133: CHACAN | Q133: 02 | R133: 03 | S133: 03 | T133: 01 | U133: 0203 | V133: 000002327 - CHACAN | AB133: 13 | AC133: 02 | AD133: CHINCHERO | AE133: 1302 | AF133: 1302 - CHINCHERO
N134: 112 | O134: 000000000 | P134: (All) | Q134: 02 | R134: 04 | U134: 0204 | V134: 000000000 - (All) | AB134: 13 | AC134: 03 | AD134: HUAYLLABAMBA | AE134: 1303 | AF134: 1303 - HUAYLLABAMBA
N135: 113 | O135: 000002336 | P135: LIMATAMBO | Q135: 02 | R135: 04 | S135: 03 | T135: 06 | U135: 0204 | V135: 000002336 - LIMATAMBO | AB135: 13 | AC135: 04 | AD135: MACHUPICCHU | AE135: 1304 | AF135: 1304 - MACHUPICCHU
N136: 114 | O136: 000002337 | P136: PAMPACONGA | Q136: 02 | R136: 04 | S136: 03 | T136: 06 | U136: 0204 | V136: 000002337 - PAMPACONGA | AB136: 13 | AC136: 05 | AD136: MARAS | AE136: 1305 | AF136: 1305 - MARAS
N137: 115 | O137: 000010761 | P137: URATARI | Q137: 02 | R137: 04 | S137: 03 | T137: 06 | U137: 0204 | V137: 000010761 - URATARI | AB137: 13 | AC137: 06 | AD137: OLLANTAYTAMBO | AE137: 1306 | AF137: 1306 - OLLANTAYTAMBO
O138: 000002338 | P138: MOLLEPATA | Q138: 02 | R138: 04 | S138: 03 | T138: 07 | U138: 0204 | V138: 000002338 - MOLLEPATA | AB138: 13 | AC138: 07 | AD138: YUCAY | AE138: =CONCATENATE(AB138,AC138) -> 1307 | AF138: 1307 - YUCAY
N139: =+N137+1 -> 116 | O139: 000021061 | P139: HUAMANPATA | Q139: 02 | R139: 04 | S139: 03 | T139: 07 | U139: 0204 | V139: 000021061 - HUAMANPATA | AB139: 00 | AC139: 00 | AD139: (All) | AE139: =CONCATENATE(AB139,AC139) -> 0000 | AF139: 0000 - (All)
N140: 117 | O140: 000000000 | P140: (All) | Q140: 02 | R140: 05 | U140: 0205 | V140: 000000000 - (All)
N141: =+N140+1 -> 118 | O141: 000002343 | P141: COYA | Q141: 02 | R141: 05 | S141: 04 | T141: 02 | U141: 0205 | V141: 000002343 - COYA
N142: 119 | O142: 000002344 | P142: LAMAY | Q142: 02 | R142: 05 | S142: 04 | T142: 03 | U142: 0205 | V142: 000002344 - LAMAY
N143: 120 | O143: 000006975 | P143: SAYLLAFAYA | Q143: 02 | R143: 05 | S143: 04 | T143: 03 | U143: 0205 | V143: 000006975 - SAYLLAFAYA
N144: 121 | O144: 000007145 | P144: HUAMA | Q144: 02 | R144: 05 | S144: 04 | T144: 03 | U144: 0205 | V144: 000007145 - HUAMA
N145: 122 | O145: 000007146 | P145: POQUES | Q145: 02 | R145: 05 | S145: 04 | T145: 03 | U145: 0205 | V145: 000007146 - POQUES
N146: 123 | O146: 000036012 | P146: HUARQUI | Q146: 02 | R146: 05 | S146: 04 | T146: 03 | U146: 0205 | V146: 000036012 - HUARQUI
N147: 124 | O147: 000002348 | P147: PISAC | Q147: 02 | R147: 05 | S147: 04 | T147: 05 | U147: 0205 | V147: 000002348 - PISAC
N148: 125 | O148: 000002349 | P148: CUYO CHICO | Q148: 02 | R148: 05 | S148: 04 | T148: 05 | U148: 0205 | V148: 000002349 - CUYO CHICO
N149: 126 | O149: 000002350 | P149: CUYO GRANDE | Q149: 02 | R149: 05 | S149: 04 | T149: 05 | U149: 0205 | V149: 000002350 - CUYO GRANDE
N150: 127 | O150: 000002351 | P150: QUELLO QUELLO | Q150: 02 | R150: 05 | S150: 04 | T150: 05 | U150: =CONCATENATE(Q150,R150) -> 0205 | V150: =CONCATENATE(O150," - ",P150) -> 000002351 - QUELLO QUELLO
N151: 128 | O151: 000002352 | P151: SAN SALVADOR | Q151: 02 | R151: 05 | S151: 04 | T151: 06 | U151: 0205 | V151: 000002352 - SAN SALVADOR
N152: 129 | O152: 000036087 | P152: TIRACANCHA | Q152: 02 | R152: 05 | S152: 04 | T152: 06 | U152: 0205 | V152: 000036087 - TIRACANCHA
O153: 000002353 | P153: TARAY | Q153: 02 | R153: 05 | S153: 04 | T153: 07 | U153: 0205 | V153: 000002353 - TARAY
N154: =+N152+1 -> 130 | O154: 000002354 | P154: HUANCALLE | Q154: 02 | R154: 05 | S154: 04 | T154: 07 | U154: 0205 | V154: 000002354 - HUANCALLE
N155: 131 | O155: 000000000 | P155: (All) | Q155: 02 | R155: 06 | U155: 0206 | V155: 000000000 - (All)
N156: 132 | O156: 000002341 | P156: CALCA | Q156: 02 | R156: 06 | S156: 04 | T156: 01 | U156: 0206 | V156: 000002341 - CALCA
N157: 133 | O157: 000010069 | P157: ESSALUD CALCA | Q157: 02 | R157: 06 | S157: 04 | T157: 01 | U157: 0206 | V157: 000010069 - ESSALUD CALCA
N158: 134 | O158: 000010759 | P158: HUARAN | Q158: 02 | R158: 06 | S158: 04 | T158: 01 | U158: 0206 | V158: 000010759 - HUARAN
N159: 135 | O159: 000010762 | P159: ACCHA ALTA - PAMPALLACTA | Q159: 02 | R159: 06 | S159: 04 | T159: 01 | U159: 0206 | V159: 000010762 - ACCHA ALTA - PAMPALLACTA
N160: 136 | O160: 000026273 | P160: MENTAL COMUNITARIO VIRGEN ASUNTA DE CALCA | Q160: 02 | R160: 06 | S160: 04 | T160: 01 | U160: 0206 | V160: 000026273 - MENTAL COMUNITARIO VIRGEN ASUNTA DE CALCA
N161: 137 | O161: 000002342 | P161: AMPARAES | Q161: 02 | R161: 06 | S161: 04 | T161: 04 | U161: 0206 | V161: 000002342 - AMPARAES
N162: 138 | O162: 000002345 | P162: CCACHIN | Q162: 02 | R162: 06 | S162: 04 | T162: 04 | U162: 0206 | V162: 000002345 - CCACHIN
N163: 139 | O163: 000002346 | P163: CHOQUECANCHA | Q163: 02 | R163: 06 | S163: 04 | T163: 04 | U163: 0206 | V163: 000002346 - CHOQUECANCHA
N164: 140 | O164: 000002347 | P164: LARES | Q164: 02 | R164: 06 | S164: 04 | T164: 04 | U164: 0206 | V164: 000002347 - LARES
N165: 141 | O165: 000002361 | P165: SUYO | Q165: 02 | R165: 06 | S165: 04 | T165: 04 | U165: 0206 | V165: 000002361 - SUYO
N166: 142 | O166: 000007144 | P166: PATABAMBA | Q166: 02 | R166: 06 | S166: 04 | T166: 07 | U166: 0206 | V166: 000007144 - PATABAMBA
N167: 143 | O167: 000002515 | P167: PAROBAMBA | Q167: 02 | R167: 06 | S167: 11 | T167: 03 | U167: 0206 | V167: 000002515 - PAROBAMBA
N168: 144 | O168: 000007143 | P168: OTOCANI | Q168: 02 | R168: 06 | S168: 11 | T168: 03 | U168: 0206 | V168: 000007143 - OTOCANI
N169: 145 | O169: 000000000 | P169: (All) | Q169: 02 | R169: 07 | U169: 0207 | V169: 000000000 - (All)
N170: 146 | O170: 000002540 | P170: URUBAMBA | Q170: 02 | R170: 07 | S170: 13 | T170: 01 | U170: 0207 | V170: 000002540 - URUBAMBA
N171: 147 | O171: 000002541 | P171: YANAHUARA | Q171: 02 | R171: 07 | S171: 13 | T171: 01 | U171: 0207 | V171: 000002541 - YANAHUARA
N172: 148 | O172: 000010060 | P172: CAS URUBAMBA -ESSALUD | Q172: 02 | R172: 07 | S172: 13 | T172: 01 | U172: 0207 | V172: 000010060 - CAS URUBAMBA -ESSALUD
N173: 149 | O173: 000030666 | P173: MENTAL COMUNITARIO URUBAMBA | Q173: 02 | R173: 07 | S173: 13 | T173: 01 | U173: 0207 | V173: 000030666 - MENTAL COMUNITARIO URUBAMBA
N174: 150 | O174: 000035851 | P174: URUBAMBA - ESSALUD | Q174: 02 | R174: 07 | S174: 13 | T174: 01 | U174: 0207 | V174: 000035851 - URUBAMBA - ESSALUD
N175: 151 | O175: 000002543 | P175: CHINCHERO | Q175: 02 | R175: 07 | S175: 13 | T175: 02 | U175: 0207 | V175: 000002543 - CHINCHERO
N176: 152 | O176: 000002544 | P176: OCCOTUAN | Q176: 02 | R176: 07 | S176: 13 | T176: 02 | U176: 0207 | V176: 000002544 - OCCOTUAN
N177: 153 | O177: 000002545 | P177: HUAYLLABAMBA | Q177: 02 | R177: 07 | S177: 13 | T177: 03 | U177: 0207 | V177: 000002545 - HUAYLLABAMBA
N178: 154 | O178: 000002546 | P178: MACHUPICCHU | Q178: 02 | R178: 07 | S178: 13 | T178: 04 | U178: 0207 | V178: 000002546 - MACHUPICCHU
N179: 155 | O179: 000002547 | P179: COLLPANI | Q179: 02 | R179: 07 | S179: 13 | T179: 04 | U179: 0207 | V179: 000002547 - COLLPANI
N180: 156 | O180: 000006974 | P180: CAMINO INCA HUAYLLABAMBA | Q180: 02 | R180: 07 | S180: 13 | T180: 04 | U180: 0207 | V180: 000006974 - CAMINO INCA HUAYLLABAMBA
N181: 157 | O181: 000010073 | P181: MACHU PICCHU - ESSALUD | Q181: 02 | R181: 07 | S181: 13 | T181: 04 | U181: 0207 | V181: 000010073 - MACHU PICCHU - ESSALUD
N182: 158 | O182: 000002548 | P182: MARAS | Q182: 02 | R182: 07 | S182: 13 | T182: 05 | U182: 0207 | V182: 000002548 - MARAS
N183: 159 | O183: 000010758 | P183: CRUZPATA | Q183: 02 | R183: 07 | S183: 13 | T183: 05 | U183: 0207 | V183: 000010758 - CRUZPATA
N184: 160 | O184: 000002549 | P184: OLLANTAYTAMBO | Q184: 02 | R184: 07 | S184: 13 | T184: 06 | U184: 0207 | V184: 000002549 - OLLANTAYTAMBO
N185: 161 | O185: 000002550 | P185: CHILLCA | Q185: 02 | R185: 07 | S185: 13 | T185: 06 | U185: 0207 | V185: 000002550 - CHILLCA
N186: 162 | O186: 000010760 | P186: PATACANCHA | Q186: 02 | R186: 07 | S186: 13 | T186: 06 | U186: 0207 | V186: 000010760 - PATACANCHA
N187: 163 | O187: 000002551 | P187: YUCAY | Q187: 02 | R187: 07 | S187: 13 | T187: 07 | U187: 0207 | V187: 000002551 - YUCAY
N188: 164 | O188: 000000000 | P188: (All) | Q188: 02 | R188: 08 | U188: 0208 | V188: 000000000 - (All)
N189: 165 | O189: 000002355 | P189: LA QUEBRADA | Q189: 02 | R189: 08 | S189: 04 | T189: 08 | U189: 0208 | V189: 000002355 - LA QUEBRADA
N190: 166 | O190: 000002356 | P190: CCORIMAYO | Q190: 02 | R190: 08 | S190: 04 | T190: 08 | U190: 0208 | V190: 000002356 - CCORIMAYO
N191: 167 | O191: 000002357 | P191: COLCCA YANATILE | Q191: 02 | R191: 08 | S191: 04 | T191: 08 | U191: 0208 | V191: 000002357 - COLCCA YANATILE
N192: 168 | O192: 000002358 | P192: MUYUPAY | Q192: 02 | R192: 08 | S192: 04 | T192: 08 | U192: 0208 | V192: 000002358 - MUYUPAY
N193: 169 | O193: 000002359 | P193: PUTUCUSI | Q193: 02 | R193: 08 | S193: 04 | T193: 08 | U193: 0208 | V193: 000002359 - PUTUCUSI
N194: 170 | O194: 000002360 | P194: QUESQUENTO | Q194: 02 | R194: 08 | S194: 04 | T194: 08 | U194: 0208 | V194: 000002360 - QUESQUENTO
N195: 171 | O195: 000002362 | P195: HUACHIBAMBA | Q195: 02 | R195: 08 | S195: 04 | T195: 08 | U195: 0208 | V195: 000002362 - HUACHIBAMBA
N196: 172 | O196: 000006971 | P196: COMBAPATA YANATILE | Q196: 02 | R196: 08 | S196: 04 | T196: 08 | U196: 0208 | V196: 000006971 - COMBAPATA YANATILE
N197: 173 | O197: 000006973 | P197: BELLAVISTA | Q197: 02 | R197: 08 | S197: 04 | T197: 08 | U197: 0208 | V197: 000006973 - BELLAVISTA
N198: 174 | O198: 000007142 | P198: CHANCAMAYO | Q198: 02 | R198: 08 | S198: 04 | T198: 08 | U198: 0208 | V198: 000007142 - CHANCAMAYO
N199: 175 | O199: 000002464 | P199: VERSALLES | Q199: 02 | R199: 08 | S199: 09 | T199: 05 | U199: 0208 | V199: 000002464 - VERSALLES
N200: 176 | O200: 000002467 | P200: PUENTE SANTIAGO | Q200: 02 | R200: 08 | S200: 09 | T200: 06 | U200: 0208 | V200: 000002467 - PUENTE SANTIAGO
N201: 177 | O201: 000000000 | P201: (All) | Q201: 02 | R201: 09 | U201: 0209 | V201: 000000000 - (All)
N202: 178 | O202: 000002290 | P202: SAN PEDRO CUSCO | Q202: 02 | R202: 09 | S202: 01 | T202: 01 | U202: 0209 | V202: 000002290 - SAN PEDRO CUSCO
N203: 179 | O203: 000002291 | P203: SIETE CUARTONES | Q203: 02 | R203: 09 | S203: 01 | T203: 01 | U203: 0209 | V203: 000002291 - SIETE CUARTONES
N204: 180 | O204: 000002293 | P204: MIRAFLORES | Q204: 02 | R204: 09 | S204: 01 | T204: 01 | U204: 0209 | V204: 000002293 - MIRAFLORES
N205: =+N204+1 -> 181 | O205: 000002294 | P205: PICCHU LA RINCONADA | Q205: 02 | R205: 09 | S205: 01 | T205: 01 | U205: 0209 | V205: 000002294 - PICCHU LA RINCONADA
N206: 182 | O206: 000002295 | P206: BUENA VISTA | Q206: 02 | R206: 09 | S206: 01 | T206: 01 | U206: 0209 | V206: 000002295 - BUENA VISTA
N207: 183 | O207: 000002299 | P207: POROY | Q207: 02 | R207: 09 | S207: 01 | T207: 03 | U207: 0209 | V207: 000002299 - POROY
N208: 184 | O208: 999999999 | P208: (All) | Q208: 02 | R208: 99 | U208: 0299 | V208: 999999999 - (All)
... 247 more rows

Sheet SUPLEMENTACION
A1: GERENCIA REGIONAL DE SALUD CUSCO
A2: DIRECCION DE ESTADISTICA E INFORMATICA Y TELECOMUNICACION
A3: Estrategia Sanitaria Alimentación y Nutricion Saludable
A4: Informe Mensual de Suplementación Preventiva y Terapeutica
A6: DIRESA | B6: CUSCO | E6: EJECUTORA | G6: =+TABLAS!O14 -> 
A8: RED DE SALUD | B8: =+TABLAS!O9 ->  | E8: PROVINCIA | G8: =+TABLAS!O12 -> 
A10: MICRO RED | B10: =+TABLAS!O10 ->  | E10: DISTRITO | G10: =+TABLAS!O13 -> 
A12: EE.SS. | B12: =+TABLAS!O11 -> 
F14: AÑO | G14: =+TABLAS!J16 -> 2025 | H14: MES | I14: =+TABLAS!N26 -> ENE - MAY
A16: 1. SUPLEMENTACION PREVENTIVA EN NIÑOS MENORES DE 6 MESES | AL16: =+GETPIVOTDATA(" BAS001",TABLAS!$A$59) -> 19
A18: Actividades Operativas | B18: Edad Meses | C18: Mes de Suplementaciòn de hierro | AL18: =+IMPORTARDATOSDINAMICOS(" BAS
C19: 1 Entrega | D19: 2 Entrega | E19: 3 Entrega | F19: TA | AL19: ";TABLAS!$A$59)
A20: Suplementación en < 6 meses | C20: =+GETPIVOTDATA(" BAS001",TABLAS!$A$59) -> 19 | D20: =+GETPIVOTDATA(" BAS002",TABLAS!$A$59) -> 17 | F20: =+GETPIVOTDATA(" BAS003",TABLAS!$A$59) -> 5 | AB20: 1 | AC20: =+AB20+1 -> 2 | AE20: =+AC20+1 -> 3 | AL20: =IF(AB20<9,CONCATENATE($AL$18,"00",AB20,$AL$19),IF(AND(AB20>9,AB20<100),CONCATENATE($AL$18,"0",AB20,$AL$19),IF(AB20>99,CONCATENATE($AL$18,AB20,$AL$19)))) -> =+IMPORTARDATOSDINAMICOS(" BAS001";TABLAS!$A$59) | AM20: =IF(AC20<9,CONCATENATE($AL$18,"00",AC20,$AL$19),IF(AND(AC20>9,AC20<100),CONCATENATE($AL$18,"0",AC20,$AL$19),IF(AC20>99,CONCATENATE($AL$18,AC20,$AL$19)))) -> =+IMPORTARDATOSDINAMICOS(" BAS002";TABLAS!$A$59) | AO20: =+IMPORTARDATOSDINAMICOS(" BAS003";TABLAS!$A$59)
C21: =+GETPIVOTDATA(" BAS004",TABLAS!$A$59) -> 44 | D21: =+GETPIVOTDATA(" BAS005",TABLAS!$A$59) -> 0 | F21: =+GETPIVOTDATA(" BAS006",TABLAS!$A$59) -> 577 | AB21: =+AE20+1 -> 4 | AC21: =+AB21+1 -> 5 | AE21: =+AC21+1 -> 6 | AL21: =IF(AB21<9,CONCATENATE($AL$18,"00",AB21,$AL$19),IF(AND(AB21>9,AB21<100),CONCATENATE($AL$18,"0",AB21,$AL$19),IF(AB21>99,CONCATENATE($AL$18,AB21,$AL$19)))) -> =+IMPORTARDATOSDINAMICOS(" BAS004";TABLAS!$A$59) | AM21: =IF(AC21<9,CONCATENATE($AL$18,"00",AC21,$AL$19),IF(AND(AC21>9,AC21<100),CONCATENATE($AL$18,"0",AC21,$AL$19),IF(AC21>99,CONCATENATE($AL$18,AC21,$AL$19)))) -> =+IMPORTARDATOSDINAMICOS(" BAS005";TABLAS!$A$59) | AO21: =IF(AE21<9,CONCATENATE($AL$18,"00",AE21,$AL$19),IF(AND(AE21>9,AE21<100),CONCATENATE($AL$18,"0",AE21,$AL$19),IF(AE21>99,CONCATENATE($AL$18,AE21,$AL$19)))) -> =+IMPORTARDATOSDINAMICOS(" BAS006";TABLAS!$A$59)
A22: TOTAL | C22: =SUM(C20:C21) -> 63 | E22: =SUM(E20:E21) -> 0 | F22: 0
A24: 2. SUPLEMENTACION PREVENTIVA CON MULTIMICRONUTRIENTE A NIÑOS DE 6 A 59 MESES DE EDAD
A26: Actividades Operativas | H26: TA
B27: 1 Entrega | C27: 2 Entrega | D27: 3 Entrega | E27: 4 Entrega | F27: 5 Entrega | G27: 6 Entrega | AB27: 1 Entrega | AC27: 2 Entrega | AD27: 3 Entrega | AE27: 4 Entrega | AF27: 5 Entrega | AG27: 6 Entrega | AH27: ta | AL27: A | AR27: F
A28: De 6 a 11 meses | B28: =+GETPIVOTDATA(" BAS007",TABLAS!$A$59) -> 4 | C28: =+GETPIVOTDATA(" BAS008",TABLAS!$A$59) -> 4 | D28: =+GETPIVOTDATA(" BAS009",TABLAS!$A$59) -> 4 | E28: =+GETPIVOTDATA(" BAS010",TABLAS!$A$59) -> 2 | F28: =+GETPIVOTDATA(" BAS011",TABLAS!$A$59) -> 0 | G28: =+GETPIVOTDATA(" BAS012",TABLAS!$A$59) -> 0 | H28: =+GETPIVOTDATA(" BAS013",TABLAS!$A$59) -> 0 | AB28: =+AE21+1 -> 7 | AC28: =+AB28+1 -> 8 | AD28: =+AC28+1 -> 9 | AE28: 10 | AF28: 11 | AG28: 12 | AH28: 13 | AL28: =IF(AB28<9,CONCATENATE($AL$18,"00",AB28,$AL$19),IF(AND(AB28>9,AB28<100),CONCATENATE($AL$18,"0",AB28,$AL$19),IF(AB28>99,CONCATENATE($AL$18,AB28,$AL$19)))) -> =+IMPORTARDATOSDINAMICOS(" BAS007";TABLAS!$A$59) | AM28: =IF(AC28<9,CONCATENATE($AL$18,"00",AC28,$AL$19),IF(AND(AC28>9,AC28<100),CONCATENATE($AL$18,"0",AC28,$AL$19),IF(AC28>99,CONCATENATE($AL$18,AC28,$AL$19)))) -> =+IMPORTARDATOSDINAMICOS(" BAS008";TABLAS!$A$59) | AN28: FALSE | AO28: =+IMPORTARDATOSDINAMICOS(" BAS010";TABLAS!$A$59) | AP28: =+IMPORTARDATOSDINAMICOS(" BAS011";TABLAS!$A$59) | AQ28: =+IMPORTARDATOSDINAMICOS(" BAS012";TABLAS!$A$59) | AR28: =+IMPORTARDATOSDINAMICOS(" BAS013";TABLAS!$A$59)
A29: De 1 año | B29: =+GETPIVOTDATA(" BAS014",TABLAS!$A$59) -> 8 | C29: =+GETPIVOTDATA(" BAS015",TABLAS!$A$59) -> 3 | D29: =+GETPIVOTDATA(" BAS016",TABLAS!$A$59) -> 4 | E29: =+GETPIVOTDATA(" BAS017",TABLAS!$A$59) -> 2 | F29: =+GETPIVOTDATA(" BAS018",TABLAS!$A$59) -> 1 | G29: =+GETPIVOTDATA(" BAS019",TABLAS!$A$59) -> 1 | H29: =+GETPIVOTDATA(" BAS020",TABLAS!$A$59) -> 1 | AB29: =+AH28+1 -> 14 | AC29: =+AB29+1 -> 15 | AD29: 16 | AE29: 17 | AF29: 18 | AG29: 19 | AH29: 20 | AL29: =IF(AB29<9,CONCATENATE($AL$18,"00",AB29,$AL$19),IF(AND(AB29>9,AB29<100),CONCATENATE($AL$18,"0",AB29,$AL$19),IF(AB29>99,CONCATENATE($AL$18,AB29,$AL$19)))) -> =+IMPORTARDATOSDINAMICOS(" BAS014";TABLAS!$A$59) | AM29: =IF(AC29<9,CONCATENATE($AL$18,"00",AC29,$AL$19),IF(AND(AC29>9,AC29<100),CONCATENATE($AL$18,"0",AC29,$AL$19),IF(AC29>99,CONCATENATE($AL$18,AC29,$AL$19)))) -> =+IMPORTARDATOSDINAMICOS(" BAS015";TABLAS!$A$59) | AN29: =IF(AD29<9,CONCATENATE($AL$18,"00",AD29,$AL$19),IF(AND(AD29>9,AD29<100),CONCATENATE($AL$18,"0",AD29,$AL$19),IF(AD29>99,CONCATENATE($AL$18,AD29,$AL$19)))) -> =+IMPORTARDATOSDINAMICOS(" BAS016";TABLAS!$A$59) | AO29: =IF(AE29<9,CONCATENATE($AL$18,"00",AE29,$AL$19),IF(AND(AE29>9,AE29<100),CONCATENATE($AL$18,"0",AE29,$AL$19),IF(AE29>99,CONCATENATE($AL$18,AE29,$AL$19)))) -> =+IMPORTARDATOSDINAMICOS(" BAS017";TABLAS!$A$59) | AP29: =IF(AF29<9,CONCATENATE($AL$18,"00",AF29,$AL$19),IF(AND(AF29>9,AF29<100),CONCATENATE($AL$18,"0",AF29,$AL$19),IF(AF29>99,CONCATENATE($AL$18,AF29,$AL$19)))) -> =+IMPORTARDATOSDINAMICOS(" BAS018";TABLAS!$A$59) | AQ29: =IF(AG29<9,CONCATENATE($AL$18,"00",AG29,$AL$19),IF(AND(AG29>9,AG29<100),CONCATENATE($AL$18,"0",AG29,$AL$19),IF(AG29>99,CONCATENATE($AL$18,AG29,$AL$19)))) -> =+IMPORTARDATOSDINAMICOS(" BAS019";TABLAS!$A$59) | AR29: =IF(AH29<9,CONCATENATE($AL$18,"00",AH29,$AL$19),IF(AND(AH29>9,AH29<100),CONCATENATE($AL$18,"0",AH29,$AL$19),IF(AH29>99,CONCATENATE($AL$18,AH29,$AL$19)))) -> =+IMPORTARDATOSDINAMICOS(" BAS020";TABLAS!$A$59)
A30: De 2 año | B30: =+GETPIVOTDATA(" BAS021",TABLAS!$A$59) -> 30 | C30: =+GETPIVOTDATA(" BAS022",TABLAS!$A$59) -> 20 | D30: =+GETPIVOTDATA(" BAS023",TABLAS!$A$59) -> 16 | E30: =+GETPIVOTDATA(" BAS024",TABLAS!$A$59) -> 10 | F30: =+GETPIVOTDATA(" BAS025",TABLAS!$A$59) -> 15 | G30: =+GETPIVOTDATA(" BAS026",TABLAS!$A$59) -> 6 | H30: =+GETPIVOTDATA(" BAS027",TABLAS!$A$59) -> 2 | AB30: =+AH29+1 -> 21 | AC30: =+AB30+1 -> 22 | AD30: 23 | AE30: 24 | AF30: 25 | AG30: 26 | AH30: 27 | AL30: =+IMPORTARDATOSDINAMICOS(" BAS021";TABLAS!$A$59) | AM30: =+IMPORTARDATOSDINAMICOS(" BAS022";TABLAS!$A$59) | AN30: =+IMPORTARDATOSDINAMICOS(" BAS023";TABLAS!$A$59) | AO30: =+IMPORTARDATOSDINAMICOS(" BAS024";TABLAS!$A$59) | AP30: =+IMPORTARDATOSDINAMICOS(" BAS025";TABLAS!$A$59) | AQ30: =+IMPORTARDATOSDINAMICOS(" BAS026";TABLAS!$A$59) | AR30: =+IMPORTARDATOSDINAMICOS(" BAS027";TABLAS!$A$59)
A31: De 3 año | B31: =+GETPIVOTDATA(" BAS028",TABLAS!$A$59) -> 22 | C31: =+GETPIVOTDATA(" BAS029",TABLAS!$A$59) -> 18 | D31: =+GETPIVOTDATA(" BAS030",TABLAS!$A$59) -> 5 | E31: =+GETPIVOTDATA(" BAS031",TABLAS!$A$59) -> 2 | F31: =+GETPIVOTDATA(" BAS032",TABLAS!$A$59) -> 0 | G31: =+GETPIVOTDATA(" BAS033",TABLAS!$A$59) -> 0 | H31: =+GETPIVOTDATA(" BAS034",TABLAS!$A$59) -> 2 | AB31: 28 | AC31: 29 | AD31: 30 | AE31: 31 | AF31: 32 | AG31: 33 | AH31: 34 | AL31: =+IMPORTARDATOSDINAMICOS(" BAS028";TABLAS!$A$59) | AM31: =+IMPORTARDATOSDINAMICOS(" BAS029";TABLAS!$A$59) | AN31: =+IMPORTARDATOSDINAMICOS(" BAS030";TABLAS!$A$59) | AO31: =+IMPORTARDATOSDINAMICOS(" BAS031";TABLAS!$A$59) | AP31: =+IMPORTARDATOSDINAMICOS(" BAS032";TABLAS!$A$59) | AQ31: =+IMPORTARDATOSDINAMICOS(" BAS033";TABLAS!$A$59) | AR31: =+IMPORTARDATOSDINAMICOS(" BAS034";TABLAS!$A$59)
A32: De 4 año | B32: =+GETPIVOTDATA(" BAS035",TABLAS!$A$59) -> 14 | C32: =+GETPIVOTDATA(" BAS036",TABLAS!$A$59) -> 7 | D32: =+GETPIVOTDATA(" BAS037",TABLAS!$A$59) -> 2 | E32: =+GETPIVOTDATA(" BAS038",TABLAS!$A$59) -> 0 | F32: =+GETPIVOTDATA(" BAS039",TABLAS!$A$59) -> 0 | G32: =+GETPIVOTDATA(" BAS040",TABLAS!$A$59) -> 0 | H32: =+GETPIVOTDATA(" BAS041",TABLAS!$A$59) -> 8 | AB32: 35 | AC32: 36 | AD32: 37 | AE32: 38 | AF32: 39 | AG32: 40 | AH32: 41 | AL32: =+IMPORTARDATOSDINAMICOS(" BAS035";TABLAS!$A$59) | AM32: =+IMPORTARDATOSDINAMICOS(" BAS036";TABLAS!$A$59) | AN32: =+IMPORTARDATOSDINAMICOS(" BAS037";TABLAS!$A$59) | AO32: =+IMPORTARDATOSDINAMICOS(" BAS038";TABLAS!$A$59) | AP32: =+IMPORTARDATOSDINAMICOS(" BAS039";TABLAS!$A$59) | AQ32: =+IMPORTARDATOSDINAMICOS(" BAS040";TABLAS!$A$59) | AR32: =+IMPORTARDATOSDINAMICOS(" BAS041";TABLAS!$A$59)
A33: Total | B33: =SUM(B28:B31) -> 64 | C33: 45 | D33: 29 | E33: 16 | F33: 16 | G33: 7 | H33: =SUM(H29:H32) -> 13
A35: 3. SUPLEMENTACION PREVENTIVA CON SULFATO FERROSO O POLIMALTOSADO DE 6 MESES A 17 AÑOS
A37: Actividades Operativas | B37: SUPLEMENTACION CON SULFATO FERROSO O POLIMALTOSADO | H37: TA
B38: 1 Entrega | C38: 2 Entrega | D38: 3 Entrega | E38: 4 Entrega | F38: 5 Entrega | G38: 6 Entrega | AL38: A | AR38: G
A39: De 6 a 11 meses | B39: =+GETPIVOTDATA(" BAS042",TABLAS!$A$59) -> 660 | C39: =+GETPIVOTDATA(" BAS043",TABLAS!$A$59) -> 623 | D39: =+GETPIVOTDATA(" BAS044",TABLAS!$A$59) -> 577 | E39: =+GETPIVOTDATA(" BAS045",TABLAS!$A$59) -> 131 | F39: =+GETPIVOTDATA(" BAS046",TABLAS!$A$59) -> 90 | G39: =+GETPIVOTDATA(" BAS047",TABLAS!$A$59) -> 67 | H39: =+GETPIVOTDATA(" BAS048",TABLAS!$A$59) -> 588 | AB39: =+AH32+1 -> 42 | AC39: =+AB39+1 -> 43 | AD39: =+AC39+1 -> 44 | AE39: 45 | AF39: 46 | AG39: 47 | AH39: 48 | AL39: =IF(AB39<9,CONCATENATE($AL$18,"00",AB39,$AL$19),IF(AND(AB39>9,AB39<100),CONCATENATE($AL$18,"0",AB39,$AL$19),IF(AB39>99,CONCATENATE($AL$18,AB39,$AL$19)))) -> =+IMPORTARDATOSDINAMICOS(" BAS042";TABLAS!$A$59) | AM39: =IF(AC39<9,CONCATENATE($AL$18,"00",AC39,$AL$19),IF(AND(AC39>9,AC39<100),CONCATENATE($AL$18,"0",AC39,$AL$19),IF(AC39>99,CONCATENATE($AL$18,AC39,$AL$19)))) -> =+IMPORTARDATOSDINAMICOS(" BAS043";TABLAS!$A$59) | AN39: =IF(AD39<9,CONCATENATE($AL$18,"00",AD39,$AL$19),IF(AND(AD39>9,AD39<100),CONCATENATE($AL$18,"0",AD39,$AL$19),IF(AD39>99,CONCATENATE($AL$18,AD39,$AL$19)))) -> =+IMPORTARDATOSDINAMICOS(" BAS044";TABLAS!$A$59) | AO39: =IF(AE39<9,CONCATENATE($AL$18,"00",AE39,$AL$19),IF(AND(AE39>9,AE39<100),CONCATENATE($AL$18,"0",AE39,$AL$19),IF(AE39>99,CONCATENATE($AL$18,AE39,$AL$19)))) -> =+IMPORTARDATOSDINAMICOS(" BAS045";TABLAS!$A$59) | AP39: =IF(AF39<9,CONCATENATE($AL$18,"00",AF39,$AL$19),IF(AND(AF39>9,AF39<100),CONCATENATE($AL$18,"0",AF39,$AL$19),IF(AF39>99,CONCATENATE($AL$18,AF39,$AL$19)))) -> =+IMPORTARDATOSDINAMICOS(" BAS046";TABLAS!$A$59) | AQ39: =IF(AG39<9,CONCATENATE($AL$18,"00",AG39,$AL$19),IF(AND(AG39>9,AG39<100),CONCATENATE($AL$18,"0",AG39,$AL$19),IF(AG39>99,CONCATENATE($AL$18,AG39,$AL$19)))) -> =+IMPORTARDATOSDINAMICOS(" BAS047";TABLAS!$A$59) | AR39: =IF(AH39<9,CONCATENATE($AL$18,"00",AH39,$AL$19),IF(AND(AH39>9,AH39<100),CONCATENATE($AL$18,"0",AH39,$AL$19),IF(AH39>99,CONCATENATE($AL$18,AH39,$AL$19)))) -> =+IMPORTARDATOSDINAMICOS(" BAS048";TABLAS!$A$59)
A40: De 1 año | B40: =+GETPIVOTDATA(" BAS049",TABLAS!$A$59) -> 776 | C40: =+GETPIVOTDATA(" BAS050",TABLAS!$A$59) -> 698 | D40: =+GETPIVOTDATA(" BAS051",TABLAS!$A$59) -> 636 | E40: =+GETPIVOTDATA(" BAS052",TABLAS!$A$59) -> 538 | F40: =+GETPIVOTDATA(" BAS053",TABLAS!$A$59) -> 399 | G40: =+GETPIVOTDATA(" BAS054",TABLAS!$A$59) -> 307 | H40: =+GETPIVOTDATA(" BAS055",TABLAS!$A$59) -> 763 | AB40: =+AH39+1 -> 49 | AC40: =+AB40+1 -> 50 | AD40: 51 | AE40: 52 | AF40: 53 | AG40: 54 | AH40: 55 | AL40: =IF(AB40<9,CONCATENATE($AL$18,"00",AB40,$AL$19),IF(AND(AB40>9,AB40<100),CONCATENATE($AL$18,"0",AB40,$AL$19),IF(AB40>99,CONCATENATE($AL$18,AB40,$AL$19)))) -> =+IMPORTARDATOSDINAMICOS(" BAS049";TABLAS!$A$59) | AM40: =IF(AC40<9,CONCATENATE($AL$18,"00",AC40,$AL$19),IF(AND(AC40>9,AC40<100),CONCATENATE($AL$18,"0",AC40,$AL$19),IF(AC40>99,CONCATENATE($AL$18,AC40,$AL$19)))) -> =+IMPORTARDATOSDINAMICOS(" BAS050";TABLAS!$A$59) | AN40: =IF(AD40<9,CONCATENATE($AL$18,"00",AD40,$AL$19),IF(AND(AD40>9,AD40<100),CONCATENATE($AL$18,"0",AD40,$AL$19),IF(AD40>99,CONCATENATE($AL$18,AD40,$AL$19)))) -> =+IMPORTARDATOSDINAMICOS(" BAS051";TABLAS!$A$59) | AO40: =IF(AE40<9,CONCATENATE($AL$18,"00",AE40,$AL$19),IF(AND(AE40>9,AE40<100),CONCATENATE($AL$18,"0",AE40,$AL$19),IF(AE40>99,CONCATENATE($AL$18,AE40,$AL$19)))) -> =+IMPORTARDATOSDINAMICOS(" BAS052";TABLAS!$A$59) | AP40: =IF(AF40<9,CONCATENATE($AL$18,"00",AF40,$AL$19),IF(AND(AF40>9,AF40<100),CONCATENATE($AL$18,"0",AF40,$AL$19),IF(AF40>99,CONCATENATE($AL$18,AF40,$AL$19)))) -> =+IMPORTARDATOSDINAMICOS(" BAS053";TABLAS!$A$59) | AQ40: =IF(AG40<9,CONCATENATE($AL$18,"00",AG40,$AL$19),IF(AND(AG40>9,AG40<100),CONCATENATE($AL$18,"0",AG40,$AL$19),IF(AG40>99,CONCATENATE($AL$18,AG40,$AL$19)))) -> =+IMPORTARDATOSDINAMICOS(" BAS054";TABLAS!$A$59) | AR40: =IF(AH40<9,CONCATENATE($AL$18,"00",AH40,$AL$19),IF(AND(AH40>9,AH40<100),CONCATENATE($AL$18,"0",AH40,$AL$19),IF(AH40>99,CONCATENATE($AL$18,AH40,$AL$19)))) -> =+IMPORTARDATOSDINAMICOS(" BAS055";TABLAS!$A$59)
A41: De 2 años | B41: =+GETPIVOTDATA(" BAS056",TABLAS!$A$59) -> 671 | C41: =+GETPIVOTDATA(" BAS057",TABLAS!$A$59) -> 557 | D41: =+GETPIVOTDATA(" BAS058",TABLAS!$A$59) -> 475 | E41: =+GETPIVOTDATA(" BAS059",TABLAS!$A$59) -> 434 | F41: =+GETPIVOTDATA(" BAS060",TABLAS!$A$59) -> 303 | G41: =+GETPIVOTDATA(" BAS061",TABLAS!$A$59) -> 259 | H41: =+GETPIVOTDATA(" BAS062",TABLAS!$A$59) -> 341 | AB41: =+AH40+1 -> 56 | AC41: =+AB41+1 -> 57 | AD41: 58 | AE41: 59 | AF41: 60 | AG41: 61 | AH41: 62 | AL41: =+IMPORTARDATOSDINAMICOS(" BAS056";TABLAS!$A$59) | AM41: =+IMPORTARDATOSDINAMICOS(" BAS057";TABLAS!$A$59) | AN41: =+IMPORTARDATOSDINAMICOS(" BAS058";TABLAS!$A$59) | AO41: =+IMPORTARDATOSDINAMICOS(" BAS059";TABLAS!$A$59) | AP41: =+IMPORTARDATOSDINAMICOS(" BAS060";TABLAS!$A$59) | AQ41: =+IMPORTARDATOSDINAMICOS(" BAS061";TABLAS!$A$59) | AR41: =+IMPORTARDATOSDINAMICOS(" BAS062";TABLAS!$A$59)
A42: De 3 años | B42: =+GETPIVOTDATA(" BAS063",TABLAS!$A$59) -> 650 | C42: =+GETPIVOTDATA(" BAS064",TABLAS!$A$59) -> 555 | D42: =+GETPIVOTDATA(" BAS065",TABLAS!$A$59) -> 406 | E42: =+GETPIVOTDATA(" BAS066",TABLAS!$A$59) -> 78 | F42: =+GETPIVOTDATA(" BAS067",TABLAS!$A$59) -> 48 | G42: =+GETPIVOTDATA(" BAS068",TABLAS!$A$59) -> 40 | H42: =+GETPIVOTDATA(" BAS069",TABLAS!$A$59) -> 384 | AB42: 63 | AC42: 64 | AD42: 65 | AE42: 66 | AF42: 67 | AG42: 68 | AH42: 69 | AL42: =+IMPORTARDATOSDINAMICOS(" BAS063";TABLAS!$A$59) | AM42: =+IMPORTARDATOSDINAMICOS(" BAS064";TABLAS!$A$59) | AN42: =+IMPORTARDATOSDINAMICOS(" BAS065";TABLAS!$A$59) | AO42: =+IMPORTARDATOSDINAMICOS(" BAS066";TABLAS!$A$59) | AP42: =+IMPORTARDATOSDINAMICOS(" BAS067";TABLAS!$A$59) | AQ42: =+IMPORTARDATOSDINAMICOS(" BAS068";TABLAS!$A$59) | AR42: =+IMPORTARDATOSDINAMICOS(" BAS069";TABLAS!$A$59)
A43: De 4 años | B43: =+GETPIVOTDATA(" BAS070",TABLAS!$A$59) -> 668 | C43: =+GETPIVOTDATA(" BAS071",TABLAS!$A$59) -> 460 | D43: =+GETPIVOTDATA(" BAS072",TABLAS!$A$59) -> 292 | E43: =+GETPIVOTDATA(" BAS073",TABLAS!$A$59) -> 46 | F43: =+GETPIVOTDATA(" BAS074",TABLAS!$A$59) -> 40 | G43: =+GETPIVOTDATA(" BAS075",TABLAS!$A$59) -> 34 | H43: =+GETPIVOTDATA(" BAS076",TABLAS!$A$59) -> 217 | AB43: 70 | AC43: 71 | AD43: 72 | AE43: 73 | AF43: 74 | AG43: 75 | AH43: 76 | AL43: =+IMPORTARDATOSDINAMICOS(" BAS070";TABLAS!$A$59) | AM43: =+IMPORTARDATOSDINAMICOS(" BAS071";TABLAS!$A$59) | AN43: =+IMPORTARDATOSDINAMICOS(" BAS072";TABLAS!$A$59) | AO43: =+IMPORTARDATOSDINAMICOS(" BAS073";TABLAS!$A$59) | AP43: =+IMPORTARDATOSDINAMICOS(" BAS074";TABLAS!$A$59) | AQ43: =+IMPORTARDATOSDINAMICOS(" BAS075";TABLAS!$A$59) | AR43: =+IMPORTARDATOSDINAMICOS(" BAS076";TABLAS!$A$59)
A44: De 5 a 11 años | B44: =+GETPIVOTDATA(" BAS077",TABLAS!$A$59) -> 843 | C44: =+GETPIVOTDATA(" BAS078",TABLAS!$A$59) -> 219 | D44: =+GETPIVOTDATA(" BAS079",TABLAS!$A$59) -> 99 | E44: =+GETPIVOTDATA(" BAS080",TABLAS!$A$59) -> 13 | F44: =+GETPIVOTDATA(" BAS081",TABLAS!$A$59) -> 13 | G44: =+GETPIVOTDATA(" BAS082",TABLAS!$A$59) -> 6 | H44: =+GETPIVOTDATA(" BAS083",TABLAS!$A$59) -> 26 | AB44: 77 | AC44: 78 | AD44: 79 | AE44: 80 | AF44: 81 | AG44: 82 | AH44: 83 | AL44: =+IMPORTARDATOSDINAMICOS(" BAS077";TABLAS!$A$59) | AM44: =+IMPORTARDATOSDINAMICOS(" BAS078";TABLAS!$A$59) | AN44: =+IMPORTARDATOSDINAMICOS(" BAS079";TABLAS!$A$59) | AO44: =+IMPORTARDATOSDINAMICOS(" BAS080";TABLAS!$A$59) | AP44: =+IMPORTARDATOSDINAMICOS(" BAS081";TABLAS!$A$59) | AQ44: =+IMPORTARDATOSDINAMICOS(" BAS082";TABLAS!$A$59) | AR44: =+IMPORTARDATOSDINAMICOS(" BAS083";TABLAS!$A$59)
A45: De 12 a 17 años | B45: =+GETPIVOTDATA(" BAS084",TABLAS!$A$59) -> 43 | C45: =+GETPIVOTDATA(" BAS085",TABLAS!$A$59) -> 4 | D45: =+GETPIVOTDATA(" BAS086",TABLAS!$A$59) -> 0 | E45: =+GETPIVOTDATA(" BAS087",TABLAS!$A$59) -> 0 | F45: =+GETPIVOTDATA(" BAS088",TABLAS!$A$59) -> 1 | G45: =+GETPIVOTDATA(" BAS089",TABLAS!$A$59) -> 1 | H45: =+GETPIVOTDATA(" BAS090",TABLAS!$A$59) -> 1 | AB45: 84 | AC45: 85 | AD45: 86 | AE45: 87 | AF45: 88 | AG45: 89 | AH45: 90 | AL45: =+IMPORTARDATOSDINAMICOS(" BAS084";TABLAS!$A$59) | AM45: =+IMPORTARDATOSDINAMICOS(" BAS085";TABLAS!$A$59) | AN45: =+IMPORTARDATOSDINAMICOS(" BAS086";TABLAS!$A$59) | AO45: =+IMPORTARDATOSDINAMICOS(" BAS087";TABLAS!$A$59) | AP45: =+IMPORTARDATOSDINAMICOS(" BAS088";TABLAS!$A$59) | AQ45: =+IMPORTARDATOSDINAMICOS(" BAS089";TABLAS!$A$59) | AR45: =+IMPORTARDATOSDINAMICOS(" BAS090";TABLAS!$A$59)
A46: TOTAL | B46: =SUM(B39:B43) -> 3425 | C46: 2893 | D46: 2386 | E46: 1227 | F46: 880 | G46: 707 | H46: =SUM(H40:H43) -> 1705
A48: 9. SUPLEMENTACION PREVENTIVA CON HIERRO EN MEF, GESTANTES Y PUERPERAS
A50: Actividades Operativas | B50: SUPLEMENTACION CON SULFATO FERROSO O POLIMALTOSADO | H50: TA
B51: 1 Entrega | C51: 2 Entrega | D51: 3 Entrega | E51: 4 Entrega | F51: 5 Entrega | G51: 6 Entrega | AL51: A | AR51: G
A52: MEF | B52: =+GETPIVOTDATA(" BAS091",TABLAS!$A$59) -> 67 | C52: =+GETPIVOTDATA(" BAS092",TABLAS!$A$59) -> 17 | D52: =+GETPIVOTDATA(" BAS093",TABLAS!$A$59) -> 0 | E52: =+GETPIVOTDATA(" BAS094",TABLAS!$A$59) -> 0 | F52: =+GETPIVOTDATA(" BAS095",TABLAS!$A$59) -> 0 | G52: =+GETPIVOTDATA(" BAS096",TABLAS!$A$59) -> 1 | H52: =+GETPIVOTDATA(" BAS097",TABLAS!$A$59) -> 27 | AB52: =+AH45+1 -> 91 | AC52: =+AB52+1 -> 92 | AD52: =+AC52+1 -> 93 | AE52: 94 | AF52: 95 | AG52: 96 | AH52: 97 | AL52: =IF(AB52<9,CONCATENATE($AL$18,"00",AB52,$AL$19),IF(AND(AB52>9,AB52<100),CONCATENATE($AL$18,"0",AB52,$AL$19),IF(AB52>99,CONCATENATE($AL$18,AB52,$AL$19)))) -> =+IMPORTARDATOSDINAMICOS(" BAS091";TABLAS!$A$59) | AM52: =IF(AC52<9,CONCATENATE($AL$18,"00",AC52,$AL$19),IF(AND(AC52>9,AC52<100),CONCATENATE($AL$18,"0",AC52,$AL$19),IF(AC52>99,CONCATENATE($AL$18,AC52,$AL$19)))) -> =+IMPORTARDATOSDINAMICOS(" BAS092";TABLAS!$A$59) | AN52: =IF(AD52<9,CONCATENATE($AL$18,"00",AD52,$AL$19),IF(AND(AD52>9,AD52<100),CONCATENATE($AL$18,"0",AD52,$AL$19),IF(AD52>99,CONCATENATE($AL$18,AD52,$AL$19)))) -> =+IMPORTARDATOSDINAMICOS(" BAS093";TABLAS!$A$59) | AO52: =IF(AE52<9,CONCATENATE($AL$18,"00",AE52,$AL$19),IF(AND(AE52>9,AE52<100),CONCATENATE($AL$18,"0",AE52,$AL$19),IF(AE52>99,CONCATENATE($AL$18,AE52,$AL$19)))) -> =+IMPORTARDATOSDINAMICOS(" BAS094";TABLAS!$A$59) | AP52: =IF(AF52<9,CONCATENATE($AL$18,"00",AF52,$AL$19),IF(AND(AF52>9,AF52<100),CONCATENATE($AL$18,"0",AF52,$AL$19),IF(AF52>99,CONCATENATE($AL$18,AF52,$AL$19)))) -> =+IMPORTARDATOSDINAMICOS(" BAS095";TABLAS!$A$59) | AQ52: =IF(AG52<9,CONCATENATE($AL$18,"00",AG52,$AL$19),IF(AND(AG52>9,AG52<100),CONCATENATE($AL$18,"0",AG52,$AL$19),IF(AG52>99,CONCATENATE($AL$18,AG52,$AL$19)))) -> =+IMPORTARDATOSDINAMICOS(" BAS096";TABLAS!$A$59) | AR52: =IF(AH52<9,CONCATENATE($AL$18,"00",AH52,$AL$19),IF(AND(AH52>9,AH52<100),CONCATENATE($AL$18,"0",AH52,$AL$19),IF(AH52>99,CONCATENATE($AL$18,AH52,$AL$19)))) -> =+IMPORTARDATOSDINAMICOS(" BAS097";TABLAS!$A$59)
A53: GESTANTES | B53: =+GETPIVOTDATA(" BAS098",TABLAS!$A$59) -> 510 | C53: =+GETPIVOTDATA(" BAS099",TABLAS!$A$59) -> 210 | D53: =+GETPIVOTDATA(" BAS100",TABLAS!$A$59) -> 5 | E53: =+GETPIVOTDATA(" BAS101",TABLAS!$A$59) -> 0 | F53: =+GETPIVOTDATA(" BAS102",TABLAS!$A$59) -> 0 | G53: =+GETPIVOTDATA(" BAS103",TABLAS!$A$59) -> 0 | H53: =+GETPIVOTDATA(" BAS104",TABLAS!$A$59) -> 0 | AB53: =+AH52+1 -> 98 | AC53: =+AB53+1 -> 99 | AD53: 100 | AE53: 101 | AF53: 102 | AG53: 103 | AH53: 104 | AL53: =IF(AB53<9,CONCATENATE($AL$18,"00",AB53,$AL$19),IF(AND(AB53>9,AB53<100),CONCATENATE($AL$18,"0",AB53,$AL$19),IF(AB53>99,CONCATENATE($AL$18,AB53,$AL$19)))) -> =+IMPORTARDATOSDINAMICOS(" BAS098";TABLAS!$A$59) | AM53: =IF(AC53<9,CONCATENATE($AL$18,"00",AC53,$AL$19),IF(AND(AC53>9,AC53<100),CONCATENATE($AL$18,"0",AC53,$AL$19),IF(AC53>99,CONCATENATE($AL$18,AC53,$AL$19)))) -> =+IMPORTARDATOSDINAMICOS(" BAS099";TABLAS!$A$59) | AN53: =IF(AD53<9,CONCATENATE($AL$18,"00",AD53,$AL$19),IF(AND(AD53>9,AD53<100),CONCATENATE($AL$18,"0",AD53,$AL$19),IF(AD53>99,CONCATENATE($AL$18,AD53,$AL$19)))) -> =+IMPORTARDATOSDINAMICOS(" BAS100";TABLAS!$A$59) | AO53: =IF(AE53<9,CONCATENATE($AL$18,"00",AE53,$AL$19),IF(AND(AE53>9,AE53<100),CONCATENATE($AL$18,"0",AE53,$AL$19),IF(AE53>99,CONCATENATE($AL$18,AE53,$AL$19)))) -> =+IMPORTARDATOSDINAMICOS(" BAS101";TABLAS!$A$59) | AP53: =IF(AF53<9,CONCATENATE($AL$18,"00",AF53,$AL$19),IF(AND(AF53>9,AF53<100),CONCATENATE($AL$18,"0",AF53,$AL$19),IF(AF53>99,CONCATENATE($AL$18,AF53,$AL$19)))) -> =+IMPORTARDATOSDINAMICOS(" BAS102";TABLAS!$A$59) | AQ53: =IF(AG53<9,CONCATENATE($AL$18,"00",AG53,$AL$19),IF(AND(AG53>9,AG53<100),CONCATENATE($AL$18,"0",AG53,$AL$19),IF(AG53>99,CONCATENATE($AL$18,AG53,$AL$19)))) -> =+IMPORTARDATOSDINAMICOS(" BAS103";TABLAS!$A$59) | AR53: =IF(AH53<9,CONCATENATE($AL$18,"00",AH53,$AL$19),IF(AND(AH53>9,AH53<100),CONCATENATE($AL$18,"0",AH53,$AL$19),IF(AH53>99,CONCATENATE($AL$18,AH53,$AL$19)))) -> =+IMPORTARDATOSDINAMICOS(" BAS104";TABLAS!$A$59)
A54: PUERPERA | B54: =+GETPIVOTDATA(" BAS105",TABLAS!$A$59) -> 12 | C54: =+GETPIVOTDATA(" BAS106",TABLAS!$A$59) -> 0 | D54: =+GETPIVOTDATA(" BAS107",TABLAS!$A$59) -> 0 | E54: =+GETPIVOTDATA(" BAS108",TABLAS!$A$59) -> 0 | F54: =+GETPIVOTDATA(" BAS109",TABLAS!$A$59) -> 0 | G54: =+GETPIVOTDATA(" BAS110",TABLAS!$A$59) -> 0 | H54: =+GETPIVOTDATA(" BAS111",TABLAS!$A$59) -> 398 | AB54: =+AH53+1 -> 105 | AC54: =+AB54+1 -> 106 | AD54: 107 | AE54: 108 | AF54: 109 | AG54: 110 | AH54: 111 | AL54: =+IMPORTARDATOSDINAMICOS(" BAS105";TABLAS!$A$59) | AM54: =+IMPORTARDATOSDINAMICOS(" BAS106";TABLAS!$A$59) | AN54: =+IMPORTARDATOSDINAMICOS(" BAS107";TABLAS!$A$59) | AO54: =+IMPORTARDATOSDINAMICOS(" BAS108";TABLAS!$A$59) | AP54: =+IMPORTARDATOSDINAMICOS(" BAS109";TABLAS!$A$59) | AQ54: =+IMPORTARDATOSDINAMICOS(" BAS110";TABLAS!$A$59) | AR54: =+IMPORTARDATOSDINAMICOS(" BAS111";TABLAS!$A$59)
A55: TOTAL | B55: =SUM(B52:B53) -> 577 | C55: 227 | D55: 5 | E55: 0 | F55: 0 | G55: 1 | H55: =SUM(H53:H53) -> 0
A57: 4. SUPLEMENTACION CON VITAMINA A | F57: 5. CONSEJERIA NUTRICIONAL
A59: Vitamina. "A" | C59: EJEC | F59: EDAD | H59: 1 | I59: 2 | J59: 3
A60: 6-11 meses | B60: 1° dosis | C60: =+GETPIVOTDATA(" BAS112",TABLAS!$A$59) -> 189 | F60: RN c/BP o Prematuro | H60: =+GETPIVOTDATA(" BAS123",TABLAS!$A$59) -> 0 | I60: =+GETPIVOTDATA(" BAS124",TABLAS!$A$59) -> 0 | J60: =+GETPIVOTDATA(" BAS125",TABLAS!$A$59) -> 0 | AB60: =+AH54+1 -> 112 | AD60: =+AB70+1 -> 123 | AE60: =+AD60+1 -> 124 | AF60: =+AE60+1 -> 125 | AL60: =IF(AB60<9,CONCATENATE($AL$18,"00",AB60,$AL$19),IF(AND(AB60>9,AB60<100),CONCATENATE($AL$18,"0",AB60,$AL$19),IF(AB60>99,CONCATENATE($AL$18,AB60,$AL$19)))) -> =+IMPORTARDATOSDINAMICOS(" BAS112";TABLAS!$A$59) | AN60: =IF(AD60<9,CONCATENATE($AL$18,"00",AD60,$AL$19),IF(AND(AD60>9,AD60<100),CONCATENATE($AL$18,"0",AD60,$AL$19),IF(AD60>99,CONCATENATE($AL$18,AD60,$AL$19)))) -> =+IMPORTARDATOSDINAMICOS(" BAS123";TABLAS!$A$59) | AO60: =IF(AE60<9,CONCATENATE($AL$18,"00",AE60,$AL$19),IF(AND(AE60>9,AE60<100),CONCATENATE($AL$18,"0",AE60,$AL$19),IF(AE60>99,CONCATENATE($AL$18,AE60,$AL$19)))) -> =+IMPORTARDATOSDINAMICOS(" BAS124";TABLAS!$A$59) | AP60: =IF(AF60<9,CONCATENATE($AL$18,"00",AF60,$AL$19),IF(AND(AF60>9,AF60<100),CONCATENATE($AL$18,"0",AF60,$AL$19),IF(AF60>99,CONCATENATE($AL$18,AF60,$AL$19)))) -> =+IMPORTARDATOSDINAMICOS(" BAS125";TABLAS!$A$59)
A61: 12-23 meses 1a | B61: 1° dosis | C61: =+GETPIVOTDATA(" BAS113",TABLAS!$A$59) -> 271 | F61: 4 a 5 meses | H61: =+GETPIVOTDATA(" BAS126",TABLAS!$A$59) -> 0 | I61: =+GETPIVOTDATA(" BAS127",TABLAS!$A$59) -> 0 | J61: =+GETPIVOTDATA(" BAS128",TABLAS!$A$59) -> 0 | AB61: =+AB60+1 -> 113 | AD61: =+AF60+1 -> 126 | AE61: =+AD61+1 -> 127 | AF61: 128 | AL61: =+IMPORTARDATOSDINAMICOS(" BAS113";TABLAS!$A$59) | AN61: =IF(AD61<9,CONCATENATE($AL$18,"00",AD61,$AL$19),IF(AND(AD61>9,AD61<100),CONCATENATE($AL$18,"0",AD61,$AL$19),IF(AD61>99,CONCATENATE($AL$18,AD61,$AL$19)))) -> =+IMPORTARDATOSDINAMICOS(" BAS126";TABLAS!$A$59) | AO61: =+IMPORTARDATOSDINAMICOS(" BAS127";TABLAS!$A$59) | AP61: =IF(AF61<9,CONCATENATE($AL$18,"00",AF61,$AL$19),IF(AND(AF61>9,AF61<100),CONCATENATE($AL$18,"0",AF61,$AL$19),IF(AF61>99,CONCATENATE($AL$18,AF61,$AL$19)))) -> =+IMPORTARDATOSDINAMICOS(" BAS128";TABLAS!$A$59)
B62: 2° dosis | C62: =+GETPIVOTDATA(" BAS114",TABLAS!$A$59) -> 227 | F62: 6 - 11 meses | H62: =+GETPIVOTDATA(" BAS129",TABLAS!$A$59) -> 313 | I62: =+GETPIVOTDATA(" BAS130",TABLAS!$A$59) -> 234 | J62: =+GETPIVOTDATA(" BAS131",TABLAS!$A$59) -> 197 | AB62: =+AB61+1 -> 114 | AD62: =+AF61+1 -> 129 | AE62: =+AD62+1 -> 130 | AF62: 131 | AL62: =+IMPORTARDATOSDINAMICOS(" BAS114";TABLAS!$A$59) | AN62: =+IMPORTARDATOSDINAMICOS(" BAS129";TABLAS!$A$59) | AO62: =+IMPORTARDATOSDINAMICOS(" BAS130";TABLAS!$A$59) | AP62: =+IMPORTARDATOSDINAMICOS(" BAS131";TABLAS!$A$59)
A63: 24-35 meses 2a | B63: 1° dosis | C63: =+GETPIVOTDATA(" BAS115",TABLAS!$A$59) -> 251 | F63: De 1 año | H63: =+GETPIVOTDATA(" BAS132",TABLAS!$A$59) -> 579 | I63: =+GETPIVOTDATA(" BAS133",TABLAS!$A$59) -> 565 | J63: =+GETPIVOTDATA(" BAS134",TABLAS!$A$59) -> 511 | AB63: 115 | AD63: 132 | AE63: 133 | AF63: 134 | AL63: =+IMPORTARDATOSDINAMICOS(" BAS115";TABLAS!$A$59) | AN63: =+IMPORTARDATOSDINAMICOS(" BAS132";TABLAS!$A$59) | AO63: =+IMPORTARDATOSDINAMICOS(" BAS133";TABLAS!$A$59) | AP63: =+IMPORTARDATOSDINAMICOS(" BAS134";TABLAS!$A$59)
B64: 2° dosis | C64: =+GETPIVOTDATA(" BAS116",TABLAS!$A$59) -> 212 | F64: De 2 años | H64: =+GETPIVOTDATA(" BAS135",TABLAS!$A$59) -> 534 | I64: =+GETPIVOTDATA(" BAS136",TABLAS!$A$59) -> 440 | J64: =+GETPIVOTDATA(" BAS137",TABLAS!$A$59) -> 383 | AB64: 116 | AD64: 135 | AE64: 136 | AF64: 137 | AL64: =+IMPORTARDATOSDINAMICOS(" BAS116";TABLAS!$A$59) | AN64: =+IMPORTARDATOSDINAMICOS(" BAS135";TABLAS!$A$59) | AO64: =+IMPORTARDATOSDINAMICOS(" BAS136";TABLAS!$A$59) | AP64: =+IMPORTARDATOSDINAMICOS(" BAS137";TABLAS!$A$59)
A65: 36-47 meses 3a | B65: 1° dosis | C65: =+GETPIVOTDATA(" BAS117",TABLAS!$A$59) -> 262 | F65: De 3 años | H65: =+GETPIVOTDATA(" BAS138",TABLAS!$A$59) -> 513 | I65: =+GETPIVOTDATA(" BAS139",TABLAS!$A$59) -> 423 | J65: =+GETPIVOTDATA(" BAS140",TABLAS!$A$59) -> 338 | AB65: 117 | AD65: 138 | AE65: 139 | AF65: 140 | AL65: =+IMPORTARDATOSDINAMICOS(" BAS117";TABLAS!$A$59) | AN65: =+IMPORTARDATOSDINAMICOS(" BAS138";TABLAS!$A$59) | AO65: =+IMPORTARDATOSDINAMICOS(" BAS139";TABLAS!$A$59) | AP65: =+IMPORTARDATOSDINAMICOS(" BAS140";TABLAS!$A$59)
B66: 2° dosis | C66: =+GETPIVOTDATA(" BAS118",TABLAS!$A$59) -> 162 | F66: De 4 años | H66: =+GETPIVOTDATA(" BAS141",TABLAS!$A$59) -> 553 | I66: =+GETPIVOTDATA(" BAS142",TABLAS!$A$59) -> 370 | J66: =+GETPIVOTDATA(" BAS143",TABLAS!$A$59) -> 236 | AB66: 118 | AD66: 141 | AE66: 142 | AF66: 143 | AL66: =+IMPORTARDATOSDINAMICOS(" BAS118";TABLAS!$A$59) | AN66: =+IMPORTARDATOSDINAMICOS(" BAS141";TABLAS!$A$59) | AO66: =+IMPORTARDATOSDINAMICOS(" BAS142";TABLAS!$A$59) | AP66: =+IMPORTARDATOSDINAMICOS(" BAS143";TABLAS!$A$59)
A67: 48-59 meses 4a | B67: 1° dosis | C67: =+GETPIVOTDATA(" BAS119",TABLAS!$A$59) -> 284 | F67: De 5 a 11 años | H67: =+GETPIVOTDATA(" BAS144",TABLAS!$A$59) -> 736 | I67: =+GETPIVOTDATA(" BAS145",TABLAS!$A$59) -> 154 | J67: =+GETPIVOTDATA(" BAS146",TABLAS!$A$59) -> 74 | AB67: 119 | AD67: 144 | AE67: 145 | AF67: 146 | AL67: =+IMPORTARDATOSDINAMICOS(" BAS119";TABLAS!$A$59) | AN67: =+IMPORTARDATOSDINAMICOS(" BAS144";TABLAS!$A$59) | AO67: =+IMPORTARDATOSDINAMICOS(" BAS145";TABLAS!$A$59) | AP67: =+IMPORTARDATOSDINAMICOS(" BAS146";TABLAS!$A$59) | CP67: 0
B68: 2° dosis | C68: =+GETPIVOTDATA(" BAS120",TABLAS!$A$59) -> 152 | F68: De 12 a 17 años Mujeres | H68: =+GETPIVOTDATA(" BAS147",TABLAS!$A$59) -> 20 | I68: =+GETPIVOTDATA(" BAS148",TABLAS!$A$59) -> 3 | J68: =+GETPIVOTDATA(" BAS149",TABLAS!$A$59) -> 0 | AB68: 120 | AD68: 147 | AE68: 148 | AF68: 149 | AL68: =+IMPORTARDATOSDINAMICOS(" BAS120";TABLAS!$A$59) | AN68: =+IMPORTARDATOSDINAMICOS(" BAS147";TABLAS!$A$59) | AO68: =+IMPORTARDATOSDINAMICOS(" BAS148";TABLAS!$A$59) | AP68: =+IMPORTARDATOSDINAMICOS(" BAS149";TABLAS!$A$59) | CP68: 1 | CQ68: 30
A69: 49-59 meses 5a | B69: 1° dosis | C69: =+GETPIVOTDATA(" BAS121",TABLAS!$A$59) -> 13 | F69: MEF | H69: =+GETPIVOTDATA(" BAS150",TABLAS!$A$59) -> 89 | I69: =+GETPIVOTDATA(" BAS151",TABLAS!$A$59) -> 5 | J69: =+GETPIVOTDATA(" BAS152",TABLAS!$A$59) -> 5 | AB69: 121 | AD69: 150 | AE69: 151 | AF69: 152 | AL69: =+IMPORTARDATOSDINAMICOS(" BAS121";TABLAS!$A$59) | AN69: =+IMPORTARDATOSDINAMICOS(" BAS150";TABLAS!$A$59) | AO69: =+IMPORTARDATOSDINAMICOS(" BAS151";TABLAS!$A$59) | AP69: =+IMPORTARDATOSDINAMICOS(" BAS152";TABLAS!$A$59) | CP69: =+CP68+1 -> 2 | CQ69: 30
B70: 2° dosis | C70: =+GETPIVOTDATA(" BAS122",TABLAS!$A$59) -> 2 | F70: Gestantes | H70: =+GETPIVOTDATA(" BAS153",TABLAS!$A$59) -> 0 | I70: =+GETPIVOTDATA(" BAS154",TABLAS!$A$59) -> 0 | J70: =+GETPIVOTDATA(" BAS155",TABLAS!$A$59) -> 0 | AB70: 122 | AD70: 153 | AE70: 154 | AF70: 155 | AL70: =+IMPORTARDATOSDINAMICOS(" BAS122";TABLAS!$A$59) | AN70: =+IMPORTARDATOSDINAMICOS(" BAS153";TABLAS!$A$59) | AO70: =+IMPORTARDATOSDINAMICOS(" BAS154";TABLAS!$A$59) | AP70: =+IMPORTARDATOSDINAMICOS(" BAS155";TABLAS!$A$59) | CP70: =+CP69+1 -> 3 | CQ70: 30
CP71: 4 | CQ71: 30
A72: 6. DOSAJE DE HEMOGLOBINA | F72: 7. CONSULTA NUTRICIONAL | CP72: 5 | CQ72: 30
CP73: 6 | CQ73: 30 | CR73: =SUM(CQ68:CQ73) -> 180 | CS73: 170 | CT73: =+CS73+70 -> 240
A74: Actividades Operativas | B74: Dosaje de hemoglobina | AL74: =+GETPIVOTDATA(" BAS001",TABLAS!$A$95) -> 30 | CP74: 7 | CQ74: 30
B75: 1er | C75: 2do | D75: 3er | F75: EDAD | H75: 1 | I75: 2 | J75: 3 | AL75: ";TABLAS!$A$95) | CP75: 8 | CQ75: 30
A76: RN bajo Peso o Prematuro | B76: =+GETPIVOTDATA(" BAS001",TABLAS!$A$95) -> 30 | C76: =+GETPIVOTDATA(" BAS002",TABLAS!$A$95) -> 21 | D76: =+GETPIVOTDATA(" BAS003",TABLAS!$A$95) -> 0 | F76: RN c/BP o Prematuro | H76: =+GETPIVOTDATA(" BAS031",TABLAS!$A$95) -> 27 | I76: =+GETPIVOTDATA(" BAS032",TABLAS!$A$95) -> 0 | J76: =+GETPIVOTDATA(" BAS033",TABLAS!$A$95) -> 0 | AD76: 1 | AE76: =+AD76+1 -> 2 | AF76: =+AE76+1 -> 3 | AH76: =+AF85+1 -> 31 | AI76: =+AH76+1 -> 32 | AJ76: =+AI76+1 -> 33 | AL76: =IF(AD76<9,CONCATENATE($AL$18,"00",AD76,$AL$75),IF(AND(AD76>9,AD76<100),CONCATENATE($AL$18,"0",AD76,$AL$75),IF(AD76>99,CONCATENATE($AL$18,AD76,$AL$75)))) -> =+IMPORTARDATOSDINAMICOS(" BAS001";TABLAS!$A$95) | AM76: =IF(AE76<9,CONCATENATE($AL$18,"00",AE76,$AL$75),IF(AND(AE76>9,AE76<100),CONCATENATE($AL$18,"0",AE76,$AL$75),IF(AE76>99,CONCATENATE($AL$18,AE76,$AL$75)))) -> =+IMPORTARDATOSDINAMICOS(" BAS002";TABLAS!$A$95) | AN76: =+IMPORTARDATOSDINAMICOS(" BAS003";TABLAS!$A$95) | AP76: =IF(AH76<9,CONCATENATE($AL$18,"00",AH76,$AL$75),IF(AND(AH76>9,AH76<100),CONCATENATE($AL$18,"0",AH76,$AL$75),IF(AH76>99,CONCATENATE($AL$18,AH76,$AL$75)))) -> =+IMPORTARDATOSDINAMICOS(" BAS031";TABLAS!$A$95) | AQ76: =IF(AI76<9,CONCATENATE($AL$18,"00",AI76,$AL$75),IF(AND(AI76>9,AI76<100),CONCATENATE($AL$18,"0",AI76,$AL$75),IF(AI76>99,CONCATENATE($AL$18,AI76,$AL$75)))) -> =+IMPORTARDATOSDINAMICOS(" BAS032";TABLAS!$A$95) | AR76: =IF(AJ76<9,CONCATENATE($AL$18,"00",AJ76,$AL$75),IF(AND(AJ76>9,AJ76<100),CONCATENATE($AL$18,"0",AJ76,$AL$75),IF(AJ76>99,CONCATENATE($AL$18,AJ76,$AL$75)))) -> =+IMPORTARDATOSDINAMICOS(" BAS033";TABLAS!$A$95) | CP76: 9 | CQ76: 30 | CR76: =SUM(CQ68:CQ76) -> 270 | CS76: 260 | CT76: =+CS76+70 -> 330
A77: 6 a 11 meses | B77: =+GETPIVOTDATA(" BAS004",TABLAS!$A$95) -> 589 | C77: =+GETPIVOTDATA(" BAS005",TABLAS!$A$95) -> 493 | D77: =+GETPIVOTDATA(" BAS006",TABLAS!$A$95) -> 468 | F77: 4 a 5 meses | H77: =+GETPIVOTDATA(" BAS034",TABLAS!$A$95) -> 12 | I77: =+GETPIVOTDATA(" BAS035",TABLAS!$A$95) -> 0 | J77: =+GETPIVOTDATA(" BAS036",TABLAS!$A$95) -> 0 | AD77: =+AF76+1 -> 4 | AE77: =+AD77+1 -> 5 | AF77: 6 | AH77: =+AJ76+1 -> 34 | AI77: =+AH77+1 -> 35 | AJ77: 36 | AL77: =IF(AD77<9,CONCATENATE($AL$18,"00",AD77,$AL$75),IF(AND(AD77>9,AD77<100),CONCATENATE($AL$18,"0",AD77,$AL$75),IF(AD77>99,CONCATENATE($AL$18,AD77,$AL$75)))) -> =+IMPORTARDATOSDINAMICOS(" BAS004";TABLAS!$A$95) | AM77: =IF(AE77<9,CONCATENATE($AL$18,"00",AE77,$AL$75),IF(AND(AE77>9,AE77<100),CONCATENATE($AL$18,"0",AE77,$AL$75),IF(AE77>99,CONCATENATE($AL$18,AE77,$AL$75)))) -> =+IMPORTARDATOSDINAMICOS(" BAS005";TABLAS!$A$95) | AN77: =IF(AF77<9,CONCATENATE($AL$18,"00",AF77,$AL$75),IF(AND(AF77>9,AF77<100),CONCATENATE($AL$18,"0",AF77,$AL$75),IF(AF77>99,CONCATENATE($AL$18,AF77,$AL$75)))) -> =+IMPORTARDATOSDINAMICOS(" BAS006";TABLAS!$A$95) | AP77: =IF(AH77<9,CONCATENATE($AL$18,"00",AH77,$AL$75),IF(AND(AH77>9,AH77<100),CONCATENATE($AL$18,"0",AH77,$AL$75),IF(AH77>99,CONCATENATE($AL$18,AH77,$AL$75)))) -> =+IMPORTARDATOSDINAMICOS(" BAS034";TABLAS!$A$95) | AQ77: =IF(AI77<9,CONCATENATE($AL$18,"00",AI77,$AL$75),IF(AND(AI77>9,AI77<100),CONCATENATE($AL$18,"0",AI77,$AL$75),IF(AI77>99,CONCATENATE($AL$18,AI77,$AL$75)))) -> =+IMPORTARDATOSDINAMICOS(" BAS035";TABLAS!$A$95) | AR77: =IF(AJ77<9,CONCATENATE($AL$18,"00",AJ77,$AL$75),IF(AND(AJ77>9,AJ77<100),CONCATENATE($AL$18,"0",AJ77,$AL$75),IF(AJ77>99,CONCATENATE($AL$18,AJ77,$AL$75)))) -> =+IMPORTARDATOSDINAMICOS(" BAS036";TABLAS!$A$95) | CP77: 10 | CQ77: 30
A78: 12 a 23 meses | B78: =+GETPIVOTDATA(" BAS007",TABLAS!$A$95) -> 558 | C78: =+GETPIVOTDATA(" BAS008",TABLAS!$A$95) -> 648 | D78: =+GETPIVOTDATA(" BAS009",TABLAS!$A$95) -> 295 | F78: 6 - 11 meses | H78: =+GETPIVOTDATA(" BAS037",TABLAS!$A$95) -> 38 | I78: =+GETPIVOTDATA(" BAS038",TABLAS!$A$95) -> 0 | J78: =+GETPIVOTDATA(" BAS039",TABLAS!$A$95) -> 0 | AD78: =+AF77+1 -> 7 | AE78: =+AD78+1 -> 8 | AF78: 9 | AH78: =+AJ77+1 -> 37 | AI78: =+AH78+1 -> 38 | AJ78: 39 | AL78: =+IMPORTARDATOSDINAMICOS(" BAS007";TABLAS!$A$95) | AM78: =+IMPORTARDATOSDINAMICOS(" BAS008";TABLAS!$A$95) | AN78: =IF(AF78<10,CONCATENATE($AL$18,"00",AF78,$AL$75),IF(AND(AF78>9,AF78<100),CONCATENATE($AL$18,"0",AF78,$AL$75),IF(AF78>99,CONCATENATE($AL$18,AF78,$AL$75)))) -> =+IMPORTARDATOSDINAMICOS(" BAS009";TABLAS!$A$95) | AP78: =+IMPORTARDATOSDINAMICOS(" BAS037";TABLAS!$A$95) | AQ78: =+IMPORTARDATOSDINAMICOS(" BAS038";TABLAS!$A$95) | AR78: =+IMPORTARDATOSDINAMICOS(" BAS039";TABLAS!$A$95) | CP78: 11 | CQ78: 30
A79: 24 a 35 meses | B79: =+GETPIVOTDATA(" BAS010",TABLAS!$A$95) -> 754 | C79: =+GETPIVOTDATA(" BAS011",TABLAS!$A$95) -> 444 | D79: =+GETPIVOTDATA(" BAS012",TABLAS!$A$95) -> 0 | F79: De 1 año | H79: =+GETPIVOTDATA(" BAS040",TABLAS!$A$95) -> 67 | I79: =+GETPIVOTDATA(" BAS041",TABLAS!$A$95) -> 0 | J79: =+GETPIVOTDATA(" BAS042",TABLAS!$A$95) -> 0 | AD79: 10 | AE79: 11 | AF79: 12 | AH79: 40 | AI79: 41 | AJ79: 42 | AL79: =+IMPORTARDATOSDINAMICOS(" BAS010";TABLAS!$A$95) | AM79: =+IMPORTARDATOSDINAMICOS(" BAS011";TABLAS!$A$95) | AN79: =+IMPORTARDATOSDINAMICOS(" BAS012";TABLAS!$A$95) | AP79: =+IMPORTARDATOSDINAMICOS(" BAS040";TABLAS!$A$95) | AQ79: =+IMPORTARDATOSDINAMICOS(" BAS041";TABLAS!$A$95) | AR79: =+IMPORTARDATOSDINAMICOS(" BAS042";TABLAS!$A$95) | CP79: 12 | CQ79: 30 | CR79: =SUM(CQ68:CQ79) -> 360 | CS79: 350 | CT79: 370
A80: 36 a 59 meses | B80: =+GETPIVOTDATA(" BAS013",TABLAS!$A$95) -> 488 | C80: =+GETPIVOTDATA(" BAS014",TABLAS!$A$95) -> 277 | D80: =+GETPIVOTDATA(" BAS015",TABLAS!$A$95) -> 0 | F80: De 2 años | H80: =+GETPIVOTDATA(" BAS043",TABLAS!$A$95) -> 59 | I80: =+GETPIVOTDATA(" BAS044",TABLAS!$A$95) -> 0 | J80: =+GETPIVOTDATA(" BAS045",TABLAS!$A$95) -> 0 | AD80: 13 | AE80: 14 | AF80: 15 | AH80: 43 | AI80: 44 | AJ80: 45 | AL80: =+IMPORTARDATOSDINAMICOS(" BAS013";TABLAS!$A$95) | AM80: =+IMPORTARDATOSDINAMICOS(" BAS014";TABLAS!$A$95) | AN80: =+IMPORTARDATOSDINAMICOS(" BAS015";TABLAS!$A$95) | AP80: =+IMPORTARDATOSDINAMICOS(" BAS043";TABLAS!$A$95) | AQ80: =+IMPORTARDATOSDINAMICOS(" BAS044";TABLAS!$A$95) | AR80: =+IMPORTARDATOSDINAMICOS(" BAS045";TABLAS!$A$95) | CP80: 13 | CQ80: 30
A81: 5 a 11 años | B81: =+GETPIVOTDATA(" BAS016",TABLAS!$A$95) -> 1219 | C81: =+GETPIVOTDATA(" BAS017",TABLAS!$A$95) -> 0 | D81: =+GETPIVOTDATA(" BAS018",TABLAS!$A$95) -> 0 | F81: De 3 años | H81: =+GETPIVOTDATA(" BAS046",TABLAS!$A$95) -> 43 | I81: =+GETPIVOTDATA(" BAS047",TABLAS!$A$95) -> 0 | J81: =+GETPIVOTDATA(" BAS048",TABLAS!$A$95) -> 0 | AD81: 16 | AE81: 17 | AF81: 18 | AH81: 46 | AI81: 47 | AJ81: 48 | AL81: =+IMPORTARDATOSDINAMICOS(" BAS016";TABLAS!$A$95) | AM81: =+IMPORTARDATOSDINAMICOS(" BAS017";TABLAS!$A$95) | AN81: =+IMPORTARDATOSDINAMICOS(" BAS018";TABLAS!$A$95) | AP81: =+IMPORTARDATOSDINAMICOS(" BAS046";TABLAS!$A$95) | AQ81: =+IMPORTARDATOSDINAMICOS(" BAS047";TABLAS!$A$95) | AR81: =+IMPORTARDATOSDINAMICOS(" BAS048";TABLAS!$A$95) | CP81: 14 | CQ81: 30
A82: 12 a 17 años Mujeres | B82: =+GETPIVOTDATA(" BAS019",TABLAS!$A$95) -> 1824 | C82: =+GETPIVOTDATA(" BAS020",TABLAS!$A$95) -> 7 | D82: =+GETPIVOTDATA(" BAS021",TABLAS!$A$95) -> 0 | F82: De 4 años | H82: =+GETPIVOTDATA(" BAS049",TABLAS!$A$95) -> 36 | I82: =+GETPIVOTDATA(" BAS050",TABLAS!$A$95) -> 0 | J82: =+GETPIVOTDATA(" BAS051",TABLAS!$A$95) -> 0 | AD82: 19 | AE82: 20 | AF82: 21 | AH82: 49 | AI82: 50 | AJ82: 51 | AL82: =+IMPORTARDATOSDINAMICOS(" BAS019";TABLAS!$A$95) | AM82: =+IMPORTARDATOSDINAMICOS(" BAS020";TABLAS!$A$95) | AN82: =+IMPORTARDATOSDINAMICOS(" BAS021";TABLAS!$A$95) | AP82: =+IMPORTARDATOSDINAMICOS(" BAS049";TABLAS!$A$95) | AQ82: =+IMPORTARDATOSDINAMICOS(" BAS050";TABLAS!$A$95) | AR82: =+IMPORTARDATOSDINAMICOS(" BAS051";TABLAS!$A$95) | CP82: 15 | CQ82: 30 | CR82: =SUM(CQ68:CQ82) -> 450 | CS82: 435 | CT82: =+CS82+105 -> 540
A83: MEF | B83: =+GETPIVOTDATA(" BAS022",TABLAS!$A$95) -> 134 | C83: =+GETPIVOTDATA(" BAS023",TABLAS!$A$95) -> 0 | D83: =+GETPIVOTDATA(" BAS024",TABLAS!$A$95) -> 0 | F83: De 5 a 11 años | H83: =+GETPIVOTDATA(" BAS052",TABLAS!$A$95) -> 20 | I83: =+GETPIVOTDATA(" BAS053",TABLAS!$A$95) -> 0 | J83: =+GETPIVOTDATA(" BAS054",TABLAS!$A$95) -> 0 | AD83: 22 | AE83: 23 | AF83: 24 | AH83: 52 | AI83: 53 | AJ83: 54 | AL83: =+IMPORTARDATOSDINAMICOS(" BAS022";TABLAS!$A$95) | AM83: =+IMPORTARDATOSDINAMICOS(" BAS023";TABLAS!$A$95) | AN83: =+IMPORTARDATOSDINAMICOS(" BAS024";TABLAS!$A$95) | AP83: =+IMPORTARDATOSDINAMICOS(" BAS052";TABLAS!$A$95) | AQ83: =+IMPORTARDATOSDINAMICOS(" BAS053";TABLAS!$A$95) | AR83: =+IMPORTARDATOSDINAMICOS(" BAS054";TABLAS!$A$95) | CP83: 16 | CQ83: 30
A84: Gestante | B84: =+GETPIVOTDATA(" BAS025",TABLAS!$A$95) -> 693 | C84: =+GETPIVOTDATA(" BAS026",TABLAS!$A$95) -> 469 | D84: =+GETPIVOTDATA(" BAS027",TABLAS!$A$95) -> 344 | F84: De 12 a 17 años Mujeres | H84: =+GETPIVOTDATA(" BAS055",TABLAS!$A$95) -> 20 | I84: =+GETPIVOTDATA(" BAS056",TABLAS!$A$95) -> 0 | J84: =+GETPIVOTDATA(" BAS057",TABLAS!$A$95) -> 0 | AD84: 25 | AE84: 26 | AF84: 27 | AH84: 55 | AI84: 56 | AJ84: 57 | AL84: =+IMPORTARDATOSDINAMICOS(" BAS025";TABLAS!$A$95) | AM84: =+IMPORTARDATOSDINAMICOS(" BAS026";TABLAS!$A$95) | AN84: =+IMPORTARDATOSDINAMICOS(" BAS027";TABLAS!$A$95) | AP84: =+IMPORTARDATOSDINAMICOS(" BAS055";TABLAS!$A$95) | AQ84: =+IMPORTARDATOSDINAMICOS(" BAS056";TABLAS!$A$95) | AR84: =+IMPORTARDATOSDINAMICOS(" BAS057";TABLAS!$A$95) | CP84: 17 | CQ84: 30
A85: Puepera | B85: =+GETPIVOTDATA(" BAS028",TABLAS!$A$95) -> 466 | C85: =+GETPIVOTDATA(" BAS029",TABLAS!$A$95) -> 0 | D85: =+GETPIVOTDATA(" BAS030",TABLAS!$A$95) -> 0 | F85: MEF | H85: =+GETPIVOTDATA(" BAS058",TABLAS!$A$95) -> 33 | I85: =+GETPIVOTDATA(" BAS059",TABLAS!$A$95) -> 0 | J85: =+GETPIVOTDATA(" BAS060",TABLAS!$A$95) -> 0 | AD85: 28 | AE85: 29 | AF85: 30 | AH85: 58 | AI85: 59 | AJ85: 60 | AL85: =+IMPORTARDATOSDINAMICOS(" BAS028";TABLAS!$A$95) | AM85: =+IMPORTARDATOSDINAMICOS(" BAS029";TABLAS!$A$95) | AN85: =+IMPORTARDATOSDINAMICOS(" BAS030";TABLAS!$A$95) | AP85: =+IMPORTARDATOSDINAMICOS(" BAS058";TABLAS!$A$95) | AQ85: =+IMPORTARDATOSDINAMICOS(" BAS059";TABLAS!$A$95) | AR85: =+IMPORTARDATOSDINAMICOS(" BAS060";TABLAS!$A$95) | CP85: 18 | CQ85: 30 | CR85: =SUM(CQ68:CQ85) -> 540 | CS85: 525 | CT85: =+CS85+105 -> 630
F86: Gestantes | H86: =+GETPIVOTDATA(" BAS061",TABLAS!$A$95) -> 0 | I86: =+GETPIVOTDATA(" BAS062",TABLAS!$A$95) -> 0 | J86: =+GETPIVOTDATA(" BAS063",TABLAS!$A$95) -> 0 | AH86: 61 | AI86: 62 | AJ86: 63 | AL86: =+IMPORTARDATOSDINAMICOS(" BAS00";TABLAS!$A$95) | AM86: =+IMPORTARDATOSDINAMICOS(" BAS00";TABLAS!$A$95) | AN86: =+IMPORTARDATOSDINAMICOS(" BAS00";TABLAS!$A$95) | AP86: =+IMPORTARDATOSDINAMICOS(" BAS061";TABLAS!$A$95) | AQ86: =+IMPORTARDATOSDINAMICOS(" BAS062";TABLAS!$A$95) | AR86: =+IMPORTARDATOSDINAMICOS(" BAS063";TABLAS!$A$95) | CP86: 19 | CQ86: 30
CP87: 20 | CQ87: 30
A88: 8. VISITAS DE SEGUIMIENTO /TELEORIENTACION | CP88: 21 | CQ88: 30 | CR88: =SUM(CQ68:CQ88) -> 630 | CS88: 615 | CT88: =+CS88+105 -> 720
CP89: 22 | CQ89: 30
A90: Actividades Operativas | B90: Visita de Seguimiento o Teleorientación | CP90: 23 | CQ90: 30
B91: 1er | C91: 2do | D91: 3ro | CP91: 24 | CQ91: 30 | CR91: =SUM(CQ68:CQ91) -> 720 | CS91: 705 | CT91: =+CS91+165 -> 870
A92: RN bajo Peso o Prematuro | B92: =+GETPIVOTDATA(" BAS064",TABLAS!$A$95) -> 4 | C92: =+GETPIVOTDATA(" BAS065",TABLAS!$A$95) -> 7 | D92: =+GETPIVOTDATA(" BAS066",TABLAS!$A$95) -> 328 | AD92: =+AJ86+1 -> 64 | AE92: =+AD92+1 -> 65 | AF92: =+AE92+1 -> 66 | AL92: =IF(AD92<9,CONCATENATE($AL$18,"00",AD92,$AL$75),IF(AND(AD92>9,AD92<100),CONCATENATE($AL$18,"0",AD92,$AL$75),IF(AD92>99,CONCATENATE($AL$18,AD92,$AL$75)))) -> =+IMPORTARDATOSDINAMICOS(" BAS064";TABLAS!$A$95) | AM92: =IF(AE92<9,CONCATENATE($AL$18,"00",AE92,$AL$75),IF(AND(AE92>9,AE92<100),CONCATENATE($AL$18,"0",AE92,$AL$75),IF(AE92>99,CONCATENATE($AL$18,AE92,$AL$75)))) -> =+IMPORTARDATOSDINAMICOS(" BAS065";TABLAS!$A$95) | AN92: =+IMPORTARDATOSDINAMICOS(" BAS066";TABLAS!$A$95) | CP92: 25 | CQ92: 30
A93: 6 a 11 meses | B93: =+GETPIVOTDATA(" BAS067",TABLAS!$A$95) -> 190 | C93: =+GETPIVOTDATA(" BAS068",TABLAS!$A$95) -> 205 | D93: =+GETPIVOTDATA(" BAS069",TABLAS!$A$95) -> 148 | AD93: =+AF92+1 -> 67 | AE93: =+AD93+1 -> 68 | AF93: 69 | AL93: =IF(AD93<9,CONCATENATE($AL$18,"00",AD93,$AL$75),IF(AND(AD93>9,AD93<100),CONCATENATE($AL$18,"0",AD93,$AL$75),IF(AD93>99,CONCATENATE($AL$18,AD93,$AL$75)))) -> =+IMPORTARDATOSDINAMICOS(" BAS067";TABLAS!$A$95) | AM93: =IF(AE93<9,CONCATENATE($AL$18,"00",AE93,$AL$75),IF(AND(AE93>9,AE93<100),CONCATENATE($AL$18,"0",AE93,$AL$75),IF(AE93>99,CONCATENATE($AL$18,AE93,$AL$75)))) -> =+IMPORTARDATOSDINAMICOS(" BAS068";TABLAS!$A$95) | AN93: =IF(AF93<9,CONCATENATE($AL$18,"00",AF93,$AL$75),IF(AND(AF93>9,AF93<100),CONCATENATE($AL$18,"0",AF93,$AL$75),IF(AF93>99,CONCATENATE($AL$18,AF93,$AL$75)))) -> =+IMPORTARDATOSDINAMICOS(" BAS069";TABLAS!$A$95) | CP93: 26 | CQ93: 30 | CR93: =SUM(CQ68:CQ93) -> 780
A94: 12 a 23 meses | B94: =+GETPIVOTDATA(" BAS070",TABLAS!$A$95) -> 40 | C94: =+GETPIVOTDATA(" BAS071",TABLAS!$A$95) -> 113 | D94: =+GETPIVOTDATA(" BAS072",TABLAS!$A$95) -> 134 | AD94: =+AF93+1 -> 70 | AE94: =+AD94+1 -> 71 | AF94: 72 | AL94: =+IMPORTARDATOSDINAMICOS(" BAS070";TABLAS!$A$95) | AM94: =+IMPORTARDATOSDINAMICOS(" BAS071";TABLAS!$A$95) | AN94: =+IMPORTARDATOSDINAMICOS(" BAS072";TABLAS!$A$95) | CP94: 27 | CQ94: 30
A95: 24 a 35 meses | B95: =+GETPIVOTDATA(" BAS073",TABLAS!$A$95) -> 61 | C95: =+GETPIVOTDATA(" BAS074",TABLAS!$A$95) -> 55 | D95: =+GETPIVOTDATA(" BAS075",TABLAS!$A$95) -> 0 | AD95: 73 | AE95: 74 | AF95: 75 | AL95: =+IMPORTARDATOSDINAMICOS(" BAS073";TABLAS!$A$95) | AM95: =+IMPORTARDATOSDINAMICOS(" BAS074";TABLAS!$A$95) | AN95: =+IMPORTARDATOSDINAMICOS(" BAS075";TABLAS!$A$95) | CP95: 28 | CQ95: 30
A96: 36 a 59 meses | B96: =+GETPIVOTDATA(" BAS076",TABLAS!$A$95) -> 0 | C96: =+GETPIVOTDATA(" BAS077",TABLAS!$A$95) -> 0 | D96: =+GETPIVOTDATA(" BAS078",TABLAS!$A$95) -> 0 | AD96: 76 | AE96: 77 | AF96: 78 | AL96: =+IMPORTARDATOSDINAMICOS(" BAS076";TABLAS!$A$95) | AM96: =+IMPORTARDATOSDINAMICOS(" BAS077";TABLAS!$A$95) | AN96: =+IMPORTARDATOSDINAMICOS(" BAS078";TABLAS!$A$95) | CP96: 29 | CQ96: 30
A97: 5 a 11 Años | B97: =+GETPIVOTDATA(" BAS079",TABLAS!$A$95) -> 0 | C97: =+GETPIVOTDATA(" BAS080",TABLAS!$A$95) -> 0 | D97: =+GETPIVOTDATA(" BAS081",TABLAS!$A$95) -> 0 | AD97: 79 | AE97: 80 | AF97: 81 | AL97: =+IMPORTARDATOSDINAMICOS(" BAS079";TABLAS!$A$95) | AM97: =+IMPORTARDATOSDINAMICOS(" BAS080";TABLAS!$A$95) | AN97: =+IMPORTARDATOSDINAMICOS(" BAS081";TABLAS!$A$95) | CP97: 30 | CQ97: 30 | CR97: =SUM(CQ68:CQ97) -> 900 | CS97: 885 | CT97: =+CS97+165 -> 1050
A98: Adolescentes /MEF | B98: =+GETPIVOTDATA(" BAS082",TABLAS!$A$95) -> 0 | C98: =+GETPIVOTDATA(" BAS083",TABLAS!$A$95) -> 0 | D98: =+GETPIVOTDATA(" BAS084",TABLAS!$A$95) -> 0 | AD98: 82 | AE98: 83 | AF98: 84 | AL98: =+IMPORTARDATOSDINAMICOS(" BAS082";TABLAS!$A$95) | AM98: =+IMPORTARDATOSDINAMICOS(" BAS083";TABLAS!$A$95) | AN98: =+IMPORTARDATOSDINAMICOS(" BAS084";TABLAS!$A$95) | CP98: 31 | CQ98: 30
A99: Gestantes | B99: =+GETPIVOTDATA(" BAS085",TABLAS!$A$95) -> 0 | C99: =+GETPIVOTDATA(" BAS086",TABLAS!$A$95) -> 0 | D99: =+GETPIVOTDATA(" BAS087",TABLAS!$A$95) -> 0 | AD99: 85 | AE99: 86 | AF99: 87 | AL99: =+IMPORTARDATOSDINAMICOS(" BAS085";TABLAS!$A$95) | AM99: =+IMPORTARDATOSDINAMICOS(" BAS086";TABLAS!$A$95) | AN99: =+IMPORTARDATOSDINAMICOS(" BAS087";TABLAS!$A$95) | CP99: 32 | CQ99: 30
CP100: 33 | CQ100: 30
CP101: 34 | CQ101: 30
CP102: 35 | CQ102: 30
CP103: 36 | CQ103: 30 | CR103: =SUM(CQ68:CQ103) -> 1080 | CS103: 1065 | CT103: =+CS103+70 -> 1135
CP104: 37 | CQ104: 30
CP105: 38 | CQ105: 30
CP106: 39 | CQ106: 30 | CR106: =SUM(CQ68:CQ106) -> 1170 | CS106: 1155 | CT106: =+CS106+105 -> 1260
CP107: 40 | CQ107: 30
CP108: 41 | CQ108: 30

Sheet TTO. ANEMIA
A1: GERENCIA REGIONAL DE SALUD CUSCO
A2: DIRECCION DE ESTADISTICA E INFORMATICA Y TELECOMUNICACION
A3: Estrategia Sanitaria Alimentación y Nutricion Saludable
A4: Informe Mensual de Suplementación Preventiva y Terapeutica
A6: DIRESA | B6: CUSCO | E6: EJECUTORA | G6: =+TABLAS!O14 -> 
A8: RED DE SALUD | B8: =+TABLAS!O9 ->  | E8: PROVINCIA | G8: =+TABLAS!O12 -> 
A10: MICRO RED | B10: =+TABLAS!O10 ->  | E10: DISTRITO | G10: =+TABLAS!O13 -> 
A12: EE.SS. | B12: =+TABLAS!O11 -> 
F14: AÑO | G14: =+TABLAS!J16 -> 2025 | H14: MES | I14: =+TABLAS!N26 -> ENE - MAY | AP14: =+GETPIVOTDATA(" BAS001",TABLAS!$A$130) -> 0
A16: 1. ADMINISTRACION DE TRATAMIENTO CON SULFATO FERROSO | L16: 4. CONSULTA NUTRICIONAL | AP16: =+IMPORTARDATOSDINAMICOS(" BAS
A18: GRUPOS ETAREOS | C18: 1 Dosis | D18: 2 Dosis | E18: 3 Dosis | F18: 4 Dosis | G18: 5 Dosis | H18: 6 Dosis | I18: TA | J18: PR | L18: EDAD | M18: 1 | N18: 2 | O18: 3 | P18: 4 | Q18: 5 | R18: 6 | AP18: ";TABLAS!$A$130) | AW18: C | AY18: A | BD18: G
A19: Niños menores de 5 años | B19: 0-5 MESES | C19: =+GETPIVOTDATA(" BAS001",TABLAS!$A$130) -> 0 | D19: =+GETPIVOTDATA(" BAS002",TABLAS!$A$130) -> 0 | E19: =+GETPIVOTDATA(" BAS003",TABLAS!$A$130) -> 0 | F19: =+GETPIVOTDATA(" BAS004",TABLAS!$A$130) -> 0 | G19: =+GETPIVOTDATA(" BAS005",TABLAS!$A$130) -> 0 | H19: =+GETPIVOTDATA(" BAS006",TABLAS!$A$130) -> 0 | I19: =+GETPIVOTDATA(" BAS007",TABLAS!$A$130) -> 0 | J19: =+GETPIVOTDATA(" BAS008",TABLAS!$A$130) -> 0 | L19: 0-5 MESES | M19: =+GETPIVOTDATA(" BAS081",TABLAS!$A$130) -> 0 | N19: =+GETPIVOTDATA(" BAS082",TABLAS!$A$130) -> 0 | O19: =+GETPIVOTDATA(" BAS083",TABLAS!$A$130) -> 0 | P19: =+GETPIVOTDATA(" BAS084",TABLAS!$A$130) -> 0 | Q19: =+GETPIVOTDATA(" BAS085",TABLAS!$A$130) -> 0 | R19: =+GETPIVOTDATA(" BAS086",TABLAS!$A$130) -> 0 | X19: 1 | Y19: =+X19+1 -> 2 | Z19: =+Y19+1 -> 3 | AA19: 4 | AB19: 5 | AC19: 6 | AD19: 7 | AE19: 8 | AG19: =+AE28+1 -> 81 | AH19: =+AG19+1 -> 82 | AI19: =+AH19+1 -> 83 | AJ19: 84 | AK19: 85 | AL19: 86 | AP19: =IF(X19<10,CONCATENATE($AP$16,"00",X19,$AP$18),IF(AND(X19>9,X19<100),CONCATENATE($AP$16,"0",X19,$AP$18),IF(X19>99,CONCATENATE($AP$16,X19,$AP$18)))) -> =+IMPORTARDATOSDINAMICOS(" BAS001";TABLAS!$A$130) | AQ19: =IF(Y19<10,CONCATENATE($AP$16,"00",Y19,$AP$18),IF(AND(Y19>9,Y19<100),CONCATENATE($AP$16,"0",Y19,$AP$18),IF(Y19>99,CONCATENATE($AP$16,Y19,$AP$18)))) -> =+IMPORTARDATOSDINAMICOS(" BAS002";TABLAS!$A$130) | AR19: =+IMPORTARDATOSDINAMICOS(" BAS003";TABLAS!$A$130) | AS19: =+IMPORTARDATOSDINAMICOS(" BAS004";TABLAS!$A$130) | AT19: =+IMPORTARDATOSDINAMICOS(" BAS005";TABLAS!$A$130) | AU19: =+IMPORTARDATOSDINAMICOS(" BAS006";TABLAS!$A$130) | AV19: =+IMPORTARDATOSDINAMICOS(" BAS007";TABLAS!$A$130) | AW19: =+IMPORTARDATOSDINAMICOS(" BAS008";TABLAS!$A$130) | AY19: =IF(AG19<10,CONCATENATE($AP$16,"00",AG19,$AP$18),IF(AND(AG19>9,AG19<100),CONCATENATE($AP$16,"0",AG19,$AP$18),IF(AG19>99,CONCATENATE($AP$16,AG19,$AP$18)))) -> =+IMPORTARDATOSDINAMICOS(" BAS081";TABLAS!$A$130) | AZ19: =IF(AH19<10,CONCATENATE($AP$16,"00",AH19,$AP$18),IF(AND(AH19>9,AH19<100),CONCATENATE($AP$16,"0",AH19,$AP$18),IF(AH19>99,CONCATENATE($AP$16,AH19,$AP$18)))) -> =+IMPORTARDATOSDINAMICOS(" BAS082";TABLAS!$A$130) | BA19: =IF(AI19<10,CONCATENATE($AP$16,"00",AI19,$AP$18),IF(AND(AI19>9,AI19<100),CONCATENATE($AP$16,"0",AI19,$AP$18),IF(AI19>99,CONCATENATE($AP$16,AI19,$AP$18)))) -> =+IMPORTARDATOSDINAMICOS(" BAS083";TABLAS!$A$130) | BB19: =IF(AJ19<10,CONCATENATE($AP$16,"00",AJ19,$AP$18),IF(AND(AJ19>9,AJ19<100),CONCATENATE($AP$16,"0",AJ19,$AP$18),IF(AJ19>99,CONCATENATE($AP$16,AJ19,$AP$18)))) -> =+IMPORTARDATOSDINAMICOS(" BAS084";TABLAS!$A$130) | BC19: =IF(AK19<10,CONCATENATE($AP$16,"00",AK19,$AP$18),IF(AND(AK19>9,AK19<100),CONCATENATE($AP$16,"0",AK19,$AP$18),IF(AK19>99,CONCATENATE($AP$16,AK19,$AP$18)))) -> =+IMPORTARDATOSDINAMICOS(" BAS085";TABLAS!$A$130) | BD19: =IF(AL19<10,CONCATENATE($AP$16,"00",AL19,$AP$18),IF(AND(AL19>9,AL19<100),CONCATENATE($AP$16,"0",AL19,$AP$18),IF(AL19>99,CONCATENATE($AP$16,AL19,$AP$18)))) -> =+IMPORTARDATOSDINAMICOS(" BAS086";TABLAS!$A$130)
B20: 6-11m | C20: =+GETPIVOTDATA(" BAS009",TABLAS!$A$130) -> 139 | D20: =+GETPIVOTDATA(" BAS010",TABLAS!$A$130) -> 102 | E20: =+GETPIVOTDATA(" BAS011",TABLAS!$A$130) -> 109 | F20: =+GETPIVOTDATA(" BAS012",TABLAS!$A$130) -> 90 | G20: =+GETPIVOTDATA(" BAS013",TABLAS!$A$130) -> 69 | H20: =+GETPIVOTDATA(" BAS014",TABLAS!$A$130) -> 48 | I20: =+GETPIVOTDATA(" BAS015",TABLAS!$A$130) -> 0 | J20: =+GETPIVOTDATA(" BAS016",TABLAS!$A$130) -> 0 | L20: 6-11m | M20: =+GETPIVOTDATA(" BAS087",TABLAS!$A$130) -> 13 | N20: =+GETPIVOTDATA(" BAS088",TABLAS!$A$130) -> 8 | O20: =+GETPIVOTDATA(" BAS089",TABLAS!$A$130) -> 2 | P20: =+GETPIVOTDATA(" BAS090",TABLAS!$A$130) -> 0 | Q20: =+GETPIVOTDATA(" BAS091",TABLAS!$A$130) -> 0 | R20: =+GETPIVOTDATA(" BAS092",TABLAS!$A$130) -> 0 | X20: =+AE19+1 -> 9 | Y20: =+X20+1 -> 10 | Z20: 11 | AA20: 12 | AB20: 13 | AC20: 14 | AD20: 15 | AE20: 16 | AG20: =+AL19+1 -> 87 | AH20: =+AG20+1 -> 88 | AI20: 89 | AJ20: 90 | AK20: 91 | AL20: 92 | AP20: =IF(X20<10,CONCATENATE($AP$16,"00",X20,$AP$18),IF(AND(X20>9,X20<100),CONCATENATE($AP$16,"0",X20,$AP$18),IF(X20>99,CONCATENATE($AP$16,X20,$AP$18)))) -> =+IMPORTARDATOSDINAMICOS(" BAS009";TABLAS!$A$130) | AQ20: =IF(Y20<10,CONCATENATE($AP$16,"00",Y20,$AP$18),IF(AND(Y20>9,Y20<100),CONCATENATE($AP$16,"0",Y20,$AP$18),IF(Y20>99,CONCATENATE($AP$16,Y20,$AP$18)))) -> =+IMPORTARDATOSDINAMICOS(" BAS010";TABLAS!$A$130) | AR20: =IF(Z20<10,CONCATENATE($AP$16,"00",Z20,$AP$18),IF(AND(Z20>9,Z20<100),CONCATENATE($AP$16,"0",Z20,$AP$18),IF(Z20>99,CONCATENATE($AP$16,Z20,$AP$18)))) -> =+IMPORTARDATOSDINAMICOS(" BAS011";TABLAS!$A$130) | AS20: =IF(AA20<10,CONCATENATE($AP$16,"00",AA20,$AP$18),IF(AND(AA20>9,AA20<100),CONCATENATE($AP$16,"0",AA20,$AP$18),IF(AA20>99,CONCATENATE($AP$16,AA20,$AP$18)))) -> =+IMPORTARDATOSDINAMICOS(" BAS012";TABLAS!$A$130) | AT20: =IF(AB20<10,CONCATENATE($AP$16,"00",AB20,$AP$18),IF(AND(AB20>9,AB20<100),CONCATENATE($AP$16,"0",AB20,$AP$18),IF(AB20>99,CONCATENATE($AP$16,AB20,$AP$18)))) -> =+IMPORTARDATOSDINAMICOS(" BAS013";TABLAS!$A$130) | AU20: =IF(AC20<10,CONCATENATE($AP$16,"00",AC20,$AP$18),IF(AND(AC20>9,AC20<100),CONCATENATE($AP$16,"0",AC20,$AP$18),IF(AC20>99,CONCATENATE($AP$16,AC20,$AP$18)))) -> =+IMPORTARDATOSDINAMICOS(" BAS014";TABLAS!$A$130) | AV20: =IF(AD20<10,CONCATENATE($AP$16,"00",AD20,$AP$18),IF(AND(AD20>9,AD20<100),CONCATENATE($AP$16,"0",AD20,$AP$18),IF(AD20>99,CONCATENATE($AP$16,AD20,$AP$18)))) -> =+IMPORTARDATOSDINAMICOS(" BAS015";TABLAS!$A$130) | AW20: =IF(AE20<10,CONCATENATE($AP$16,"00",AE20,$AP$18),IF(AND(AE20>9,AE20<100),CONCATENATE($AP$16,"0",AE20,$AP$18),IF(AE20>99,CONCATENATE($AP$16,AE20,$AP$18)))) -> =+IMPORTARDATOSDINAMICOS(" BAS016";TABLAS!$A$130) | AY20: =IF(AG20<10,CONCATENATE($AP$16,"00",AG20,$AP$18),IF(AND(AG20>9,AG20<100),CONCATENATE($AP$16,"0",AG20,$AP$18),IF(AG20>99,CONCATENATE($AP$16,AG20,$AP$18)))) -> =+IMPORTARDATOSDINAMICOS(" BAS087";TABLAS!$A$130) | AZ20: =IF(AH20<10,CONCATENATE($AP$16,"00",AH20,$AP$18),IF(AND(AH20>9,AH20<100),CONCATENATE($AP$16,"0",AH20,$AP$18),IF(AH20>99,CONCATENATE($AP$16,AH20,$AP$18)))) -> =+IMPORTARDATOSDINAMICOS(" BAS088";TABLAS!$A$130) | BA20: =IF(AI20<10,CONCATENATE($AP$16,"00",AI20,$AP$18),IF(AND(AI20>9,AI20<100),CONCATENATE($AP$16,"0",AI20,$AP$18),IF(AI20>99,CONCATENATE($AP$16,AI20,$AP$18)))) -> =+IMPORTARDATOSDINAMICOS(" BAS089";TABLAS!$A$130) | BB20: =IF(AJ20<10,CONCATENATE($AP$16,"00",AJ20,$AP$18),IF(AND(AJ20>9,AJ20<100),CONCATENATE($AP$16,"0",AJ20,$AP$18),IF(AJ20>99,CONCATENATE($AP$16,AJ20,$AP$18)))) -> =+IMPORTARDATOSDINAMICOS(" BAS090";TABLAS!$A$130) | BC20: =IF(AK20<10,CONCATENATE($AP$16,"00",AK20,$AP$18),IF(AND(AK20>9,AK20<100),CONCATENATE($AP$16,"0",AK20,$AP$18),IF(AK20>99,CONCATENATE($AP$16,AK20,$AP$18)))) -> =+IMPORTARDATOSDINAMICOS(" BAS091";TABLAS!$A$130) | BD20: =IF(AL20<10,CONCATENATE($AP$16,"00",AL20,$AP$18),IF(AND(AL20>9,AL20<100),CONCATENATE($AP$16,"0",AL20,$AP$18),IF(AL20>99,CONCATENATE($AP$16,AL20,$AP$18)))) -> =+IMPORTARDATOSDINAMICOS(" BAS092";TABLAS!$A$130)
B21: 1A | C21: =+GETPIVOTDATA(" BAS017",TABLAS!$A$130) -> 168 | D21: =+GETPIVOTDATA(" BAS018",TABLAS!$A$130) -> 140 | E21: =+GETPIVOTDATA(" BAS019",TABLAS!$A$130) -> 156 | F21: =+GETPIVOTDATA(" BAS020",TABLAS!$A$130) -> 160 | G21: =+GETPIVOTDATA(" BAS021",TABLAS!$A$130) -> 153 | H21: =+GETPIVOTDATA(" BAS022",TABLAS!$A$130) -> 125 | I21: =+GETPIVOTDATA(" BAS023",TABLAS!$A$130) -> 114 | J21: =+GETPIVOTDATA(" BAS024",TABLAS!$A$130) -> 0 | L21: 1A | M21: =+GETPIVOTDATA(" BAS093",TABLAS!$A$130) -> 25 | N21: =+GETPIVOTDATA(" BAS094",TABLAS!$A$130) -> 8 | O21: =+GETPIVOTDATA(" BAS095",TABLAS!$A$130) -> 3 | P21: =+GETPIVOTDATA(" BAS096",TABLAS!$A$130) -> 1 | Q21: =+GETPIVOTDATA(" BAS097",TABLAS!$A$130) -> 0 | R21: =+GETPIVOTDATA(" BAS098",TABLAS!$A$130) -> 0 | X21: =+AE20+1 -> 17 | Y21: 18 | Z21: 19 | AA21: 20 | AB21: 21 | AC21: 22 | AD21: 23 | AE21: 24 | AG21: =+AL20+1 -> 93 | AH21: 94 | AI21: 95 | AJ21: 96 | AK21: 97 | AL21: 98 | AP21: =+IMPORTARDATOSDINAMICOS(" BAS017";TABLAS!$A$130) | AQ21: =+IMPORTARDATOSDINAMICOS(" BAS018";TABLAS!$A$130) | AR21: =+IMPORTARDATOSDINAMICOS(" BAS019";TABLAS!$A$130) | AS21: =+IMPORTARDATOSDINAMICOS(" BAS020";TABLAS!$A$130) | AT21: =+IMPORTARDATOSDINAMICOS(" BAS021";TABLAS!$A$130) | AU21: =+IMPORTARDATOSDINAMICOS(" BAS022";TABLAS!$A$130) | AV21: =+IMPORTARDATOSDINAMICOS(" BAS023";TABLAS!$A$130) | AW21: =+IMPORTARDATOSDINAMICOS(" BAS024";TABLAS!$A$130) | AY21: =+IMPORTARDATOSDINAMICOS(" BAS093";TABLAS!$A$130) | AZ21: =+IMPORTARDATOSDINAMICOS(" BAS094";TABLAS!$A$130) | BA21: =+IMPORTARDATOSDINAMICOS(" BAS095";TABLAS!$A$130) | BB21: =+IMPORTARDATOSDINAMICOS(" BAS096";TABLAS!$A$130) | BC21: =+IMPORTARDATOSDINAMICOS(" BAS097";TABLAS!$A$130) | BD21: =+IMPORTARDATOSDINAMICOS(" BAS098";TABLAS!$A$130)
B22: 2A | C22: =+GETPIVOTDATA(" BAS025",TABLAS!$A$130) -> 97 | D22: =+GETPIVOTDATA(" BAS026",TABLAS!$A$130) -> 89 | E22: =+GETPIVOTDATA(" BAS027",TABLAS!$A$130) -> 86 | F22: =+GETPIVOTDATA(" BAS028",TABLAS!$A$130) -> 69 | G22: =+GETPIVOTDATA(" BAS029",TABLAS!$A$130) -> 62 | H22: =+GETPIVOTDATA(" BAS030",TABLAS!$A$130) -> 71 | I22: =+GETPIVOTDATA(" BAS031",TABLAS!$A$130) -> 61 | J22: =+GETPIVOTDATA(" BAS032",TABLAS!$A$130) -> 0 | L22: 2A | M22: =+GETPIVOTDATA(" BAS099",TABLAS!$A$130) -> 6 | N22: =+GETPIVOTDATA(" BAS100",TABLAS!$A$130) -> 3 | O22: =+GETPIVOTDATA(" BAS101",TABLAS!$A$130) -> 0 | P22: =+GETPIVOTDATA(" BAS102",TABLAS!$A$130) -> 0 | Q22: =+GETPIVOTDATA(" BAS103",TABLAS!$A$130) -> 0 | R22: =+GETPIVOTDATA(" BAS104",TABLAS!$A$130) -> 0 | X22: 25 | Y22: 26 | Z22: 27 | AA22: 28 | AB22: 29 | AC22: 30 | AD22: 31 | AE22: 32 | AG22: 99 | AH22: 100 | AI22: 101 | AJ22: 102 | AK22: 103 | AL22: 104 | AP22: =+IMPORTARDATOSDINAMICOS(" BAS025";TABLAS!$A$130) | AQ22: =+IMPORTARDATOSDINAMICOS(" BAS026";TABLAS!$A$130) | AR22: =+IMPORTARDATOSDINAMICOS(" BAS027";TABLAS!$A$130) | AS22: =+IMPORTARDATOSDINAMICOS(" BAS028";TABLAS!$A$130) | AT22: =+IMPORTARDATOSDINAMICOS(" BAS029";TABLAS!$A$130) | AU22: =+IMPORTARDATOSDINAMICOS(" BAS030";TABLAS!$A$130) | AV22: =+IMPORTARDATOSDINAMICOS(" BAS031";TABLAS!$A$130) | AW22: =+IMPORTARDATOSDINAMICOS(" BAS032";TABLAS!$A$130) | AY22: =+IMPORTARDATOSDINAMICOS(" BAS099";TABLAS!$A$130) | AZ22: =+IMPORTARDATOSDINAMICOS(" BAS100";TABLAS!$A$130) | BA22: =+IMPORTARDATOSDINAMICOS(" BAS101";TABLAS!$A$130) | BB22: =+IMPORTARDATOSDINAMICOS(" BAS102";TABLAS!$A$130) | BC22: =+IMPORTARDATOSDINAMICOS(" BAS103";TABLAS!$A$130) | BD22: =+IMPORTARDATOSDINAMICOS(" BAS104";TABLAS!$A$130)
B23: 3A | C23: =+GETPIVOTDATA(" BAS033",TABLAS!$A$130) -> 59 | D23: =+GETPIVOTDATA(" BAS034",TABLAS!$A$130) -> 56 | E23: =+GETPIVOTDATA(" BAS035",TABLAS!$A$130) -> 53 | F23: =+GETPIVOTDATA(" BAS036",TABLAS!$A$130) -> 49 | G23: =+GETPIVOTDATA(" BAS037",TABLAS!$A$130) -> 39 | H23: =+GETPIVOTDATA(" BAS038",TABLAS!$A$130) -> 25 | I23: =+GETPIVOTDATA(" BAS039",TABLAS!$A$130) -> 32 | J23: =+GETPIVOTDATA(" BAS040",TABLAS!$A$130) -> 0 | L23: 3A | M23: =+GETPIVOTDATA(" BAS105",TABLAS!$A$130) -> 6 | N23: =+GETPIVOTDATA(" BAS106",TABLAS!$A$130) -> 0 | O23: =+GETPIVOTDATA(" BAS107",TABLAS!$A$130) -> 0 | P23: =+GETPIVOTDATA(" BAS108",TABLAS!$A$130) -> 0 | Q23: =+GETPIVOTDATA(" BAS109",TABLAS!$A$130) -> 0 | R23: =+GETPIVOTDATA(" BAS110",TABLAS!$A$130) -> 0 | X23: 33 | Y23: 34 | Z23: 35 | AA23: 36 | AB23: 37 | AC23: 38 | AD23: 39 | AE23: 40 | AG23: 105 | AH23: 106 | AI23: 107 | AJ23: 108 | AK23: 109 | AL23: 110 | AP23: =+IMPORTARDATOSDINAMICOS(" BAS033";TABLAS!$A$130) | AQ23: =+IMPORTARDATOSDINAMICOS(" BAS034";TABLAS!$A$130) | AR23: =+IMPORTARDATOSDINAMICOS(" BAS035";TABLAS!$A$130) | AS23: =+IMPORTARDATOSDINAMICOS(" BAS036";TABLAS!$A$130) | AT23: =+IMPORTARDATOSDINAMICOS(" BAS037";TABLAS!$A$130) | AU23: =+IMPORTARDATOSDINAMICOS(" BAS038";TABLAS!$A$130) | AV23: =+IMPORTARDATOSDINAMICOS(" BAS039";TABLAS!$A$130) | AW23: =+IMPORTARDATOSDINAMICOS(" BAS040";TABLAS!$A$130) | AY23: =+IMPORTARDATOSDINAMICOS(" BAS105";TABLAS!$A$130) | AZ23: =+IMPORTARDATOSDINAMICOS(" BAS106";TABLAS!$A$130) | BA23: =+IMPORTARDATOSDINAMICOS(" BAS107";TABLAS!$A$130) | BB23: =+IMPORTARDATOSDINAMICOS(" BAS108";TABLAS!$A$130) | BC23: =+IMPORTARDATOSDINAMICOS(" BAS109";TABLAS!$A$130) | BD23: =+IMPORTARDATOSDINAMICOS(" BAS110";TABLAS!$A$130)
B24: 4A | C24: =+GETPIVOTDATA(" BAS041",TABLAS!$A$130) -> 63 | D24: =+GETPIVOTDATA(" BAS042",TABLAS!$A$130) -> 46 | E24: =+GETPIVOTDATA(" BAS043",TABLAS!$A$130) -> 43 | F24: =+GETPIVOTDATA(" BAS044",TABLAS!$A$130) -> 31 | G24: =+GETPIVOTDATA(" BAS045",TABLAS!$A$130) -> 32 | H24: =+GETPIVOTDATA(" BAS046",TABLAS!$A$130) -> 29 | I24: =+GETPIVOTDATA(" BAS047",TABLAS!$A$130) -> 28 | J24: =+GETPIVOTDATA(" BAS048",TABLAS!$A$130) -> 0 | L24: 4A | M24: =+GETPIVOTDATA(" BAS111",TABLAS!$A$130) -> 2 | N24: =+GETPIVOTDATA(" BAS112",TABLAS!$A$130) -> 1 | O24: =+GETPIVOTDATA(" BAS113",TABLAS!$A$130) -> 0 | P24: =+GETPIVOTDATA(" BAS114",TABLAS!$A$130) -> 0 | Q24: =+GETPIVOTDATA(" BAS115",TABLAS!$A$130) -> 0 | R24: =+GETPIVOTDATA(" BAS116",TABLAS!$A$130) -> 0 | X24: 41 | Y24: 42 | Z24: 43 | AA24: 44 | AB24: 45 | AC24: 46 | AD24: 47 | AE24: 48 | AG24: 111 | AH24: 112 | AI24: 113 | AJ24: 114 | AK24: 115 | AL24: 116 | AP24: =+IMPORTARDATOSDINAMICOS(" BAS041";TABLAS!$A$130) | AQ24: =+IMPORTARDATOSDINAMICOS(" BAS042";TABLAS!$A$130) | AR24: =+IMPORTARDATOSDINAMICOS(" BAS043";TABLAS!$A$130) | AS24: =+IMPORTARDATOSDINAMICOS(" BAS044";TABLAS!$A$130) | AT24: =+IMPORTARDATOSDINAMICOS(" BAS045";TABLAS!$A$130) | AU24: =+IMPORTARDATOSDINAMICOS(" BAS046";TABLAS!$A$130) | AV24: =+IMPORTARDATOSDINAMICOS(" BAS047";TABLAS!$A$130) | AW24: =+IMPORTARDATOSDINAMICOS(" BAS048";TABLAS!$A$130) | AY24: =+IMPORTARDATOSDINAMICOS(" BAS111";TABLAS!$A$130) | AZ24: =+IMPORTARDATOSDINAMICOS(" BAS112";TABLAS!$A$130) | BA24: =+IMPORTARDATOSDINAMICOS(" BAS113";TABLAS!$A$130) | BB24: =+IMPORTARDATOSDINAMICOS(" BAS114";TABLAS!$A$130) | BC24: =+IMPORTARDATOSDINAMICOS(" BAS115";TABLAS!$A$130) | BD24: =+IMPORTARDATOSDINAMICOS(" BAS116";TABLAS!$A$130)
A25: Adolescentes | B25: Varones | C25: =+GETPIVOTDATA(" BAS049",TABLAS!$A$130) -> 5 | D25: =+GETPIVOTDATA(" BAS050",TABLAS!$A$130) -> 0 | E25: =+GETPIVOTDATA(" BAS051",TABLAS!$A$130) -> 0 | F25: =+GETPIVOTDATA(" BAS052",TABLAS!$A$130) -> 0 | G25: =+GETPIVOTDATA(" BAS053",TABLAS!$A$130) -> 0 | H25: =+GETPIVOTDATA(" BAS054",TABLAS!$A$130) -> 0 | I25: =+GETPIVOTDATA(" BAS055",TABLAS!$A$130) -> 0 | J25: =+GETPIVOTDATA(" BAS056",TABLAS!$A$130) -> 0 | L25: Varones | M25: =+GETPIVOTDATA(" BAS117",TABLAS!$A$130) -> 0 | N25: =+GETPIVOTDATA(" BAS118",TABLAS!$A$130) -> 0 | O25: =+GETPIVOTDATA(" BAS119",TABLAS!$A$130) -> 0 | P25: =+GETPIVOTDATA(" BAS120",TABLAS!$A$130) -> 0 | Q25: =+GETPIVOTDATA(" BAS121",TABLAS!$A$130) -> 0 | R25: =+GETPIVOTDATA(" BAS122",TABLAS!$A$130) -> 0 | X25: 49 | Y25: 50 | Z25: 51 | AA25: 52 | AB25: 53 | AC25: 54 | AD25: 55 | AE25: 56 | AG25: 117 | AH25: 118 | AI25: 119 | AJ25: 120 | AK25: 121 | AL25: 122 | AP25: =+IMPORTARDATOSDINAMICOS(" BAS049";TABLAS!$A$130) | AQ25: =+IMPORTARDATOSDINAMICOS(" BAS050";TABLAS!$A$130) | AR25: =+IMPORTARDATOSDINAMICOS(" BAS051";TABLAS!$A$130) | AS25: =+IMPORTARDATOSDINAMICOS(" BAS052";TABLAS!$A$130) | AT25: =+IMPORTARDATOSDINAMICOS(" BAS053";TABLAS!$A$130) | AU25: =+IMPORTARDATOSDINAMICOS(" BAS054";TABLAS!$A$130) | AV25: =+IMPORTARDATOSDINAMICOS(" BAS055";TABLAS!$A$130) | AW25: =+IMPORTARDATOSDINAMICOS(" BAS056";TABLAS!$A$130) | AY25: =+IMPORTARDATOSDINAMICOS(" BAS117";TABLAS!$A$130) | AZ25: =+IMPORTARDATOSDINAMICOS(" BAS118";TABLAS!$A$130) | BA25: =+IMPORTARDATOSDINAMICOS(" BAS119";TABLAS!$A$130) | BB25: =+IMPORTARDATOSDINAMICOS(" BAS120";TABLAS!$A$130) | BC25: =+IMPORTARDATOSDINAMICOS(" BAS121";TABLAS!$A$130) | BD25: =+IMPORTARDATOSDINAMICOS(" BAS122";TABLAS!$A$130)
B26: Mujeres | C26: =+GETPIVOTDATA(" BAS057",TABLAS!$A$130) -> 89 | D26: =+GETPIVOTDATA(" BAS058",TABLAS!$A$130) -> 30 | E26: =+GETPIVOTDATA(" BAS059",TABLAS!$A$130) -> 1 | F26: =+GETPIVOTDATA(" BAS060",TABLAS!$A$130) -> 0 | G26: =+GETPIVOTDATA(" BAS061",TABLAS!$A$130) -> 0 | H26: =+GETPIVOTDATA(" BAS062",TABLAS!$A$130) -> 0 | I26: =+GETPIVOTDATA(" BAS063",TABLAS!$A$130) -> 0 | J26: =+GETPIVOTDATA(" BAS064",TABLAS!$A$130) -> 0 | L26: Mujeres | M26: =+GETPIVOTDATA(" BAS123",TABLAS!$A$130) -> 3 | N26: =+GETPIVOTDATA(" BAS124",TABLAS!$A$130) -> 0 | O26: =+GETPIVOTDATA(" BAS125",TABLAS!$A$130) -> 0 | P26: =+GETPIVOTDATA(" BAS126",TABLAS!$A$130) -> 0 | Q26: =+GETPIVOTDATA(" BAS127",TABLAS!$A$130) -> 0 | R26: =+GETPIVOTDATA(" BAS128",TABLAS!$A$130) -> 0 | X26: 57 | Y26: 58 | Z26: 59 | AA26: 60 | AB26: 61 | AC26: 62 | AD26: 63 | AE26: 64 | AG26: 123 | AH26: 124 | AI26: 125 | AJ26: 126 | AK26: 127 | AL26: 128 | AP26: =+IMPORTARDATOSDINAMICOS(" BAS057";TABLAS!$A$130) | AQ26: =+IMPORTARDATOSDINAMICOS(" BAS058";TABLAS!$A$130) | AR26: =+IMPORTARDATOSDINAMICOS(" BAS059";TABLAS!$A$130) | AS26: =+IMPORTARDATOSDINAMICOS(" BAS060";TABLAS!$A$130) | AT26: =+IMPORTARDATOSDINAMICOS(" BAS061";TABLAS!$A$130) | AU26: =+IMPORTARDATOSDINAMICOS(" BAS062";TABLAS!$A$130) | AV26: =+IMPORTARDATOSDINAMICOS(" BAS063";TABLAS!$A$130) | AW26: =+IMPORTARDATOSDINAMICOS(" BAS064";TABLAS!$A$130) | AY26: =+IMPORTARDATOSDINAMICOS(" BAS123";TABLAS!$A$130) | AZ26: =+IMPORTARDATOSDINAMICOS(" BAS124";TABLAS!$A$130) | BA26: =+IMPORTARDATOSDINAMICOS(" BAS125";TABLAS!$A$130) | BB26: =+IMPORTARDATOSDINAMICOS(" BAS126";TABLAS!$A$130) | BC26: =+IMPORTARDATOSDINAMICOS(" BAS127";TABLAS!$A$130) | BD26: =+IMPORTARDATOSDINAMICOS(" BAS128";TABLAS!$A$130)
A27: MEF | B27: MEF | C27: =+GETPIVOTDATA(" BAS065",TABLAS!$A$130) -> 93 | D27: =+GETPIVOTDATA(" BAS066",TABLAS!$A$130) -> 30 | E27: =+GETPIVOTDATA(" BAS067",TABLAS!$A$130) -> 2 | F27: =+GETPIVOTDATA(" BAS068",TABLAS!$A$130) -> 2 | G27: =+GETPIVOTDATA(" BAS069",TABLAS!$A$130) -> 0 | H27: =+GETPIVOTDATA(" BAS070",TABLAS!$A$130) -> 0 | I27: =+GETPIVOTDATA(" BAS071",TABLAS!$A$130) -> 0 | J27: =+GETPIVOTDATA(" BAS072",TABLAS!$A$130) -> 0 | L27: MEF | M27: =+GETPIVOTDATA(" BAS129",TABLAS!$A$130) -> 5 | N27: =+GETPIVOTDATA(" BAS130",TABLAS!$A$130) -> 1 | O27: =+GETPIVOTDATA(" BAS131",TABLAS!$A$130) -> 0 | P27: =+GETPIVOTDATA(" BAS132",TABLAS!$A$130) -> 0 | Q27: =+GETPIVOTDATA(" BAS133",TABLAS!$A$130) -> 0 | R27: =+GETPIVOTDATA(" BAS134",TABLAS!$A$130) -> 0 | X27: 65 | Y27: 66 | Z27: 67 | AA27: 68 | AB27: 69 | AC27: 70 | AD27: 71 | AE27: 72 | AG27: 129 | AH27: 130 | AI27: 131 | AJ27: 132 | AK27: 133 | AL27: 134 | AP27: =+IMPORTARDATOSDINAMICOS(" BAS065";TABLAS!$A$130) | AQ27: =+IMPORTARDATOSDINAMICOS(" BAS066";TABLAS!$A$130) | AR27: =+IMPORTARDATOSDINAMICOS(" BAS067";TABLAS!$A$130) | AS27: =+IMPORTARDATOSDINAMICOS(" BAS068";TABLAS!$A$130) | AT27: =+IMPORTARDATOSDINAMICOS(" BAS069";TABLAS!$A$130) | AU27: =+IMPORTARDATOSDINAMICOS(" BAS070";TABLAS!$A$130) | AV27: =+IMPORTARDATOSDINAMICOS(" BAS071";TABLAS!$A$130) | AW27: =+IMPORTARDATOSDINAMICOS(" BAS072";TABLAS!$A$130) | AY27: =+IMPORTARDATOSDINAMICOS(" BAS129";TABLAS!$A$130) | AZ27: =+IMPORTARDATOSDINAMICOS(" BAS130";TABLAS!$A$130) | BA27: =+IMPORTARDATOSDINAMICOS(" BAS131";TABLAS!$A$130) | BB27: =+IMPORTARDATOSDINAMICOS(" BAS132";TABLAS!$A$130) | BC27: =+IMPORTARDATOSDINAMICOS(" BAS133";TABLAS!$A$130) | BD27: =+IMPORTARDATOSDINAMICOS(" BAS134";TABLAS!$A$130)
A28: Gestantes | B28: Gestantes | C28: =+GETPIVOTDATA(" BAS073",TABLAS!$A$130) -> 155 | D28: =+GETPIVOTDATA(" BAS074",TABLAS!$A$130) -> 2 | E28: =+GETPIVOTDATA(" BAS075",TABLAS!$A$130) -> 0 | F28: =+GETPIVOTDATA(" BAS076",TABLAS!$A$130) -> 0 | G28: =+GETPIVOTDATA(" BAS077",TABLAS!$A$130) -> 2 | H28: =+GETPIVOTDATA(" BAS078",TABLAS!$A$130) -> 1 | I28: =+GETPIVOTDATA(" BAS079",TABLAS!$A$130) -> 0 | J28: =+GETPIVOTDATA(" BAS080",TABLAS!$A$130) -> 0 | L28: Gestantes | M28: =+GETPIVOTDATA(" BAS135",TABLAS!$A$130) -> 0 | N28: =+GETPIVOTDATA(" BAS136",TABLAS!$A$130) -> 1 | O28: =+GETPIVOTDATA(" BAS137",TABLAS!$A$130) -> 0 | P28: =+GETPIVOTDATA(" BAS138",TABLAS!$A$130) -> 0 | Q28: =+GETPIVOTDATA(" BAS139",TABLAS!$A$130) -> 0 | R28: =+GETPIVOTDATA(" BAS140",TABLAS!$A$130) -> 0 | X28: 73 | Y28: 74 | Z28: 75 | AA28: 76 | AB28: 77 | AC28: 78 | AD28: 79 | AE28: 80 | AG28: 135 | AH28: 136 | AI28: 137 | AJ28: 138 | AK28: 139 | AL28: 140 | AP28: =+IMPORTARDATOSDINAMICOS(" BAS073";TABLAS!$A$130) | AQ28: =+IMPORTARDATOSDINAMICOS(" BAS074";TABLAS!$A$130) | AR28: =+IMPORTARDATOSDINAMICOS(" BAS075";TABLAS!$A$130) | AS28: =+IMPORTARDATOSDINAMICOS(" BAS076";TABLAS!$A$130) | AT28: =+IMPORTARDATOSDINAMICOS(" BAS077";TABLAS!$A$130) | AU28: =+IMPORTARDATOSDINAMICOS(" BAS078";TABLAS!$A$130) | AV28: =+IMPORTARDATOSDINAMICOS(" BAS079";TABLAS!$A$130) | AW28: =+IMPORTARDATOSDINAMICOS(" BAS080";TABLAS!$A$130) | AY28: =+IMPORTARDATOSDINAMICOS(" BAS135";TABLAS!$A$130) | AZ28: =+IMPORTARDATOSDINAMICOS(" BAS136";TABLAS!$A$130) | BA28: =+IMPORTARDATOSDINAMICOS(" BAS137";TABLAS!$A$130) | BB28: =+IMPORTARDATOSDINAMICOS(" BAS138";TABLAS!$A$130) | BC28: =+IMPORTARDATOSDINAMICOS(" BAS139";TABLAS!$A$130) | BD28: =+IMPORTARDATOSDINAMICOS(" BAS140";TABLAS!$A$130)
A30: 2. DOSAJE DE HEMOGLOBINA CONTROL | L30: 3. CONSULTA MEDICA
A32: Actividades Operativas | B32: Dosaje de hemoglobina | AP32: =+GETPIVOTDATA(" BAS001",TABLAS!$A$168) -> 75
B33: 1er Control | C33: 2do Control | D33: 3er Control | E33: 4to Control | F33: 5to Control | G33: 6to Control | L33: EDAD | M33: 1 | N33: 2 | O33: 3 | P33: 4 | Q33: 5 | R33: 6 | AP33: ";TABLAS!$A$168) | AU33: D | AY33: S | BD33: D
A34: 6 a 11 meses | B34: =+GETPIVOTDATA(" BAS001",TABLAS!$A$168) -> 75 | C34: =+GETPIVOTDATA(" BAS002",TABLAS!$A$168) -> 68 | D34: =+GETPIVOTDATA(" BAS003",TABLAS!$A$168) -> 59 | E34: =+GETPIVOTDATA(" BAS004",TABLAS!$A$168) -> 4 | F34: =+GETPIVOTDATA(" BAS005",TABLAS!$A$168) -> 0 | G34: =+GETPIVOTDATA(" BAS006",TABLAS!$A$168) -> 0 | L34: 0-5 MESES | M34: =+GETPIVOTDATA(" BAS055",TABLAS!$A$168) -> 0 | N34: =+GETPIVOTDATA(" BAS056",TABLAS!$A$168) -> 0 | O34: =+GETPIVOTDATA(" BAS057",TABLAS!$A$168) -> 0 | P34: =+GETPIVOTDATA(" BAS058",TABLAS!$A$168) -> 0 | Q34: =+GETPIVOTDATA(" BAS059",TABLAS!$A$168) -> 0 | R34: =+GETPIVOTDATA(" BAS060",TABLAS!$A$168) -> 0 | X34: 1 | Y34: =+X34+1 -> 2 | Z34: =+Y34+1 -> 3 | AA34: 4 | AB34: 5 | AC34: 6 | AG34: =+AC42+1 -> 55 | AH34: =+AG34+1 -> 56 | AI34: =+AH34+1 -> 57 | AJ34: 58 | AK34: 59 | AL34: 60 | AP34: =IF(X34<10,CONCATENATE($AP$16,"00",X34,$AP$33),IF(AND(X34>9,X34<100),CONCATENATE($AP$16,"0",X34,$AP$33),IF(X34>99,CONCATENATE($AP$16,X34,$AP$33)))) -> =+IMPORTARDATOSDINAMICOS(" BAS001";TABLAS!$A$168) | AQ34: =IF(Y34<10,CONCATENATE($AP$16,"00",Y34,$AP$33),IF(AND(Y34>9,Y34<100),CONCATENATE($AP$16,"0",Y34,$AP$33),IF(Y34>99,CONCATENATE($AP$16,Y34,$AP$33)))) -> =+IMPORTARDATOSDINAMICOS(" BAS002";TABLAS!$A$168) | AR34: =+IMPORTARDATOSDINAMICOS(" BAS003";TABLAS!$A$168) | AS34: =+IMPORTARDATOSDINAMICOS(" BAS004";TABLAS!$A$168) | AT34: =+IMPORTARDATOSDINAMICOS(" BAS005";TABLAS!$A$168) | AU34: =+IMPORTARDATOSDINAMICOS(" BAS006";TABLAS!$A$168) | AY34: =IF(AG34<10,CONCATENATE($AP$16,"00",AG34,$AP$33),IF(AND(AG34>9,AG34<100),CONCATENATE($AP$16,"0",AG34,$AP$33),IF(AG34>99,CONCATENATE($AP$16,AG34,$AP$33)))) -> =+IMPORTARDATOSDINAMICOS(" BAS055";TABLAS!$A$168) | AZ34: =IF(AH34<10,CONCATENATE($AP$16,"00",AH34,$AP$33),IF(AND(AH34>9,AH34<100),CONCATENATE($AP$16,"0",AH34,$AP$33),IF(AH34>99,CONCATENATE($AP$16,AH34,$AP$33)))) -> =+IMPORTARDATOSDINAMICOS(" BAS056";TABLAS!$A$168) | BA34: =IF(AI34<10,CONCATENATE($AP$16,"00",AI34,$AP$33),IF(AND(AI34>9,AI34<100),CONCATENATE($AP$16,"0",AI34,$AP$33),IF(AI34>99,CONCATENATE($AP$16,AI34,$AP$33)))) -> =+IMPORTARDATOSDINAMICOS(" BAS057";TABLAS!$A$168) | BB34: =IF(AJ34<10,CONCATENATE($AP$16,"00",AJ34,$AP$33),IF(AND(AJ34>9,AJ34<100),CONCATENATE($AP$16,"0",AJ34,$AP$33),IF(AJ34>99,CONCATENATE($AP$16,AJ34,$AP$33)))) -> =+IMPORTARDATOSDINAMICOS(" BAS058";TABLAS!$A$168) | BC34: =IF(AK34<10,CONCATENATE($AP$16,"00",AK34,$AP$33),IF(AND(AK34>9,AK34<100),CONCATENATE($AP$16,"0",AK34,$AP$33),IF(AK34>99,CONCATENATE($AP$16,AK34,$AP$33)))) -> =+IMPORTARDATOSDINAMICOS(" BAS059";TABLAS!$A$168) | BD34: =IF(AL34<10,CONCATENATE($AP$16,"00",AL34,$AP$33),IF(AND(AL34>9,AL34<100),CONCATENATE($AP$16,"0",AL34,$AP$33),IF(AL34>99,CONCATENATE($AP$16,AL34,$AP$33)))) -> =+IMPORTARDATOSDINAMICOS(" BAS060";TABLAS!$A$168)
A35: 12 a 23 meses | B35: =+GETPIVOTDATA(" BAS007",TABLAS!$A$168) -> 93 | C35: =+GETPIVOTDATA(" BAS008",TABLAS!$A$168) -> 94 | D35: =+GETPIVOTDATA(" BAS009",TABLAS!$A$168) -> 111 | E35: =+GETPIVOTDATA(" BAS010",TABLAS!$A$168) -> 23 | F35: =+GETPIVOTDATA(" BAS011",TABLAS!$A$168) -> 79 | G35: =+GETPIVOTDATA(" BAS012",TABLAS!$A$168) -> 0 | L35: 6-11m | M35: =+GETPIVOTDATA(" BAS061",TABLAS!$A$168) -> 0 | N35: =+GETPIVOTDATA(" BAS062",TABLAS!$A$168) -> 0 | O35: =+GETPIVOTDATA(" BAS063",TABLAS!$A$168) -> 0 | P35: =+GETPIVOTDATA(" BAS064",TABLAS!$A$168) -> 0 | Q35: =+GETPIVOTDATA(" BAS065",TABLAS!$A$168) -> 0 | R35: =+GETPIVOTDATA(" BAS066",TABLAS!$A$168) -> 0 | X35: =+AC34+1 -> 7 | Y35: =+X35+1 -> 8 | Z35: 9 | AA35: 10 | AB35: 11 | AC35: 12 | AG35: =+AL34+1 -> 61 | AH35: =+AG35+1 -> 62 | AI35: 63 | AJ35: 64 | AK35: 65 | AL35: 66 | AP35: =IF(X35<10,CONCATENATE($AP$16,"00",X35,$AP$33),IF(AND(X35>9,X35<100),CONCATENATE($AP$16,"0",X35,$AP$33),IF(X35>99,CONCATENATE($AP$16,X35,$AP$33)))) -> =+IMPORTARDATOSDINAMICOS(" BAS007";TABLAS!$A$168) | AQ35: =IF(Y35<10,CONCATENATE($AP$16,"00",Y35,$AP$33),IF(AND(Y35>9,Y35<100),CONCATENATE($AP$16,"0",Y35,$AP$33),IF(Y35>99,CONCATENATE($AP$16,Y35,$AP$33)))) -> =+IMPORTARDATOSDINAMICOS(" BAS008";TABLAS!$A$168) | AR35: =IF(Z35<10,CONCATENATE($AP$16,"00",Z35,$AP$33),IF(AND(Z35>9,Z35<100),CONCATENATE($AP$16,"0",Z35,$AP$33),IF(Z35>99,CONCATENATE($AP$16,Z35,$AP$33)))) -> =+IMPORTARDATOSDINAMICOS(" BAS009";TABLAS!$A$168) | AS35: =IF(AA35<10,CONCATENATE($AP$16,"00",AA35,$AP$33),IF(AND(AA35>9,AA35<100),CONCATENATE($AP$16,"0",AA35,$AP$33),IF(AA35>99,CONCATENATE($AP$16,AA35,$AP$33)))) -> =+IMPORTARDATOSDINAMICOS(" BAS010";TABLAS!$A$168) | AT35: =IF(AB35<10,CONCATENATE($AP$16,"00",AB35,$AP$33),IF(AND(AB35>9,AB35<100),CONCATENATE($AP$16,"0",AB35,$AP$33),IF(AB35>99,CONCATENATE($AP$16,AB35,$AP$33)))) -> =+IMPORTARDATOSDINAMICOS(" BAS011";TABLAS!$A$168) | AU35: =IF(AC35<10,CONCATENATE($AP$16,"00",AC35,$AP$33),IF(AND(AC35>9,AC35<100),CONCATENATE($AP$16,"0",AC35,$AP$33),IF(AC35>99,CONCATENATE($AP$16,AC35,$AP$33)))) -> =+IMPORTARDATOSDINAMICOS(" BAS012";TABLAS!$A$168) | AY35: =IF(AG35<10,CONCATENATE($AP$16,"00",AG35,$AP$33),IF(AND(AG35>9,AG35<100),CONCATENATE($AP$16,"0",AG35,$AP$33),IF(AG35>99,CONCATENATE($AP$16,AG35,$AP$33)))) -> =+IMPORTARDATOSDINAMICOS(" BAS061";TABLAS!$A$168) | AZ35: =IF(AH35<10,CONCATENATE($AP$16,"00",AH35,$AP$33),IF(AND(AH35>9,AH35<100),CONCATENATE($AP$16,"0",AH35,$AP$33),IF(AH35>99,CONCATENATE($AP$16,AH35,$AP$33)))) -> =+IMPORTARDATOSDINAMICOS(" BAS062";TABLAS!$A$168) | BA35: =IF(AI35<10,CONCATENATE($AP$16,"00",AI35,$AP$33),IF(AND(AI35>9,AI35<100),CONCATENATE($AP$16,"0",AI35,$AP$33),IF(AI35>99,CONCATENATE($AP$16,AI35,$AP$33)))) -> =+IMPORTARDATOSDINAMICOS(" BAS063";TABLAS!$A$168) | BB35: =IF(AJ35<10,CONCATENATE($AP$16,"00",AJ35,$AP$33),IF(AND(AJ35>9,AJ35<100),CONCATENATE($AP$16,"0",AJ35,$AP$33),IF(AJ35>99,CONCATENATE($AP$16,AJ35,$AP$33)))) -> =+IMPORTARDATOSDINAMICOS(" BAS064";TABLAS!$A$168) | BC35: =IF(AK35<10,CONCATENATE($AP$16,"00",AK35,$AP$33),IF(AND(AK35>9,AK35<100),CONCATENATE($AP$16,"0",AK35,$AP$33),IF(AK35>99,CONCATENATE($AP$16,AK35,$AP$33)))) -> =+IMPORTARDATOSDINAMICOS(" BAS065";TABLAS!$A$168) | BD35: =IF(AL35<10,CONCATENATE($AP$16,"00",AL35,$AP$33),IF(AND(AL35>9,AL35<100),CONCATENATE($AP$16,"0",AL35,$AP$33),IF(AL35>99,CONCATENATE($AP$16,AL35,$AP$33)))) -> =+IMPORTARDATOSDINAMICOS(" BAS066";TABLAS!$A$168)
A36: 24 a 35 meses | B36: =+GETPIVOTDATA(" BAS013",TABLAS!$A$168) -> 73 | C36: =+GETPIVOTDATA(" BAS014",TABLAS!$A$168) -> 59 | D36: =+GETPIVOTDATA(" BAS015",TABLAS!$A$168) -> 52 | E36: =+GETPIVOTDATA(" BAS016",TABLAS!$A$168) -> 9 | F36: =+GETPIVOTDATA(" BAS017",TABLAS!$A$168) -> 54 | G36: =+GETPIVOTDATA(" BAS018",TABLAS!$A$168) -> 0 | L36: 1A | M36: =+GETPIVOTDATA(" BAS067",TABLAS!$A$168) -> 0 | N36: =+GETPIVOTDATA(" BAS068",TABLAS!$A$168) -> 0 | O36: =+GETPIVOTDATA(" BAS069",TABLAS!$A$168) -> 0 | P36: =+GETPIVOTDATA(" BAS070",TABLAS!$A$168) -> 0 | Q36: =+GETPIVOTDATA(" BAS071",TABLAS!$A$168) -> 0 | R36: =+GETPIVOTDATA(" BAS072",TABLAS!$A$168) -> 0 | X36: =+AC35+1 -> 13 | Y36: 14 | Z36: 15 | AA36: 16 | AB36: 17 | AC36: 18 | AG36: =+AL35+1 -> 67 | AH36: 68 | AI36: 69 | AJ36: 70 | AK36: 71 | AL36: 72 | AP36: =+IMPORTARDATOSDINAMICOS(" BAS013";TABLAS!$A$168) | AQ36: =+IMPORTARDATOSDINAMICOS(" BAS014";TABLAS!$A$168) | AR36: =+IMPORTARDATOSDINAMICOS(" BAS015";TABLAS!$A$168) | AS36: =+IMPORTARDATOSDINAMICOS(" BAS016";TABLAS!$A$168) | AT36: =+IMPORTARDATOSDINAMICOS(" BAS017";TABLAS!$A$168) | AU36: =+IMPORTARDATOSDINAMICOS(" BAS018";TABLAS!$A$168) | AY36: =+IMPORTARDATOSDINAMICOS(" BAS067";TABLAS!$A$168) | AZ36: =+IMPORTARDATOSDINAMICOS(" BAS068";TABLAS!$A$168) | BA36: =+IMPORTARDATOSDINAMICOS(" BAS069";TABLAS!$A$168) | BB36: =+IMPORTARDATOSDINAMICOS(" BAS070";TABLAS!$A$168) | BC36: =+IMPORTARDATOSDINAMICOS(" BAS071";TABLAS!$A$168) | BD36: =+IMPORTARDATOSDINAMICOS(" BAS072";TABLAS!$A$168)
A37: 36 a 59 meses | B37: =+GETPIVOTDATA(" BAS019",TABLAS!$A$168) -> 75 | C37: =+GETPIVOTDATA(" BAS020",TABLAS!$A$168) -> 27 | D37: =+GETPIVOTDATA(" BAS021",TABLAS!$A$168) -> 60 | E37: =+GETPIVOTDATA(" BAS022",TABLAS!$A$168) -> 47 | F37: =+GETPIVOTDATA(" BAS023",TABLAS!$A$168) -> 0 | G37: =+GETPIVOTDATA(" BAS024",TABLAS!$A$168) -> 0 | L37: 2A | M37: =+GETPIVOTDATA(" BAS073",TABLAS!$A$168) -> 0 | N37: =+GETPIVOTDATA(" BAS074",TABLAS!$A$168) -> 0 | O37: =+GETPIVOTDATA(" BAS075",TABLAS!$A$168) -> 0 | P37: =+GETPIVOTDATA(" BAS076",TABLAS!$A$168) -> 0 | Q37: =+GETPIVOTDATA(" BAS077",TABLAS!$A$168) -> 0 | R37: =+GETPIVOTDATA(" BAS078",TABLAS!$A$168) -> 0 | X37: 19 | Y37: 20 | Z37: 21 | AA37: 22 | AB37: 23 | AC37: 24 | AG37: 73 | AH37: 74 | AI37: 75 | AJ37: 76 | AK37: 77 | AL37: 78 | AP37: =+IMPORTARDATOSDINAMICOS(" BAS019";TABLAS!$A$168) | AQ37: =+IMPORTARDATOSDINAMICOS(" BAS020";TABLAS!$A$168) | AR37: =+IMPORTARDATOSDINAMICOS(" BAS021";TABLAS!$A$168) | AS37: =+IMPORTARDATOSDINAMICOS(" BAS022";TABLAS!$A$168) | AT37: =+IMPORTARDATOSDINAMICOS(" BAS023";TABLAS!$A$168) | AU37: =+IMPORTARDATOSDINAMICOS(" BAS024";TABLAS!$A$168) | AY37: =+IMPORTARDATOSDINAMICOS(" BAS073";TABLAS!$A$168) | AZ37: =+IMPORTARDATOSDINAMICOS(" BAS074";TABLAS!$A$168) | BA37: =+IMPORTARDATOSDINAMICOS(" BAS075";TABLAS!$A$168) | BB37: =+IMPORTARDATOSDINAMICOS(" BAS076";TABLAS!$A$168) | BC37: =+IMPORTARDATOSDINAMICOS(" BAS077";TABLAS!$A$168) | BD37: =+IMPORTARDATOSDINAMICOS(" BAS078";TABLAS!$A$168)
A38: 5 a 11 años | B38: =+GETPIVOTDATA(" BAS025",TABLAS!$A$168) -> 18 | C38: =+GETPIVOTDATA(" BAS026",TABLAS!$A$168) -> 5 | D38: =+GETPIVOTDATA(" BAS027",TABLAS!$A$168) -> 4 | E38: =+GETPIVOTDATA(" BAS028",TABLAS!$A$168) -> 3 | F38: =+GETPIVOTDATA(" BAS029",TABLAS!$A$168) -> 0 | G38: =+GETPIVOTDATA(" BAS030",TABLAS!$A$168) -> 0 | L38: 3A | M38: =+GETPIVOTDATA(" BAS079",TABLAS!$A$168) -> 0 | N38: =+GETPIVOTDATA(" BAS080",TABLAS!$A$168) -> 0 | O38: =+GETPIVOTDATA(" BAS081",TABLAS!$A$168) -> 0 | P38: =+GETPIVOTDATA(" BAS082",TABLAS!$A$168) -> 0 | Q38: =+GETPIVOTDATA(" BAS083",TABLAS!$A$168) -> 0 | R38: =+GETPIVOTDATA(" BAS084",TABLAS!$A$168) -> 0 | X38: 25 | Y38: 26 | Z38: 27 | AA38: 28 | AB38: 29 | AC38: 30 | AG38: 79 | AH38: 80 | AI38: 81 | AJ38: 82 | AK38: 83 | AL38: 84 | AP38: =+IMPORTARDATOSDINAMICOS(" BAS025";TABLAS!$A$168) | AQ38: =+IMPORTARDATOSDINAMICOS(" BAS026";TABLAS!$A$168) | AR38: =+IMPORTARDATOSDINAMICOS(" BAS027";TABLAS!$A$168) | AS38: =+IMPORTARDATOSDINAMICOS(" BAS028";TABLAS!$A$168) | AT38: =+IMPORTARDATOSDINAMICOS(" BAS029";TABLAS!$A$168) | AU38: =+IMPORTARDATOSDINAMICOS(" BAS030";TABLAS!$A$168) | AY38: =+IMPORTARDATOSDINAMICOS(" BAS079";TABLAS!$A$168) | AZ38: =+IMPORTARDATOSDINAMICOS(" BAS080";TABLAS!$A$168) | BA38: =+IMPORTARDATOSDINAMICOS(" BAS081";TABLAS!$A$168) | BB38: =+IMPORTARDATOSDINAMICOS(" BAS082";TABLAS!$A$168) | BC38: =+IMPORTARDATOSDINAMICOS(" BAS083";TABLAS!$A$168) | BD38: =+IMPORTARDATOSDINAMICOS(" BAS084";TABLAS!$A$168)
A39: 12 a 17 años Mujeres | B39: =+GETPIVOTDATA(" BAS031",TABLAS!$A$168) -> 9 | C39: =+GETPIVOTDATA(" BAS032",TABLAS!$A$168) -> 0 | D39: =+GETPIVOTDATA(" BAS033",TABLAS!$A$168) -> 0 | E39: =+GETPIVOTDATA(" BAS034",TABLAS!$A$168) -> 0 | F39: =+GETPIVOTDATA(" BAS035",TABLAS!$A$168) -> 0 | G39: =+GETPIVOTDATA(" BAS036",TABLAS!$A$168) -> 0 | L39: 4A | M39: =+GETPIVOTDATA(" BAS085",TABLAS!$A$168) -> 0 | N39: =+GETPIVOTDATA(" BAS086",TABLAS!$A$168) -> 0 | O39: =+GETPIVOTDATA(" BAS087",TABLAS!$A$168) -> 0 | P39: =+GETPIVOTDATA(" BAS088",TABLAS!$A$168) -> 0 | Q39: =+GETPIVOTDATA(" BAS089",TABLAS!$A$168) -> 0 | R39: =+GETPIVOTDATA(" BAS090",TABLAS!$A$168) -> 0 | X39: 31 | Y39: 32 | Z39: 33 | AA39: 34 | AB39: 35 | AC39: 36 | AG39: 85 | AH39: 86 | AI39: 87 | AJ39: 88 | AK39: 89 | AL39: 90 | AP39: =+IMPORTARDATOSDINAMICOS(" BAS031";TABLAS!$A$168) | AQ39: =+IMPORTARDATOSDINAMICOS(" BAS032";TABLAS!$A$168) | AR39: =+IMPORTARDATOSDINAMICOS(" BAS033";TABLAS!$A$168) | AS39: =+IMPORTARDATOSDINAMICOS(" BAS034";TABLAS!$A$168) | AT39: =+IMPORTARDATOSDINAMICOS(" BAS035";TABLAS!$A$168) | AU39: =+IMPORTARDATOSDINAMICOS(" BAS036";TABLAS!$A$168) | AY39: =+IMPORTARDATOSDINAMICOS(" BAS085";TABLAS!$A$168) | AZ39: =+IMPORTARDATOSDINAMICOS(" BAS086";TABLAS!$A$168) | BA39: =+IMPORTARDATOSDINAMICOS(" BAS087";TABLAS!$A$168) | BB39: =+IMPORTARDATOSDINAMICOS(" BAS088";TABLAS!$A$168) | BC39: =+IMPORTARDATOSDINAMICOS(" BAS089";TABLAS!$A$168) | BD39: =+IMPORTARDATOSDINAMICOS(" BAS090";TABLAS!$A$168)
A40: MEF | B40: =+GETPIVOTDATA(" BAS037",TABLAS!$A$168) -> 9 | C40: =+GETPIVOTDATA(" BAS038",TABLAS!$A$168) -> 1 | D40: =+GETPIVOTDATA(" BAS039",TABLAS!$A$168) -> 2 | E40: =+GETPIVOTDATA(" BAS040",TABLAS!$A$168) -> 0 | F40: =+GETPIVOTDATA(" BAS041",TABLAS!$A$168) -> 0 | G40: =+GETPIVOTDATA(" BAS042",TABLAS!$A$168) -> 0 | L40: Varones Adolescentes | M40: =+GETPIVOTDATA(" BAS091",TABLAS!$A$168) -> 0 | N40: =+GETPIVOTDATA(" BAS092",TABLAS!$A$168) -> 0 | O40: =+GETPIVOTDATA(" BAS093",TABLAS!$A$168) -> 0 | P40: =+GETPIVOTDATA(" BAS094",TABLAS!$A$168) -> 0 | Q40: =+GETPIVOTDATA(" BAS095",TABLAS!$A$168) -> 0 | R40: =+GETPIVOTDATA(" BAS096",TABLAS!$A$168) -> 0 | X40: 37 | Y40: 38 | Z40: 39 | AA40: 40 | AB40: 41 | AC40: 42 | AG40: 91 | AH40: 92 | AI40: 93 | AJ40: 94 | AK40: 95 | AL40: 96 | AP40: =+IMPORTARDATOSDINAMICOS(" BAS037";TABLAS!$A$168) | AQ40: =+IMPORTARDATOSDINAMICOS(" BAS038";TABLAS!$A$168) | AR40: =+IMPORTARDATOSDINAMICOS(" BAS039";TABLAS!$A$168) | AS40: =+IMPORTARDATOSDINAMICOS(" BAS040";TABLAS!$A$168) | AT40: =+IMPORTARDATOSDINAMICOS(" BAS041";TABLAS!$A$168) | AU40: =+IMPORTARDATOSDINAMICOS(" BAS042";TABLAS!$A$168) | AY40: =+IMPORTARDATOSDINAMICOS(" BAS091";TABLAS!$A$168) | AZ40: =+IMPORTARDATOSDINAMICOS(" BAS092";TABLAS!$A$168) | BA40: =+IMPORTARDATOSDINAMICOS(" BAS093";TABLAS!$A$168) | BB40: =+IMPORTARDATOSDINAMICOS(" BAS094";TABLAS!$A$168) | BC40: =+IMPORTARDATOSDINAMICOS(" BAS095";TABLAS!$A$168) | BD40: =+IMPORTARDATOSDINAMICOS(" BAS096";TABLAS!$A$168)
A41: Gestante | B41: =+GETPIVOTDATA(" BAS043",TABLAS!$A$168) -> 0 | C41: =+GETPIVOTDATA(" BAS044",TABLAS!$A$168) -> 1 | D41: =+GETPIVOTDATA(" BAS045",TABLAS!$A$168) -> 0 | E41: =+GETPIVOTDATA(" BAS046",TABLAS!$A$168) -> 0 | F41: =+GETPIVOTDATA(" BAS047",TABLAS!$A$168) -> 0 | G41: =+GETPIVOTDATA(" BAS048",TABLAS!$A$168) -> 0 | L41: Mujeres Adolescentes | M41: =+GETPIVOTDATA(" BAS097",TABLAS!$A$168) -> 0 | N41: =+GETPIVOTDATA(" BAS098",TABLAS!$A$168) -> 0 | O41: =+GETPIVOTDATA(" BAS099",TABLAS!$A$168) -> 0 | P41: =+GETPIVOTDATA(" BAS100",TABLAS!$A$168) -> 0 | Q41: =+GETPIVOTDATA(" BAS101",TABLAS!$A$168) -> 0 | R41: =+GETPIVOTDATA(" BAS102",TABLAS!$A$168) -> 0 | X41: 43 | Y41: 44 | Z41: 45 | AA41: 46 | AB41: 47 | AC41: 48 | AG41: 97 | AH41: 98 | AI41: 99 | AJ41: 100 | AK41: 101 | AL41: 102 | AP41: =+IMPORTARDATOSDINAMICOS(" BAS043";TABLAS!$A$168) | AQ41: =+IMPORTARDATOSDINAMICOS(" BAS044";TABLAS!$A$168) | AR41: =+IMPORTARDATOSDINAMICOS(" BAS045";TABLAS!$A$168) | AS41: =+IMPORTARDATOSDINAMICOS(" BAS046";TABLAS!$A$168) | AT41: =+IMPORTARDATOSDINAMICOS(" BAS047";TABLAS!$A$168) | AU41: =+IMPORTARDATOSDINAMICOS(" BAS048";TABLAS!$A$168) | AY41: =+IMPORTARDATOSDINAMICOS(" BAS097";TABLAS!$A$168) | AZ41: =+IMPORTARDATOSDINAMICOS(" BAS098";TABLAS!$A$168) | BA41: =+IMPORTARDATOSDINAMICOS(" BAS099";TABLAS!$A$168) | BB41: =+IMPORTARDATOSDINAMICOS(" BAS100";TABLAS!$A$168) | BC41: =+IMPORTARDATOSDINAMICOS(" BAS101";TABLAS!$A$168) | BD41: =+IMPORTARDATOSDINAMICOS(" BAS102";TABLAS!$A$168)
A42: Puerpera | B42: =+GETPIVOTDATA(" BAS049",TABLAS!$A$168) -> 0 | C42: =+GETPIVOTDATA(" BAS050",TABLAS!$A$168) -> 0 | D42: =+GETPIVOTDATA(" BAS051",TABLAS!$A$168) -> 2 | E42: =+GETPIVOTDATA(" BAS052",TABLAS!$A$168) -> 0 | F42: =+GETPIVOTDATA(" BAS053",TABLAS!$A$168) -> 0 | G42: =+GETPIVOTDATA(" BAS054",TABLAS!$A$168) -> 0 | L42: MEF | M42: =+GETPIVOTDATA(" BAS103",TABLAS!$A$168) -> 0 | N42: =+GETPIVOTDATA(" BAS104",TABLAS!$A$168) -> 0 | O42: =+GETPIVOTDATA(" BAS105",TABLAS!$A$168) -> 0 | P42: =+GETPIVOTDATA(" BAS106",TABLAS!$A$168) -> 0 | Q42: =+GETPIVOTDATA(" BAS107",TABLAS!$A$168) -> 0 | R42: =+GETPIVOTDATA(" BAS108",TABLAS!$A$168) -> 0 | X42: 49 | Y42: 50 | Z42: 51 | AA42: 52 | AB42: 53 | AC42: 54 | AG42: 103 | AH42: 104 | AI42: 105 | AJ42: 106 | AK42: 107 | AL42: 108 | AP42: =+IMPORTARDATOSDINAMICOS(" BAS049";TABLAS!$A$168) | AQ42: =+IMPORTARDATOSDINAMICOS(" BAS050";TABLAS!$A$168) | AR42: =+IMPORTARDATOSDINAMICOS(" BAS051";TABLAS!$A$168) | AS42: =+IMPORTARDATOSDINAMICOS(" BAS052";TABLAS!$A$168) | AT42: =+IMPORTARDATOSDINAMICOS(" BAS053";TABLAS!$A$168) | AU42: =+IMPORTARDATOSDINAMICOS(" BAS054";TABLAS!$A$168) | AY42: =+IMPORTARDATOSDINAMICOS(" BAS103";TABLAS!$A$168) | AZ42: =+IMPORTARDATOSDINAMICOS(" BAS104";TABLAS!$A$168) | BA42: =+IMPORTARDATOSDINAMICOS(" BAS105";TABLAS!$A$168) | BB42: =+IMPORTARDATOSDINAMICOS(" BAS106";TABLAS!$A$168) | BC42: =+IMPORTARDATOSDINAMICOS(" BAS107";TABLAS!$A$168) | BD42: =+IMPORTARDATOSDINAMICOS(" BAS108";TABLAS!$A$168)
L43: Gestantes | M43: =+GETPIVOTDATA(" BAS109",TABLAS!$A$168) -> 0 | N43: =+GETPIVOTDATA(" BAS110",TABLAS!$A$168) -> 0 | O43: =+GETPIVOTDATA(" BAS111",TABLAS!$A$168) -> 0 | P43: =+GETPIVOTDATA(" BAS112",TABLAS!$A$168) -> 0 | Q43: =+GETPIVOTDATA(" BAS113",TABLAS!$A$168) -> 0 | R43: =+GETPIVOTDATA(" BAS114",TABLAS!$A$168) -> 0 | AG43: 109 | AH43: 110 | AI43: 111 | AJ43: 112 | AK43: 113 | AL43: 114 | AP43: =+IMPORTARDATOSDINAMICOS(" BAS00";TABLAS!$A$168) | AQ43: =+IMPORTARDATOSDINAMICOS(" BAS00";TABLAS!$A$168) | AR43: =+IMPORTARDATOSDINAMICOS(" BAS00";TABLAS!$A$168) | AS43: =+IMPORTARDATOSDINAMICOS(" BAS00";TABLAS!$A$168) | AT43: =+IMPORTARDATOSDINAMICOS(" BAS00";TABLAS!$A$168) | AU43: =+IMPORTARDATOSDINAMICOS(" BAS00";TABLAS!$A$168) | AY43: =+IMPORTARDATOSDINAMICOS(" BAS109";TABLAS!$A$168) | AZ43: =+IMPORTARDATOSDINAMICOS(" BAS110";TABLAS!$A$168) | BA43: =+IMPORTARDATOSDINAMICOS(" BAS111";TABLAS!$A$168) | BB43: =+IMPORTARDATOSDINAMICOS(" BAS112";TABLAS!$A$168) | BC43: =+IMPORTARDATOSDINAMICOS(" BAS113";TABLAS!$A$168) | BD43: =+IMPORTARDATOSDINAMICOS(" BAS114";TABLAS!$A$168)
